Workbook

Sheet NAVODILA
B3: Navodila za izpolnjevanje elektronskega obrazca
B5: Elektronski obrazec je namenjen posredovanju zahteve za izdajo soglasja k izhodiščni ceni toplote v skladu z 22. členom Zakona o oskrbi s toploto iz distribucijskih sistemov (Uradni list RS, št. 44/22) s strani reguliranih izvajalcev dejavnosti distribucije in proizvodnje toplote.
B6: Zavezanec za regulacijo (v nadaljevanju vlagatelj) je: -Distributer z lastno proizvodnjo toplote oz. distributer, ki skladno z določili 1. alineje, prvega odstavka, 4. člena Zakona o oskrbi s toploto iz distribucijskih sistemov (ZOTDS) izvaja izbirno gospodarsko javno službo; -Reguliran proizvajalec, ki je skladno z določili 17. točke 3. člena ZOTDS in 1. odstavka 19. člena ZOTDS zavezan k regulaciji cene dobavljene toplote distributerju oz. distributerju z lastno proizvodnjo toplote.
B7: Zahteva za izdajo soglasja k izhodiščni ceni je namenjena izračunu upravičenih stroškov, prihodkov, izhodiščne ter povprečne cene za posamezen distribucijski sistem oz. dobavo toplote za vse tri tipe zavezancev za regulacijo.
B8: V vnosna polja obrazca (rumena polja) je dovoljen vpis podatkov v pred nastavljenem formatnem zapisu (numerične ali alfa numerični podatki s pred nastavljenimi omejitvami ali izbirnim seznamom). Vrsta dovoljenega formatnega zapisa se prikaže uporabniku pri prehodu vnosnega polja. V kolikor formatni zapis ne ustreza predpisanem formatu, podatka ni mogoče vnesti oz. se pojavi sporočilo o ugotovljeni napaki (obrazec ima vgrajeno osnovno logično kontrolo pravilnega vnosa, ki zavrne vnos nepravilnega formata podatka ali rdeče obarva njegovo vrednost ali ob vrstici tabele prikaže rdečo oznako napake ali pa izpiše vrsto zaznane napake). Uporabnik lahko podatke v vnosna polja tudi vnaša s t.i. posebnim lepljenjem, kjer se vnašajo podatki kot vrednosti (brez oblikovanja). Obrazec je priporočeno izpolnjevati s programom Microsoft Excel 2010 (ali novejšo verzijo omenjenega programa), pri tem pa morajo biti omogočeni makroji (izvajanje VBA programskega jezika v obrazcu), ki omogočajo določeno vgrajeno logično kontrolo omenjenega obrazca in vgrajene dodatne funkcionalnosti obrazca (prikaz ustreznih tabel obrazca glede na izbrane vrednosti določenih vnosnih polj).
B10: Podatki se vpisujejo v polja označena z rumeno barvo.
B12: V poljih, označenih s svetlo sivo barvo, so prikazane izračunane vrednosti vnesenih podatkov (vrednosti v ta polja ni mogoče vnašati).
B14: Dodatna pojasnila v zvezi z izpolnjevanjem elektronskega obrazca naslovite na elektronski naslov Agencije za energijo (v nadaljevanju agencija) info@agen-rs.si (tel. št. 02/234-03-00).
B15: OPOZORILO: Model omogoča oddajo zahteve za izdajo soglasja k izhodiščni ceni samo za območje enega distribucijskega sistem oz. za izdajo soglasja k izhodiščni ceni za enega reguliranega proizvajalca.
B16: Nepravilno ali nepopolno izpolnjenega obrazca oz. nepravilno poimenovanega in posredovanega obrazca ter obrazca, ki bo spremenjen (odklenjen ali modificiran) s strani zavezanca za oddajo poročila ne bomo upoštevali! PRED ODDAJO OBRAZCA JE POTREBNO OBVEZNO IZVESTI NJEGOVO KONTROLO Z AKTIVIRANJEM GUMBA "IZVEDI KONTROLO OBRAZCA PRED ODDAJO"!
B18: Vsebina elektronskega obrazca
B20: Delovni list | C20: Vsebina delovnega lista
B21: POVZETEK | C21: Na delovnem listu se ročno vnesejo (rumena polja) ali samodejno izpolnijo (siva polja) naslednji osnovni podatki, ki so obvezni sestavni del zahteve: - Matična številka, ime in sedež vlagatelja; - Podatek o izvajanju dejavnosti distribucije toplote kot izbirne gospodarske javne službe v skladu s prvo alinejo, prvega odstavka, 4. člena ZOTDS ali - Podatek o izvajanju dejavnosti proizvodnje toplote kot regulirani proizvajalec toplote v skladu s 3. členom ZOTDS; - Navedba lokalnih skupnosti, na območju katerih se izvaja gospodarska javna služba distribucije toplote ali regulirana dejavnost proizvodnje toplote; - Datum spremembe zahteve v tem postopku izdaje soglasja je ob vložitvi zahtevi enak datumu vložitve zahteve za izdajo soglasja.
B22: POVZETEK_SC | C22: Na delovnem listu se v tabeli 3 in 4 stolpci 04 in 05 samodejno izpolnijo, vendar šele po tem, ko vlagatelj izpolni celotno zahtevo. Vlagatelj v stolpec 03 v tabeli 3 in 4 vpiše zahtevane podatke o zadnji veljavni izhodiščni ceni, upravičenih stroških in prihodkih ter količinah in obračunski moči (z upoštevanjem spremembe izhodiščne cene na podlagi prilagajanja posameznih elementov izhodiščne cene spremembam upravičenih stroškov oz. z upoštevanjem zadnjega veljavnega soglasja s strani agencije). Povzetek_SC je treba s strani odgovorne osebe in ga poslati kot prilogo zahteve s fizično pošto.
B23: IZJAVA | C23: Na delovnem listu vlagatelj ustrezno izpolni tabelo 5, 6, 7, 8 in 9. Če je vlagatelj agenciji že oddal zadnje veljavno koncesijsko pogodbo ali odlok, na podlagi katerega izvaja GJS ter zadnji veljavni pravilnik o sodilih,ter ustreznosti in pravilnost uporabe sodil, teh dokumentov ni potrebno ponovno oddati. Tabelo 8 izpolnjujejo samo distributerji in distributerji z lastno proizvodnjo toplote.
B24: IPI | C24: V tabeli 10 vlagatelj izpolni načrtovan izkaz poslovnega izida za leto t ločeno skladno z nazivi stolpcev od št. 03 do 06. Načrtovan izkaz poslovnega izida mora biti usklajen z gospodarskim načrtom družbe.
B25: BS | C25: V tabeli 11 in 12 vlagatelj izpolni podatke o sredstvih in kapitalu za leto t ločeno skladno z nazivi stolpcev od št. 03 do 06. Načrtovani podatki o sredstvih in obveznostih do virov sredstev morajo biti v skladu z gospodarskim načrtom družbe.
B26: IPI_T2_T3 | C26: V tabeli 13 vlagatelj izpolni izkaz poslovnega izida za obdobje t-2 in t-3. Izkaz poslovnega izida mora biti usklajen z izkazom poslovnega izida v revidiranem letnem poročilu, če tega nima pa z oddanimi podatki na Ajpes. V primeru, da je vlagatelj agenciji že posredoval zahtevane podatke teh tabel ni potrebno izpolnjevati.
B27: BS_T2_T3 | C27: V tabeli 14 in 15 vlagatelj izpolni bilanco stanja za obdobje t-2 in t-3. Bilanca stanja mora biti usklajena z bilanco stanja v revidiranem letnem poročilu, če tega nima pa z oddanimi podatki na Ajpes. V primeru, da je vlagatelj agenciji že posredoval zahtevane podatke teh tabel ni potrebno izpolnjevati.
B28: FIKSNI_DEL_T | C28: V tabeli 21 vlagatelj izpolni podatke o načrtovanih stroških v letu t, ki v skladu z aktom niso upravičeni stroški proizvodnje in distribucije toplote. V tabeli 22 vlagatelj ustrezno izpolni zahtevane podatke o načrtovanih fiksnih stroških leta t za območje distribucijskega sistema oz. dobave toplote, za katerega vlagatelj vlaga zahtevo. V tabeli 23 se na podlagi podatkov v tabeli 22 in načrtovane obračunske moči, ki se prenesejo iz delovnega lista "PRIHODKI" izračuna fiksni del izhodiščne cene. Fiksni del izhodiščne cene se izračuna, ko vlagatelj v celoti izpolni delovni list "PRIHODKI". Opozorilo: Posamezne postavke fiksnih upravičenih stroškov NE SMEJO presegati teh postavk v načrtovanem izkazu poslovnega izida na delovnem listu IPI.
B29: UVS_T-1 | C29: V tabeli 19 vlagatelj izpolni podatek o dobavitelju toplote (samo v primeru, če vlagatelj nabavlja toploto od dobavitelja toplote). V tabelah od 20.1 do 20.12 vlagatelj, za posamezni mesec poslovnega leta predhodnega letu v katerem vlaga zahtevo za izdajo novega soglasja k izhodiščni ceni toplote, ustrezno izpolni realizirane podatke o strukturi in ceni energentov in drugih variabilnih stroškov, ki so potrebni za proizvodnjo oz. distribucijo toplote.
B30: VARIABILNI_DEL_T-1 | C30: Delovni list predstavlja strnjen pregled (sumiranih) podatkov o variabilnih stroških za poslovno leto, ki je predhodno poslovnemu letu v katerem vlagatelj vlaga zahtevo za izdajo novega soglasja k izhodiščni ceni toplote in izračun variabilnega dela izhodiščne cene toplote za distribucijski sistem. Variabilni del izhodiščne cene toplote se izračuna, ko vlagatelj v celoti izpolni tudi delovni list "PRIHODKI".
B31: UVS_T | C31: V tabeli 25 vlagatelj izpolni podatek o dobavitelju toplote (samo v primeru, če vlagatelj nabavlja toploto od dobavitelja toplote). V tabelah od 26.1 do 26.12 vlagatelj, za posamezni mesec poslovnega leta v katerem vlaga zahtevo za izdajo novega soglasja k izhodiščni ceni toplote, ustrezno izpolni podatke o realizaciji oz. načrtovane podatke o strukturi in ceni energentov in drugih variabilnih stroškov, ki so potrebni za proizvodnjo oz. distribucijo toplote.
B32: VARIABILNI_DEL_T | C32: Delovni list predstavlja strnjen pregled (sumiranih) podatkov o variabilnih stroških za časovno obdobje, ki je enako poslovnemu letu, v katerem vlagatelj vlaga zahtevo za izdajo novega soglasja k izhodiščni ceni toplote in izračun variabilnega dela izhodiščne cene toplote za distribucijski sistem. Variabilni del izhodiščne cene toplote se izračuna, ko vlagatelj v celoti izpolni tudi delovni list "PRIHODKI".
B33: PRIHODKI | C33: V tabelah od 31 do 34 izpolni vlagatelj realiziran oz. načrtovan tarifni cenik po vrstah storitev in vrstah odjemalcev za obdobje od leta t-2 do leta t. V tabeli 35 se podatki o variaiblnih in fiksnih prihodkih ter števninah prenesejo iz tabel od št. 31 do št. 34, vlagatelj ročno vnese le podatek o drugih prihodkih izven cenika za leto t-1 in t. Pri tem mora vlagatelj upoštevati, da v omenjeno postavko vnese vse realizirane druge poslovne in druge prihodke v letu t-1 ter načrtovane druge poslovne in druge prihodke za leto t-1 in t. Vsota prihodkov v letu t mora biti enaka vsoti prihodkov v načrtovanem poslovnem izidu. Opozorilo: Fiksni prihodki iz tarifnega sistema NE SMEJO presegajo višine fiksnih upravičenih stroškov in upravičeni prihodki NE SMEJO presegati upravičenih stroškov in povprečna cena NE SME presegati stroškovne cene.
B34: TARIFNI SISTEM | C34: Veljavni tarifni cenik.
B35: REKAPITULACIJA | C35: Tabela predstavlja strnjen pregled najpomembnejših podatkov za območje distribucijskega sistema oz. dobave toplote, za katerega vlagatelj vlaga zahtevo.

Sheet KAZALO
B3: Kazalo delovnih listov obrazca:
B5: ID | C5: Delovni list | D5: Vsebina delovnega lista
B6: 1 | C6: NAVODILA
B7: 2 | C7: KAZALO
B8: 3 | C8: POVZETEK
B9: 4 | C9: POVZETEK_PO
B10: 5 | C10: POVZETEK_SC
B11: 6 | C11: IZJAVA
B12: 7 | C12: IPI
B13: 8 | C13: BS
B14: 9 | C14: IPI_T2_T3
B15: 10 | C15: BS_T2_T3
B16: 11 | C16: IDT_T2_T3
B17: 12 | C17: FIKSNI_DEL_T
B18: 13 | C18: UVS_T-1
B19: 14 | C19: VARIABILNI_DEL_T-1
B20: 15 | C20: UVS_T
B21: 16 | C21: VARIABILNI_DEL_T
B22: 17 | C22: PRIHODKI
B23: 18 | C23: TARIFNI_SISTEM
B24: 19 | C24: REKAPITULACIJA
B25: 20 | C25: BAZA_Sifranti
B26: 21 | C26: BAZA
B27: 22 | C27: BAZA_AEControl
B28: 23 | C28: XML

Sheet POVZETEK
AA1: KONTROLA IZPOLNJENOSTI LISTA
AA3: =AB12-AB11+AA39+AB30 -> 13 | AB3: Sumarne napake
C4: ZAHTEVA ZA IZDAJO SOGLASJA K IZHODIŠČNI CENI TOPLOTE ZA DALJINSKO OGREVANJE
C5: Osnovni podatki o vložitvi zahteve v skladu z Aktom o metodologiji za oblikovanje cene toplote za daljinsko ogrevanje, Akta o metodologiji za oblikovanje cene toplote za daljinsko ogrevanje, Uradni list RS 103/23
C7: =IFERROR(IF(BAZA_AEControl!A2>0,"OBRAZEC JE ŠE NEIZPOLNJEN ALI PA VSEBUJE NAPAKE VNOSA, ZATO GA NI MOŽNO ODDATI!",""),"NAPAKA KONTROLE!") -> OBRAZEC JE ŠE NEIZPOLNJEN ALI PA VSEBUJE NAPAKE VNOSA, ZATO GA NI MOŽNO ODDATI!
I9: Številka zadeve AE:
C11: Tabela 1: Osnovni podatki o družbi | I11: Matična številka družbe: | AA11: Št. izpolnjenih polj | AB11: =COUNTA(J11,E17,E20,E22,E32,E30,E47:E49,E52:E53,E28) -> 0
AA12: Število kontrolnih polj vnosa | AB12: 12
C13: Naziv družbe: | D13: =IFERROR(VLOOKUP(MATCH(J11,tblQ_PSubjekt[Maticna],0),tblQ_PSubjekt[],3),"") -> 
C15: Sedež družbe: | D15: =IFERROR(VLOOKUP(MATCH(J11,tblQ_PSubjekt[Maticna],0),tblQ_PSubjekt[],5),"") ->  | AA15: Korekcijsko leto obrazca
B17: Vlagatelj podaja zahtevo za izdajo soglasja k izhodiščni ceni kot: | AA17: =IF(E28="",TODAY(),IF(AA16="",E28,AA16)) -> 2025-07-24 | AB17: =IFERROR(MATCH(E17,tblS_IzvajalecTip[Naziv],0),0) -> 0
B19: =IFERROR(VLOOKUP(MATCH(E17,BAZA_Sifranti!J5:J7,0),BAZA_Sifranti!I5:K7,3),"") -> 
D20: =IF(E17="regulirani proizvajalec toplote","distribucijskemu sistemu:","na distribucijskem sistemu:") -> na distribucijskem sistemu: | J20: , | AA20: =IF(AND(E28="",AA16=""),TODAY(),DATE(YEAR(AA17),MONTH(AA17),DAY(AA17))) -> 2025-07-24
D22: ki je agenciji priglašen dne | AA22: =IF(MONTH(AA20)>2,IF(MONTH(AA20)>3,DATE(YEAR(AA20),MONTH(AA20)-1,1),DATE(YEAR(AA20),1,1)),DATE(YEAR(AA20),MONTH(AA20)-2,1)) -> 2025-06-01 | AB22: Datum začetka plana v letu (t-1)
D24: (identifikacijska oznaka distribucijskega sistema) | E24: =IFERROR(VLOOKUP(MATCH(E20,tblQ_DSistemi[DSistem Naziv_Distributer],0),tblQ_DSistemi[],2),"") ->  | AA24: =AA22-1 -> 2025-05-31 | AB24: Datum konca realizacije v letu (t-1)
D26: ki se nahaja na območju lokalne skupnosti: | E26: =IFERROR(VLOOKUP(MATCH(E20,tblQ_DSistemi[DSistem Naziv_Distributer],0),tblQ_DSistemi[],7),"") -> 
D28: Datum vložitve zahteve za izdajo soglasja: | AB28: =IF(E28="",1,0) -> 1
D30: Datum zadnje spremembe vloge v tem postopku izdaje soglasja: | AB30: =IF(E30<E28,1,0) -> 0
D32: Datum predvidene uveljavitve izhodiščne cene
C34: Tabela 2: Osnovni podatki vloge
D36: Vlagatelj podaja zahtevo za izdajo soglasja k izhodiščni ceni za:
D37: Prvo oblikovanje izhodiščne cene ob začetku opravljanja dejavnosti v skladu z 9. in 10. členom akta | AA37: FALSE
D38: Spremembo izhodiščne cene v skladu s 16. členom akta | AA38: FALSE
AA39: =IF(OR(AND(AA37=TRUE,AA38=TRUE),AND(AA37=FALSE,AA38=FALSE))=TRUE,1,0) -> 1
D46: Obrazec izpolnil:
D47: Ime in priimek:
D48: Telefonska številka:
D49: Elektronski poštni naslov:
D51: Direktor(ica) oz. odgovorna oseba:
D52: Ime in priimek:
D53: Datum:
D54: Žig in podpis:

Sheet POVZETEK_PO (hidden)
AA1: KONTROLA IZPOLNJENOSTI LISTA
C4: =POVZETEK!C4 -> ZAHTEVA ZA IZDAJO SOGLASJA K IZHODIŠČNI CENI TOPLOTE ZA DALJINSKO OGREVANJE
C5: Prvo oblikovanje izhodiščne cene ob začetku opravljanja dejavnosti v skladu z 9. in 10. členom Akta o metodologiji za oblikovanje cene toplote za daljinsko ogrevanje, Uradni list RS 2/17
H8: Številka zadeve AE: | I8: =IF(POVZETEK!$J$9="","",POVZETEK!$J$9) -> 
H10: Matična številka družbe: | I10: =IF(POVZETEK!$J$11="","",POVZETEK!$J$11) -> 
C12: Naziv družbe: | D12: =POVZETEK!D13 -> 
C14: Tip izvajalca: | D14: =UPPER(POVZETEK!E17) ->  | H14: ID distribucijskega sistema: | I14: =POVZETEK!$E$24 -> 
C16: Tabela 3: Podatki o izhodiščni ceni, upravičenih stroških in prihodkih v zahtevi
C18: 01 | D18: 02 | E18: 03
C19: ID | D19: Podatek | E19: Izhodiščna cena
C20: 1 | D20: Variabilni del izhodiščne cene (VCi) [EUR/MWh] | E20: =#REF! -> 
C21: 2 | D21: Načrtovani variaibilni upravičeni stroški (VSTRt) [EUR] | E21: =#REF! -> 
C22: 3 | D22: Fiksni del izhodiščne cene v (FCi) [EUR/MW/leto] | E22: =#REF! -> 
C23: 4 | D23: Načrtovani fiksni upravičeni stroški (FSTRt) [EUR] | E23: =#REF! -> 
C24: 5 | D24: Povprečna cena - PC (brez DDV) [EUR/MWh]: | E24: =PRIHODKI!$E$228 -> 0
C25: 6 | D25: Načrtovani upravičeni prihodki [EUR]: | E25: =PRIHODKI!$E$226 -> 0
C26: 7 | D26: Datum predvidene uveljavitve izhodiščne cene | E26: =POVZETEK!$E$32 -> 00:00:00
C28: Opomba: Zneski podani brez DDV
C30: Tabela 4: Podatki o načrtovani distribuirani toploti in obračunski moči v zahtevi
C32: 01 | D32: 02 | E32: 03
C33: ID | D33: Podatek | E33: Vrednost
C34: 1 | D34: Skupna količina distribuirane oz. prodane toplote (Qt oz. Ki) [MWh] | E34: =PRIHODKI!#REF! -> 
C35: 2 | D35: Skupna obračunska moč po kategorijah cenika (vsota Pi) [MW] | E35: =PRIHODKI!#REF! -> 
D38: Obrazec izpolnil:
D39: Ime in priimek: | E39: =IF(POVZETEK!$E$47="","",POVZETEK!$E$47) -> 
D40: Telefonska številka: | E40: =IF(POVZETEK!$E$48="","",POVZETEK!$E$48) -> 
D41: Elektronski poštni naslov: | E41: =IF(POVZETEK!$E$49="","",POVZETEK!$E$49) -> 
D42: Datum spremembe zahteve v tem postopku izdaje soglasja: | E42: =IF(POVZETEK!$E$30="","",POVZETEK!$E$30) -> 
D44: Direktor(ica) oz. odgovorna oseba:
D45: Ime in priimek: | E45: =IF(POVZETEK!$E$52="","",POVZETEK!$E$52) -> 
D46: Datum: | E46: =IF(POVZETEK!$E$53="","",POVZETEK!$E$53) -> 
D47: Žig in podpis:

Sheet POVZETEK_SC
AA1: KONTROLA IZPOLNJENOSTI LISTA
AA3: Število vseh polj | AB3: 11
C4: =POVZETEK!C4 -> ZAHTEVA ZA IZDAJO SOGLASJA K IZHODIŠČNI CENI TOPLOTE ZA DALJINSKO OGREVANJE | AA4: Št. izpolnjenih polj | AB4: =COUNTA(E20:E26,E34:E35,C40,C44) -> 0
C5: Sprememba izhodiščne cene v skladu s 16. členom Akta o metodologiji za oblikovanje cene toplote za daljinsko ogrevanje", Uradni list RS 103/23 | AA5: Razlika | AB5: =AB3-AB4 -> 11
H8: Številka zadeve AE: | I8: =IF(POVZETEK!$J$9="","",POVZETEK!$J$9) -> 
H10: Matična številka družbe: | I10: =IF(POVZETEK!$J$11="","",POVZETEK!$J$11) -> 
C12: Naziv družbe: | D12: =POVZETEK!D13 -> 
C14: Tip izvajalca: | D14: =UPPER(POVZETEK!E17) ->  | H14: ID distribucijskega sistema: | I14: =POVZETEK!$E$24 -> 
C16: Tabela 3: Podatki o izhodiščni ceni, upravičenih stroških in prihodkih v zahtevi pred in po spremembi izhodiščne cene
C18: 01 | D18: 02 | E18: 03 | F18: 04 | G18: 05
C19: ID | D19: Podatek | E19: Pred spremembo | F19: Po spremembi | G19: % spremembe
C20: 1 | D20: Variabilni del izhodiščne cene (VCi) [EUR/MWh] | F20: =VARIABILNI_DEL_T!T114 -> 0 | G20: =IFERROR((F20-E20)/E20,0) -> 0
C21: 2 | D21: Načrtovani variabilni upravičeni stroški (VSTRt) [EUR] | F21: =VARIABILNI_DEL_T!T112 -> 0 | G21: 0
C22: 3 | D22: Fiksni del izhodiščne cene v (FCi) [EUR/MW/leto] | F22: =FIKSNI_DEL_T!G121 -> 0 | G22: 0
C23: 4 | D23: Načrtovani fiksni upravičeni stroški (FSTRt) [EUR] | F23: =FIKSNI_DEL_T!G119 -> 0 | G23: 0
C24: 5 | D24: Povprečna cena - PC (brez DDV) [EUR/MWh]: | F24: =PRIHODKI!$E$228 -> 0 | G24: 0
C25: 6 | D25: Načrtovani upravičeni prihodki [EUR]: | F25: =PRIHODKI!$E$226 -> 0 | G25: 0
C26: 7 | D26: Datum uveljavitve izhodiščne cene | F26: =POVZETEK!$E$32 -> 00:00:00
C27: Opomba: Zneski podani brez DDV
C30: Tabela 4: Podatki o načrtovani distribuirani energiji in obračunski moči v zahtevi pred in po spremembi izhodiščne cene
C32: 01 | D32: 02 | E32: 03 | F32: 04 | G32: 05
C33: ID | D33: Podatek | E33: Pred spremembo | F33: Po spremembi | G33: % spremembe
C34: 1 | D34: Skupna količina distribuirane oz. prodane toplote (Qt oz. Ki) [MWh] | F34: =PRIHODKI!G215 -> 0 | G34: =IFERROR((F34-E34)/E34,0) -> 0
C35: 2 | D35: Skupna obračunska moč po kategorijah cenika (vsota Pt) [MW] | F35: =PRIHODKI!F216 -> 0 | G35: =IFERROR((F35-E35)/E35,0) -> 0
C38: Razlog za spremembo izhodiščne cene:
I40: =IF(ISBLANK(C40),"û","ü") -> û
C42: Obrazložitev razloga za spremembo cene toplote:
I44: =IF(ISBLANK(C44),"û","ü") -> û
D46: Obrazec izpolnil:
D47: Ime in priimek: | E47: =IF(POVZETEK!$E$47="","",POVZETEK!$E$47) -> 
D48: Telefonska številka: | E48: =IF(POVZETEK!$E$48="","",POVZETEK!$E$48) -> 
D49: Elektronski poštni naslov: | E49: =IF(POVZETEK!$E$49="","",POVZETEK!$E$49) -> 
D50: Datum spremembe zahteve v tem postopku izdaje soglasja: | E50: =IF(POVZETEK!$E$30="","",POVZETEK!$E$30) -> 
D52: Direktor(ica) oz. odgovorna oseba:
D53: Ime in priimek: | E53: =IF(POVZETEK!$E$52="","",POVZETEK!$E$52) -> 
D54: Datum: | E54: =IF(POVZETEK!$E$53="","",POVZETEK!$E$53) -> 
D55: Žig in podpis:

Sheet IZJAVA
AA1: KONTROLA IZPOLNJENOSTI LISTA
AA3: Število vseh polj | AB3: 37
C4: =POVZETEK!C4 -> ZAHTEVA ZA IZDAJO SOGLASJA K IZHODIŠČNI CENI TOPLOTE ZA DALJINSKO OGREVANJE | AA4: Št. izpolnjenih polj | AB4: =COUNTA(E33:G34,E41:G46,E54:E60,E67:E72) -> 0
C5: Izjava o posredovanih podatkih Akta o metodologiji za oblikovanje cene toplote za daljinsko ogrevanje, Uradni list RS 103/23 | AA5: Razlika | AB5: =AB3-AB4 -> 37
F8: Številka zadeve AE: | G8: =IF(POVZETEK!$J$9="","",POVZETEK!$J$9) ->  | AA8: Kontrola napak
F10: Matična številka družbe: | G10: =IF(POVZETEK!$J$11="","",POVZETEK!$J$11) -> 
C12: Naziv družbe: | D12: =POVZETEK!D13 -> 
C14: Tip izvajalca: | D14: =UPPER(POVZETEK!E17) ->  | F14: ID distribucijskega sistema: | G14: =POVZETEK!$E$24 ->  | AA14: Izjava_Izkazi
AA15: 2
AA16: 2
AA17: 2
C18: ="Tabela 5: Vlagatelj s podpisom izjave potrjuje, da je v okviru letnih poročanj agenciji za leto "&BAZA_Sifranti!BE6&" in "&BAZA_Sifranti!BE7&" priložil naslednje računovodske evidence in tehnične podatke:" -> Tabela 5: Vlagatelj s podpisom izjave potrjuje, da je v okviru letnih poročanj agenciji za leto t-1 (1899) in t-2 (1898) priložil naslednje računovodske evidence in tehnične podatke: | AA18: 2
AA19: 2
C20: ID | D20: Računovodski izkazi | E20: Oddano agenciji | F20: Datum oddaje | AA20: Kontrola_Napake
C21: 1 | D21: Izkaza poslovnega izida družbe | G21: =IF(AA15=1,"û",IF(AND(AA15=3,ISBLANK(F21)),"ü",IF(AND(AA15=2,ISBLANK(F21)),"û","ü"))) -> û | AA21: =IF(G21="û",1,0) -> 1
C22: 2 | D22: Bilanco stanja družbe | G22: =IF(AA16=1,"û",IF(AND(AA16=3,ISBLANK(F22)),"ü",IF(AND(AA16=2,ISBLANK(F22)),"û","ü"))) -> û | AA22: =IF(G22="û",1,0) -> 1
C23: 3 | D23: Register osnovnih sredstev družbe | G23: =IF(AA18=1,"û",IF(AND(AA18=3,ISBLANK(F23)),"ü",IF(AND(AA18=2,ISBLANK(F23)),"û","ü"))) -> û | AA23: =IF(G24="û",1,0) -> 1
C24: 4 | D24: Tehnične podatke (letno poročilo) | G24: =IF(AA19=1,"û",IF(AND(AA19=3,ISBLANK(F24)),"ü",IF(AND(AA19=2,ISBLANK(F24)),"û","ü"))) -> û
C26: Dodatno zahtevani podatki:
C28: Tabela 6: Podatki o znesku prejetih subvencij v zadnjih treh letih | G28: v EUR
C30: 01 | D30: 02 | E30: 03 | F30: 04 | G30: 05
C31: ID | D31: Znesek prejetih subvencij, dotacij ali drugih oblik državne ali druge pomoči v letih | E31: =VLOOKUP(E32,BAZA_Sifranti!$AJ$5:$AK$9,2,0) -> 2024 | F31: =VLOOKUP(F32,BAZA_Sifranti!$AJ$5:$AK$9,2,0) -> 2023 | G31: =VLOOKUP(G32,BAZA_Sifranti!$AJ$5:$AK$9,2,0) -> 2022 | AA31: SUM NAPAK
C32: ID | D32: Postavka | E32: t-1 | F32: t-2 | G32: t-3 | AA32: =AB5+SUM(AA21:AA23) -> 40
C33: 1 | D33: Družba
C34: 2 | D34: Dejavnost proizvodnje in distribucije toplote
C36: Tabela 7: Podatek o sredstvih v najemu za dejavnost proizvodnje in distribucije toplote | G36: v EUR
C38: 01 | D38: 02 | E38: 03 | F38: 04 | G38: 05
C39: ID | D39: Podatek o sredstvih v najemu za dejavnost proizvodnje in distribucije toplote: | E39: =VLOOKUP(E40,BAZA_Sifranti!$AJ$5:$AK$9,2,0) -> 2024 | F39: =VLOOKUP(F40,BAZA_Sifranti!$AJ$5:$AK$9,2,0) -> 2023 | G39: =VLOOKUP(G40,BAZA_Sifranti!$AJ$5:$AK$9,2,0) -> 2022
C40: ID | D40: Postavka | E40: t-1 | F40: t-2 | G40: t-3
C41: 1 | D41: Neopredmetena dolgoročna sredstva
C42: 1.1 | D42: - od tega v najemu od lokalne skupnost
C43: 2 | D43: Opredmetena osnovna sredstva
C44: 2.1 | D44: - od tega v najemu od lokalne skupnost
C45: 3 | D45: Strošek najema
C46: 3.1 | D46: - od tega v najemu od lokalne skupnost
C47: * v kolikor ima družba sredstva v najemu priloži tudi pogodbe o najemu sredstev
C49: Tabela 8: Osnovni podatki o izvajanju gospodarske javne službe (izpolnijo samo distributerji in distributerji z lastno proizvodnjo toplote)
C51: 01 | D51: 02 | E51: 03
C52: ID | D52: Osnovni podatki o izvajanju gospodarske javne službe oskrba s toplote | E52: Izpolnite podatke
C53: ID | D53: Postavka | E53: Izpolnite podatke
C54: 1 | D54: Št. koncesijske pogodbe oz. odloka
C55: 2 | D55: Obdobje pridobljene pravice za izvajanje GJS distribucije toplote začetek... (dd.mm.llll)
C56: 3 | D56: Obdobje pridobljene pravice za izvajanje GJS distribucije toplote konec… (dd.mm.llll)
C57: 4 | D57: Datum zadnje spremembe koncesijske pogodbe ali odloka (dd.mm.llll)
C58: 5 | D58: Znesek koncesnine
C59: 6 | D59: Ali ste v okviru prejšnega postopka za izdajo soglasja k izhodiščni ceni ali vloge za SON agenciji že posredovali zadnjo veljavno koncesijsko pogodbo ali odlok. V primeru označitve z "DA" koncesijske pogodbe ali odloka ni potrebno ponovno pošiljati. | F59: =IF(ISBLANK(E59)," ",IF(E59="DA","Dokumenta ni potrebno ponovno pošiljati agenciji za energijo"," Potrebno posredovati pravno podlago na podlagi katerega družba izvaja GJS")) -> 
C60: 7 | D60: Vpišite datum oddaje koncesijske pogodbe agenciji za energijo
C62: Tabela 9: Osnovni podatki o izvajanju gospodarske javne službe
C64: 01 | D64: 02 | E64: 03
C65: ID | D65: Podatki o sodilih za razporejanje sredstev in obveznosti, stroškov in odhodkov ter prihodkov | E65: Izpolnite podatke
C66: ID | D66: Postavka | E66: Izpolnite podatke
C67: 1 | D67: Št. pravilnika o sodilih za razporejanje sredstev in obveznosti, stroškov in odhodkov ter prihodkov | F67: =IF(E66="DA","Dokumenta ni treba ponovno pošiljati agenciji za energijo"," ") -> 
C68: 2 | D68: Datum sprejetja pravilnika o sodilih za razporejanje sredstev in obveznosti, stroškov in odhodkov ter prihodkov | F68: =IF(E67="DA","Dokumenta ni treba ponovno pošiljati agenciji za energijo"," ") -> 
C69: 3 | D69: Datum zadnje potrditve ustreznosti sodil s strani revizijske družbe | F69: =IF(E68="DA","Dokumenta ni treba ponovno pošiljati agenciji za energijo"," ") -> 
C70: 4 | D70: Revizijska družba, ki je izvajala pregled ustreznosti sodil | F70: =IF(E69="DA","Dokumenta ni treba ponovno pošiljati agenciji za energijo"," ") -> 
C71: 5 | D71: Ali ste v okviru prejšnega postopka za izdajo soglasja k izhodiščni ceni agenciji že posredovali zadnji veljavni pravilnik o sodilih in potrditev ustreznosti s strani revizijske družbe. | F71: =IF(ISBLANK(E71)," ",IF(E71="DA","Dokumenta ni potrebno ponovno pošiljati agenciji za energijo"," Potrebno posredovati poročilo o ustreznosti in pravilnosti sodil kot prilogo zahteve")) -> 
C72: 6 | D72: Vpišite datum oddaje pravilnika o sodilih za razporejanje sredstev in obveznosti, stroškov in odhodkov ter prihodkov agenciji za energijo
D74: Direktor(ica) oz. odgovorna oseba:
D75: Ime in priimek: | E75: =IF(POVZETEK!$E$52="","",POVZETEK!$E$52) -> 
D76: Datum: | E76: =IF(POVZETEK!$E$53="","",POVZETEK!$E$53) -> 
D77: Žig in podpis:

Sheet IPI
AA1: KONTROLA IZPOLNJENOSTI LISTA
AA3: Število vseh polj | AB3: 156
C4: =POVZETEK!C4 -> ZAHTEVA ZA IZDAJO SOGLASJA K IZHODIŠČNI CENI TOPLOTE ZA DALJINSKO OGREVANJE | AA4: Št. izpolnjenih polj | AB4: =COUNTA(F23:I26,F29:I31,F33:I35,F37:I41,F44:I47,F49:I50,F52:I54,F56:I59,F61:I63,F65:I66,F68:I69,F72:I75) -> 0
C5: Načrtovan izkaz poslovnega izida po dejavnostih za leto t Akta o metodologiji za oblikovanje cene toplote za daljinsko ogrevanje", Uradni list RS 103/23 | AA5: Razlika | AB5: =AB3-AB4 -> 156
I8: Številka zadeve AE: | J8: =IF(POVZETEK!$J$9="","",POVZETEK!$J$9) -> 
I10: Matična številka družbe: | J10: =IF(POVZETEK!$J$11="","",POVZETEK!$J$11) -> 
C12: Naziv družbe: | E12: =POVZETEK!D13 -> 
C14: Tip izvajalca: | E14: =UPPER(POVZETEK!E17) ->  | I14: ID distribucijskega sistema: | J14: =POVZETEK!$E$24 -> 
B18: ="Tabela 10: Izkaz poslovnega izida iz potrjenega poslovnega načrta za leto "&BAZA_Sifranti!AV8 &" ("&LOWER(BAZA_Sifranti!AS8)&" "&BAZA_Sifranti!AY8&")" -> Tabela 10: Izkaz poslovnega izida iz potrjenega poslovnega načrta za leto t (2025) (plan 1.1.2025 - 31.12.2025)
J19: v EUR (brez decimalnih mest)
C20: 01 | E20: 02 | F20: 03 | G20: 04 | H20: 05 | I20: 06 | J20: 07
C21: ID | E21: Postavka | F21: =IFERROR(VLOOKUP(POVZETEK!$E$17,BAZA_Sifranti!$AC$5:$AD$7,2,0)&" "&"-"&" "&POVZETEK!$E$20,"NEDOLOČEN DS") -> NEDOLOČEN DS | G21: Proizvodnja_Distribucija DT OSTALI SISTEMI DT (GJS) | H21: Druge energetske dejavnosti | I21: Tržne in ostale neenergetske dejavnosti | J21: Družba
C22: ID | D22: Šifra_IPI | E22: POSTAVKA | F22: DT_LP | G22: DT_LP_Ostali | H22: D_E_D | I22: T_O_D | J22: Družba
C23: 1 | D23: 10000 | E23: Čisti prihodki od prodaje | J23: =SUM(F23:I23) -> 0
C24: 2 | D24: 11000 | E24: Sprememba vred. zalog proizvodov in ned. proizv. | J24: 0
C25: 3 | D25: 12000 | E25: Usredstveni lastni proizvodi in lastne storitve | J25: 0
C26: 4 | D26: 13000 | E26: Drugi poslovni prihodki (s prevrednotovalnimi poslovnimi prihodki) | J26: 0
D27: 14000 | E27: POSLOVNI PRIHODKI | F27: =F23+F24+F25+F26 -> 0 | G27: =G23+G24+G25+G26 -> 0 | H27: =H23+H24+H25+H26 -> 0 | I27: =I23+I24+I25+I26 -> 0 | J27: 0
C28: 5 | D28: 20000 | E28: Stroški blaga, materiala in storitev | F28: =F29+F31 -> 0 | G28: =G29+G31 -> 0 | H28: =H29+H31 -> 0 | I28: =I29+I31 -> 0 | J28: 0
C29: 5 a) | D29: 21000 | E29: Nabavna vrednost prodanega blaga in materiala ter stroški porabljenega materiala | J29: 0
D30: 21001 | E30: - od tega stroški porabljenega materiala | J30: 0
C31: 5 c) | D31: 29000 | E31: Stroški storitev | J31: 0
C32: 6 | D32: 30000 | E32: Stroški dela | F32: =F33+F34+F35 -> 0 | G32: =G33+G34+G35 -> 0 | H32: =H33+H34+H35 -> 0 | I32: =I33+I34+I35 -> 0 | J32: 0
C33: 6 a) | D33: 31000 | E33: Stroški plač | J33: 0
C34: 6 b) | D34: 32000 | E34: Stroški socialnih zavarovanj | J34: 0
C35: 6,c) | D35: 33000 | E35: Drugi stroški dela | J35: 0
C36: 7 | D36: 40000 | E36: Odpisi vrednosti | F36: =F37+F38+F39 -> 0 | G36: =G37+G38+G39 -> 0 | H36: =H37+H38+H39 -> 0 | I36: =I37+I38+I39 -> 0 | J36: 0
C37: 7 a) | D37: 41000 | E37: Amortizacija | J37: 0
C38: 7 b) | D38: 42000 | E38: Prevrednotovalni poslovni odhodki pri neopredmetenih sredstvih in opredmetenih osnovnih sredstvih | J38: 0
C39: 7 c) | D39: 43000 | E39: Prevrednotovalni poslovni odhodki pri obratnih sredstvih | J39: 0
C40: 8 | D40: 50000 | E40: Drugi poslovni odhodki | J40: 0
D41: 50001 | E41: - od tega stroški emisijskih kuponov, ki niso pridobljeni brezplačno | J41: 0
D42: 60000 | E42: POSLOVNI IZID IZ POSLOVANJA | F42: =F27-F28-F32-F36-F40 -> 0 | G42: =G27-G28-G32-G36-G40 -> 0 | H42: =H27-H28-H32-H36-H40 -> 0 | I42: =I27-I28-I32-I36-I40 -> 0 | J42: 0
C43: 9 | D43: 70000 | E43: Finančni prihodki iz deležev | F43: =SUM(F44:F47) -> 0 | G43: =SUM(G44:G47) -> 0 | H43: =SUM(H44:H47) -> 0 | I43: =SUM(I44:I47) -> 0 | J43: 0
C44: 9 a) | D44: 70100 | E44: Finančni prihodki iz deležev v družbah v skupini | J44: 0
C45: 9 b) | D45: 70200 | E45: Finančni prihodki iz deležev v pridruženih družbah | J45: 0
C46: 9 c) | D46: 70300 | E46: Finančni prihodki iz deležev v drugih družbah | J46: 0
C47: 9 č) | D47: 70400 | E47: Finančni prihodki iz drugih naložb | J47: 0
C48: 10 | D48: 71000 | E48: Finančni prihodki iz danih posojil | F48: =SUM(F49:F50) -> 0 | G48: =SUM(G49:G50) -> 0 | H48: =SUM(H49:H50) -> 0 | I48: =SUM(I49:I50) -> 0 | J48: 0
C49: 10 a) | D49: 71100 | E49: Finančni prihodki iz posojil, danih družbam v skupini | J49: 0
C50: 10 b) | D50: 71200 | E50: Finančni prihodki iz posojil, danim drugim | J50: 0
C51: 11 | D51: 72000 | E51: Finančni prihodki iz poslovnih terjatev | F51: =SUM(F52:F53) -> 0 | G51: =SUM(G52:G53) -> 0 | H51: =SUM(H52:H53) -> 0 | I51: =SUM(I52:I53) -> 0 | J51: 0
C52: 11 a) | D52: 72100 | E52: Finančni prih. iz poslovnih terjatev do družb v skupini | J52: 0
C53: 11 b) | D53: 72200 | E53: Finančni prih. iz poslovnih terjatev do drugih | J53: 0
C54: 12 | D54: 80000 | E54: Finančni odhodki iz oslabitve in odpisov finančnih naložb | J54: 0
C55: 13 | D55: 81000 | E55: Finančni odhodki iz finančnih obveznosti | F55: =SUM(F56:F59) -> 0 | G55: =SUM(G56:G59) -> 0 | H55: =SUM(H56:H59) -> 0 | I55: =SUM(I56:I59) -> 0 | J55: =SUM(F55:I55) -> 0
C56: 13 a) | D56: 81100 | E56: Finančni odh. iz posojil, prejetih od družb v skupini | J56: 0
C57: 13 b) | D57: 81200 | E57: Finančni odh. iz posojil, prejetih od bank | J57: 0
C58: 13 c) | D58: 81300 | E58: Finančni odh. iz izdanih obveznic | J58: 0
C59: 13 č) | D59: 81400 | E59: Finančni odhodki iz drugih finančnih obveznosti | J59: 0
C60: 14 | D60: 82000 | E60: Finančni odhodki iz poslovnih obveznosti | F60: =SUM(F61:F63) -> 0 | G60: =SUM(G61:G63) -> 0 | H60: =SUM(H61:H63) -> 0 | I60: =SUM(I61:I63) -> 0 | J60: 0
C61: 14 a) | D61: 82100 | E61: Finančni odh. iz poslovnih obveznosti do družb v skupini | J61: 0
C62: 14 b) | D62: 82200 | E62: finančni odh. iz obveznosti do dobaviteljev in meničnih obveznosti | J62: 0
C63: 14 c) | D63: 82300 | E63: finančni odh. iz drugih poslovnih obveznosti | J63: 0
D64: 90000 | E64: POSLOVNI IZID IZ REDNEGA DELOVANJA | F64: =F42+F43+F48+F51-F54-F55-F60 -> 0 | G64: =G42+G43+G48+G51-G54-G55-G60 -> 0 | H64: =H42+H43+H48+H51-H54-H55-H60 -> 0 | I64: =I42+I43+I48+I51-I54-I55-I60 -> 0 | J64: 0
C65: 15 | D65: 91000 | E65: Drugi prihodki | J65: 0
C66: 16 | D66: 92000 | E66: Drugi odhodki | J66: 0
D67: 93000 | E67: POSLOVNI IZID ZUNAJ REDNEGA DELOVANJA | F67: =F65-F66 -> 0 | G67: =G65-G66 -> 0 | H67: =H65-H66 -> 0 | I67: =I65-I66 -> 0 | J67: 0
C68: 17 | D68: 94000 | E68: Davek iz dobička | J68: 0
C69: 18 | D69: 95000 | E69: Odloženi davki | J69: 0
C70: 19 | D70: 96000 | E70: ČISTI POSLOVNI IZID OBRAČUNSKEGA OBDOBJA | F70: =F64+F65-F66-F68-F69 -> 0 | G70: =G64+G65-G66-G68-G69 -> 0 | H70: =H64+H65-H66-H68-H69 -> 0 | I70: =I64+I65-I66-I68-I69 -> 0 | J70: 0
D71: 97000 | E71: Število zaposlenih na dejavnosti na dan 31.12. | F71: =F72+F73 -> 0 | G71: =G72+G73 -> 0 | H71: =H72+H73 -> 0 | I71: =I72+I73 -> 0 | J71: 0
E72: - od tega število neposredno zaposlenih na dejavnosti na dan 31.12. | J72: =SUM(F72:I72) -> 0
E73: - od tega število posredno zaposlenih na dejavnosti na dan 31.12. | J73: =SUM(F73:I73) -> 0
D74: 98000 | E74: Povprečno število zaposlenih na dejavnosti v letu glede na število delovnih ur | J74: 0
D75: 99000 | E75: OBLIKOVANJE ZAKONSKIH REZERV PO DEJAVNOSTIH | J75: 0
B78: Komentar:

Sheet BS
AA1: KONTROLA IZPOLNJENOSTI LISTA
AA3: Število vseh polj | AB3: =AC4+AC5 -> 316
C4: =POVZETEK!C4 -> ZAHTEVA ZA IZDAJO SOGLASJA K IZHODIŠČNI CENI TOPLOTE ZA DALJINSKO OGREVANJE | AA4: Št. izpolnjenih polj BS | AB4: =COUNTA(F27:I31,F34:I37,F39:I43,F46:I49,F51:I53,F55:I58,F60:I60,F62:I65,F68:I70,F72:I74,F76:I79,F81:I81,F92:I94,F96:I104,F106:I108,F111:I114,F116:I121,F123:I123,F125:I128,F130:I136,F80:I80) -> 0 | AC4: 168
C5: Načrtovana bilanca stanja po dejavnostih za leto t Akta o metodologiji za oblikovanje cene toplote za daljinsko ogrevanje", Uradni list RS 103/23 | AA5: Št. izpolnjenih polj BS | AB5: =COUNTA(F92:I94,F96:I104,F106:I108,F111:I114,F116:I121,F123:I123,F125:I128,F130:I136) -> 0 | AC5: 148
AA6: Razlika | AB6: =AB3-AB4 -> 316
I8: Številka zadeve AE: | J8: =IF(POVZETEK!$J$9="","",POVZETEK!$J$9) -> 
I10: Matična številka družbe: | J10: =IF(POVZETEK!$J$11="","",POVZETEK!$J$11) -> 
C12: Naziv družbe: | E12: =POVZETEK!D13 -> 
C14: Tip izvajalca: | E14: =UPPER(POVZETEK!E17) ->  | I14: ID distribucijskega sistema: | J14: =POVZETEK!$E$24 -> 
B19: ="Tabela 11: Podatki o sredstvih iz potrjenega poslovnega načrta za leto "&BAZA_Sifranti!AV8 &" ("&LOWER(BAZA_Sifranti!AS8)&" "&BAZA_Sifranti!AY8&")" -> Tabela 11: Podatki o sredstvih iz potrjenega poslovnega načrta za leto t (2025) (plan 1.1.2025 - 31.12.2025)
J20: v EUR (brez decimalnih mest)
C21: 01 | E21: 02 | F21: 03 | G21: 04 | H21: 05 | I21: 06 | J21: 07
C22: ID | D22: Šifra_BS | E22: Postavka | F22: =IFERROR(VLOOKUP(POVZETEK!$E$17,BAZA_Sifranti!$AC$5:$AD$7,2,0)&" "&"-"&" "&POVZETEK!$E$20,"NEIZBRAN DS") -> NEIZBRAN DS | G22: Proizvodnja_Distribucija DT OSTALI SISTEMI DT (GJS) | H22: Druge energetske dejavnosti | I22: Tržne in ostale neenergetske dejavnosti | J22: Družba
C23: ID | D23: Šifra_BS | E23: POSTAVKA | F23: DT_LP | G23: DT_LP_Ostali | H23: D_E_D | I23: T_O_D | J23: Družba
D24: 100000 | E24: SREDSTVA | F24: =F25+F59+F80 -> 0 | G24: =G25+G59+G80 -> 0 | H24: =H25+H59+H80 -> 0 | I24: =I25+I59+I80 -> 0 | J24: =SUM(F24:I24) -> 0
C25: A | D25: 110000 | E25: Dolgoročna sredstva | F25: =F26+F32+F43+F44+F54+F58 -> 0 | G25: =G26+G32+G43+G44+G54+G58 -> 0 | H25: =H26+H32+H43+H44+H54+H58 -> 0 | I25: =I26+I32+I43+I44+I54+I58 -> 0 | J25: 0
C26: I | D26: 111000 | E26: Neopredmetena sredstva in dolgoročne aktivne časovne razmejitve | F26: =SUM(F27:F31) -> 0 | G26: =SUM(G27:G31) -> 0 | H26: =SUM(H27:H31) -> 0 | I26: =SUM(I27:I31) -> 0 | J26: 0
C27: 1 | D27: 111100 | E27: Dolgoročne premoženjske pravice | J27: 0
C28: 2 | D28: 111200 | E28: Dobro ime | J28: 0
C29: 3 | D29: 111300 | E29: Predujmi za neopredmetena sredstva | J29: 0
C30: 4 | D30: 111400 | E30: Dolgoročno odloženi stroški razvijanja | J30: 0
C31: 5 | D31: 111500 | E31: Druge dolgoročne aktivne časovne razmejitve | J31: 0
C32: II | D32: 112000 | E32: Opredmetena osnovna sredstva | F32: =F33+F36+F37+F38+F41+F42 -> 0 | G32: =G33+G36+G37+G38+G41+G42 -> 0 | H32: =H33+H36+H37+H38+H41+H42 -> 0 | I32: =I33+I36+I37+I38+I41+I42 -> 0 | J32: 0
C33: 1 | D33: 112100 | E33: Zemljišča in zgradbe | F33: =F34+F35 -> 0 | G33: =G34+G35 -> 0 | H33: =H34+H35 -> 0 | I33: =I34+I35 -> 0 | J33: 0
C34: 1 a) | D34: 112110 | E34: Zemljišča | J34: 0
C35: 1 b) | D35: 112120 | E35: Zgradbe | J35: 0
C36: 2 | D36: 112200 | E36: Proizvajalne naprave in stroji | J36: 0
C37: 3 | D37: 112300 | E37: Druge naprave in oprema | J37: 0
C38: 4 | D38: 112400 | E38: Opredmetena osnovna sredstva, ki se prodobivajo | F38: =SUM(F39:F40) -> 0 | G38: =SUM(G39:G40) -> 0 | H38: =SUM(H39:H40) -> 0 | I38: =SUM(I39:I40) -> 0 | J38: 0
C39: 4 a) | D39: 112410 | E39: Opredmetena osnovna sredstva v gradnji in izdelavi | J39: 0
C40: 4 b) | D40: 112420 | E40: Predujmi za pridobitev opredmetenih osnovnih sredstev | J40: 0
C41: 5 | D41: 112500 | E41: Osnovna čreda | J41: 0
C42: 6 | D42: 112600 | E42: Večletni nasadi | J42: 0
C43: III | D43: 113000 | E43: Naložbene nepremičnine | J43: 0
C44: IV | D44: 114000 | E44: Dolgoročne finančne naložbe | F44: =F45+F50 -> 0 | G44: =G45+G50 -> 0 | H44: =H45+H50 -> 0 | I44: =I45+I50 -> 0 | J44: 0
C45: 1 | D45: 114100 | E45: Dolgoročne finančne naložbe, razen posojil | F45: =SUM(F46:F49) -> 0 | G45: =SUM(G46:G49) -> 0 | H45: =SUM(H46:H49) -> 0 | I45: =SUM(I46:I49) -> 0 | J45: 0
C46: 1 a) | D46: 114110 | E46: Delnice in deleži v družbah v skupini | J46: 0
C47: 1 b) | D47: 114120 | E47: Delnice in deleži v pridruženih družbah | J47: 0
C48: 1 c) | D48: 114130 | E48: Druge delnice in deleži | J48: 0
C49: 1 č) | D49: 114140 | E49: Druge dolgoročne finančne naložbe | J49: 0
C50: 2 | D50: 114200 | E50: Dolgoročna posojila | F50: =SUM(F51:F53) -> 0 | G50: =SUM(G51:G53) -> 0 | H50: =SUM(H51:H53) -> 0 | I50: =SUM(I51:I53) -> 0 | J50: 0
C51: 2 a) | D51: 114210 | E51: Dolgoročna posojila družbam v skupini | J51: 0
C52: 2 b) | D52: 114220 | E52: Dolgoročna posojila drugim | J52: 0
C53: 2 c) | D53: 114230 | E53: Dolgoročno nevplačani vpoklicani kapital | J53: 0
C54: V | D54: 115000 | E54: Dolgoročne poslovne terjatve | F54: =SUM(F55:F57) -> 0 | G54: =SUM(G55:G57) -> 0 | H54: =SUM(H55:H57) -> 0 | I54: =SUM(I55:I57) -> 0 | J54: 0
C55: 1 | D55: 115100 | E55: Dolgoročne poslovne terjatve do družb v skupini | J55: 0
C56: 2 | D56: 115200 | E56: Dolgoročne poslovne terjatve do kupcev | J56: =SUM(F56:I56) -> 0
C57: 3 | D57: 115300 | E57: Dolgoročne poslovne terjatve do drugih | J57: 0
C58: VI | D58: 116000 | E58: Odložene terjatve za davek | J58: 0
C59: B | D59: 120000 | E59: Kratkoročna sredstva | F59: =F60+F61+F75+F66+F79 -> 0 | G59: =G60+G61+G75+G66+G79 -> 0 | H59: =H60+H61+H75+H66+H79 -> 0 | I59: =I60+I61+I75+I66+I79 -> 0 | J59: 0
C60: I | D60: 121000 | E60: Sredstva (skupine za odtujitev) za prodajo | J60: 0
C61: II | D61: 122000 | E61: Zaloge | F61: =SUM(F62:F65) -> 0 | G61: =SUM(G62:G65) -> 0 | H61: =SUM(H62:H65) -> 0 | I61: =SUM(I62:I65) -> 0 | J61: 0
C62: 1 | D62: 122100 | E62: Material | J62: 0
C63: 2 | D63: 122200 | E63: Nedokončana proizvodnja | J63: 0
C64: 3 | D64: 122300 | E64: Proizvodi in trgovsko blago | J64: 0
C65: 4 | D65: 122400 | E65: Predujmi za zaloge | J65: =SUM(F65:I65) -> 0
C66: III | D66: 123000 | E66: Kratkoročne finančne naložbe | F66: =F67+F71 -> 0 | G66: =G67+G71 -> 0 | H66: =H67+H71 -> 0 | I66: =I67+I71 -> 0 | J66: 0
C67: 1 | D67: 123100 | E67: Kratkoročne finančne naložbe, razen posojil | F67: =SUM(F68:F70) -> 0 | G67: =SUM(G68:G70) -> 0 | H67: =SUM(H68:H70) -> 0 | I67: =SUM(I68:I70) -> 0 | J67: 0
C68: 1 a) | D68: 123110 | E68: Delnice in deleži v družbah v skupini | J68: 0
C69: 1 b) | D69: 123120 | E69: Druge delnice in deleži | J69: 0
C70: 1 c) | D70: 123130 | E70: Druge kratkoročne finančne naložbe | J70: 0
C71: 2 | D71: 123200 | E71: Kratkoročna posojila | F71: =SUM(F72:F74) -> 0 | G71: =SUM(G72:G74) -> 0 | H71: =SUM(H72:H74) -> 0 | I71: =SUM(I72:I74) -> 0 | J71: 0
C72: 2 a) | D72: 123210 | E72: Kratkoročna posojila družbam v skupini | J72: 0
C73: 2 b) | D73: 123220 | E73: Kratkoročna posojila drugim | J73: 0
C74: 2 c) | D74: 123230 | E74: Kratkoročno nevplačani vpoklicani kapital | J74: 0
C75: IV | D75: 124000 | E75: Kratkoročne poslovne terjatve | F75: =SUM(F76:F78) -> 0 | G75: =SUM(G76:G78) -> 0 | H75: =SUM(H76:H78) -> 0 | I75: =SUM(I76:I78) -> 0 | J75: 0
C76: 1 | D76: 124100 | E76: Kratkoročne poslovne terjatve do družb v skupini | J76: 0
C77: 2 | D77: 124200 | E77: Kratkoročne poslovne terjatve do kupcev | J77: 0
C78: 3 | D78: 124300 | E78: Kratkoročne poslovne terjatve do drugih | J78: 0
C79: V | D79: 125000 | E79: Denarna sredstva | J79: 0
C80: C | D80: 130000 | E80: Kratkoročne aktivne časovne razmejitve | J80: 0
D81: 140000 | E81: Zunajbilančna sredstva | J81: 0
B84: ="Tabela 12: Podatki o obveznostih do virov sredstev iz potrjenega poslovnega načrta za leto "&BAZA_Sifranti!AV8 &" ("&LOWER(BAZA_Sifranti!AS8)&" "&BAZA_Sifranti!AY8&")" -> Tabela 12: Podatki o obveznostih do virov sredstev iz potrjenega poslovnega načrta za leto t (2025) (plan 1.1.2025 - 31.12.2025) | J84: v EUR (brez decimalnih mest)
C86: 01 | E86: 02 | F86: 03 | G86: 04 | H86: 05 | I86: 06 | J86: 07
C87: ID | D87: Šifra_BS | E87: Postavka | F87: =IFERROR(VLOOKUP(POVZETEK!$E$17,BAZA_Sifranti!$AC$5:$AD$7,2,0)&" "&"-"&" "&POVZETEK!$E$20,"NEIZBRAN DS") -> NEIZBRAN DS | G87: Proizvodnja_Distribucija DT OSTALI SISTEMI DT (GJS) | H87: Druge energetske dejavnosti | I87: Tržne in ostale neenergetske dejavnosti | J87: Družba
C88: ID | D88: Šifra_BS | E88: POSTAVKA | F88: DT_LP | G88: DT_LP_Ostali | H88: D_E_D | I88: T_O_D | J88: Družba
D89: 200000 | E89: OBVEZNOSTI DO VIROV SREDSTEV | F89: =F90+F105+F109+F122+F135 -> 0 | G89: =G90+G105+G109+G122+G135 -> 0 | H89: =H90+H105+H109+H122+H135 -> 0 | I89: =I90+I105+I109+I122+I135 -> 0 | J89: =SUM(F89:I89) -> 0
C90: A | D90: 210000 | E90: Kapital | F90: =F91+F94+F95+F101+F103+F104+F102 -> 0 | G90: =G91+G94+G95+G101+G103+G104+G102 -> 0 | H90: =H91+H94+H95+H101+H103+H104+H102 -> 0 | I90: =I91+I94+I95+I101+I103+I104+I102 -> 0 | J90: =SUM(F90:I90) -> 0
C91: I | D91: 211000 | E91: Vpoklicani kapital | F91: =F92-F93 -> 0 | G91: =G92-G93 -> 0 | H91: =H92-H93 -> 0 | I91: =I92-I93 -> 0 | J91: 0
C92: 1 | D92: 211100 | E92: Osnovni kapital | J92: 0
C93: 2 | D93: 211200 | E93: Nevpoklicani kapital (kot odbitna postavka) | J93: 0
C94: II | D94: 212000 | E94: Kapitalske rezerve | J94: 0
C95: III | D95: 213000 | E95: Rezerve iz dobička | F95: =F96+F97-F98+F99+F100 -> 0 | G95: =G96+G97-G98+G99+G100 -> 0 | H95: =H96+H97-H98+H99+H100 -> 0 | I95: =I96+I97-I98+I99+I100 -> 0 | J95: 0
C96: 1 | D96: 213100 | E96: Zakonske rezerve | J96: 0
C97: 2 | D97: 213200 | E97: Rezerve za lastne delnice in lastne poslovne deleže | J97: 0
C98: 3 | D98: 213300 | E98: Lastne delnice in lastni poslovni deleži (kot odbitna postavka) | J98: 0
C99: 4 | D99: 213400 | E99: Statutarne rezerve | J99: =SUM(F99:I99) -> 0
C100: 5 | D100: 213500 | E100: Druge rezerve iz dobička | J100: 0
C101: IV | D101: 214000 | E101: Revalorizacijske rezerve | J101: 0
C102: V | D102: 215000 | E102: Rezerve, nastale zaradi vrednotenja po pošteni vrednosti | J102: 0
C103: VI | D103: 216000 | E103: Preneseni čisti poslovni izid | J103: 0
C104: VII | D104: 217000 | E104: Čisti poslovni izid poslovnega leta | J104: 0
C105: B | D105: 220000 | E105: Rezervacije in dolgoročne pasivne časovne razmejitve | F105: =F106+F107+F108 -> 0 | G105: =G106+G107+G108 -> 0 | H105: =H106+H107+H108 -> 0 | I105: =I106+I107+I108 -> 0 | J105: 0
C106: 1 | D106: 220100 | E106: Rezervacije za pokojnine in podobne obveznosti | J106: 0
C107: 2 | D107: 220200 | E107: Druge rezervacije | J107: 0
C108: 3 | D108: 220300 | E108: Dolgoročne pasivne časovne razmejitve | J108: 0
C109: C | D109: 230000 | E109: Dolgoročne obveznosti | F109: =F110+F115+F121 -> 0 | G109: =G110+G115+G121 -> 0 | H109: =H110+H115+H121 -> 0 | I109: =I110+I115+I121 -> 0 | J109: =SUM(F109:I109) -> 0
C110: I | D110: 231000 | E110: Dolgoročne finančne obveznosti | F110: =SUM(F111:F114) -> 0 | G110: =SUM(G111:G114) -> 0 | H110: =SUM(H111:H114) -> 0 | I110: =SUM(I111:I114) -> 0 | J110: 0
C111: 1 | D111: 231100 | E111: Dolgoročne finančne obveznosti do družb v skupini | J111: 0
C112: 2 | D112: 231200 | E112: Dolgoročne finančne obveznosti do bank | J112: 0
C113: 3 | D113: 231300 | E113: Dolgoročne finančne obveznosti na podlagi obveznic | J113: 0
C114: 4 | D114: 231400 | E114: Druge dolgoročne finančne obveznosti | J114: 0
C115: II | D115: 232000 | E115: Dolgoročne poslovne obveznosti | F115: =SUM(F116:F120) -> 0 | G115: =SUM(G116:G120) -> 0 | H115: =SUM(H116:H120) -> 0 | I115: =SUM(I116:I120) -> 0 | J115: 0
C116: 1 | D116: 232100 | E116: Dolgoročne poslovne obveznosti do družb v skupini | J116: 0
C117: 2 | D117: 232200 | E117: Dolgoročne poslovne obveznosti do dobaviteljev | J117: 0
C118: 3 | D118: 232300 | E118: Dolgoročne menične obveznosti | J118: 0
C119: 4 | D119: 232400 | E119: Dolgoročne poslovne obveznosti na podlagi predujmov | J119: 0
C120: 5 | D120: 232500 | E120: Druge dolgoročne poslovne obveznosti | J120: 0
C121: III | D121: 233000 | E121: Odložene obveznosti za davek | J121: 0
C122: Č | D122: 240000 | E122: Kratkoročne obveznosti | F122: =F123+F124+F129 -> 0 | G122: =G123+G124+G129 -> 0 | H122: =H123+H124+H129 -> 0 | I122: =I123+I124+I129 -> 0 | J122: 0
C123: I | D123: 241000 | E123: Obveznosti, vključene v skupine za odtujitev | J123: =SUM(F123:I123) -> 0
C124: II | D124: 242000 | E124: Kratkoročne finančne obveznosti | F124: =SUM(F125:F128) -> 0 | G124: =SUM(G125:G128) -> 0 | H124: =SUM(H125:H128) -> 0 | I124: =SUM(I125:I128) -> 0 | J124: 0
C125: 1 | D125: 242100 | E125: Kratkoročne finančne obveznosti do družb v skupini | J125: 0
C126: 2 | D126: 242200 | E126: Kratkoročne finančne obveznosti do bank | J126: 0
C127: 3 | D127: 242300 | E127: Kratkoročne finančne obveznosti na podlagi obveznic | J127: 0
C128: 4 | D128: 242400 | E128: Druge kratkoročne finančne obveznosti | J128: 0
C129: III | D129: 243000 | E129: Kratkoročne poslovne obveznosti | F129: =SUM(F130:F134) -> 0 | G129: =SUM(G130:G134) -> 0 | H129: =SUM(H130:H134) -> 0 | I129: =SUM(I130:I134) -> 0 | J129: 0
C130: 1 | D130: 243100 | E130: Kratkoročne poslovne obveznosti do družb v skupini | J130: 0
C131: 2 | D131: 243200 | E131: Kratkoročne poslovne obveznosti do dobaviteljev | J131: 0
C132: 3 | D132: 243300 | E132: Kratkoročne menične obveznosti | J132: 0
C133: 4 | D133: 243400 | E133: Kratkoročne poslovne obveznosti na podlagi predujmov | J133: 0
C134: 5 | D134: 243500 | E134: Druge kratkoročne poslovne obveznosti | J134: 0
C135: D | D135: 250000 | E135: Kratkoročne pasivne časovne razmejitve | J135: 0
D136: 260000 | E136: Zunajbilančne obveznosti | J136: 0
B139: Komentar:

Sheet IPI_T2_T3 (hidden)
AA1: KONTROLA IZPOLNJENOSTI LISTA
AA3: Število vseh polj | AB3: 76
D4: =POVZETEK!C4 -> ZAHTEVA ZA IZDAJO SOGLASJA K IZHODIŠČNI CENI TOPLOTE ZA DALJINSKO OGREVANJE | AA4: Št. izpolnjenih polj | AB4: =COUNTA(F22:G25,F28:G30,F32:G34,F36:G40,F43:G46,F48:G49,F51:G53,F55:G58,F60:G62,F64:G65,F67:G68,F70:G72) -> 0
D5: Izkaz poslovnega izida družba za leto t-3 in t-2 | AA5: Razlika | AB5: =AB3-AB4 -> 76
B8: =IF(AB5>0,"PRISOTNE SO NAPAKE VNOSA ALI PA OBRAZEC NI IZPOLNJEN !","") -> PRISOTNE SO NAPAKE VNOSA ALI PA OBRAZEC NI IZPOLNJEN ! | G8: Številka zadeve AE: | H8: =IF(POVZETEK!$J$9="","",POVZETEK!$J$9) -> 
G10: Matična številka družbe: | H10: =IF(POVZETEK!$J$11="","",POVZETEK!$J$11) -> 
C12: Naziv družbe: | E12: =POVZETEK!$D$13 -> 
C14: Tip izvajalca: | E14: =UPPER(POVZETEK!$E$17) ->  | G14: ID distribucijskega sistema: | H14: =POVZETEK!$E$24 -> 
B17: ="Tabela 13: Izkaz poslovnega izida za leto"&" "&BAZA_Sifranti!$AL$8&" in "&BAZA_Sifranti!$AL$7 -> Tabela 13: Izkaz poslovnega izida za leto t-3 (2022) in t-2 (2023) | G17: v EUR
C19: 01 | E19: 02 | F19: 03 | G19: 04
C20: ID | D20: Šifra_IPI | E20: Postavka | F20: =VLOOKUP(F21,BAZA_Sifranti!$AJ$5:$AK$9,2,0) -> 2023 | G20: =VLOOKUP(G21,BAZA_Sifranti!$AJ$5:$AK$9,2,0) -> 2022
C21: ID | D21: Šifra_IPI | E21: POSTAVKA | F21: t-2 | G21: t-3
C22: 1 | D22: 10000 | E22: Čisti prihodki od prodaje
C23: 2 | D23: 11000 | E23: Sprememba vred. zalog proizvodov in ned. proizv.
C24: 3 | D24: 12000 | E24: Usredstveni lastni proizvodi in lastne storitve
C25: 4 | D25: 13000 | E25: Drugi poslovni prihodki (s prevrednotovalnimi poslovnimi prihodki)
D26: 14000 | E26: POSLOVNI PRIHODKI | F26: =F22+F23+F24+F25 -> 0 | G26: =G22+G23+G24+G25 -> 0
C27: 5 | D27: 20000 | E27: Stroški blaga, materiala in storitev | F27: =F28+F30 -> 0 | G27: =G28+G30 -> 0
C28: 5 a) | D28: 21000 | E28: Nabavna vrednost prodanega blaga in materiala ter stroški porabljenega materiala
D29: 21001 | E29: - od tega stroški porabljenega materiala
C30: 5 c) | D30: 29000 | E30: Stroški storitev
C31: 6 | D31: 30000 | E31: Stroški dela | F31: =F32+F33+F34 -> 0 | G31: =G32+G33+G34 -> 0
C32: 6 a) | D32: 31000 | E32: Stroški plač
C33: 6 b) | D33: 32000 | E33: Stroški socialnih zavarovanj
C34: 6 c) | D34: 33000 | E34: Drugi stroški dela
C35: 7 | D35: 40000 | E35: Odpisi vrednosti | F35: =F36+F37+F38 -> 0 | G35: =G36+G37+G38 -> 0
C36: 7 a) | D36: 41000 | E36: Amortizacija
C37: 7 b) | D37: 42000 | E37: Prevrednotovalni poslovni odhodki pri neopredmetenih sredstvih in opredmetenih osnovnih sredstvih
C38: 7 c) | D38: 43000 | E38: Prevrednotovalni poslovni odhodki pri obratnih sredstvih
C39: 8 | D39: 50000 | E39: Drugi poslovni odhodki
D40: 50001 | E40: - od tega stroški emisijkih kuponov
D41: 60000 | E41: POSLOVNI IZID IZ POSLOVANJA | F41: =F26-F27-F31-F35-F39 -> 0 | G41: =G26-G27-G31-G35-G39 -> 0
C42: 9 | D42: 70000 | E42: Finančni prihodki iz deležev | F42: =SUM(F43:F46) -> 0 | G42: =SUM(G43:G46) -> 0
C43: 9 a) | D43: 70100 | E43: Finančni prihodki iz deležev v družbah v skupini
C44: 9 b) | D44: 70200 | E44: Finančni prihodki iz deležev v pridruženih družbah
C45: 9 c) | D45: 70300 | E45: Finančni prihodki iz deležev v drugih družbah
C46: 9 č) | D46: 70400 | E46: Finančni prihodki iz drugih naložb
C47: 10 | D47: 71000 | E47: Finančni prihodki iz danih posojil | F47: =SUM(F48:F49) -> 0 | G47: =SUM(G48:G49) -> 0
C48: 10 a) | D48: 71100 | E48: Finančni prihodki iz posojil, danih družbam v skupini
C49: 10 b) | D49: 71200 | E49: Finančni prihodki iz posojil, danim drugim
C50: 11 | D50: 72000 | E50: Finančni prihodki iz poslovnih terjatev | F50: =SUM(F51:F52) -> 0 | G50: =SUM(G51:G52) -> 0
C51: 11 a) | D51: 72100 | E51: Finančni prih. iz poslovnih terjatev do družb v skupini
C52: 11 b) | D52: 72200 | E52: Finančni prih. iz poslovnih terjatev do drugih
C53: 12 | D53: 80000 | E53: Finančni odhodki iz oslabitve in odpisov finančnih naložb
C54: 13 | D54: 81000 | E54: Finančni odhodki iz finančnih obveznosti | F54: =SUM(F55:F58) -> 0 | G54: =SUM(G55:G58) -> 0
C55: 13 a) | D55: 81100 | E55: Finančni odh. iz posojil, prejetih od družb v skupini
C56: 13 b) | D56: 81200 | E56: Finančni odh. iz posojil, prejetih od bank
C57: 13 c) | D57: 81300 | E57: Finančni odh. iz izdanih obveznic
C58: 13 č) | D58: 81400 | E58: Finančni odhodki iz drugih finančnih obveznosti
C59: 14 | D59: 82000 | E59: Finančni odhodki iz poslovnih obveznosti | F59: =SUM(F60:F62) -> 0 | G59: =SUM(G60:G62) -> 0
C60: 14 a) | D60: 82100 | E60: Finančni odh. iz poslovnih obveznosti do družb v skupini
C61: 14 b) | D61: 82200 | E61: finančni odh. iz obveznosti do dobaviteljev in meničnih obveznosti
C62: 14 c) | D62: 82300 | E62: finančni odh. iz drugih poslovnih obveznosti
D63: 90000 | E63: POSLOVNI IZID IZ REDNEGA DELOVANJA | F63: =F41+F42+F47+F50-F53-F54-F59 -> 0 | G63: =G41+G42+G47+G50-G53-G54-G59 -> 0
C64: 15 | D64: 91000 | E64: Drugi prihodki
C65: 16 | D65: 92000 | E65: Drugi odhodki
D66: 93000 | E66: POSLOVNI IZID ZUNAJ REDNEGA DELOVANJA | F66: =F64-F65 -> 0 | G66: =G64-G65 -> 0
C67: 17 | D67: 94000 | E67: Davek iz dobička
C68: 18 | D68: 95000 | E68: Odloženi davki
C69: 19 | D69: 96000 | E69: ČISTI POSLOVNI IZID OBRAČUNSKEGA OBDOBJA | F69: =F63+F64-F65-F67-F68 -> 0 | G69: =G63+G64-G65-G67-G68 -> 0
D70: 97000 | E70: Število zaposlenih na dejavnosti na dan 31.12.
D71: 98000 | E71: Povprečno število zaposlenih na dejavnosti v letu glede na število delovnih ur
D72: 99000 | E72: OBLIKOVANJE ZAKONSKIH REZERV PO DEJAVNOSTIH
B78: Komentar:

Sheet BS_T2_T3 (hidden)
AA1: KONTROLA IZPOLNJENOSTI LISTA
AA3: Število vseh polj | AB3: 156
C4: =POVZETEK!C4 -> ZAHTEVA ZA IZDAJO SOGLASJA K IZHODIŠČNI CENI TOPLOTE ZA DALJINSKO OGREVANJE | AA4: Št. izpolnjenih polj BS | AB4: =COUNTA(F25:G29,F32:G35,F37:G41,F44:G47,F49:G51,F53:G56,F58:G58,F60:G63,F66:G68,F70:G72,F74:G77,F79:G79) -> 0 | AC4: 82
C5: Bilanca stanja družba za leto t-3 in t-2 | AA5: Št. izpolnjenih polj KAP | AB5: =COUNTA(F90:G92,F94:G102,F104:G106,F109:G112,F114:G119,F121:G121,F123:G126,F128:G134) -> 0 | AC5: 74
AA6: Razlika | AB6: =AB3-AB4-AB5 -> 156
B8: =IF(AB6>0,"PRISOTNE SO NAPAKE VNOSA ALI PA OBRAZEC NI IZPOLNJEN !","") -> PRISOTNE SO NAPAKE VNOSA ALI PA OBRAZEC NI IZPOLNJEN ! | H8: Številka zadeve AE: | I8: =IF(POVZETEK!$J$9="","",POVZETEK!$J$9) -> 
H10: Matična številka družbe: | I10: =IF(POVZETEK!$J$11="","",POVZETEK!$J$11) -> 
C12: Naziv družbe: | D12: =POVZETEK!D13 ->  | E12: =POVZETEK!$D$13 -> 
C14: Tip izvajalca: | D14: =UPPER(POVZETEK!E17) ->  | E14: =UPPER(POVZETEK!$E$17) ->  | H14: ID distribucijskega sistema: | I14: =POVZETEK!$E$24 -> 
C17: ="Tabela 14: Podatki o sredstvih za leto"&" "&BAZA_Sifranti!$AL$8&" in "&BAZA_Sifranti!$AL$7 -> Tabela 14: Podatki o sredstvih za leto t-3 (2022) in t-2 (2023) | G17: v EUR
C19: 01 | D19: 02 | E19: 03 | F19: 04 | G19: 05
C20: ID | D20: Šifra_BS | E20: Postavka | F20: =VLOOKUP(F21,BAZA_Sifranti!$AJ$5:$AK$9,2,0) -> 2023 | G20: =VLOOKUP(G21,BAZA_Sifranti!$AJ$5:$AK$9,2,0) -> 2022
C21: ID | D21: Šifra_BS | E21: POSTAVKA | F21: t-2 | G21: t-3
D22: 100000 | E22: SREDSTVA | F22: =F23+F57+F78 -> 0 | G22: =G23+G57+G78 -> 0
C23: A | D23: 110000 | E23: Dolgoročna sredstva | F23: =F24+F30+F41+F42+F52+F56 -> 0 | G23: =G24+G30+G41+G42+G52+G56 -> 0
C24: I | D24: 111000 | E24: Neopredmetena sredstva in dolgoročne aktivne časovne razmejitve | F24: =SUM(F25:F29) -> 0 | G24: =SUM(G25:G29) -> 0
C25: 1 | D25: 111100 | E25: Dolgoročne premoženjske pravice
C26: 2 | D26: 111200 | E26: Dobro ime
C27: 3 | D27: 111300 | E27: Predujmi za neopredmetena sredstva
C28: 4 | D28: 111400 | E28: Dolgoročno odloženi stroški razvijanja
C29: 5 | D29: 111500 | E29: Druge dolgoročne aktivne časovne razmejitve
C30: II | D30: 112000 | E30: Opredmetena osnovna sredstva | F30: =F31+F34+F35+F36+F39+F40 -> 0 | G30: =G31+G34+G35+G36+G39+G40 -> 0
C31: 1 | D31: 112100 | E31: Zemljišča in zgradbe | F31: =F32+F33 -> 0 | G31: =G32+G33 -> 0
C32: 1 a) | D32: 112110 | E32: Zemljišča
C33: 1 b) | D33: 112120 | E33: Zgradbe
C34: 2 | D34: 112200 | E34: Proizvajalne naprave in stroji
C35: 3 | D35: 112300 | E35: Druge naprave in oprema
C36: 4 | D36: 112400 | E36: Opredmetena osnovna sredstva, ki se prodobivajo | F36: =SUM(F37:F38) -> 0 | G36: =SUM(G37:G38) -> 0
C37: 4 a) | D37: 112410 | E37: Opredmetena osnovna sredstva v gradnji in izdelavi
C38: 4 b) | D38: 112420 | E38: Predujmi za pridobitev opredmetenih osnovnih sredstev
C39: 5 | D39: 112500 | E39: Osnovna čreda
C40: 6 | D40: 112600 | E40: Večletni nasadi
C41: III | D41: 113000 | E41: Naložbene nepremičnine
C42: IV | D42: 114000 | E42: Dolgoročne finančne naložbe | F42: =F43+F48 -> 0 | G42: =G43+G48 -> 0
C43: 1 | D43: 114100 | E43: Dolgoročne finančne naložbe, razen posojil | F43: =SUM(F44:F47) -> 0 | G43: =SUM(G44:G47) -> 0
C44: 1 a) | D44: 114110 | E44: Delnice in deleži v družbah v skupini
C45: 1 b) | D45: 114120 | E45: Delnice in deleži v pridruženih družbah
C46: 1 c) | D46: 114130 | E46: Druge delnice in deleži
C47: 1 č) | D47: 114140 | E47: Druge dolgoročne finančne naložbe
C48: 2 | D48: 114200 | E48: Dolgoročna posojila | F48: =SUM(F49:F51) -> 0 | G48: =SUM(G49:G51) -> 0
C49: 2 a) | D49: 114210 | E49: Dolgoročna posojila družbam v skupini
C50: 2 b) | D50: 114220 | E50: Dolgoročna posojila drugim
C51: 2 c) | D51: 114230 | E51: Dolgoročno nevplačani vpoklicani kapital
C52: V | D52: 115000 | E52: Dolgoročne poslovne terjatve | F52: =SUM(F53:F55) -> 0 | G52: =SUM(G53:G55) -> 0
C53: 1 | D53: 115100 | E53: Dolgoročne poslovne terjatve do družb v skupini
C54: 2 | D54: 115200 | E54: Dolgoročne poslovne terjatve do kupcev
C55: 3 | D55: 115300 | E55: Dolgoročne poslovne terjatve do drugih
C56: VI | D56: 116000 | E56: Odložene terjatve za davek
C57: B | D57: 120000 | E57: Kratkoročna sredstva | F57: =F58+F59+F73+F64+F77 -> 0 | G57: =G58+G59+G73+G64+G77 -> 0
C58: I | D58: 121000 | E58: Sredstva (skupine za odtujitev) za prodajo
C59: II | D59: 122000 | E59: Zaloge | F59: =SUM(F60:F63) -> 0 | G59: =SUM(G60:G63) -> 0
C60: 1 | D60: 122100 | E60: Material
C61: 2 | D61: 122200 | E61: Nedokončana proizvodnja
C62: 3 | D62: 122300 | E62: Proizvodi in trgovsko blago
C63: 4 | D63: 122400 | E63: Predujmi za zaloge
C64: III | D64: 123000 | E64: Kratkoročne finančne naložbe | F64: =F65+F69 -> 0 | G64: =G65+G69 -> 0
C65: 1 | D65: 123100 | E65: Kratkoročne finančne naložbe, razen posojil | F65: =SUM(F66:F68) -> 0 | G65: =SUM(G66:G68) -> 0
C66: 1 a) | D66: 123110 | E66: Delnice in deleži v družbah v skupini
C67: 1 b) | D67: 123120 | E67: Druge delnice in deleži
C68: 1 c) | D68: 123130 | E68: Druge kratkoročne finančne naložbe
C69: 2 | D69: 123200 | E69: Kratkoročna posojila | F69: =SUM(F70:F72) -> 0 | G69: =SUM(G70:G72) -> 0
C70: 2 a) | D70: 123210 | E70: Kratkoročna posojila družbam v skupini
C71: 2 b) | D71: 123220 | E71: Kratkoročna posojila drugim
C72: 2 c) | D72: 123230 | E72: Kratkoročno nevplačani vpoklicani kapital
C73: IV | D73: 124000 | E73: Kratkoročne poslovne terjatve | F73: =SUM(F74:F76) -> 0 | G73: =SUM(G74:G76) -> 0
C74: 1 | D74: 124100 | E74: Kratkoročne poslovne terjatve do družb v skupini
C75: 2 | D75: 124200 | E75: Kratkoročne poslovne terjatve do kupcev
C76: 3 | D76: 124300 | E76: Kratkoročne poslovne terjatve do drugih
C77: V | D77: 125000 | E77: Denarna sredstva
C78: C | D78: 130000 | E78: Kratkoročne aktivne časovne razmejitve
D79: 140000 | E79: Zunajbilančna sredstva
C82: ="Tabela 15: Podatki o virih sredstev za leto"&" "&BAZA_Sifranti!$AL$8&" in "&BAZA_Sifranti!$AL$7 -> Tabela 15: Podatki o virih sredstev za leto t-3 (2022) in t-2 (2023) | G82: v EUR
C84: 01 | E84: 02 | F84: 03 | G84: 04
C85: ID | D85: Šifra_BS | E85: Postavka | F85: =VLOOKUP(F86,BAZA_Sifranti!$AJ$5:$AK$9,2,0) -> 2023 | G85: =VLOOKUP(G86,BAZA_Sifranti!$AJ$5:$AK$9,2,0) -> 2022
C86: ID | D86: Šifra_BS | E86: POSTAVKA | F86: t-2 | G86: t-3
D87: 200000 | E87: OBVEZNOSTI DO VIROV SREDSTEV | F87: =F88+F103+F107+F120+F133 -> 0 | G87: =G88+G103+G107+G120+G133 -> 0
C88: A | D88: 210000 | E88: Kapital | F88: =F89+F92+F93+F99+F101+F102+F100 -> 0 | G88: =G89+G92+G93+G99+G101+G102+G100 -> 0
C89: I | D89: 211000 | E89: Vpoklicani kapital | F89: =F90-F91 -> 0 | G89: =G90-G91 -> 0
C90: 1 | D90: 211100 | E90: Osnovni kapital
C91: 2 | D91: 211200 | E91: Nevpoklicani kapital (kot odbitna postavka)
C92: II | D92: 212000 | E92: Kapitalske rezerve
C93: III | D93: 213000 | E93: Rezerve iz dobička | F93: =F94+F95-F96+F97+F98 -> 0 | G93: =G94+G95-G96+G97+G98 -> 0
C94: 1 | D94: 213100 | E94: Zakonske rezerve
C95: 2 | D95: 213200 | E95: Rezerve za lastne delnice in lastne poslovne deleže
C96: 3 | D96: 213300 | E96: Lastne delnice in lastni poslovni deleži (kot odbitna postavka)
C97: 4 | D97: 213400 | E97: Statutarne rezerve
C98: 5 | D98: 213500 | E98: Druge rezerve iz dobička
C99: IV | D99: 214000 | E99: Revalorizacijske rezerve
C100: V | D100: 215000 | E100: Rezerve, nastale zaradi vrednotenja po pošteni vrednosti
C101: VI | D101: 216000 | E101: Preneseni čisti poslovni izid
C102: VII | D102: 217000 | E102: Čisti poslovni izid poslovnega leta
C103: B | D103: 220000 | E103: Rezervacije in dolgoročne pasivne časovne razmejitve | F103: =F104+F105+F106 -> 0 | G103: =G104+G105+G106 -> 0
C104: 1 | D104: 220100 | E104: Rezervacije za pokojnine in podobne obveznosti
C105: 2 | D105: 220200 | E105: Druge rezervacije
C106: 3 | D106: 220300 | E106: Dolgoročne pasivne časovne razmejitve
C107: C | D107: 230000 | E107: Dolgoročne obveznosti | F107: =F108+F113+F119 -> 0 | G107: =G108+G113+G119 -> 0
C108: I | D108: 231000 | E108: Dolgoročne finančne obveznosti | F108: =SUM(F109:F112) -> 0 | G108: =SUM(G109:G112) -> 0
C109: 1 | D109: 231100 | E109: Dolgoročne finančne obveznosti do družb v skupini
C110: 2 | D110: 231200 | E110: Dolgoročne finančne obveznosti do bank
C111: 3 | D111: 231300 | E111: Dolgoročne finančne obveznosti na podlagi obveznic
C112: 4 | D112: 231400 | E112: Druge dolgoročne finančne obveznosti
C113: II | D113: 232000 | E113: Dolgoročne poslovne obveznosti | F113: =SUM(F114:F118) -> 0 | G113: =SUM(G114:G118) -> 0
C114: 1 | D114: 232100 | E114: Dolgoročne poslovne obveznosti do družb v skupini
C115: 2 | D115: 232200 | E115: Dolgoročne poslovne obveznosti do dobaviteljev
C116: 3 | D116: 232300 | E116: Dolgoročne menične obveznosti
C117: 4 | D117: 232400 | E117: Dolgoročne poslovne obveznosti na podlagi predujmov
C118: 5 | D118: 232500 | E118: Druge dolgoročne poslovne obveznosti
C119: III | D119: 233000 | E119: Odložene obveznosti za davek
C120: Č | D120: 240000 | E120: Kratkoročne obveznosti | F120: =F121+F122+F127 -> 0 | G120: =G121+G122+G127 -> 0
C121: I | D121: 241000 | E121: Obveznosti, vključene v skupine za odtujitev
C122: II | D122: 242000 | E122: Kratkoročne finančne obveznosti | F122: =SUM(F123:F126) -> 0 | G122: =SUM(G123:G126) -> 0
C123: 1 | D123: 242100 | E123: Kratkoročne finančne obveznosti do družb v skupini
C124: 2 | D124: 242200 | E124: Kratkoročne finančne obveznosti do bank
C125: 3 | D125: 242300 | E125: Kratkoročne finančne obveznosti na podlagi obveznic
C126: 4 | D126: 242400 | E126: Druge kratkoročne finančne obveznosti
C127: III | D127: 243000 | E127: Kratkoročne poslovne obveznosti | F127: =SUM(F128:F132) -> 0 | G127: =SUM(G128:G132) -> 0
C128: 1 | D128: 243100 | E128: Kratkoročne poslovne obveznosti do družb v skupini
C129: 2 | D129: 243200 | E129: Kratkoročne poslovne obveznosti do dobaviteljev
C130: 3 | D130: 243300 | E130: Kratkoročne menične obveznosti
C131: 4 | D131: 243400 | E131: Kratkoročne poslovne obveznosti na podlagi predujmov
C132: 5 | D132: 243500 | E132: Druge kratkoročne poslovne obveznosti
C133: D | D133: 250000 | E133: Kratkoročne pasivne časovne razmejitve
D134: 260000 | E134: Zunajbilančne obveznosti
B137: Komentar:

Sheet IDT_T2_T3 (hidden)
AA1: KONTROLA IZPOLNJENOSTI LISTA
C4: =POVZETEK!C4 -> ZAHTEVA ZA IZDAJO SOGLASJA K IZHODIŠČNI CENI TOPLOTE ZA DALJINSKO OGREVANJE
C5: Izkaz denarnih tokov za leto t-3 in t-2
H8: Številka zadeve AE: | I8: =IF(POVZETEK!$J$9="","",POVZETEK!$J$9) -> 
H10: Matična številka družbe: | I10: =IF(POVZETEK!$J$11="","",POVZETEK!$J$11) -> 
C12: Naziv družbe: | D12: =POVZETEK!D13 -> 
C14: Tip izvajalca: | D14: =UPPER(POVZETEK!E17) ->  | H14: ID distribucijskega sistema: | I14: =POVZETEK!$E$24 -> 
C17: ="Tabela 16: Izkaz denarnih tokov I. različica za leto"&" "&BAZA_Sifranti!$AL$8&" in "&BAZA_Sifranti!$AL$7 -> Tabela 16: Izkaz denarnih tokov I. različica za leto t-3 (2022) in t-2 (2023) | F17: v EUR
C19: 01 | D19: 02 | E19: 03 | F19: 04
C20: ID | D20: Postavka | E20: =VLOOKUP(E21,BAZA_Sifranti!$AJ$5:$AK$9,2,0) -> 2023 | F20: =VLOOKUP(F21,BAZA_Sifranti!$AJ$5:$AK$9,2,0) -> 2022
C21: ID | D21: POSTAVKA | E21: t-2 | F21: t-3
D22: DENARNI TOKOVI PRI POSLOVANJU
C23: 1 | D23: Prejemki pri poslovanju | E23: =E24+E25 -> 0 | F23: =F24+F25 -> 0
C24: 1.1. | D24: Prejemki od prodaje proizvodov in storitev
C25: 1.2. | D25: Drugi prejemki pri poslovanju
C26: 2 | D26: Izdatki pri poslovanju | E26: =E27+E28+E29+E30 -> 0 | F26: =F27+F28+F29+F30 -> 0
C27: 2.1. | D27: Izdatki za nakupe materiala in storitev
C28: 2.2. | D28: Izdatki za plače in deleže zaposlencev v dobičku
C29: 2.3. | D29: Izdatki za dajatve vseh vrst
C30: 2.4. | D30: Drugi izdatki pri poslovanju
C31: 3 | D31: Pozitivni ali negativni denarni izid pri poslovanju | E31: =E23+E26 -> 0 | F31: =F23+F26 -> 0
D32: DENARNI TOKOVI PRI INVESTIRANJU
C33: 4 | D33: Prejemki pri investiranju | E33: =E34+E35+E36+E37+E38 -> 0 | F33: =F34+F35+F36+F37+F38 -> 0
C34: 4.1. | D34: Prejemki od dobljenih obresti in deležev v dobičku drugih, ki se nanašajo na investiranje
C35: 4.2. | D35: Prejemki od odtujitve neopredmetenih sredstev
C36: 4.3. | D36: Prejemki od odtujitve opredmetenih osnovnih sredstev
C37: 4.4. | D37: Prejemki od odtujitve naložbenih nepremičnin
C38: 4.5. | D38: Prejemki od odtujitve finančnih naložb
C39: 5 | D39: Izdatki pri investiranju | E39: =E40+E41+E42+E43 -> 0 | F39: =F40+F41+F42+F43 -> 0
C40: 5.1. | D40: Izdatki za pridobitev neopredmetenih sredstev
C41: 5.2. | D41: Izdatki za pridobitev opredmetenih dolgoročnih sredstev
C42: 5.3. | D42: Izdatki za pridobitev naložbenih nepremičnin
C43: 5.4. | D43: Izdatki za pridobitev finančnih naložb
C44: 6 | D44: Pozitivni ali negativni denarni izid pri investiranju | E44: =E33+E39 -> 0 | F44: =F33+F39 -> 0
D45: DENARNI TOKOVI PRI FINANCIRANJU
C46: 7 | D46: Prejemki pri financiranju | E46: =E47+E48 -> 0 | F46: =F47+F48 -> 0
C47: 7.1. | D47: Prejemki od vplačanega kapitala
C48: 7.2. | D48: Prejemki od dobljenih finančnih obveznosti
C49: 8 | D49: Izdatki pri financiranju | E49: =E50+E51+E52+E53 -> 0 | F49: =F50+F51+F52+F53 -> 0
C50: 8.1. | D50: Izdatki za dane obresti, ki se nanašajo na financiranje
C51: 8.2. | D51: Izdatki za vračila kapitala
C52: 8.3. | D52: Izdatki za odplačila finančnih obveznosti
C53: 8.5. | D53: Izdatki za izplačila dividend in drugih deležev v dobičku
C54: 9 | D54: Pozitivni ali negativni denarni izid pri financiranju | E54: =E46+E49 -> 0 | F54: =F46+F49 -> 0
C55: 10 | D55: KONČNO STANJE DENARNIH SREDSTEV | E55: =E56+E58 -> 0 | F55: =F56+F58 -> 0
C56: 10.1. | D56: Denarni izid v obdobju | E56: =E31+E44+E54 -> 0 | F56: =F31+F44+F54 -> 0
D57: +
C58: 10.2. | D58: Začetno stanje denarnih sredstev
C62: ="Tabela 17: Izkaz denarnih tokov II. različica za leto"&" "&BAZA_Sifranti!$AL$8&" in "&BAZA_Sifranti!$AL$7 -> Tabela 17: Izkaz denarnih tokov II. različica za leto t-3 (2022) in t-2 (2023) | F62: v EUR
C64: 01 | D64: 02 | E64: 03 | F64: 04
C65: ID | D65: Postavka | E65: =VLOOKUP(E66,BAZA_Sifranti!$AJ$5:$AK$9,2,0) -> 2023 | F65: =VLOOKUP(F66,BAZA_Sifranti!$AJ$5:$AK$9,2,0) -> 2022
C66: ID | D66: POSTAVKA | E66: t-2 | F66: t-3
D67: DENARNI TOKOVI PRI POSLOVANJU
C68: 1 | D68: Postavke izkaza poslovnega izida | E68: =E69+E70+E71 -> 0 | F68: =F69+F70+F71 -> 0
C69: 1.1. | D69: Poslovni prihodki (razen za prevrednotenje) in finančni prihodki iz poslovnih terjatev
C70: 1.2. | D70: Poslovni odhodki brez amortizacije (razen za prevrednotenje) in finančni odhodki iz poslovnih obveznosti
C71: 1.3. | D71: Davki iz dobička in drugi davki, ki niso zajeti v poslovnih odhodkih
C72: 2 | D72: Spremembe čistih obratnih sredstev (in časovnih razmejitev, rezervacij ter odloženih terjatev in obveznosti za davek) poslovnih postavk bilance stanja | E72: =E73+E74+E75+E76+E77+E78+E79+E80 -> 0 | F72: =F73+F74+F75+F76+F77+F78+F79+F80 -> 0
C73: 2.1. | D73: Začetne manj končne poslovne terjatve
C74: 2.2. | D74: Začetne manj končne aktivne časovne razmejitve
C75: 2.3. | D75: Začetne manj končne odložene terjatve za davek
C76: 2.4. | D76: Začetna manj končna sredstva (skupine za odtujitev) za prodajo
C77: 2.5. | D77: Začetne manj končne zaloge
C78: 2.6. | D78: Končni manj začetni poslovni dolgovi
C79: 2.7. | D79: Končne manj začetne pasivne časovne razmejitve in rezervacije
C80: 2.8. | D80: Končne manj začetne odložene obveznosti za davek
C81: 3 | D81: Pozitivni ali negativni denarni izid pri poslovanju | E81: =E68+E72 -> 0 | F81: =F68+F72 -> 0
D82: DENARNI TOKOVI PRI INVESTIRANJU
C83: 4 | D83: Prejemki pri investiranju | E83: =E84+E85+E86+E87+E88 -> 0 | F83: =F84+F85+F86+F87+F88 -> 0
C84: 4.1. | D84: Prejemki od dobljenih obresti in deležev v dobičku drugih, ki se nanašajo na investiranje
C85: 4.2. | D85: Prejemki od odtujitve neopredmetenih sredstev
C86: 4.3. | D86: Prejemki od odtujitve opredmetenih osnovnih sredstev
C87: 4.4. | D87: Prejemki od odtujitve naložbenih nepremičnin
C88: 4.5. | D88: Prejemki od odtujitve finančnih naložb
C89: 5 | D89: Izdatki pri investiranju | E89: =E90+E91+E92+E93 -> 0 | F89: =F90+F91+F92+F93 -> 0
C90: 5.1. | D90: Izdatki za pridobitev neopredmetenih sredstev
C91: 5.2. | D91: Izdatki za pridobitev opredmetenih osnovnih sredstev
C92: 5.3. | D92: Izdatki za pridobitev naložbenih nepremičnin
C93: 5.4. | D93: Izdatki za pridobitev finančnih naložb
C94: 6 | D94: Pozitivni ali negativni denarni izid pri investiranju | E94: =E83+E89 -> 0 | F94: =F83+F89 -> 0
D95: DENARNI TOKOVI PRI FINANCIRANJU
C96: 7 | D96: Prejemki pri financiranju | E96: =E97+E98 -> 0 | F96: =F97+F98 -> 0
C97: 7.1. | D97: Prejemki od vplačanega kapitala
C98: 7.2. | D98: Prejemki od dobljenih finančnih obveznosti
C99: 8 | D99: Izdatki pri financiranju | E99: =E100+E101+E102+E103 -> 0 | F99: =F100+F101+F102+F103 -> 0
C100: 8.1. | D100: Izdatki za dane obresti, ki se nanašajo na financiranje
C101: 8.2. | D101: Izdatki za vračila kapitala
C102: 8.3. | D102: Izdatki za odplačila finančnih obveznosti
C103: 8.5. | D103: Izdatki za izplačila dividend in drugih deležev v dobičku
C104: 9 | D104: Pozitivni ali negativni denarni izid pri financiranju | E104: =E96+E99 -> 0 | F104: =F96+F99 -> 0
C105: 10 | D105: KONČNO STANJE DENARNIH SREDSTEV | E105: =E106+E108 -> 0 | F105: =F106+F108 -> 0
C106: 10.1. | D106: Denarni izid v obdobju | E106: =E81+E94+E104 -> 0 | F106: =F81+F94+F104 -> 0
D107: +
C108: 10.2. | D108: Začetno stanje denarnih sredstev
B111: Komentar:

Sheet FIKSNI_DEL_T
AA1: KONTROLA IZPOLNJENOSTI LISTA
AA3: Število vseh polj | AB3: 189
C4: =POVZETEK!C4 -> ZAHTEVA ZA IZDAJO SOGLASJA K IZHODIŠČNI CENI TOPLOTE ZA DALJINSKO OGREVANJE | AA4: Št. izpolnjenih polj | AB4: =COUNTA(E25:F25,E27:E29,G27:I29,E31:E33,F32:F33,J25:M25,N31,J32:M33,J44:M44,E44:F44,E46:E48,E50:E52,F51:F52,G46:I48,J51:M52,N50,E104:E110,G102:G110,E63:F63,E65:E67,E69:E71,F70:F71,G65:I67,J63:M63,J70:M71,N69,E82:F91,H82:I91,K82:L91,H102,K102,H104:H110,K104:K110,E102) -> 9
C5: Realizirani in načrtovani fiksni stroški proizvodnje in distribucije toplote v letu t-1 Akta o metodologiji za oblikovanje cene toplote za daljinsko ogrevanje", Uradni list RS 103/23 | AA5: Razlika | AB5: =AB3-AB4 -> 180
I8: Številka zadeve AE: | J8: =IF(POVZETEK!$J$9="","",POVZETEK!$J$9) ->  | AA8: Kontrola napak
I10: Matična številka družbe: | J10: =IF(POVZETEK!$J$11="","",POVZETEK!$J$11) -> 
C12: Naziv družbe: | D12: =POVZETEK!D13 -> 
C14: Tip izvajalca: | D14: =UPPER(POVZETEK!E17) ->  | I14: ID distribucijskega sistema: | J14: =POVZETEK!$E$24 -> 
B18: =" Tabela 13: Realizirani stroški regulirane dejavnosti, ki niso nujni za opravljanje dejavnost (15. in 16. odst. 9. člena metodologije) "&BAZA_Sifranti!BE6&" ("&LOWER(BAZA_Sifranti!BF6)&" "&BAZA_Sifranti!BN6&")" -> Tabela 13: Realizirani stroški regulirane dejavnosti, ki niso nujni za opravljanje dejavnost (15. in 16. odst. 9. člena metodologije) t-1 (1899) (realizacija 1.1.1899 - 31.12.1899) | O18: v EUR
C20: Neupravičeni stroški | E20: =IF(POVZETEK!E28=0," "," "&BAZA_Sifranti!BE6&" ("&LOWER(BAZA_Sifranti!BF6)&" "&BAZA_Sifranti!BN6&")") -> 
C21: 01 | D21: 02 | E21: 03 | F21: 04 | G21: 05 | H21: 06 | I21: 07 | J21: 08 | K21: 09 | L21: 10 | M21: 11 | N21: 12 | O21: 13
C22: ID | D22: POSTAVKA | E22: Usredstveni lastni proizvodi | F22: Stroški spoznorstev | G22: Stroški dodatnega pokojninskega zavarovanja | H22: Uspešnost poslovanja | I22: Nagrade | J22: Privatno življenje | K22: Donacije | L22: Prisilna izterjava davkov in kazni | M22: Reprezentanca | N22: Amortizacija | O22: Skupaj
C23: ID | D23: POSTAVKA | E23: U_L_P | F23: Str_S | G23: Str_dod_pok | H23: Uspešnost | I23: Nagrade | J23: Pri_Ž | K23: Donacije | L23: Dav_Kaz | M23: Reprezrntanca | N23: Amort | O23: Skupaj
C24: 1 | D24: Stroški blaga, materiala in storitev | E24: =SUM(E25:E25) -> 0 | F24: =SUM(F25:F25) -> 0 | J24: =SUM(J25:J25) -> 0 | K24: =SUM(K25:K25) -> 0 | L24: =SUM(L25:L25) -> 0 | M24: =SUM(M25:M25) -> 0 | O24: =SUM(E24:N24) -> 0
C25: 1.1. | D25: Stroški storitev | O25: 0
C26: 2 | D26: Stroški dela | E26: =SUM(E27:E29) -> 0 | G26: =SUM(G27:G29) -> 0 | H26: =SUM(H27:H29) -> 0 | I26: =SUM(I27:I29) -> 0 | O26: 0
C27: 2.1. | D27: Stroški plač | O27: 0
C28: 2.2. | D28: Stroški socialnih zavarovanj (posebej izkazani stroški pokojninskih zavarovanj) | O28: 0
C29: 2.3. | D29: Drugi stroški dela | O29: 0
C30: 3 | D30: Del odpisov vrednosti | E30: =SUM(E31:E31) -> 0 | N30: =SUM(N31:N31) -> 0 | O30: 0
C31: 3.1. | D31: Amortizacija | O31: 0
C32: 4 | D32: Drugi poslovni odhodki | O32: 0
C33: 5 | D33: Drugi odhodki | O33: 0
C34: 6 | D34: Skupaj | E34: =SUM(E24+E26+E30+E32+E33) -> 0 | F34: 0 | G34: 0 | H34: 0 | I34: 0 | J34: 0 | K34: 0 | L34: 0 | M34: 0 | N34: 0 | O34: 0
B37: =IFERROR(" Tabela 14: Realizirani stroški regulirane dejavnosti, ki niso nujni za opravljanje dejavnost (15. in 16. odst. 9. člena metodologije) "&BAZA_Sifranti!BE5 &" ("&LOWER(BAZA_Sifranti!AS5)&" "&BAZA_Sifranti!BN5&")"," Tabela 14: Realizirani stroški regulirane dejavnosti, ki niso nujni za opravljanje dejavnost (15. in 16. odst. 9. člena metodologije) ") -> Tabela 14: Realizirani stroški regulirane dejavnosti, ki niso nujni za opravljanje dejavnost (15. in 16. odst. 9. člena metodologije) | O37: v EUR
C39: Neupravičeni stroški | E39: =IFERROR(" "&BAZA_Sifranti!BE5&" ("&LOWER(BAZA_Sifranti!BF5)&" "&BAZA_Sifranti!BN5&")"," ") -> 
C40: 01 | D40: 02 | E40: 03 | F40: 04 | G40: 05 | H40: 06 | I40: 07 | J40: 08 | K40: 09 | L40: 10 | M40: 11 | N40: 12 | O40: 13
C41: ID | D41: POSTAVKA | E41: Usredstveni lastni proizvodi | F41: Stroški spoznorstev | G41: Stroški dodatnega pokojninskega zavarovanja | H41: Uspešnost poslovanja | I41: Nagrade | J41: Privatno življenje | K41: Donacije | L41: Prisilna izterjava davkov in kazni | M41: Reprezentanca | N41: Amortizacija | O41: Skupaj
C42: ID | D42: POSTAVKA | E42: U_L_P | F42: Str_S | G42: Str_dod_pok | H42: Uspešnost | I42: Nagrade | J42: Pri_Ž | K42: Donacije | L42: Dav_Kaz | M42: Reprezentanca | N42: Amort | O42: Skupaj
C43: 1 | D43: Stroški blaga, materiala in storitev | E43: =SUM(E44:E44) -> 0 | F43: =SUM(F44:F44) -> 0 | J43: =SUM(J44:J44) -> 0 | K43: =SUM(K44:K44) -> 0 | L43: =SUM(L44:L44) -> 0 | M43: =SUM(M44:M44) -> 0 | O43: =SUM(E43:N43) -> 0
C44: 1.1. | D44: Stroški storitev | O44: 0
C45: 2 | D45: Stroški dela | E45: =SUM(E46:E48) -> 0 | G45: =SUM(G46:G48) -> 0 | H45: =SUM(H46:H48) -> 0 | I45: =SUM(I46:I48) -> 0 | O45: 0
C46: 2.1. | D46: Stroški plač | O46: 0
C47: 2.2. | D47: Stroški socialnih zavarovanj (posebej izkazani stroški pokojninskih zavarovanj) | O47: 0
C48: 2.3. | D48: Drugi stroški dela | O48: 0
C49: 3 | D49: Del odpisov vrednosti | E49: =SUM(E50:E50) -> 0 | N49: =SUM(N50:N50) -> 0 | O49: 0
C50: 3.1. | D50: Amortizacija | O50: 0
C51: 4 | D51: Drugi poslovni odhodki | O51: 0
C52: 5 | D52: Drugi odhodki | O52: 0
C53: 6 | D53: Skupaj | E53: =SUM(E43+E45+E49+E51+E52) -> 0 | F53: 0 | G53: 0 | H53: 0 | I53: 0 | J53: 0 | K53: 0 | L53: 0 | M53: 0 | N53: 0 | O53: 0
B56: =IFERROR("Tabela 15: Načrtovani stroški regulirane dejavnosti, ki niso nujni za opravljanje dejavnost (15. in 16. odst. 9. člena metodologije) "&BAZA_Sifranti!AV8&" ("&LOWER(BAZA_Sifranti!AS8)&" "&BAZA_Sifranti!BO5&")","Tabela 15: Načrtovani stroški regulirane dejavnosti, ki niso nujni za opravljanje dejavnost (15. in 16. odst. 9. člena metodologije)") -> Tabela 15: Načrtovani stroški regulirane dejavnosti, ki niso nujni za opravljanje dejavnost (15. in 16. odst. 9. člena metodologije) | O56: v EUR
C58: Neupravičeni stroški | E58: =IFERROR(BAZA_Sifranti!BE5&" ("&LOWER(BAZA_Sifranti!BG5)&" "&BAZA_Sifranti!BO5&")"," ") -> 
C59: 01 | D59: 02 | E59: 03 | F59: 04 | G59: 05 | H59: 06 | I59: 07 | J59: 08 | K59: 09 | L59: 10 | M59: 11 | N59: 12 | O59: 13
C60: ID | D60: POSTAVKA | E60: Usredstveni lastni proizvodi | F60: Stroški spoznorstev | G60: Stroški dodatnega pokojninskega zavarovanja | H60: Uspešnost poslovanja | I60: Nagrade | J60: Privatno življenje | K60: Donacije | L60: Prisilna izterjava davkov in kazni | M60: Reprezentanca | N60: Amortizacija | O60: Skupaj
C61: ID | D61: POSTAVKA | E61: U_L_P | F61: Str_S | G61: Str_dod_pok | H61: Uspešnost | I61: Nagrade | J61: Pri_Ž | K61: Donacije | L61: Dav_Kaz | M61: Reprezentanca | N61: Amort | O61: Skupaj
C62: 1 | D62: Stroški blaga, materiala in storitev | E62: =SUM(E63:E63) -> 0 | F62: =SUM(F63:F63) -> 0 | J62: =SUM(J63:J63) -> 0 | K62: =SUM(K63:K63) -> 0 | L62: =SUM(L63:L63) -> 0 | M62: =SUM(M63:M63) -> 0 | O62: =SUM(E62:N62) -> 0
C63: 1.1. | D63: Stroški storitev | O63: 0
C64: 2 | D64: Stroški dela | E64: =SUM(E65:E67) -> 0 | G64: =SUM(G65:G67) -> 0 | H64: =SUM(H65:H67) -> 0 | I64: =SUM(I65:I67) -> 0 | O64: 0
C65: 2.1. | D65: Stroški plač | O65: 0
C66: 2.2. | D66: Stroški socialnih zavarovanj (posebej izkazani stroški pokojninskih zavarovanj) | O66: 0
C67: 2.3. | D67: Drugi stroški dela | O67: 0
C68: 3 | D68: Del odpisov vrednosti | E68: =SUM(E69:E69) -> 0 | N68: =SUM(N69:N69) -> 0 | O68: 0
C69: 3.1. | D69: Amortizacija | O69: 0
C70: 4 | D70: Drugi poslovni odhodki | O70: 0
C71: 5 | D71: Drugi odhodki | O71: 0
C72: 6 | D72: Skupaj | E72: =SUM(E62+E64+E68+E70+E71) -> 0 | F72: 0 | G72: 0 | H72: 0 | I72: 0 | J72: 0 | K72: 0 | L72: 0 | M72: 0 | N72: 0 | O72: 0
B75: ="Tabela 16: Stroški storitev na dejavnosti proizvodnje in distribucije toplote" -> Tabela 16: Stroški storitev na dejavnosti proizvodnje in distribucije toplote
C77: Upravičeni stroški | E77: =IF(POVZETEK!E28=0," ",BAZA_Sifranti!BE6&" ("&LOWER(BAZA_Sifranti!BF6)&" "&BAZA_Sifranti!BN6&"") ->  | H77: =IFERROR(IF(BAZA_Sifranti!AS8="Realizacija",BAZA_Sifranti!AV8&" ("&LOWER(BAZA_Sifranti!AS8)&" "&BAZA_Sifranti!BN5&")",BAZA_Sifranti!AV8&" ("&LOWER(BAZA_Sifranti!AS7)&" "&BAZA_Sifranti!BN5&")")," ") ->  | K77: =IFERROR(BAZA_Sifranti!AV8&" ("&LOWER(BAZA_Sifranti!AS8)&" "&BAZA_Sifranti!BO5&")"," ") ->  | N77: =IF(POVZETEK!E28=0," ","Skupaj "&BAZA_Sifranti!BE5) -> 
C79: 01 | D79: 02 | E79: 03 | F79: 04 | G79: 05 | H79: 06 | I79: 07 | J79: 08 | K79: 09 | L79: 10 | M79: 11 | N79: 12 | O79: 13 | P79: 14
C80: Zap.št | D80: POSTAVKA | E80: Skupni stroški storitev t-1 | F80: Neupravičeni stroški storitev t-1 | G80: Upravičeni stroški storitev t-1 | H80: Skupni stroški storitev | I80: Neupravičeni stroški storitev | J80: Upravičeni stroški storitev | K80: Skupni stroški storitev | L80: Neupravičeni stroški storitev | M80: Upravičeni stroški storitev | N80: Skupni stroški storitev | O80: Neupravičeni stroški storitev | P80: Upravičeni stroški storitev
C81: Stolpec1 | D81: Stolpec2 | E81: Skupni stroški storitev t-1 | F81: Neupravičeni stroški storitev t-1 | G81: Upravičeni stroški storitev t-1 | H81: Skupni stroški storitev | I81: Neupravičeni stroški storitev | J81: Upravičeni stroški storitev | K81: Skupni stroški storitev2 | L81: Neupravičeni stroški storitev3 | M81: Upravičeni stroški storitev4 | N81: Skupni stroški storitev_t | O81: Neupravičeni stroški storitev_t | P81: Upravičeni stroški storitev_t
C82: 1 | D82: Stroški storitev pri ustvarjanju proizvodov in opravljanju storitev | G82: =E82-F82 -> 0 | J82: =H82-I82 -> 0 | M82: =K82-L82 -> 0 | N82: =H82+K82 -> 0 | O82: =I82+L82 -> 0 | P82: =J82+M82 -> 0
C83: 2 | D83: Stroški transportnih storitev | G83: =E83-F83 -> 0 | J83: =H83-I83 -> 0 | M83: =K83-L83 -> 0 | N83: =H83+K83 -> 0 | O83: =I83+L83 -> 0 | P83: =J83+M83 -> 0
C84: 3 | D84: Stroški storitev v zvezi z vzdrževanjem | G84: 0 | J84: 0 | M84: 0 | N84: 0 | O84: 0 | P84: 0
C85: 4 | D85: Najemnine | G85: 0 | J85: 0 | M85: 0 | N85: 0 | O85: 0 | P85: 0
C86: 5 | D86: Povračila stroškov zaposlencem v zvezi z delom | G86: 0 | J86: 0 | M86: 0 | N86: 0 | O86: 0 | P86: 0
C87: 6 | D87: Stroški plačilnega prometa, stroški bančnih storitev, stroški poslov in zavarovalne premije | G87: 0 | J87: 0 | M87: 0 | N87: 0 | O87: 0 | P87: 0
C88: 7 | D88: Stroški intelektualnih in osebnih storitev | G88: 0 | J88: 0 | M88: 0 | N88: 0 | O88: 0 | P88: 0
C89: 8 | D89: Stroški sejmov, reklame in reprezentance | G89: 0 | J89: 0 | M89: 0 | N89: 0 | O89: 0 | P89: 0
C90: 9 | D90: Stroški storitev fizičnih oseb, ki ne opravljajo dejavnosti, skupaj z dajatvami, ki bremenijo organizacijo | G90: 0 | J90: 0 | M90: 0 | N90: 0 | O90: 0 | P90: 0
C91: 10 | D91: Stroški drugih storitev | G91: 0 | J91: 0 | M91: 0 | N91: 0 | O91: 0 | P91: 0
C92: 11 | D92: Skupaj | E92: =SUM(E82:E91) -> 0 | F92: =SUM(F82:F91) -> 0 | G92: 0 | H92: 0 | I92: 0 | J92: 0 | K92: 0 | L92: 0 | M92: 0 | N92: 0 | O92: 0 | P92: 0
E93: Kontrola stroški storitev | F93: =O25 -> 0 | I93: =O44 -> 0 | L93: =O63 -> 0 | O93: =I93+L93 -> 0
B96: ="Tabela 17: Upravičeni stroški za distribucijski sistem"&" "&POVZETEK!$E$20&" "&"za leto"&" "&BAZA_Sifranti!AL5 -> Tabela 17: Upravičeni stroški za distribucijski sistem za leto t (2025) | O96: v EUR
C98: Upravičeni stroški | E98: =IF(POVZETEK!E28=0," "," "&BAZA_Sifranti!BE6&" ("&LOWER(BAZA_Sifranti!BF6)&" "&BAZA_Sifranti!BN6&")") ->  | H98: =IFERROR(IF(BAZA_Sifranti!AS8="Realizacija",BAZA_Sifranti!AV8&" ("&LOWER(BAZA_Sifranti!AS8)&" "&BAZA_Sifranti!BN5&")",BAZA_Sifranti!AV8&" ("&LOWER(BAZA_Sifranti!AS7)&" "&BAZA_Sifranti!BN5&")")," ") ->  | K98: =IFERROR(BAZA_Sifranti!AV8&" ("&LOWER(BAZA_Sifranti!AS8)&" "&BAZA_Sifranti!BO5&")"," ") ->  | N98: =IF(POVZETEK!E28=0," ","Skupaj "&BAZA_Sifranti!BE5) -> 
C99: 01 | D99: 02 | E99: 03 | F99: 04 | G99: 05 | H99: 06 | I99: 07 | J99: 08 | K99: 09 | L99: 10 | M99: 11 | N99: 12 | O99: 13 | P99: 14
C100: ID | D100: Postavka | E100: Skupni stroški t-1 | F100: Neupravičeni stroški t-1 | G100: Upravičeni stroški | H100: Skupni stroški | I100: Neupravičeni stroški | J100: Upravičeni stroški | K100: Skupni stroški | L100: Neupravičeni stroški | M100: Upravičeni stroški | N100: Skupni stroški | O100: Neupravičeni stroški | P100: Upravičeni stroški
C101: ID | D101: Postavka | E101: Real_DT_LP | F101: Real_NEU_STR | G101: Real_Načrt_DT_LP | H101: Načrt_NEU_STR | I101: Načrt_DT_LP | J101: Stolpec1 | K101: DT_LP | L101: NEU_STR | M101: UPR_STR | N101: DT_LP2 | O101: NEU_STR2 | P101: UPR_STR3
C102: 1 | D102: Stroški materiala brez stroškov energentov in nabavljene toplote, vključene v variabilni del cene | G102: =tbl_20_FixStrT1[[#This Row],[Real_DT_LP]]-F102 -> 0 | J102: =tbl_20_FixStrT1[[#This Row],[Načrt_NEU_STR]]-I102 -> 0 | M102: =K102-L102 -> 0 | N102: =tbl_20_FixStrT1[[#This Row],[Načrt_NEU_STR]]+tbl_20_FixStrT1[[#This Row],[DT_LP]] -> 0 | P102: =tbl_20_FixStrT1[[#This Row],[Stolpec1]]+tbl_20_FixStrT1[[#This Row],[UPR_STR]] -> 0
C103: 2 | D103: Stroški storitev | E103: =E92 -> 0 | F103: =F92 -> 0 | G103: =tbl_20_FixStrT1[[#This Row],[Real_DT_LP]]-F103 -> 0 | H103: =H92 -> 0 | I103: =I92 -> 0 | J103: =tbl_20_FixStrT1[[#This Row],[Načrt_NEU_STR]]-I103 -> 0 | K103: =K92 -> 0 | L103: =L92 -> 0 | M103: =K103-L103 -> 0 | N103: =tbl_20_FixStrT1[[#This Row],[Načrt_NEU_STR]]+tbl_20_FixStrT1[[#This Row],[DT_LP]] -> 0 | O103: =tbl_20_FixStrT1[[#This Row],[Načrt_DT_LP]]+tbl_20_FixStrT1[[#This Row],[NEU_STR]] -> 0 | P103: =tbl_20_FixStrT1[[#This Row],[Stolpec1]]+tbl_20_FixStrT1[[#This Row],[UPR_STR]] -> 0
C104: 3 | D104: Stroški dela | F104: =$O$26 -> 0 | G104: =tbl_20_FixStrT1[[#This Row],[Real_DT_LP]]-F104 -> 0 | I104: =O45 -> 0 | J104: =tbl_20_FixStrT1[[#This Row],[Načrt_NEU_STR]]-I104 -> 0 | L104: =O64 -> 0 | M104: =K104-L104 -> 0 | N104: =tbl_20_FixStrT1[[#This Row],[Načrt_NEU_STR]]+tbl_20_FixStrT1[[#This Row],[DT_LP]] -> 0 | O104: =tbl_20_FixStrT1[[#This Row],[Načrt_DT_LP]]+tbl_20_FixStrT1[[#This Row],[NEU_STR]] -> 0 | P104: =tbl_20_FixStrT1[[#This Row],[Stolpec1]]+tbl_20_FixStrT1[[#This Row],[UPR_STR]] -> 0
C105: 4 | D105: Amortizacija | F105: =$O$31 -> 0 | G105: =tbl_20_FixStrT1[[#This Row],[Real_DT_LP]]-F105 -> 0 | I105: =O50 -> 0 | J105: =tbl_20_FixStrT1[[#This Row],[Načrt_NEU_STR]]-I105 -> 0 | L105: =O69 -> 0 | M105: 0 | N105: =tbl_20_FixStrT1[[#This Row],[Načrt_NEU_STR]]+tbl_20_FixStrT1[[#This Row],[DT_LP]] -> 0 | O105: =tbl_20_FixStrT1[[#This Row],[Načrt_DT_LP]]+tbl_20_FixStrT1[[#This Row],[NEU_STR]] -> 0 | P105: =tbl_20_FixStrT1[[#This Row],[Stolpec1]]+tbl_20_FixStrT1[[#This Row],[UPR_STR]] -> 0
C106: 5 | D106: Drugi odpisi vrednosti | G106: =tbl_20_FixStrT1[[#This Row],[Real_DT_LP]]-F106 -> 0 | J106: =tbl_20_FixStrT1[[#This Row],[Načrt_NEU_STR]]-I106 -> 0 | M106: 0 | N106: =tbl_20_FixStrT1[[#This Row],[Načrt_NEU_STR]]+tbl_20_FixStrT1[[#This Row],[DT_LP]] -> 0 | P106: =tbl_20_FixStrT1[[#This Row],[Stolpec1]]+tbl_20_FixStrT1[[#This Row],[UPR_STR]] -> 0
C107: 6 | D107: Drugi poslovni odhodki brez stroškov emisijskih kuponov, ki niso pridobljeni brezplačno | F107: =$O$32 -> 0 | G107: =tbl_20_FixStrT1[[#This Row],[Real_DT_LP]]-F107 -> 0 | I107: =O51 -> 0 | J107: =tbl_20_FixStrT1[[#This Row],[Načrt_NEU_STR]]-I107 -> 0 | L107: =O70 -> 0 | M107: 0 | N107: =tbl_20_FixStrT1[[#This Row],[Načrt_NEU_STR]]+tbl_20_FixStrT1[[#This Row],[DT_LP]] -> 0 | O107: =tbl_20_FixStrT1[[#This Row],[Načrt_DT_LP]]+tbl_20_FixStrT1[[#This Row],[NEU_STR]] -> 0 | P107: =tbl_20_FixStrT1[[#This Row],[Stolpec1]]+tbl_20_FixStrT1[[#This Row],[UPR_STR]] -> 0
C108: 7 | D108: Odhodki financiranja | G108: =tbl_20_FixStrT1[[#This Row],[Real_DT_LP]]-F108 -> 0 | J108: =tbl_20_FixStrT1[[#This Row],[Načrt_NEU_STR]]-I108 -> 0 | M108: 0 | N108: =tbl_20_FixStrT1[[#This Row],[Načrt_NEU_STR]]+tbl_20_FixStrT1[[#This Row],[DT_LP]] -> 0 | P108: =tbl_20_FixStrT1[[#This Row],[Stolpec1]]+tbl_20_FixStrT1[[#This Row],[UPR_STR]] -> 0
C109: 8 | D109: Drugi odhodki | F109: =$O$33 -> 0 | G109: =tbl_20_FixStrT1[[#This Row],[Real_DT_LP]]-F109 -> 0 | I109: =O52 -> 0 | J109: =tbl_20_FixStrT1[[#This Row],[Načrt_NEU_STR]]-I109 -> 0 | L109: =O71 -> 0 | M109: 0 | N109: =tbl_20_FixStrT1[[#This Row],[Načrt_NEU_STR]]+tbl_20_FixStrT1[[#This Row],[DT_LP]] -> 0 | O109: =tbl_20_FixStrT1[[#This Row],[Načrt_DT_LP]]+tbl_20_FixStrT1[[#This Row],[NEU_STR]] -> 0 | P109: =tbl_20_FixStrT1[[#This Row],[Stolpec1]]+tbl_20_FixStrT1[[#This Row],[UPR_STR]] -> 0
C110: 9 | D110: Dobiček za zagotavljanje zakonskih rezerv | G110: =tbl_20_FixStrT1[[#This Row],[Real_DT_LP]]-F110 -> 0 | J110: =tbl_20_FixStrT1[[#This Row],[Načrt_NEU_STR]]-I110 -> 0 | M110: 0 | N110: =tbl_20_FixStrT1[[#This Row],[Načrt_NEU_STR]]+tbl_20_FixStrT1[[#This Row],[DT_LP]] -> 0 | P110: =tbl_20_FixStrT1[[#This Row],[Stolpec1]]+tbl_20_FixStrT1[[#This Row],[UPR_STR]] -> 0
C111: Vsota | E111: =SUBTOTAL(109,tbl_20_FixStrT1[Real_DT_LP]) -> 0 | F111: =SUBTOTAL(109,tbl_20_FixStrT1[Real_NEU_STR]) -> 0 | G111: =SUBTOTAL(109,tbl_20_FixStrT1[Real_Načrt_DT_LP]) -> 0 | H111: =SUBTOTAL(109,tbl_20_FixStrT1[Načrt_NEU_STR]) -> 0 | I111: =SUBTOTAL(109,tbl_20_FixStrT1[Načrt_DT_LP]) -> 0 | J111: =SUBTOTAL(109,tbl_20_FixStrT1[Stolpec1]) -> 0 | K111: =SUBTOTAL(109,tbl_20_FixStrT1[DT_LP]) -> 0 | L111: =SUBTOTAL(109,tbl_20_FixStrT1[NEU_STR]) -> 0 | M111: =SUBTOTAL(109,tbl_20_FixStrT1[UPR_STR]) -> 0 | N111: =SUBTOTAL(109,tbl_20_FixStrT1[DT_LP2]) -> 0 | O111: =SUM(O102:O110) -> 0 | P111: =SUM(P102:P110) -> 0
D112: Fiksni del izhodiščne cene | G112: =IFERROR(tbl_20_FixStrT1[[#Totals],[Real_Načrt_DT_LP]]/tbl_31_RealTarT2[[#Totals],[Kolicina_FIX_'[EUR/MW/Leto']]],0) -> 0 | J112: =IFERROR(tbl_20_FixStrT1[[#Totals],[Stolpec1]]/tbl_33_NacrtTarT1[[#Totals],[Kolicina_FIX_'[EUR/MW/Leto']]],0) -> 0 | M112: =IFERROR(tbl_20_FixStrT1[[#Totals],[UPR_STR]]/tbl_34_NacrtTarT[[#Totals],[Kolicina_FIX_'[EUR/MW/Leto']]],0) -> 0 | P112: =IFERROR(P111/tbl_34_NacrtTarT55[[#Totals],[Kolicina_FIX_'[EUR/MW/Leto']]],0) -> 0
B115: ="Tabela 18: Izračun fiksnega dela izhodiščne cene"&" "&POVZETEK!$E$20&" "&"za leto"&" " & BAZA_Sifranti!AL49 -> Tabela 18: Izračun fiksnega dela izhodiščne cene za leto
C117: ="Izračun fiksnega dela izhodiščne cene za distribucijski sistem -"&" "&POVZETEK!$E$20&" "&"za leto"&" " & BAZA_Sifranti!$AL$5 -> Izračun fiksnega dela izhodiščne cene za distribucijski sistem - za leto t (2025)
F119: Načrtovani fiksni upravičeni stroški (FSTRt) [EUR]: | G119: =P111 -> 0
F120: Skupna obračunska moč po kategorijah cenika (vsota Pt) [MW]: | G120: =PRIHODKI!I190 -> 0
F121: Fiksni del izhodiščne cene v (FCi) [EUR/MW/leto]: | G121: =IFERROR(G119/G120,0) -> 0
C128: Komentar:

Sheet UVS_T-1
AK2: 2024
F5: =POVZETEK!C4 -> ZAHTEVA ZA IZDAJO SOGLASJA K IZHODIŠČNI CENI TOPLOTE ZA DALJINSKO OGREVANJE
F6: Struktura in cene upravičenih variabilnih stroškov
F7: Akta o metodologiji za oblikovanje cene toplote za daljinsko ogrevanje", Uradni list št. RS 103/23
M10: Številka zadeve AE:
F12: =IF(COUNTA(F43:F71,G72:G87,I43:Q71)+AM136=0,"PRISOTNE SO NAPAKE VNOSA ALI PA DELOVNI LIST OBRAZCA NI IZPOLNJEN !",IF(AR37=0,"","PRISOTNE SO NAPAKE VNOSA - PREVERITE VNOS IN NAVODILA ZA IZPOLNJEVANJE OBRAZCA !")) -> PRISOTNE SO NAPAKE VNOSA ALI PA DELOVNI LIST OBRAZCA NI IZPOLNJEN ! | M12: Matična številka družbe: | N12: =IF(POVZETEK!$J$11="","",POVZETEK!$J$11) ->  | AL12: =SUM(AR43:AR71)+SUM(AR98:AR126) -> 0 | AQ12: Tip vlagatelja | AR12: 0
E14: Naziv : | F14: =POVZETEK!D13 ->  | AQ14: Število napak delovnega lista: | AR14: =AK37+AR37 -> 1
E16: Tip izvajalca: | F16: =UPPER(POVZETEK!E17) ->  | M16: ID distribucijskega sistema: | N16: =POVZETEK!$E$24 ->  | AR16: Načrtovana struktura in cene upravičenih variabilnih stroškov za koledarski mesec -
AR17: Realizirana struktura in cene upravičenih variabilnih stroškov za koledarski mesec -
F18: =IF(COUNTA(F43:K71,I72:K87,P43:P87)=0,"PRISOTNE SO NAPAKE VNOSA ALI PA OBRAZEC NI IZPOLNJEN !",IF(AL12=0,"","PRISOTNE SO NAPAKE VNOSA - PREVERITE VNOS IN NAVODILA ZA IZPOLNJEVANJE OBRAZCA !")) ->  | BN18: =IFERROR((SUM(L43:M43)+(O43*(M43/(M43+O43))))/SUM(I43:J43)>#REF!,0) -> 0 | BP18: =IFERROR((SUM(L45:M45)+(O45*(M45/(M45+O45))))/SUM(I45:J45)<#REF!,0) -> 0
BN19: =IFERROR((SUM(L44:M44)+(O44*(M44/(M44+O44))))/SUM(I44:J44)>#REF!,0) -> 0 | BP19: =IFERROR((SUM(L46:M46)+(O46*(M46/(M46+O46))))/SUM(I46:J46)<#REF!,0) -> 0
AR21: Načrtovana struktura in cene upravičenih variabilnih stroškov za koledarski mesec -
AR22: Realizirana struktura in cene upravičenih variabilnih stroškov za koledarski mesec -
E24: Tabela 19: | F24: ="Podatki o vlagatelju in o dobavitelju toplote - izpolniti v primeru nabave toplote od dobaviteljev toplote v letu "&""&BAZA_Sifranti!AL6 -> Podatki o vlagatelju in o dobavitelju toplote - izpolniti v primeru nabave toplote od dobaviteljev toplote v letu t-1 (2024)
E25: 01 | F25: 02 | G25: 03
E26: ID | F26: Naziv podjetja | G26: Matična številka dobavitelja toplote
E27: 0 | F27: =F14 ->  | G27: =IF(N12=0,"",N12) -> 
E28: 1 | F28: =IF(G28="","",IFERROR(VLOOKUP(MATCH(G28,tblQ_PSubjekt[Maticna],0),tblQ_PSubjekt[],3),"Proizvajalec toplote ni registriran oz. je matična številka proizvajalca toplote napačna")) ->  | L28: Komentar:
E29: 2 | F29: =IF(G29="","",IFERROR(VLOOKUP(MATCH(G29,tblQ_PSubjekt[Maticna],0),tblQ_PSubjekt[],3),"Proizvajalec toplote ni registriran oz. je matična številka proizvajalca toplote napačna")) -> 
E30: 3 | F30: =IF(G30="","",IFERROR(VLOOKUP(MATCH(G30,tblQ_PSubjekt[Maticna],0),tblQ_PSubjekt[],3),"Proizvajalec toplote ni registriran oz. je matična številka proizvajalca toplote napačna")) -> 
E31: 4 | F31: =IF(G31="","",IFERROR(VLOOKUP(MATCH(G31,tblQ_PSubjekt[Maticna],0),tblQ_PSubjekt[],3),"Proizvajalec toplote ni registriran oz. je matična številka proizvajalca toplote napačna")) -> 
E37: Tabela 20.1 | F37: Realizirana struktura in cene upravičenih variabilnih stroškov za koledarski mesec - | H37: ="JANUAR "&""&BAZA_Sifranti!$AK$6 -> JANUAR 2024 | AK37: =IF(COUNTA(F43:F71,G72:G87,I43:Q71)=0,1,0) -> 1 | AQ37: Število napak izpolnjevanja: | AR37: =AR40+AR95+AR150+AR205+AR260+AR315+AR370+AR425+AR480+AR535+AR590+AR645 -> 0 | BJ37: Tip proizvodne naprave in njeni mesečni izkoristki
D38: 1
F39: Priznani upravičeni variabilni stroški (UVS) | G39: Količinska poraba upravičenih variabilnih stroškov [enot] | L39: Proizvedena koristna energija [MWh] | P39: Cene in dodatni zneski UVS | S39: Zneski in strukturni deleži UVS (brez DDV) | AB39: Opomba: | BN39: Opomba:
I40: EE | J40: TE | L40: EE Bruto | M40: TE predana v distribucijski sistem | O40: TE lastne rabe | AB40: Pripomoček za izračun deleža UVS med posameznimi skupinami odjemalcev | AR40: =SUM(AR43:AR87) -> 0 | AT40: Kontrola napak vnosa in vnesenih vrednosti | BN40: Uporabljen tip proizvodnih naprav in doseženi mesečni parametri
E41: 01 | F41: 02 | G41: 03 | H41: 04 | I41: 05 | J41: 06 | K41: 07 | L41: 08 | M41: 09 | N41: 10 | O41: 11 | P41: 12 | Q41: 13 | R41: 14 | S41: 15 | T41: 16 | U41: 17 | V41: 18 | BG41: A01-7-1 | BH41: A01-7-2
C42: ID_PP | D42: ID_PR | E42: ID | F42: Naziv upravičenega variabilnega stroška | G42: Skupna poraba [enot] | H42: Enota | I42: Poraba SPTE Proizvodnja EE [enot] | J42: Poraba SPTE Proizvodnja TE [enot] | K42: Poraba Kotli/Ostalo Proizvodnja TE [enot] | L42: SPTE Proizvedena EE [MWh] | M42: SPTE Proizvedena TE [MWh] | N42: Kotli/Ostalo Proizvedena TE [MWh] | O42: Lastna raba TE [MWh] | P42: Znesek omrežnine, dajatev, prispevkov in dodatkov [EUR] | Q42: Pogodbena cena UVS (brez omrežnine, dajatev in prispevkov) [enoto UVS] | R42: Enota UVS | S42: Znesek upravičenega stroška [EUR] | T42: Strukturni delež upravičenega stroška [%] | U42: Ponder | V42: Ponder ai oz. bi | Y42: Kontrola napak vnosa | AB42: Skupina odjemalcev | AC42: Razmerje odjemov TE med skupinami zaščitenih in nezaščitenih odjemalcev [%) | AD42: Načrtovana oz. realizirana poraba količin UVS [enota] | AE42: Delež porabe UVS po skupinah odjemalcev [enota] | AQ42: Ponder | AR42: Sumarna kontrola | AT42: Kontrola prazen prostor | AU42: Kontrola podvajanja | AV42: Kontrola povezana z osnovnim šifrantom | AW42: Kontrola izpolnjenosti SPTE | AX42: Kontrola izpolnjenosti KOTLI | AY42: Omejitev SPTE | AZ42: Omejitev KOTLI | BA42: Omejitev SPTE&KOTLI | BB42: Omejitev TOPČRP | BC42: Kontrola izpolnjenosti I | BD42: Kontrola izpolnjenosti II | BE42: Kontrola regulirana cena A01-7-1 | BF42: Kontrola regulirana cena A01-7-2 | BG42: Regulirana cena A01-7-1 | BH42: Regulirana cena A01-7-2 | BJ42: SPTE + Kotli | BK42: TOPČRP | BL42: SPTE | BM42: Vrsta naprave | BN42: Izkoristek naprave | BO42: Toplotni izkoristek | BP42: Električni izkoristek | BQ42: Razmernik C = EE/TE | BR42: Tip proizvodnih naprav | BT42: Kriteriji izkoristkov proizvodnih naprav in razmernika C za SPTE
C43: =$D$40 -> 0 | D43: =$D$39 -> 0 | E43: =IFERROR(IF(F43="","",LOOKUP(MATCH(F43,$CG$726:$CG$757,0),$CD$726:$CD$757,$CF$726:$CF$757)),"AXX-XX") ->  | G43: =IF(E43="","",ROUND(IF(OR(O43=0,O43=""),SUM(J43:K43),(SUM(M43:N43))/(SUM(M43:N43)+O43)*SUM(J43:K43)),3)) ->  | H43: =IFERROR(IF(E43="","",VLOOKUP((MATCH(E43,tblS_VarStroški_SD[ID_STRO_SD],0)-1),tblS_VarStroški_SD[],5)),"") ->  | R43: =IFERROR(IF(E43="","",VLOOKUP((MATCH(E43,tblS_VarStroški_SD[ID_STRO_SD],0)-1),tblS_VarStroški_SD[],6)),"") ->  | S43: =IF(OR(G43="",Q43=""),"",ROUND((G43*Q43+P43),2)) ->  | T43: =IFERROR(S43/$S$88,"") ->  | U43: =IF(F43="","",AQ43) ->  | V43: =IFERROR(T43,"") ->  | Y43: =IF(AND(E43="",AT43=0,COUNTA(F43,I43:K43,P43:Q43)=0),"",IF(AR43=1,"û","ü")) ->  | AB43: GO | AC43: 0.6328645909 | AD43: 0 | AE43: =ROUND(AD43*AC43,3) -> 0 | AQ43: a1 | AR43: =IF(SUM(AS43:BF43)>0,1,0) -> 0 | AT43: =IF(AND(F43="",F44<>""),1,0) -> 0 | AU43: =IF(IF(F43="",TRUE,COUNTIF(tbl_20_UVS_01[Naziv upravičenega variabilnega stroška],F43)=1)=FALSE,1,0) -> 0 | AV43: =IF(E43="",0,IFERROR(IF(MATCH(E43,$CF$726:$CF$759,0)>0,0,1),1)) -> 0 | AW43: =IF(SUM(I43:O43)=0,0,IF(LEFT(E43,3)="A01",IF(SUM(I43:J43,L43:M43)=0,0,IF(AND(SUM(I43:J43)>0,SUM(L43:M43)>0),0,1)),0)) -> 0 | AX43: =IF(SUM(I43:O43)=0,0,IF(LEFT(E43,3)="A01",IF(SUM(I43:O43)=0,0,IF(OR(AND(K43=0,N43=0),AND(K43>0,N43>=0))=TRUE,0,1)),0)) -> 0 | AY43: =IFERROR(IF(BM43=1,IF(AND(BN43<=$BZ$44,BN43>=$CA$44,BO43<=$BV$44,BO43>=$BW$44,BP43<=$BX$44,BP43>=$BY$44,BQ43>=$CB$44,BQ43<=$CC$44),0,1),0),0) -> 0 | AZ43: =IFERROR(IF(BM43=2,IF(AND(BN43<=$BZ$45,BN43>=$CA$45,BO43<=$BV$45,BO43>=$BW$45),0,1),0),0) -> 0 | BA43: =IFERROR(IF(BM43=3,IF(AND(BN43<=$BZ$46,BN43>=$CA$46,BO43<=$BV$46,BO43>=$BW$46,BP43<=$BX$46,BP43>=$BY$46,BQ43>=$CB$46,BQ43<=$CC$46),0,1),0),0) -> 0 | BB43: =IFERROR(IF(BM43=4,IF(AND(BN43<=$BZ$47,BN43>=$CA$47,BO43<=$BV$47,BO43>=$BW$47),0,1),0),0) -> 0 | BC43: =IF(E43="",0,IF(AND(OR(AND(I43=0,L43=0),AND(I43>0,L43>0),AND(SUM(I43:J43)>0,SUM(L43:M43)>0)),OR(AND(I43>0,J43>0,L43>0),AND(SUM(I43:J43)=0,SUM(L43:M43)=0)))=TRUE,0,1)) -> 0 | BD43: =IF(OR(COUNTA(F43,I43:Q43)>9,COUNTA(F43,I43:Q43)=0)=TRUE,0,1) -> 0 | BE43: =IF(AND($BG$41=E43,$BG$43<>""),IF(Q43>$BG$43,1,0),0) -> 0 | BF43: =IF(AND($BH$41=E43,$BH$43<>""),IF(Q43>$BH$43,1,0),0) -> 0 | BJ43: =AND(LEFT(E43,3)="A01",SUM(L43:N43)>0,E43<>"A01-13",E43<>"A01-14",E43<>"A01-15") -> FALSE | BK43: =AND(LEFT(E43,3)="A01",SUM(N43:O43)>0,E43="A01-15") -> FALSE | BL43: =IF(BJ43=TRUE,IF(AND(K43=0,BJ43=TRUE),1,IF(SUM(I43:J43)=0,2,3)),0) -> 0 | BM43: =IF(BL43<>0,BL43,IF(BK43=TRUE,4,0)) -> 0 | BN43: =IFERROR(IF($BM43=0,"",ROUND(SUM(L43:O43)/SUM(I43:K43),3)),"") ->  | BO43: =IFERROR(IF($BM43=0,"",ROUND(SUM(M43:O43)/SUM(J43:K43),3)),"") ->  | BP43: =IFERROR(IF($BM43=0,"",ROUND(SUM(L43)/SUM(I43),3)),"") ->  | BQ43: =IFERROR(IF(OR($BM43=1,$BM43=3),ROUND(IF(O43=0,L43/M43,IF((N43+O43)<=(K43*0.85),L43/(M43+O43),L43/(SUM(N43:O43)-K43*0.85+M43))),3),""),"") ->  | BR43: =IF(BM43=0,"",VLOOKUP(BM43,$BT$44:$BU$47,2)) ->  | BT43: ID | BU43: Naprava_TIP | BV43: Izkoristek TE max | BW43: Izkoristek TE min | BX43: Izkoristek EE max | BY43: Izkoristek EE min | BZ43: Izkoristek PN max | CA43: Izkoristek PN min | CB43: Cmin | CC43: Cmax
C44: 0 | D44: 0 | H44: =IFERROR(IF(E44="","",VLOOKUP((MATCH(E44,tblS_VarStroški_SD[ID_STRO_SD],0)-1),tblS_VarStroški_SD[],5)),"") ->  | R44: =IFERROR(IF(E44="","",VLOOKUP((MATCH(E44,tblS_VarStroški_SD[ID_STRO_SD],0)-1),tblS_VarStroški_SD[],6)),"") ->  | S44: =IF(OR(G44="",Q44=""),"",ROUND((G44*Q44+P44),2)) ->  | AB44: ZNGO | AC44: 0.1470905493 | AE44: =ROUND(AD43*AC44,3) -> 0 | AQ44: a2 | AR44: =IF(SUM(AS44:BF44)>0,1,0) -> 0 | AT44: 0 | AU44: =IF(IF(F44="",TRUE,COUNTIF(tbl_20_UVS_01[Naziv upravičenega variabilnega stroška],F44)=1)=FALSE,1,0) -> 0 | AV44: 0 | AW44: 0 | AX44: 0 | AY44: =IFERROR(IF(BM44=1,IF(AND(BN44<=$BZ$44,BN44>=$CA$44,BO44<=$BV$44,BO44>=$BW$44,BP44<=$BX$44,BP44>=$BY$44,BQ44>=$CB$44,BQ44<=$CC$44),0,1),0),0) -> 0 | AZ44: =IFERROR(IF(BM44=2,IF(AND(BN44<=$BZ$45,BN44>=$CA$45,BO44<=$BV$45,BO44>=$BW$45),0,1),0),0) -> 0 | BA44: =IFERROR(IF(BM44=3,IF(AND(BN44<=$BZ$46,BN44>=$CA$46,BO44<=$BV$46,BO44>=$BW$46,BP44<=$BX$46,BP44>=$BY$46,BQ44>=$CB$46,BQ44<=$CC$46),0,1),0),0) -> 0 | BB44: 0 | BC44: 0 | BD44: 0 | BE44: =IF(AND($BG$41=E44,$BG$43<>""),IF(Q44>$BG$43,1,0),0) -> 0 | BF44: 0 | BJ44: =AND(LEFT(E44,3)="A01",SUM(L44:N44)>0,E44<>"A01-13",E44<>"A01-14",E44<>"A01-15") -> FALSE | BK44: =AND(LEFT(E44,3)="A01",SUM(N44:O44)>0,E44="A01-15") -> FALSE | BL44: =IF(BJ44=TRUE,IF(AND(K44=0,BJ44=TRUE),1,IF(SUM(I44:J44)=0,2,3)),0) -> 0 | BM44: =IF(BL44<>0,BL44,IF(BK44=TRUE,4,0)) -> 0 | BN44: =IFERROR(IF($BM44=0,"",ROUND(SUM(L44:O44)/SUM(I44:K44),3)),"") ->  | BO44: =IFERROR(IF($BM44=0,"",ROUND(SUM(M44:O44)/SUM(J44:K44),3)),"") ->  | BP44: =IFERROR(IF($BM44=0,"",ROUND(SUM(L44)/SUM(I44),3)),"") ->  | BQ44: =IFERROR(IF(OR($BM44=1,$BM44=3),ROUND(IF(O44=0,L44/M44,IF((N44+O44)<=(K44*0.95),L44/(M44+O44),L44/(SUM(N44:O44)-K44*0.95+M44))),3),""),"") ->  | BR44: =IF(BM44=0,"",VLOOKUP(BM44,$BT$44:$BU$47,2)) ->  | BT44: 1 | BU44: SPTE | BV44: 1.25 | BW44: 0.45 | BX44: 0.85 | BY44: 0.25 | BZ44: 1.25 | CA44: 0.45 | CB44: 0.2 | CC44: 1.2
C45: 0 | D45: 0 | H45: =IFERROR(IF(E45="","",VLOOKUP((MATCH(E45,tblS_VarStroški_SD[ID_STRO_SD],0)-1),tblS_VarStroški_SD[],5)),"") ->  | R45: =IFERROR(IF(E45="","",VLOOKUP((MATCH(E45,tblS_VarStroški_SD[ID_STRO_SD],0)-1),tblS_VarStroški_SD[],6)),"") ->  | AB45: NNGO | AC45: =IFERROR(1-SUM(AC43:AC44),0) -> 0.2200448598 | AE45: =ROUND(AD43*AC45,3) -> 0 | AQ45: a3 | AR45: 0 | AT45: 0 | AU45: =IF(IF(F45="",TRUE,COUNTIF(tbl_20_UVS_01[Naziv upravičenega variabilnega stroška],F45)=1)=FALSE,1,0) -> 0 | AV45: 0 | AW45: 0 | AX45: 0 | AY45: 0 | AZ45: =IFERROR(IF(BM45=2,IF(AND(BN45<=$BZ$45,BN45>=$CA$45,BO45<=$BV$45,BO45>=$BW$45),0,1),0),0) -> 0 | BA45: 0 | BB45: 0 | BC45: 0 | BD45: 0 | BE45: 0 | BF45: 0 | BJ45: FALSE | BK45: FALSE | BL45: 0 | BM45: 0 | BT45: 2 | BU45: KOTLI | BV45: 1 | BW45: 0.65 | BX45: 0 | BY45: 0 | BZ45: 1 | CA45: 0.65 | CB45: 0 | CC45: 0
C46: 0 | D46: 0 | H46: =IFERROR(IF(E46="","",VLOOKUP((MATCH(E46,tblS_VarStroški_SD[ID_STRO_SD],0)-1),tblS_VarStroški_SD[],5)),"") ->  | R46: =IFERROR(IF(E46="","",VLOOKUP((MATCH(E46,tblS_VarStroški_SD[ID_STRO_SD],0)-1),tblS_VarStroški_SD[],6)),"") ->  | AQ46: a4 | AR46: 0 | AT46: 0 | AU46: =IF(IF(F46="",TRUE,COUNTIF(tbl_20_UVS_01[Naziv upravičenega variabilnega stroška],F46)=1)=FALSE,1,0) -> 0 | AV46: 0 | AW46: 0 | AX46: 0 | AY46: 0 | AZ46: =IFERROR(IF(BM46=2,IF(AND(BN46<=$BZ$45,BN46>=$CA$45,BO46<=$BV$45,BO46>=$BW$45),0,1),0),0) -> 0 | BA46: 0 | BB46: 0 | BC46: 0 | BD46: 0 | BE46: 0 | BF46: 0 | BJ46: FALSE | BK46: FALSE | BL46: 0 | BM46: 0 | BT46: 3 | BU46: SPTE&KOTLI | BV46: 1 | BW46: 0.45 | BX46: 0.85 | BY46: 0.25 | BZ46: 1 | CA46: 0.45 | CB46: 0.2 | CC46: 1.5
C47: 0 | D47: 0 | H47: =IFERROR(IF(E47="","",VLOOKUP((MATCH(E47,tblS_VarStroški_SD[ID_STRO_SD],0)-1),tblS_VarStroški_SD[],5)),"") ->  | R47: =IFERROR(IF(E47="","",VLOOKUP((MATCH(E47,tblS_VarStroški_SD[ID_STRO_SD],0)-1),tblS_VarStroški_SD[],6)),"") ->  | S47: =IF(OR(G47="",Q47=""),"",ROUND((G47*Q47+P47),2)) ->  | AQ47: a5 | AR47: 0 | AT47: 0 | AU47: =IF(IF(F47="",TRUE,COUNTIF(tbl_20_UVS_01[Naziv upravičenega variabilnega stroška],F47)=1)=FALSE,1,0) -> 0 | AV47: 0 | AW47: 0 | AX47: 0 | AY47: 0 | AZ47: 0 | BA47: 0 | BB47: 0 | BC47: 0 | BD47: 0 | BE47: 0 | BF47: 0 | BJ47: FALSE | BK47: FALSE | BL47: 0 | BM47: 0 | BT47: 4 | BU47: TOPČRP | BV47: 3.5 | BW47: 1.2 | BX47: 0 | BY47: 0 | BZ47: 3.5 | CA47: 1.2 | CB47: 0 | CC47: 0
C48: 0 | D48: 0 | E48: =IFERROR(IF(F48="","",LOOKUP(MATCH(F48,$CG$726:$CG$757,0),$CD$726:$CD$757,$CF$726:$CF$757)),"AXX-XX") ->  | H48: =IFERROR(IF(E48="","",VLOOKUP((MATCH(E48,tblS_VarStroški_SD[ID_STRO_SD],0)-1),tblS_VarStroški_SD[],5)),"") ->  | R48: =IFERROR(IF(E48="","",VLOOKUP((MATCH(E48,tblS_VarStroški_SD[ID_STRO_SD],0)-1),tblS_VarStroški_SD[],6)),"") ->  | S48: =IF(OR(G48="",Q48=""),"",ROUND((G48*Q48+P48),2)) ->  | AQ48: a6 | AR48: 0 | AT48: 0 | AU48: =IF(IF(F48="",TRUE,COUNTIF(tbl_20_UVS_01[Naziv upravičenega variabilnega stroška],F48)=1)=FALSE,1,0) -> 0 | AV48: 0 | AW48: 0 | AX48: 0 | AY48: 0 | AZ48: 0 | BA48: 0 | BB48: 0 | BC48: 0 | BD48: 0 | BE48: 0 | BF48: 0 | BJ48: FALSE | BK48: FALSE | BL48: 0 | BM48: 0
C49: 0 | D49: 0 | E49: =IFERROR(IF(F49="","",LOOKUP(MATCH(F49,$CG$726:$CG$757,0),$CD$726:$CD$757,$CF$726:$CF$757)),"AXX-XX") ->  | H49: =IFERROR(IF(E49="","",VLOOKUP((MATCH(E49,tblS_VarStroški_SD[ID_STRO_SD],0)-1),tblS_VarStroški_SD[],5)),"") ->  | R49: =IFERROR(IF(E49="","",VLOOKUP((MATCH(E49,tblS_VarStroški_SD[ID_STRO_SD],0)-1),tblS_VarStroški_SD[],6)),"") ->  | AQ49: a7 | AR49: 0 | AT49: 0 | AU49: =IF(IF(F49="",TRUE,COUNTIF(tbl_20_UVS_01[Naziv upravičenega variabilnega stroška],F49)=1)=FALSE,1,0) -> 0 | AV49: 0 | AW49: 0 | AX49: 0 | AY49: 0 | AZ49: 0 | BA49: 0 | BB49: 0 | BC49: 0 | BD49: 0 | BE49: 0 | BF49: 0 | BJ49: FALSE | BK49: FALSE | BL49: 0 | BM49: 0
C50: 0 | D50: 0 | H50: =IFERROR(IF(E50="","",VLOOKUP((MATCH(E50,tblS_VarStroški_SD[ID_STRO_SD],0)-1),tblS_VarStroški_SD[],5)),"") ->  | R50: =IFERROR(IF(E50="","",VLOOKUP((MATCH(E50,tblS_VarStroški_SD[ID_STRO_SD],0)-1),tblS_VarStroški_SD[],6)),"") ->  | AQ50: a8 | AR50: 0 | AT50: 0 | AU50: =IF(IF(F50="",TRUE,COUNTIF(tbl_20_UVS_01[Naziv upravičenega variabilnega stroška],F50)=1)=FALSE,1,0) -> 0 | AV50: 0 | AW50: 0 | AX50: 0 | AY50: 0 | AZ50: 0 | BA50: 0 | BB50: 0 | BC50: 0 | BD50: 0 | BE50: 0 | BF50: 0 | BJ50: FALSE | BK50: FALSE | BL50: 0 | BM50: 0
C51: 0 | D51: 0 | H51: =IFERROR(IF(E51="","",VLOOKUP((MATCH(E51,tblS_VarStroški_SD[ID_STRO_SD],0)-1),tblS_VarStroški_SD[],5)),"") ->  | R51: =IFERROR(IF(E51="","",VLOOKUP((MATCH(E51,tblS_VarStroški_SD[ID_STRO_SD],0)-1),tblS_VarStroški_SD[],6)),"") ->  | AQ51: a9 | AR51: 0 | AT51: 0 | AU51: =IF(IF(F51="",TRUE,COUNTIF(tbl_20_UVS_01[Naziv upravičenega variabilnega stroška],F51)=1)=FALSE,1,0) -> 0 | AV51: 0 | AW51: 0 | AX51: 0 | AY51: 0 | AZ51: 0 | BA51: 0 | BB51: 0 | BC51: 0 | BD51: 0 | BE51: 0 | BF51: 0 | BJ51: FALSE | BK51: FALSE | BL51: 0 | BM51: 0
C52: 0 | D52: 0 | G52: =IF(E52="","",ROUND(IF(OR(O52=0,O52=""),SUM(J52:K52),(SUM(M52:N52))/(SUM(M52:N52)+O52)*SUM(J52:K52)),3)) ->  | H52: =IFERROR(IF(E52="","",VLOOKUP((MATCH(E52,tblS_VarStroški_SD[ID_STRO_SD],0)-1),tblS_VarStroški_SD[],5)),"") ->  | R52: =IFERROR(IF(E52="","",VLOOKUP((MATCH(E52,tblS_VarStroški_SD[ID_STRO_SD],0)-1),tblS_VarStroški_SD[],6)),"") ->  | AQ52: a10 | AR52: 0 | AT52: 0 | AU52: =IF(IF(F52="",TRUE,COUNTIF(tbl_20_UVS_01[Naziv upravičenega variabilnega stroška],F52)=1)=FALSE,1,0) -> 0 | AV52: 0 | AW52: 0 | AX52: 0 | AY52: 0 | AZ52: 0 | BA52: 0 | BB52: 0 | BC52: 0 | BD52: 0 | BE52: 0 | BF52: 0 | BJ52: FALSE | BK52: FALSE | BL52: 0 | BM52: 0
C53: 0 | D53: 0 | H53: =IFERROR(IF(E53="","",VLOOKUP((MATCH(E53,tblS_VarStroški_SD[ID_STRO_SD],0)-1),tblS_VarStroški_SD[],5)),"") ->  | R53: =IFERROR(IF(E53="","",VLOOKUP((MATCH(E53,tblS_VarStroški_SD[ID_STRO_SD],0)-1),tblS_VarStroški_SD[],6)),"") ->  | AQ53: a11 | AR53: 0 | AT53: 0 | AU53: =IF(IF(F53="",TRUE,COUNTIF(tbl_20_UVS_01[Naziv upravičenega variabilnega stroška],F53)=1)=FALSE,1,0) -> 0 | AV53: 0 | AW53: 0 | AX53: 0 | AY53: 0 | AZ53: 0 | BA53: 0 | BB53: 0 | BC53: 0 | BD53: 0 | BE53: 0 | BF53: 0 | BJ53: FALSE | BK53: FALSE | BL53: 0 | BM53: 0
C54: 0 | D54: 0 | H54: =IFERROR(IF(E54="","",VLOOKUP((MATCH(E54,tblS_VarStroški_SD[ID_STRO_SD],0)-1),tblS_VarStroški_SD[],5)),"") ->  | R54: =IFERROR(IF(E54="","",VLOOKUP((MATCH(E54,tblS_VarStroški_SD[ID_STRO_SD],0)-1),tblS_VarStroški_SD[],6)),"") ->  | AQ54: a12 | AR54: 0 | AT54: 0 | AU54: =IF(IF(F54="",TRUE,COUNTIF(tbl_20_UVS_01[Naziv upravičenega variabilnega stroška],F54)=1)=FALSE,1,0) -> 0 | AV54: 0 | AW54: 0 | AX54: 0 | AY54: 0 | AZ54: 0 | BA54: 0 | BB54: 0 | BC54: 0 | BD54: 0 | BE54: 0 | BF54: 0 | BJ54: FALSE | BK54: FALSE | BL54: 0 | BM54: 0
C55: 0 | D55: 0 | H55: =IFERROR(IF(E55="","",VLOOKUP((MATCH(E55,tblS_VarStroški_SD[ID_STRO_SD],0)-1),tblS_VarStroški_SD[],5)),"") ->  | R55: =IFERROR(IF(E55="","",VLOOKUP((MATCH(E55,tblS_VarStroški_SD[ID_STRO_SD],0)-1),tblS_VarStroški_SD[],6)),"") ->  | S55: =IF(OR(G55="",Q55=""),"",ROUND((G55*Q55+P55),2)) ->  | AQ55: a13 | AR55: 0 | AT55: 0 | AU55: =IF(IF(F55="",TRUE,COUNTIF(tbl_20_UVS_01[Naziv upravičenega variabilnega stroška],F55)=1)=FALSE,1,0) -> 0 | AV55: 0 | AW55: 0 | AX55: 0 | AY55: 0 | AZ55: 0 | BA55: 0 | BB55: 0 | BC55: 0 | BD55: 0 | BE55: 0 | BF55: 0 | BJ55: FALSE | BK55: FALSE | BL55: 0 | BM55: 0
C56: 0 | D56: 0 | H56: =IFERROR(IF(E56="","",VLOOKUP((MATCH(E56,tblS_VarStroški_SD[ID_STRO_SD],0)-1),tblS_VarStroški_SD[],5)),"") ->  | R56: =IFERROR(IF(E56="","",VLOOKUP((MATCH(E56,tblS_VarStroški_SD[ID_STRO_SD],0)-1),tblS_VarStroški_SD[],6)),"") ->  | AQ56: a14 | AR56: 0 | AT56: 0 | AU56: =IF(IF(F56="",TRUE,COUNTIF(tbl_20_UVS_01[Naziv upravičenega variabilnega stroška],F56)=1)=FALSE,1,0) -> 0 | AV56: 0 | AW56: 0 | AX56: 0 | AY56: 0 | AZ56: 0 | BA56: 0 | BB56: 0 | BC56: 0 | BD56: 0 | BE56: 0 | BF56: 0 | BJ56: FALSE | BK56: FALSE | BL56: 0 | BM56: 0
C57: 0 | D57: 0 | H57: =IFERROR(IF(E57="","",VLOOKUP((MATCH(E57,tblS_VarStroški_SD[ID_STRO_SD],0)-1),tblS_VarStroški_SD[],5)),"") ->  | R57: =IFERROR(IF(E57="","",VLOOKUP((MATCH(E57,tblS_VarStroški_SD[ID_STRO_SD],0)-1),tblS_VarStroški_SD[],6)),"") ->  | AQ57: a15 | AR57: 0 | AT57: 0 | AU57: =IF(IF(F57="",TRUE,COUNTIF(tbl_20_UVS_01[Naziv upravičenega variabilnega stroška],F57)=1)=FALSE,1,0) -> 0 | AV57: 0 | AW57: 0 | AX57: 0 | AY57: 0 | AZ57: 0 | BA57: 0 | BB57: 0 | BC57: 0 | BD57: 0 | BE57: 0 | BF57: 0 | BJ57: FALSE | BK57: FALSE | BL57: 0 | BM57: 0
C58: 0 | D58: 0 | H58: =IFERROR(IF(E58="","",VLOOKUP((MATCH(E58,tblS_VarStroški_SD[ID_STRO_SD],0)-1),tblS_VarStroški_SD[],5)),"") ->  | R58: =IFERROR(IF(E58="","",VLOOKUP((MATCH(E58,tblS_VarStroški_SD[ID_STRO_SD],0)-1),tblS_VarStroški_SD[],6)),"") ->  | AQ58: a16 | AR58: 0 | AT58: 0 | AU58: =IF(IF(F58="",TRUE,COUNTIF(tbl_20_UVS_01[Naziv upravičenega variabilnega stroška],F58)=1)=FALSE,1,0) -> 0 | AV58: 0 | AW58: 0 | AX58: 0 | AY58: 0 | AZ58: 0 | BA58: 0 | BB58: 0 | BC58: 0 | BD58: 0 | BE58: 0 | BF58: 0 | BJ58: FALSE | BK58: FALSE | BL58: 0 | BM58: 0
C59: 0 | D59: 0 | H59: =IFERROR(IF(E59="","",VLOOKUP((MATCH(E59,tblS_VarStroški_SD[ID_STRO_SD],0)-1),tblS_VarStroški_SD[],5)),"") ->  | R59: =IFERROR(IF(E59="","",VLOOKUP((MATCH(E59,tblS_VarStroški_SD[ID_STRO_SD],0)-1),tblS_VarStroški_SD[],6)),"") ->  | AQ59: a17 | AR59: 0 | AT59: 0 | AU59: =IF(IF(F59="",TRUE,COUNTIF(tbl_20_UVS_01[Naziv upravičenega variabilnega stroška],F59)=1)=FALSE,1,0) -> 0 | AV59: 0 | AW59: 0 | AX59: 0 | AY59: 0 | AZ59: 0 | BA59: 0 | BB59: 0 | BC59: 0 | BD59: 0 | BE59: 0 | BF59: 0 | BJ59: FALSE | BK59: FALSE | BL59: 0 | BM59: 0
C60: 0 | D60: 0 | H60: =IFERROR(IF(E60="","",VLOOKUP((MATCH(E60,tblS_VarStroški_SD[ID_STRO_SD],0)-1),tblS_VarStroški_SD[],5)),"") ->  | R60: =IFERROR(IF(E60="","",VLOOKUP((MATCH(E60,tblS_VarStroški_SD[ID_STRO_SD],0)-1),tblS_VarStroški_SD[],6)),"") ->  | AQ60: a18 | AR60: 0 | AT60: 0 | AU60: =IF(IF(F60="",TRUE,COUNTIF(tbl_20_UVS_01[Naziv upravičenega variabilnega stroška],F60)=1)=FALSE,1,0) -> 0 | AV60: 0 | AW60: 0 | AX60: 0 | AY60: 0 | AZ60: 0 | BA60: 0 | BB60: 0 | BC60: 0 | BD60: 0 | BE60: 0 | BF60: 0 | BJ60: FALSE | BK60: FALSE | BL60: 0 | BM60: 0
C61: 0 | D61: 0 | H61: =IFERROR(IF(E61="","",VLOOKUP((MATCH(E61,tblS_VarStroški_SD[ID_STRO_SD],0)-1),tblS_VarStroški_SD[],5)),"") ->  | R61: =IFERROR(IF(E61="","",VLOOKUP((MATCH(E61,tblS_VarStroški_SD[ID_STRO_SD],0)-1),tblS_VarStroški_SD[],6)),"") ->  | AQ61: a19 | AR61: 0 | AT61: 0 | AU61: =IF(IF(F61="",TRUE,COUNTIF(tbl_20_UVS_01[Naziv upravičenega variabilnega stroška],F61)=1)=FALSE,1,0) -> 0 | AV61: 0 | AW61: 0 | AX61: 0 | AY61: 0 | AZ61: 0 | BA61: 0 | BB61: 0 | BC61: 0 | BD61: 0 | BE61: 0 | BF61: 0 | BJ61: FALSE | BK61: FALSE | BL61: 0 | BM61: 0
C62: 0 | D62: 0 | H62: =IFERROR(IF(E62="","",VLOOKUP((MATCH(E62,tblS_VarStroški_SD[ID_STRO_SD],0)-1),tblS_VarStroški_SD[],5)),"") ->  | R62: =IFERROR(IF(E62="","",VLOOKUP((MATCH(E62,tblS_VarStroški_SD[ID_STRO_SD],0)-1),tblS_VarStroški_SD[],6)),"") ->  | AQ62: a20 | AR62: 0 | AT62: 0 | AU62: =IF(IF(F62="",TRUE,COUNTIF(tbl_20_UVS_01[Naziv upravičenega variabilnega stroška],F62)=1)=FALSE,1,0) -> 0 | AV62: 0 | AW62: 0 | AX62: 0 | AY62: 0 | AZ62: 0 | BA62: 0 | BB62: 0 | BC62: 0 | BD62: 0 | BE62: 0 | BF62: 0 | BJ62: FALSE | BK62: FALSE | BL62: 0 | BM62: 0
C63: 0 | D63: 0 | H63: =IFERROR(IF(E63="","",VLOOKUP((MATCH(E63,tblS_VarStroški_SD[ID_STRO_SD],0)-1),tblS_VarStroški_SD[],5)),"") ->  | R63: =IFERROR(IF(E63="","",VLOOKUP((MATCH(E63,tblS_VarStroški_SD[ID_STRO_SD],0)-1),tblS_VarStroški_SD[],6)),"") ->  | AQ63: a21 | AR63: 0 | AT63: 0 | AU63: =IF(IF(F63="",TRUE,COUNTIF(tbl_20_UVS_01[Naziv upravičenega variabilnega stroška],F63)=1)=FALSE,1,0) -> 0 | AV63: 0 | AW63: 0 | AX63: 0 | AY63: 0 | AZ63: 0 | BA63: 0 | BB63: 0 | BC63: 0 | BD63: 0 | BE63: 0 | BF63: 0 | BJ63: FALSE | BK63: FALSE | BL63: 0 | BM63: 0
C64: 0 | D64: 0 | H64: =IFERROR(IF(E64="","",VLOOKUP((MATCH(E64,tblS_VarStroški_SD[ID_STRO_SD],0)-1),tblS_VarStroški_SD[],5)),"") ->  | R64: =IFERROR(IF(E64="","",VLOOKUP((MATCH(E64,tblS_VarStroški_SD[ID_STRO_SD],0)-1),tblS_VarStroški_SD[],6)),"") ->  | AQ64: a22 | AR64: 0 | AT64: 0 | AU64: =IF(IF(F64="",TRUE,COUNTIF(tbl_20_UVS_01[Naziv upravičenega variabilnega stroška],F64)=1)=FALSE,1,0) -> 0 | AV64: 0 | AW64: 0 | AX64: 0 | AY64: 0 | AZ64: 0 | BA64: 0 | BB64: 0 | BC64: 0 | BD64: 0 | BE64: 0 | BF64: 0 | BJ64: FALSE | BK64: FALSE | BL64: 0 | BM64: 0
C65: 0 | D65: 0 | H65: =IFERROR(IF(E65="","",VLOOKUP((MATCH(E65,tblS_VarStroški_SD[ID_STRO_SD],0)-1),tblS_VarStroški_SD[],5)),"") ->  | R65: =IFERROR(IF(E65="","",VLOOKUP((MATCH(E65,tblS_VarStroški_SD[ID_STRO_SD],0)-1),tblS_VarStroški_SD[],6)),"") ->  | AQ65: a23 | AR65: 0 | AT65: 0 | AU65: =IF(IF(F65="",TRUE,COUNTIF(tbl_20_UVS_01[Naziv upravičenega variabilnega stroška],F65)=1)=FALSE,1,0) -> 0 | AV65: 0 | AW65: 0 | AX65: 0 | AY65: 0 | AZ65: 0 | BA65: 0 | BB65: 0 | BC65: 0 | BD65: 0 | BE65: 0 | BF65: 0 | BJ65: FALSE | BK65: FALSE | BL65: 0 | BM65: 0
C66: 0 | D66: 0 | H66: =IFERROR(IF(E66="","",VLOOKUP((MATCH(E66,tblS_VarStroški_SD[ID_STRO_SD],0)-1),tblS_VarStroški_SD[],5)),"") ->  | R66: =IFERROR(IF(E66="","",VLOOKUP((MATCH(E66,tblS_VarStroški_SD[ID_STRO_SD],0)-1),tblS_VarStroški_SD[],6)),"") ->  | AQ66: a24 | AR66: 0 | AT66: 0 | AU66: =IF(IF(F66="",TRUE,COUNTIF(tbl_20_UVS_01[Naziv upravičenega variabilnega stroška],F66)=1)=FALSE,1,0) -> 0 | AV66: 0 | AW66: 0 | AX66: 0 | AY66: 0 | AZ66: 0 | BA66: 0 | BB66: 0 | BC66: 0 | BD66: 0 | BE66: 0 | BF66: 0 | BJ66: FALSE | BK66: FALSE | BL66: 0 | BM66: 0
C67: 0 | D67: 0 | H67: =IFERROR(IF(E67="","",VLOOKUP((MATCH(E67,tblS_VarStroški_SD[ID_STRO_SD],0)-1),tblS_VarStroški_SD[],5)),"") ->  | R67: =IFERROR(IF(E67="","",VLOOKUP((MATCH(E67,tblS_VarStroški_SD[ID_STRO_SD],0)-1),tblS_VarStroški_SD[],6)),"") ->  | AQ67: a25 | AR67: 0 | AT67: 0 | AU67: =IF(IF(F67="",TRUE,COUNTIF(tbl_20_UVS_01[Naziv upravičenega variabilnega stroška],F67)=1)=FALSE,1,0) -> 0 | AV67: 0 | AW67: 0 | AX67: 0 | AY67: 0 | AZ67: 0 | BA67: 0 | BB67: 0 | BC67: 0 | BD67: 0 | BE67: 0 | BF67: 0 | BJ67: FALSE | BK67: FALSE | BL67: 0 | BM67: 0
C68: 0 | D68: 0 | H68: =IFERROR(IF(E68="","",VLOOKUP((MATCH(E68,tblS_VarStroški_SD[ID_STRO_SD],0)-1),tblS_VarStroški_SD[],5)),"") ->  | R68: =IFERROR(IF(E68="","",VLOOKUP((MATCH(E68,tblS_VarStroški_SD[ID_STRO_SD],0)-1),tblS_VarStroški_SD[],6)),"") ->  | AQ68: a26 | AR68: 0 | AT68: 0 | AU68: =IF(IF(F68="",TRUE,COUNTIF(tbl_20_UVS_01[Naziv upravičenega variabilnega stroška],F68)=1)=FALSE,1,0) -> 0 | AV68: 0 | AW68: 0 | AX68: 0 | AY68: 0 | AZ68: 0 | BA68: 0 | BB68: 0 | BC68: 0 | BD68: 0 | BE68: 0 | BF68: 0 | BJ68: FALSE | BK68: FALSE | BL68: 0 | BM68: 0
C69: 0 | D69: 0 | H69: =IFERROR(IF(E69="","",VLOOKUP((MATCH(E69,tblS_VarStroški_SD[ID_STRO_SD],0)-1),tblS_VarStroški_SD[],5)),"") ->  | R69: =IFERROR(IF(E69="","",VLOOKUP((MATCH(E69,tblS_VarStroški_SD[ID_STRO_SD],0)-1),tblS_VarStroški_SD[],6)),"") ->  | AB69: Opomba: | AQ69: a27 | AR69: 0 | AT69: 0 | AU69: =IF(IF(F69="",TRUE,COUNTIF(tbl_20_UVS_01[Naziv upravičenega variabilnega stroška],F69)=1)=FALSE,1,0) -> 0 | AV69: 0 | AW69: 0 | AX69: 0 | AY69: 0 | AZ69: 0 | BA69: 0 | BB69: 0 | BC69: 0 | BD69: 0 | BE69: 0 | BF69: 0 | BJ69: FALSE | BK69: FALSE | BL69: 0 | BM69: 0
C70: 0 | D70: 0 | H70: =IFERROR(IF(E70="","",VLOOKUP((MATCH(E70,tblS_VarStroški_SD[ID_STRO_SD],0)-1),tblS_VarStroški_SD[],5)),"") ->  | R70: =IFERROR(IF(E70="","",VLOOKUP((MATCH(E70,tblS_VarStroški_SD[ID_STRO_SD],0)-1),tblS_VarStroški_SD[],6)),"") ->  | AB70: Pripomoček za izračun deleža UVS med posameznimi skupinami odjemalcev - dobavitelji | AQ70: a28 | AR70: 0 | AT70: 0 | AU70: =IF(IF(F70="",TRUE,COUNTIF(tbl_20_UVS_01[Naziv upravičenega variabilnega stroška],F70)=1)=FALSE,1,0) -> 0 | AV70: 0 | AW70: 0 | AX70: 0 | AY70: 0 | AZ70: 0 | BA70: 0 | BB70: 0 | BC70: 0 | BD70: 0 | BE70: 0 | BF70: 0 | BJ70: FALSE | BK70: FALSE | BL70: 0 | BM70: 0
C71: 0 | D71: 0 | H71: =IFERROR(IF(E71="","",VLOOKUP((MATCH(E71,tblS_VarStroški_SD[ID_STRO_SD],0)-1),tblS_VarStroški_SD[],5)),"") ->  | R71: =IFERROR(IF(E71="","",VLOOKUP((MATCH(E71,tblS_VarStroški_SD[ID_STRO_SD],0)-1),tblS_VarStroški_SD[],6)),"") ->  | AQ71: a29 | AR71: 0 | AT71: 0 | AU71: =IF(IF(F71="",TRUE,COUNTIF(tbl_20_UVS_01[Naziv upravičenega variabilnega stroška],F71)=1)=FALSE,1,0) -> 0 | AV71: 0 | AW71: 0 | AX71: 0 | AY71: 0 | AZ71: 0 | BA71: 0 | BB71: 0 | BC71: 0 | BD71: 0 | BE71: 0 | BF71: 0 | BJ71: FALSE | BK71: FALSE | BL71: 0 | BM71: 0
C72: 0 | D72: 0 | E72: =IFERROR(IF(F72="","",LOOKUP(MATCH(F72,$CG$763:$CG$778,0),$CD$763:$CD$778,$CF$763:$CF$778)),"AXX-XX") ->  | F72: =IF(G28="","",CG763) ->  | H72: MWh | R72: EUR/MWh | S72: =IF(OR(G72="",Q72=""),"",ROUND((G72*Q72+P72),2)) ->  | Y72: =IF(AND(BD72="",AR72=0),"",IF(AR72=1,"û","ü")) ->  | AB72: GO | AC72: =IFERROR(G72/SUM(G72:G74),0) -> 0 | AQ72: ="a"&(COUNTA($F$43:$F72)) -> a1 | AR72: =IF(SUM(AT72:BD72)>0,1,0) -> 0 | AT72: 0 | AV72: =IF(E72="",IF((COUNTA(G72,Q72)>0),1,0),0) -> 0 | BD72: =IF(E72="","",IF(OR(COUNTA(G72,Q72)=0,COUNTA(G72,Q72)<2),1,0)) -> 
C73: 0 | D73: 0 | F73: =IF(G28="","",CG764) ->  | H73: MWh | R73: EUR/MWh | V73: =IFERROR(T73,"") ->  | Y73: =IF(AND(BD73="",AR73=0),"",IF(AR73=1,"û","ü")) ->  | AB73: ZNGO | AC73: =IFERROR(G73/SUM(G72:G74),0) -> 0 | AQ73: ="a"&(COUNTA($F$43:$F73)) -> a2 | AR73: 0 | AT73: 0 | AV73: =IF(E73="",IF((COUNTA(G73,Q73)>0),1,0),0) -> 0
C74: 0 | D74: 0 | F74: =IF(G28="","",CG765) ->  | H74: MWh | R74: EUR/MWh | V74: =IFERROR(T74,"") ->  | AB74: NNGO | AC74: =1-(SUM(AC72:AC73)) -> 1 | AQ74: ="a"&(COUNTA($F$43:$F74)) -> a3 | AR74: 0 | AT74: 0 | AV74: 0
C75: 0 | D75: 0 | F75: =IF(G28="","",CG766) ->  | H75: MW/leto | R75: EUR/MW/leto | S75: =IF(OR(G75="",Q75=""),"",ROUND((G75*Q75)/12,2)) ->  | AQ75: ="a"&(COUNTA($F$43:$F75)) -> a4 | AR75: 0 | AT75: 0 | AV75: =IF(E75="",IF((COUNTA(G75,Q75)>0),1,0),0) -> 0 | BD75: =IF(E75="","",IF(OR(COUNTA(G75,Q75)=0,COUNTA(G75,Q75)<2),1,0)) -> 
C76: 0 | D76: 0 | F76: =IF(G29="","",CG767) ->  | H76: MWh | R76: EUR/MWh | V76: =IFERROR(T76,"") ->  | AB76: GO | AC76: =IFERROR(G76/SUM(G76:G78),0) -> 0 | AQ76: ="a"&(COUNTA($F$43:$F76)) -> a5 | AR76: 0 | AT76: 0 | AV76: 0 | BD76: =IF(E76="","",IF(OR(COUNTA(G76,Q76)=0,COUNTA(G76,Q76)<2),1,0)) -> 
C77: 0 | D77: 0 | F77: =IF(G29="","",CG768) ->  | H77: MWh | R77: EUR/MWh | V77: =IFERROR(T77,"") ->  | AB77: ZNGO | AC77: =IFERROR(G77/SUM(G76:G78),0) -> 0 | AQ77: ="a"&(COUNTA($F$43:$F77)) -> a6 | AR77: 0 | AT77: 0 | AV77: 0
C78: 0 | D78: 0 | F78: =IF(G29="","",CG769) ->  | H78: MWh | R78: EUR/MWh | AB78: NNGO | AC78: =1-(SUM(AC76:AC77)) -> 1 | AQ78: ="a"&(COUNTA($F$43:$F78)) -> a7 | AR78: 0 | AT78: 0 | AV78: 0
C79: 0 | D79: 0 | F79: =IF(G29="","",CG770) ->  | H79: MW/leto | R79: EUR/MW/leto | S79: =IF(OR(G79="",Q79=""),"",ROUND((G79*Q79)/12,2)) ->  | AQ79: ="a"&(COUNTA($F$43:$F79)) -> a8 | AR79: 0 | AT79: 0 | AV79: 0 | BD79: =IF(E79="","",IF(OR(COUNTA(G79,Q79)=0,COUNTA(G79,Q79)<2),1,0)) -> 
C80: 0 | D80: 0 | F80: =IF(G30="","",CG771) ->  | H80: MWh | R80: EUR/MWh | V80: =IFERROR(T80,"") ->  | AB80: GO | AC80: =IFERROR(G80/SUM(G80:G82),0) -> 0 | AQ80: ="a"&(COUNTA($F$43:$F80)) -> a9 | AR80: 0 | AT80: 0 | AV80: 0 | BD80: =IF(E80="","",IF(OR(COUNTA(G80,Q80)=0,COUNTA(G80,Q80)<2),1,0)) -> 
C81: 0 | D81: 0 | F81: =IF(G30="","",CG772) ->  | H81: MWh | R81: EUR/MWh | V81: =IFERROR(T81,"") ->  | AB81: ZNGO | AC81: =IFERROR(G81/SUM(G80:G82),0) -> 0 | AQ81: ="a"&(COUNTA($F$43:$F81)) -> a10 | AR81: 0 | AT81: 0 | AV81: 0
C82: 0 | D82: 0 | F82: =IF(G30="","",CG773) ->  | H82: MWh | R82: EUR/MWh | AB82: NNGO | AC82: =1-(SUM(AC80:AC81)) -> 1 | AQ82: ="a"&(COUNTA($F$43:$F82)) -> a11 | AR82: 0 | AT82: 0 | AV82: 0
C83: 0 | D83: 0 | F83: =IF(G30="","",CG774) ->  | H83: MW/leto | R83: EUR/MW/leto | S83: =IF(OR(G83="",Q83=""),"",ROUND((G83*Q83)/12,2)) ->  | AQ83: ="a"&(COUNTA($F$43:$F83)) -> a12 | AR83: 0 | AT83: 0 | AV83: 0
C84: 0 | D84: 0 | F84: =IF(G31="","",CG775) ->  | H84: MWh | R84: EUR/MWh | V84: =IFERROR(T84,"") ->  | AB84: GO | AC84: =IFERROR(G84/SUM(G84:G86),0) -> 0 | AQ84: ="a"&(COUNTA($F$43:$F84)) -> a13 | AR84: 0 | AT84: 0 | AV84: 0
C85: 0 | D85: 0 | F85: =IF(G31="","",CG776) ->  | H85: MWh | R85: EUR/MWh | V85: =IFERROR(T85,"") ->  | AB85: ZNGO | AC85: =IFERROR(G85/SUM(G84:G86),0) -> 0 | AQ85: ="a"&(COUNTA($F$43:$F85)) -> a14 | AR85: 0 | AT85: 0 | AV85: 0
C86: 0 | D86: 0 | F86: =IF(G31="","",CG777) ->  | H86: MWh | R86: EUR/MWh | AB86: NNGO | AC86: =1-(SUM(AC84:AC85)) -> 1 | AQ86: ="a"&(COUNTA($F$43:$F86)) -> a15 | AR86: 0 | AT86: 0 | AV86: 0
C87: 0 | D87: 0 | E87: =IFERROR(IF(F87="","",LOOKUP(MATCH(F87,$CG$763:$CG$778,0),$CD$763:$CD$778,$CF$763:$CF$778)),"AXX-XX") ->  | F87: =IF(G31="","",CG778) ->  | H87: MW/leto | R87: EUR/MW/leto | S87: =IF(OR(G87="",Q87=""),"",ROUND((G87*Q87)/12,2)) ->  | AQ87: ="a"&(COUNTA($F$43:$F87)) -> a16 | AR87: 0 | AT87: 0 | AV87: 0
S88: =SUBTOTAL(109,tbl_20_UVS_01[Znesek upravičenega stroška '[EUR']]) -> 0 | T88: =SUBTOTAL(109,tbl_20_UVS_01[Strukturni delež upravičenega stroška '[%']]) -> 0 | V88: =SUBTOTAL(109,tbl_20_UVS_01[Ponder ai oz. bi ]) -> 0
E89: Opomba: | F89: Oznaka MSDT je okrajšava za "Matična številka dobavitelja toplote", tej sledi matična številka dobavitelja toplote, prenesena iz Tabele 19: Podatki o vlagatelju in o dobavitelju toplote - izpolniti v primeru nabave toplote od dobaviteljev toplote v letu (t-1)
E92: Tabela 20.2 | F92: Realizirana struktura in cene upravičenih variabilnih stroškov za koledarski mesec - | H92: ="FEBRUAR "&""&BAZA_Sifranti!$AK$6 -> FEBRUAR 2024
D93: 2
F94: Priznani upravičeni variabilni stroški (UVS) | G94: Količinska poraba upravičenih variabilnih stroškov [enot] | L94: Proizvedena koristna energija [MWh] | P94: Cene in dodatni zneski UVS | S94: Zneski in strukturni deleži UVS (brez DDV) | AB94: Opomba: | BN94: Opomba:
I95: EE | J95: TE | L95: EE Bruto | M95: TE predana v distribucijski sistem | O95: TE lastne rabe | AB95: Pripomoček za izračun deleža UVS med posameznimi skupinami odjemalcev | AR95: =SUM(AR98:AR142) -> 0 | BN95: Uporabljen tip proizvodnih naprav in doseženi mesečni parametri
E96: 01 | F96: 02 | G96: 03 | H96: 04 | I96: 05 | J96: 06 | K96: 07 | L96: 08 | M96: 09 | N96: 10 | O96: 11 | P96: 12 | Q96: 13 | R96: 14 | S96: 15 | T96: 16 | U96: 17 | V96: 18 | W96: 19
C97: ID_PP | D97: ID_PR | E97: ID | F97: Naziv upravičenega variabilnega stroška | G97: Skupna poraba [enot] | H97: Enota | I97: Poraba SPTE Proizvodnja EE [enot] | J97: Poraba SPTE Proizvodnja TE [enot] | K97: Poraba Kotli/Ostalo Proizvodnja TE [enot] | L97: SPTE Proizvedena EE [MWh] | M97: SPTE Proizvedena TE [MWh] | N97: Kotli/Ostalo Proizvedena TE [MWh] | O97: Lastna raba TE [MWh] | P97: Znesek omrežnine, dajatev, prispevkov in dodatkov [EUR] | Q97: Pogodbena cena UVS (brez omrežnine, dajatev in prispevkov) [enoto UVS] | R97: Enota UVS | S97: Znesek upravičenega stroška [EUR] | T97: Strukturni delež upravičenega stroška [%] | U97: Ponder | V97: Sprememba cene upravičenega stroška [%] | W97: Razmerje (ai x Ei / E0i) oz. (bi x Ei / E0i) | Y97: Kontrola napak vnosa | AB97: Skupina odjemalcev | AC97: Razmerje odjemov TE med skupinami zaščitenih in nezaščitenih odjemalcev [%) | AD97: Načrtovana oz. realizirana poraba količin UVS [enota] | AE97: Delež porabe UVS po skupinah odjemalcev [enota] | AQ97: Ponder | AR97: Sumarna kontrola | AV97: Kontrola povezana z osnovnim šifrantom | AW97: Kontrola izpolnjenosti SPTE | AX97: Kontrola izpolnjenosti KOTLI | AY97: Omejitev SPTE | AZ97: Omejitev KOTLI | BA97: Omejitev SPTE&KOTLI | BB97: Omejitev TOPČRP | BC97: Kontrola izpolnjenosti I | BD97: Kontrola izpolnjenosti II | BE97: Kontrola regulirana cena A01-7-1 | BF97: Kontrola regulirana cena A01-7-2 | BG97: Regulirana cena A01-7-1 | BH97: Regulirana cena A01-7-2 | BJ97: Ugotavljanje SPTE + Kotli | BK97: Ugotavljanje TOPČRP | BL97: Samo SPTE | BM97: Vrsta naprave | BN97: Izkoristek naprave | BO97: Toplotni izkoristek | BP97: Električni izkoristek | BQ97: Razmernik C = EE/TE | BR97: Tip proizvodnih naprav
C98: =$D$95 -> 0 | D98: =$D$94 -> 0 | E98: =IF(E43="","",E43) ->  | F98: =IF(F43="","",F43) ->  | G98: =IF(E98="","",ROUND(IF(OR(O98=0,O98=""),SUM(J98:K98),(SUM(M98:N98))/(SUM(M98:N98)+O98)*SUM(J98:K98)),3)) ->  | H98: =IF(H43="","",H43) ->  | R98: =IF(R43="","",R43) ->  | S98: =IF(OR(G98="",Q98=""),"",ROUND((G98*Q98+P98),2)) ->  | T98: =IFERROR(S98/$S$143,"") ->  | U98: =U43 ->  | V98: =IFERROR(Q98/Q43-1,"") ->  | W98: =IFERROR(T98*$S$143/$S$88,"") ->  | Y98: =IF(AND(E98="",COUNTA(I98:Q98)=0),"",IF(AR98=1,"û","ü")) ->  | AB98: GO | AC98: 0.62 | AD98: 0 | AE98: =ROUND(AD98*AC98,3) -> 0 | AQ98: a1 | AR98: =IF(SUM(AS98:BF98)>0,1,0) -> 0 | AV98: =IF(E98="",0,IFERROR(IF(MATCH(E98,$CF$726:$CF$759,0)>0,0,1),1)) -> 0 | AW98: =IF(SUM(I98:O98)=0,0,IF(LEFT(E98,3)="A01",IF(SUM(I98:J98,L98:M98)=0,0,IF(AND(SUM(I98:J98)>0,SUM(L98:M98)>0),0,1)),0)) -> 0 | AX98: =IF(SUM(I98:O98)=0,0,IF(LEFT(E98,3)="A01",IF(SUM(I98:O98)=0,0,IF(OR(AND(K98=0,N98=0),AND(K98>0,N98>=0))=TRUE,0,1)),0)) -> 0 | AY98: =IFERROR(IF(BM98=1,IF(AND(BN98<=$BZ$44,BN98>=$CA$44,BO98<=$BV$44,BO98>=$BW$44,BP98<=$BX$44,BP98>=$BY$44,BQ98>=$CB$44,BQ98<=$CC$44),0,1),0),0) -> 0 | AZ98: =IFERROR(IF(BM98=2,IF(AND(BN98<=$BZ$45,BN98>=$CA$45,BO98<=$BV$45,BO98>=$BW$45),0,1),0),0) -> 0 | BA98: =IFERROR(IF(BM98=3,IF(AND(BN98<=$BZ$46,BN98>=$CA$46,BO98<=$BV$46,BO98>=$BW$46,BP98<=$BX$46,BP98>=$BY$46,BQ98>=$CB$46,BQ98<=$CC$46),0,1),0),0) -> 0 | BB98: =IFERROR(IF(BM98=4,IF(AND(BN98<=$BZ$47,BN98>=$CA$47,BO98<=$BV$47,BO98>=$BW$47),0,1),0),0) -> 0 | BC98: =IF(E98="",0,IF(AND(OR(AND(I98=0,L98=0),AND(I98>0,L98>0),AND(SUM(I98:J98)>0,SUM(L98:M98)>0)),OR(AND(I98>0,J98>0,L98>0),AND(SUM(I98:J98)=0,SUM(L98:M98)=0)))=TRUE,0,1)) -> 0 | BD98: =IF(OR(COUNTA(I98:Q98)=9,COUNTA(I98:Q98)=0)=TRUE,0,1) -> 0 | BE98: =IF(AND($BG$41=E98,$BG$98<>""),IF(Q98>$BG$98,1,0),0) -> 0 | BF98: =IF(AND($BH$41=E98,$BH$98<>""),IF(Q98>$BH$98,1,0),0) -> 0 | BJ98: =AND(LEFT(E98,3)="A01",SUM(L98:N98)>0,E98<>"A01-13",E98<>"A01-14",E98<>"A01-15") -> FALSE | BK98: =AND(LEFT(E98,3)="A01",SUM(N98:O98)>0,E98="A01-15") -> FALSE | BL98: =IF(BJ98=TRUE,IF(AND(K98=0,BJ98=TRUE),1,IF(SUM(I98:J98)=0,2,3)),0) -> 0 | BM98: =IF(BL98<>0,BL98,IF(BK98=TRUE,4,0)) -> 0 | BN98: =IFERROR(IF($BM98=0,"",ROUND(SUM(L98:O98)/SUM(I98:K98),3)),"") ->  | BO98: =IFERROR(IF($BM98=0,"",ROUND(SUM(M98:O98)/SUM(J98:K98),3)),"") ->  | BP98: =IFERROR(IF($BM98=0,"",ROUND(SUM(L98)/SUM(I98),3)),"") ->  | BQ98: =IFERROR(IF(OR($BM98=1,$BM98=3),ROUND(IF(O98=0,L98/M98,IF((N98+O98)<=(K98*0.85),L98/(M98+O98),L98/(SUM(N98:O98)-K98*0.85+M98))),3),""),"") ->  | BR98: =IF(BM98=0,"",VLOOKUP(BM98,$BT$44:$BU$47,2)) -> 
C99: 0 | D99: 0 | F99: =IF(F44="","",F44) ->  | S99: =IF(OR(G99="",Q99=""),"",ROUND((G99*Q99+P99),2)) ->  | AB99: ZNGO | AC99: 0.14 | AE99: =ROUND(AD98*AC99,3) -> 0 | AQ99: a2 | AR99: 0 | AV99: 0 | AW99: 0 | AX99: 0 | AY99: =IFERROR(IF(BM99=1,IF(AND(BN99<=$BZ$44,BN99>=$CA$44,BO99<=$BV$44,BO99>=$BW$44,BP99<=$BX$44,BP99>=$BY$44,BQ99>=$CB$44,BQ99<=$CC$44),0,1),0),0) -> 0 | AZ99: 0 | BA99: =IFERROR(IF(BM99=3,IF(AND(BN99<=$BZ$46,BN99>=$CA$46,BO99<=$BV$46,BO99>=$BW$46,BP99<=$BX$46,BP99>=$BY$46,BQ99>=$CB$46,BQ99<=$CC$46),0,1),0),0) -> 0 | BB99: 0 | BC99: 0 | BD99: =IF(OR(COUNTA(I99:Q99)=9,COUNTA(I99:Q99)=0)=TRUE,0,1) -> 0 | BE99: 0 | BF99: 0 | BJ99: FALSE | BK99: FALSE | BL99: 0 | BM99: =IF(BL99<>0,BL99,IF(BK99=TRUE,4,0)) -> 0 | BN99: =IFERROR(IF($BM99=0,"",ROUND(SUM(L99:O99)/SUM(I99:K99),3)),"") ->  | BO99: =IFERROR(IF($BM99=0,"",ROUND(SUM(M99:O99)/SUM(J99:K99),3)),"") ->  | BP99: =IFERROR(IF($BM99=0,"",ROUND(SUM(L99)/SUM(I99),3)),"") ->  | BQ99: =IFERROR(IF(OR($BM99=1,$BM99=3),ROUND(IF(O99=0,L99/M99,IF((N99+O99)<=(K99*0.95),L99/(M99+O99),L99/(SUM(N99:O99)-K99*0.95+M99))),3),""),"") ->  | BR99: =IF(BM99=0,"",VLOOKUP(BM99,$BT$44:$BU$47,2)) -> 
C100: 0 | D100: 0 | AB100: NNGO | AC100: =IFERROR(1-SUM(AC98:AC99),0) -> 0.24 | AE100: =ROUND(AD98*AC100,3) -> 0 | AQ100: a3 | AR100: 0 | AV100: 0 | AW100: 0 | AX100: 0 | AY100: 0 | AZ100: 0 | BA100: 0 | BB100: 0 | BC100: 0 | BD100: 0 | BE100: 0 | BF100: 0 | BJ100: FALSE | BK100: FALSE | BL100: 0 | BM100: 0
C101: 0 | D101: 0 | T101: =IFERROR(S101/$S$143,"") ->  | AQ101: a4 | AR101: 0 | AV101: 0 | AW101: 0 | AX101: 0 | AY101: 0 | AZ101: 0 | BA101: 0 | BB101: 0 | BC101: 0 | BD101: 0 | BE101: 0 | BF101: 0 | BJ101: FALSE | BK101: FALSE | BL101: 0 | BM101: 0
C102: 0 | D102: 0 | AQ102: a5 | AR102: 0 | AV102: 0 | AW102: 0 | AX102: 0 | AY102: 0 | AZ102: 0 | BA102: 0 | BB102: 0 | BC102: 0 | BD102: 0 | BE102: 0 | BF102: 0 | BJ102: FALSE | BK102: FALSE | BL102: 0 | BM102: 0
C103: 0 | D103: 0 | AQ103: a6 | AR103: 0 | AV103: 0 | AW103: 0 | AX103: 0 | AY103: 0 | AZ103: 0 | BA103: 0 | BB103: 0 | BC103: 0 | BD103: 0 | BE103: 0 | BF103: 0 | BJ103: FALSE | BK103: FALSE | BL103: 0 | BM103: 0
C104: 0 | D104: 0 | AQ104: a7 | AR104: 0 | AV104: 0 | AW104: 0 | AX104: 0 | AY104: 0 | AZ104: 0 | BA104: 0 | BB104: 0 | BC104: 0 | BD104: 0 | BE104: 0 | BF104: 0 | BJ104: FALSE | BK104: FALSE | BL104: 0 | BM104: 0
C105: 0 | D105: 0 | AQ105: a8 | AR105: 0 | AV105: 0 | AW105: 0 | AX105: 0 | AY105: 0 | AZ105: 0 | BA105: 0 | BB105: 0 | BC105: 0 | BD105: 0 | BE105: 0 | BF105: 0 | BJ105: FALSE | BK105: FALSE | BL105: 0 | BM105: 0
C106: 0 | D106: 0 | AQ106: a9 | AR106: 0 | AV106: 0 | AW106: 0 | AX106: 0 | AY106: 0 | AZ106: 0 | BA106: 0 | BB106: 0 | BC106: 0 | BD106: 0 | BE106: 0 | BF106: 0 | BJ106: FALSE | BK106: FALSE | BL106: 0 | BM106: 0
C107: 0 | D107: 0 | AQ107: a10 | AR107: 0 | AV107: 0 | AW107: 0 | AX107: 0 | AY107: 0 | AZ107: 0 | BA107: 0 | BB107: 0 | BC107: 0 | BD107: 0 | BE107: 0 | BF107: 0 | BJ107: FALSE | BK107: FALSE | BL107: 0 | BM107: 0
C108: 0 | D108: 0 | AQ108: a11 | AR108: 0 | AV108: 0 | AW108: 0 | AX108: 0 | AY108: 0 | AZ108: 0 | BA108: 0 | BB108: 0 | BC108: 0 | BD108: 0 | BE108: 0 | BF108: 0 | BJ108: FALSE | BK108: FALSE | BL108: 0 | BM108: 0
C109: 0 | D109: 0 | AQ109: a12 | AR109: 0 | AV109: 0 | AW109: 0 | AX109: 0 | AY109: 0 | AZ109: 0 | BA109: 0 | BB109: 0 | BC109: 0 | BD109: 0 | BE109: 0 | BF109: 0 | BJ109: FALSE | BK109: FALSE | BL109: 0 | BM109: 0
C110: 0 | D110: 0 | AQ110: a13 | AR110: 0 | AV110: 0 | AW110: 0 | AX110: 0 | AY110: 0 | AZ110: 0 | BA110: 0 | BB110: 0 | BC110: 0 | BD110: 0 | BE110: 0 | BF110: 0 | BJ110: FALSE | BK110: FALSE | BL110: 0 | BM110: 0
C111: 0 | D111: 0 | AQ111: a14 | AR111: 0 | AV111: 0 | AW111: 0 | AX111: 0 | AY111: 0 | AZ111: 0 | BA111: 0 | BB111: 0 | BC111: 0 | BD111: 0 | BE111: 0 | BF111: 0 | BJ111: FALSE | BK111: FALSE | BL111: 0 | BM111: 0
C112: 0 | D112: 0 | AQ112: a15 | AR112: 0 | AV112: 0 | AW112: 0 | AX112: 0 | AY112: 0 | AZ112: 0 | BA112: 0 | BB112: 0 | BC112: 0 | BD112: 0 | BE112: 0 | BF112: 0 | BJ112: FALSE | BK112: FALSE | BL112: 0 | BM112: 0
C113: 0 | D113: 0 | AQ113: a16 | AR113: 0 | AV113: 0 | AW113: 0 | AX113: 0 | AY113: 0 | AZ113: 0 | BA113: 0 | BB113: 0 | BC113: 0 | BD113: 0 | BE113: 0 | BF113: 0 | BJ113: FALSE | BK113: FALSE | BL113: 0 | BM113: 0
C114: 0 | D114: 0 | E114: =IF(E59="","",E59) ->  | AQ114: a17 | AR114: 0 | AV114: 0 | AW114: 0 | AX114: 0 | AY114: 0 | AZ114: 0 | BA114: 0 | BB114: 0 | BC114: 0 | BD114: 0 | BE114: 0 | BF114: 0 | BJ114: FALSE | BK114: FALSE | BL114: 0 | BM114: 0
C115: 0 | D115: 0 | AQ115: a18 | AR115: 0 | AV115: 0 | AW115: 0 | AX115: 0 | AY115: 0 | AZ115: 0 | BA115: 0 | BB115: 0 | BC115: 0 | BD115: 0 | BE115: 0 | BF115: 0 | BJ115: FALSE | BK115: FALSE | BL115: 0 | BM115: 0
C116: 0 | D116: 0 | AQ116: a19 | AR116: 0 | AV116: 0 | AW116: 0 | AX116: 0 | AY116: 0 | AZ116: 0 | BA116: 0 | BB116: 0 | BC116: 0 | BD116: 0 | BE116: 0 | BF116: 0 | BJ116: FALSE | BK116: FALSE | BL116: 0 | BM116: 0
C117: 0 | D117: 0 | AQ117: a20 | AR117: 0 | AV117: 0 | AW117: 0 | AX117: 0 | AY117: 0 | AZ117: 0 | BA117: 0 | BB117: 0 | BC117: 0 | BD117: 0 | BE117: 0 | BF117: 0 | BJ117: FALSE | BK117: FALSE | BL117: 0 | BM117: 0
C118: 0 | D118: 0 | AQ118: a21 | AR118: 0 | AV118: 0 | AW118: 0 | AX118: 0 | AY118: 0 | AZ118: 0 | BA118: 0 | BB118: 0 | BC118: 0 | BD118: 0 | BE118: 0 | BF118: 0 | BJ118: FALSE | BK118: FALSE | BL118: 0 | BM118: 0
C119: 0 | D119: 0 | AQ119: a22 | AR119: 0 | AV119: 0 | AW119: 0 | AX119: 0 | AY119: 0 | AZ119: 0 | BA119: 0 | BB119: 0 | BC119: 0 | BD119: 0 | BE119: 0 | BF119: 0 | BJ119: FALSE | BK119: FALSE | BL119: 0 | BM119: 0
C120: 0 | D120: 0 | AQ120: a23 | AR120: 0 | AV120: 0 | AW120: 0 | AX120: 0 | AY120: 0 | AZ120: 0 | BA120: 0 | BB120: 0 | BC120: 0 | BD120: 0 | BE120: 0 | BF120: 0 | BJ120: FALSE | BK120: FALSE | BL120: 0 | BM120: 0
C121: 0 | D121: 0 | AQ121: a24 | AR121: 0 | AV121: 0 | AW121: 0 | AX121: 0 | AY121: 0 | AZ121: 0 | BA121: 0 | BB121: 0 | BC121: 0 | BD121: 0 | BE121: 0 | BF121: 0 | BJ121: FALSE | BK121: FALSE | BL121: 0 | BM121: 0
C122: 0 | D122: 0 | AQ122: a25 | AR122: 0 | AV122: 0 | AW122: 0 | AX122: 0 | AY122: 0 | AZ122: 0 | BA122: 0 | BB122: 0 | BC122: 0 | BD122: 0 | BE122: 0 | BF122: 0 | BJ122: FALSE | BK122: FALSE | BL122: 0 | BM122: 0
C123: 0 | D123: 0 | AQ123: a26 | AR123: 0 | AV123: 0 | AW123: 0 | AX123: 0 | AY123: 0 | AZ123: 0 | BA123: 0 | BB123: 0 | BC123: 0 | BD123: 0 | BE123: 0 | BF123: 0 | BJ123: FALSE | BK123: FALSE | BL123: 0 | BM123: 0
C124: 0 | D124: 0 | AB124: Opomba: | AQ124: a27 | AR124: 0 | AV124: 0 | AW124: 0 | AX124: 0 | AY124: 0 | AZ124: 0 | BA124: 0 | BB124: 0 | BC124: 0 | BD124: 0 | BE124: 0 | BF124: 0 | BJ124: FALSE | BK124: FALSE | BL124: 0 | BM124: 0
C125: 0 | D125: 0 | AB125: Pripomoček za izračun deleža UVS med posameznimi skupinami odjemalcev - dobavitelji | AQ125: a28 | AR125: 0 | AV125: 0 | AW125: 0 | AX125: 0 | AY125: 0 | AZ125: 0 | BA125: 0 | BB125: 0 | BC125: 0 | BD125: 0 | BE125: 0 | BF125: 0 | BJ125: FALSE | BK125: FALSE | BL125: 0 | BM125: 0
C126: 0 | D126: 0 | AQ126: a29 | AR126: 0 | AV126: 0 | AW126: 0 | AX126: 0 | AY126: 0 | AZ126: 0 | BA126: 0 | BB126: 0 | BC126: 0 | BD126: 0 | BE126: 0 | BF126: 0 | BJ126: FALSE | BK126: FALSE | BL126: 0 | BM126: 0
C127: 0 | D127: 0 | F127: =IF(F72="","",F72) ->  | H127: MWh | R127: EUR/MWh | S127: =IF(OR(G127="",Q127=""),"",ROUND((G127*Q127+P127),2)) ->  | V127: =IFERROR(Q127/Q72-1,"") ->  | Y127: =IF(AND(BD127="",AR127=0),"",IF(AR127=1,"û","ü")) ->  | AB127: GO | AC127: =IFERROR(G127/SUM(G127:G129),0) -> 0 | AR127: =IF(SUM(AS127:BD127)>0,1,0) -> 0 | AT127: 0 | AV127: =IF(E127="",IF((COUNTA(G127,Q127)>0),1,0),0) -> 0 | BD127: =IF(E127="","",IF(OR(COUNTA(G127,Q127)=0,COUNTA(G127,Q127)<2),1,0)) -> 
C128: 0 | D128: 0 | F128: =IF(F73="","",F73) ->  | H128: MWh | R128: EUR/MWh | AB128: ZNGO | AC128: =IFERROR(G128/SUM(G127:G129),0) -> 0 | AR128: 0 | AT128: 0 | AV128: 0
C129: 0 | D129: 0 | F129: =IF(F74="","",F74) ->  | H129: MWh | R129: EUR/MWh | AB129: NNGO | AC129: =1-(SUM(AC127:AC128)) -> 1 | AR129: 0 | AT129: 0 | AV129: 0
C130: 0 | D130: 0 | E130: =IF(E75="","",E75) ->  | F130: =IF(F75="","",F75) ->  | H130: MW/leto | R130: EUR/MW/leto | S130: =IF(OR(G130="",Q130=""),"",ROUND((G130*Q130)/12,2)) ->  | V130: =IFERROR(Q130/Q75-1,"") ->  | AR130: 0 | AT130: 0 | AV130: 0 | BD130: =IF(E130="","",IF(OR(COUNTA(G130,Q130)=0,COUNTA(G130,Q130)<2),1,0)) -> 
C131: 0 | D131: 0 | H131: MWh | R131: EUR/MWh | AB131: GO | AC131: =IFERROR(G131/SUM(G131:G133),0) -> 0 | AR131: 0 | AT131: 0 | AV131: 0 | BD131: =IF(E131="","",IF(OR(COUNTA(G131,Q131)=0,COUNTA(G131,Q131)<2),1,0)) -> 
C132: 0 | D132: 0 | H132: MWh | R132: EUR/MWh | AB132: ZNGO | AC132: =IFERROR(G132/SUM(G131:G133),0) -> 0 | AR132: 0 | AT132: 0 | AV132: 0
C133: 0 | D133: 0 | H133: MWh | R133: EUR/MWh | AB133: NNGO | AC133: =1-(SUM(AC131:AC132)) -> 1 | AR133: 0 | AT133: 0 | AV133: 0
C134: 0 | D134: 0 | H134: MW/leto | R134: EUR/MW/leto | S134: =IF(OR(G134="",Q134=""),"",ROUND((G134*Q134)/12,2)) ->  | AR134: 0 | AT134: 0 | AV134: 0 | BD134: =IF(E134="","",IF(OR(COUNTA(G134,Q134)=0,COUNTA(G134,Q134)<2),1,0)) -> 
C135: 0 | D135: 0 | H135: MWh | R135: EUR/MWh | AB135: GO | AC135: =IFERROR(G135/SUM(G135:G137),0) -> 0 | AR135: 0 | AT135: 0 | AV135: 0 | BD135: =IF(E135="","",IF(OR(COUNTA(G135,Q135)=0,COUNTA(G135,Q135)<2),1,0)) -> 
C136: 0 | D136: 0 | H136: MWh | R136: EUR/MWh | AB136: ZNGO | AC136: =IFERROR(G136/SUM(G135:G137),0) -> 0 | AR136: 0 | AT136: 0 | AV136: 0
C137: 0 | D137: 0 | H137: MWh | R137: EUR/MWh | AB137: NNGO | AC137: =1-(SUM(AC135:AC136)) -> 1 | AR137: 0 | AT137: 0 | AV137: 0
C138: 0 | D138: 0 | H138: MW/leto | R138: EUR/MW/leto | S138: =IF(OR(G138="",Q138=""),"",ROUND((G138*Q138)/12,2)) ->  | AR138: 0 | AT138: 0 | AV138: 0
C139: 0 | D139: 0 | H139: MWh | R139: EUR/MWh | AB139: GO | AC139: =IFERROR(G139/SUM(G139:G141),0) -> 0 | AR139: 0 | AT139: 0 | AV139: 0
C140: 0 | D140: 0 | H140: MWh | R140: EUR/MWh | AB140: ZNGO | AC140: =IFERROR(G140/SUM(G139:G141),0) -> 0 | AR140: 0 | AT140: 0 | AV140: 0
C141: 0 | D141: 0 | H141: MWh | R141: EUR/MWh | AB141: NNGO | AC141: =1-(SUM(AC139:AC140)) -> 1 | AR141: 0 | AT141: 0 | AV141: 0
C142: 0 | D142: 0 | H142: MW/leto | R142: EUR/MW/leto | S142: =IF(OR(G142="",Q142=""),"",ROUND((G142*Q142)/12,2)) ->  | AR142: 0 | AT142: 0 | AV142: 0
S143: =SUBTOTAL(109,tbl_20_UVS_02[Znesek upravičenega stroška '[EUR']]) -> 0 | T143: =SUBTOTAL(109,tbl_20_UVS_02[Strukturni delež upravičenega stroška '[%']]) -> 0 | W143: =SUBTOTAL(109,tbl_20_UVS_02[Razmerje (ai x Ei / E0i) oz. (bi x Ei / E0i)]) -> 0
E144: Opomba: | F144: Oznaka MSDT je okrajšava za "Matična številka dobavitelja toplote", tej sledi matična številka dobavitelja toplote, prenesena iz Tabele 19: Podatki o vlagatelju in o dobavitelju toplote - izpolniti v primeru nabave toplote od dobaviteljev toplote v letu (t-1)
E147: Tabela 20.3 | F147: Realizirana struktura in cene upravičenih variabilnih stroškov za koledarski mesec - | H147: ="MAREC "&""&BAZA_Sifranti!$AK$6 -> MAREC 2024
D148: 3
F149: Priznani upravičeni variabilni stroški (UVS) | G149: Količinska poraba upravičenih variabilnih stroškov [enot] | L149: Proizvedena koristna energija [MWh] | P149: Cene in dodatni zneski UVS | S149: Zneski in strukturni deleži UVS (brez DDV) | AB149: Opomba: | BN149: Opomba:
I150: EE | J150: TE | L150: EE Bruto | M150: TE predana v distribucijski sistem | O150: TE lastne rabe | AB150: Pripomoček za izračun deleža UVS med posameznimi skupinami odjemalcev | AR150: =SUM(AR153:AR197) -> 0 | BN150: Uporabljen tip proizvodnih naprav in doseženi mesečni parametri
E151: 01 | F151: 02 | G151: 03 | H151: 04 | I151: 05 | J151: 06 | K151: 07 | L151: 08 | M151: 09 | N151: 10 | O151: 11 | P151: 12 | Q151: 13 | R151: 14 | S151: 15 | T151: 16 | U151: 17 | V151: 18 | W151: 19
C152: ID_PP | D152: ID_PR | E152: ID | F152: Naziv upravičenega variabilnega stroška | G152: Skupna poraba [enot] | H152: Enota | I152: Poraba SPTE Proizvodnja EE [enot] | J152: Poraba SPTE Proizvodnja TE [enot] | K152: Poraba Kotli/Ostalo Proizvodnja TE [enot] | L152: SPTE Proizvedena EE [MWh] | M152: SPTE Proizvedena TE [MWh] | N152: Kotli/Ostalo Proizvedena TE [MWh] | O152: Lastna raba TE [MWh] | P152: Znesek omrežnine, dajatev, prispevkov in dodatkov [EUR] | Q152: Pogodbena cena UVS (brez omrežnine, dajatev in prispevkov) [enoto UVS] | R152: Enota UVS | S152: Znesek upravičenega stroška [EUR] | T152: Strukturni delež upravičenega stroška [%] | U152: Ponder | V152: Sprememba cene upravičenega stroška [%] | W152: Razmerje (ai x Ei / E0i) oz. (bi x Ei / E0i) | Y152: Kontrola napak vnosa | AB152: Skupina odjemalcev | AC152: Razmerje odjemov TE med skupinami zaščitenih in nezaščitenih odjemalcev [%) | AD152: Načrtovana oz. realizirana poraba količin UVS [enota] | AE152: Delež porabe UVS po skupinah odjemalcev [enota] | AQ152: Ponder | AR152: Sumarna kontrola | AV152: Kontrola povezana z osnovnim šifrantom | AW152: Kontrola izpolnjenosti SPTE | AX152: Kontrola izpolnjenosti KOTLI | AY152: Omejitev SPTE | AZ152: Omejitev KOTLI | BA152: Omejitev SPTE&KOTLI | BB152: Omejitev TOPČRP | BC152: Kontrola izpolnjenosti I | BD152: Kontrola izpolnjenosti II | BE152: Kontrola regulirana cena A01-7-1 | BF152: Kontrola regulirana cena A01-7-2 | BG152: Regulirana cena A01-7-1 | BH152: Regulirana cena A01-7-2 | BJ152: Ugotavljanje SPTE + Kotli | BK152: Ugotavljanje TOPČRP | BL152: Samo SPTE | BM152: Vrsta naprave | BN152: Izkoristek naprave | BO152: Toplotni izkoristek | BP152: Električni izkoristek | BQ152: Razmernik C = EE/TE | BR152: Tip proizvodnih naprav
C153: =$D$150 -> 0 | D153: =$D$149 -> 0 | E153: =IF(E98="","",E98) ->  | G153: =IF(E153="","",ROUND(IF(OR(O153=0,O153=""),SUM(J153:K153),(SUM(M153:N153))/(SUM(M153:N153)+O153)*SUM(J153:K153)),3)) ->  | H153: =IF(H98="","",H98) ->  | R153: =IF(R98="","",R98) ->  | S153: =IF(OR(G153="",Q153=""),"",ROUND((G153*Q153+P153),2)) ->  | T153: =IFERROR(S153/$S$198,"") ->  | U153: =U98 ->  | V153: =IFERROR(Q153/Q98-1,"") ->  | W153: =IFERROR(T153*$S$198/$S$143,"") ->  | Y153: =IF(AND(E153="",COUNTA(I153:Q153)=0),"",IF(AR153=1,"û","ü")) ->  | AB153: GO | AC153: 0.62 | AD153: 0 | AE153: =ROUND(AD153*AC153,3) -> 0 | AQ153: a1 | AR153: =IF(SUM(AS153:BF153)>0,1,0) -> 0 | AV153: =IF(E153="",0,IFERROR(IF(MATCH(E153,$CF$726:$CF$759,0)>0,0,1),1)) -> 0 | AW153: =IF(SUM(I153:O153)=0,0,IF(LEFT(E153,3)="A01",IF(SUM(I153:J153,L153:M153)=0,0,IF(AND(SUM(I153:J153)>0,SUM(L153:M153)>0),0,1)),0)) -> 0 | AX153: =IF(SUM(I153:O153)=0,0,IF(LEFT(E153,3)="A01",IF(SUM(I153:O153)=0,0,IF(OR(AND(K153=0,N153=0),AND(K153>0,N153>=0))=TRUE,0,1)),0)) -> 0 | AY153: =IFERROR(IF(BM153=1,IF(AND(BN153<=$BZ$44,BN153>=$CA$44,BO153<=$BV$44,BO153>=$BW$44,BP153<=$BX$44,BP153>=$BY$44,BQ153>=$CB$44,BQ153<=$CC$44),0,1),0),0) -> 0 | AZ153: =IFERROR(IF(BM153=2,IF(AND(BN153<=$BZ$45,BN153>=$CA$45,BO153<=$BV$45,BO153>=$BW$45),0,1),0),0) -> 0 | BA153: =IFERROR(IF(BM153=3,IF(AND(BN153<=$BZ$46,BN153>=$CA$46,BO153<=$BV$46,BO153>=$BW$46,BP153<=$BX$46,BP153>=$BY$46,BQ153>=$CB$46,BQ153<=$CC$46),0,1),0),0) -> 0 | BB153: =IFERROR(IF(BM153=4,IF(AND(BN153<=$BZ$47,BN153>=$CA$47,BO153<=$BV$47,BO153>=$BW$47),0,1),0),0) -> 0 | BC153: =IF(E153="",0,IF(AND(OR(AND(I153=0,L153=0),AND(I153>0,L153>0),AND(SUM(I153:J153)>0,SUM(L153:M153)>0)),OR(AND(I153>0,J153>0,L153>0),AND(SUM(I153:J153)=0,SUM(L153:M153)=0)))=TRUE,0,1)) -> 0 | BD153: =IF(OR(COUNTA(I153:Q153)=9,COUNTA(I153:Q153)=0)=TRUE,0,1) -> 0 | BE153: =IF(AND($BG$41=E153,$BG$153<>""),IF(Q153>$BG$153,1,0),0) -> 0 | BF153: =IF(AND($BH$41=E153,$BH$153<>""),IF(Q153>$BH$153,1,0),0) -> 0 | BJ153: =AND(LEFT(E153,3)="A01",SUM(L153:N153)>0,E153<>"A01-13",E153<>"A01-14",E153<>"A01-15") -> FALSE | BK153: =AND(LEFT(E153,3)="A01",SUM(N153:O153)>0,E153="A01-15") -> FALSE | BL153: =IF(BJ153=TRUE,IF(AND(K153=0,BJ153=TRUE),1,IF(SUM(I153:J153)=0,2,3)),0) -> 0 | BM153: =IF(BL153<>0,BL153,IF(BK153=TRUE,4,0)) -> 0 | BN153: =IFERROR(IF($BM153=0,"",ROUND(SUM(L153:O153)/SUM(I153:K153),3)),"") ->  | BO153: =IFERROR(IF($BM153=0,"",ROUND(SUM(M153:O153)/SUM(J153:K153),3)),"") ->  | BP153: =IFERROR(IF($BM153=0,"",ROUND(SUM(L153)/SUM(I153),3)),"") ->  | BQ153: =IFERROR(IF(OR($BM153=1,$BM153=3),ROUND(IF(O153=0,L153/M153,IF((N153+O153)<=(K153*0.85),L153/(M153+O153),L153/(SUM(N153:O153)-K153*0.85+M153))),3),""),"") ->  | BR153: =IF(BM153=0,"",VLOOKUP(BM153,$BT$44:$BU$47,2)) -> 
C154: 0 | D154: 0 | AB154: ZNGO | AC154: 0.15 | AE154: =ROUND(AD153*AC154,3) -> 0 | AQ154: a2 | AR154: 0 | AV154: 0 | AW154: 0 | AX154: 0 | AY154: =IFERROR(IF(BM154=1,IF(AND(BN154<=$BZ$44,BN154>=$CA$44,BO154<=$BV$44,BO154>=$BW$44,BP154<=$BX$44,BP154>=$BY$44,BQ154>=$CB$44,BQ154<=$CC$44),0,1),0),0) -> 0 | AZ154: 0 | BA154: =IFERROR(IF(BM154=3,IF(AND(BN154<=$BZ$46,BN154>=$CA$46,BO154<=$BV$46,BO154>=$BW$46,BP154<=$BX$46,BP154>=$BY$46,BQ154>=$CB$46,BQ154<=$CC$46),0,1),0),0) -> 0 | BB154: 0 | BC154: 0 | BD154: =IF(OR(COUNTA(I154:Q154)=9,COUNTA(I154:Q154)=0)=TRUE,0,1) -> 0 | BE154: 0 | BF154: 0 | BJ154: FALSE | BK154: FALSE | BL154: 0 | BM154: =IF(BL154<>0,BL154,IF(BK154=TRUE,4,0)) -> 0 | BN154: =IFERROR(IF($BM154=0,"",ROUND(SUM(L154:O154)/SUM(I154:K154),3)),"") ->  | BO154: =IFERROR(IF($BM154=0,"",ROUND(SUM(M154:O154)/SUM(J154:K154),3)),"") ->  | BP154: =IFERROR(IF($BM154=0,"",ROUND(SUM(L154)/SUM(I154),3)),"") ->  | BQ154: =IFERROR(IF(OR($BM154=1,$BM154=3),ROUND(IF(O154=0,L154/M154,IF((N154+O154)<=(K154*0.95),L154/(M154+O154),L154/(SUM(N154:O154)-K154*0.95+M154))),3),""),"") ->  | BR154: =IF(BM154=0,"",VLOOKUP(BM154,$BT$44:$BU$47,2)) -> 
C155: 0 | D155: 0 | AB155: NNGO | AC155: =IFERROR(1-SUM(AC153:AC154),0) -> 0.23 | AE155: =ROUND(AD153*AC155,3) -> 0 | AQ155: a3 | AR155: 0 | AV155: 0 | AW155: 0 | AX155: 0 | AY155: 0 | AZ155: 0 | BA155: 0 | BB155: 0 | BC155: 0 | BD155: 0 | BE155: 0 | BF155: 0 | BJ155: FALSE | BK155: FALSE | BL155: 0 | BM155: 0
C156: 0 | D156: 0 | AQ156: a4 | AR156: 0 | AV156: 0 | AW156: 0 | AX156: 0 | AY156: 0 | AZ156: 0 | BA156: 0 | BB156: 0 | BC156: 0 | BD156: 0 | BE156: 0 | BF156: 0 | BJ156: FALSE | BK156: FALSE | BL156: 0 | BM156: 0
C157: 0 | D157: 0 | AQ157: a5 | AR157: 0 | AV157: 0 | AW157: 0 | AX157: 0 | AY157: 0 | AZ157: 0 | BA157: 0 | BB157: 0 | BC157: 0 | BD157: 0 | BE157: 0 | BF157: 0 | BJ157: FALSE | BK157: FALSE | BL157: 0 | BM157: 0
C158: 0 | D158: 0 | AQ158: a6 | AR158: 0 | AV158: 0 | AW158: 0 | AX158: 0 | AY158: 0 | AZ158: 0 | BA158: 0 | BB158: 0 | BC158: 0 | BD158: 0 | BE158: 0 | BF158: 0 | BJ158: FALSE | BK158: FALSE | BL158: 0 | BM158: 0
C159: 0 | D159: 0 | AQ159: a7 | AR159: 0 | AV159: 0 | AW159: 0 | AX159: 0 | AY159: 0 | AZ159: 0 | BA159: 0 | BB159: 0 | BC159: 0 | BD159: 0 | BE159: 0 | BF159: 0 | BJ159: FALSE | BK159: FALSE | BL159: 0 | BM159: 0
C160: 0 | D160: 0 | AQ160: a8 | AR160: 0 | AV160: 0 | AW160: 0 | AX160: 0 | AY160: 0 | AZ160: 0 | BA160: 0 | BB160: 0 | BC160: 0 | BD160: 0 | BE160: 0 | BF160: 0 | BJ160: FALSE | BK160: FALSE | BL160: 0 | BM160: 0
C161: 0 | D161: 0 | AQ161: a9 | AR161: 0 | AV161: 0 | AW161: 0 | AX161: 0 | AY161: 0 | AZ161: 0 | BA161: 0 | BB161: 0 | BC161: 0 | BD161: 0 | BE161: 0 | BF161: 0 | BJ161: FALSE | BK161: FALSE | BL161: 0 | BM161: 0
C162: 0 | D162: 0 | AQ162: a10 | AR162: 0 | AV162: 0 | AW162: 0 | AX162: 0 | AY162: 0 | AZ162: 0 | BA162: 0 | BB162: 0 | BC162: 0 | BD162: 0 | BE162: 0 | BF162: 0 | BJ162: FALSE | BK162: FALSE | BL162: 0 | BM162: 0
C163: 0 | D163: 0 | AQ163: a11 | AR163: 0 | AV163: 0 | AW163: 0 | AX163: 0 | AY163: 0 | AZ163: 0 | BA163: 0 | BB163: 0 | BC163: 0 | BD163: 0 | BE163: 0 | BF163: 0 | BJ163: FALSE | BK163: FALSE | BL163: 0 | BM163: 0
C164: 0 | D164: 0 | AQ164: a12 | AR164: 0 | AV164: 0 | AW164: 0 | AX164: 0 | AY164: 0 | AZ164: 0 | BA164: 0 | BB164: 0 | BC164: 0 | BD164: 0 | BE164: 0 | BF164: 0 | BJ164: FALSE | BK164: FALSE | BL164: 0 | BM164: 0
C165: 0 | D165: 0 | AQ165: a13 | AR165: 0 | AV165: 0 | AW165: 0 | AX165: 0 | AY165: 0 | AZ165: 0 | BA165: 0 | BB165: 0 | BC165: 0 | BD165: 0 | BE165: 0 | BF165: 0 | BJ165: FALSE | BK165: FALSE | BL165: 0 | BM165: 0
C166: 0 | D166: 0 | AQ166: a14 | AR166: 0 | AV166: 0 | AW166: 0 | AX166: 0 | AY166: 0 | AZ166: 0 | BA166: 0 | BB166: 0 | BC166: 0 | BD166: 0 | BE166: 0 | BF166: 0 | BJ166: FALSE | BK166: FALSE | BL166: 0 | BM166: 0
C167: 0 | D167: 0 | AQ167: a15 | AR167: 0 | AV167: 0 | AW167: 0 | AX167: 0 | AY167: 0 | AZ167: 0 | BA167: 0 | BB167: 0 | BC167: 0 | BD167: 0 | BE167: 0 | BF167: 0 | BJ167: FALSE | BK167: FALSE | BL167: 0 | BM167: 0
C168: 0 | D168: 0 | AQ168: a16 | AR168: 0 | AV168: 0 | AW168: 0 | AX168: 0 | AY168: 0 | AZ168: 0 | BA168: 0 | BB168: 0 | BC168: 0 | BD168: 0 | BE168: 0 | BF168: 0 | BJ168: FALSE | BK168: FALSE | BL168: 0 | BM168: 0
C169: 0 | D169: 0 | E169: =IF(E114="","",E114) ->  | AQ169: a17 | AR169: 0 | AV169: 0 | AW169: 0 | AX169: 0 | AY169: 0 | AZ169: 0 | BA169: 0 | BB169: 0 | BC169: 0 | BD169: 0 | BE169: 0 | BF169: 0 | BJ169: FALSE | BK169: FALSE | BL169: 0 | BM169: 0
C170: 0 | D170: 0 | AQ170: a18 | AR170: 0 | AV170: 0 | AW170: 0 | AX170: 0 | AY170: 0 | AZ170: 0 | BA170: 0 | BB170: 0 | BC170: 0 | BD170: 0 | BE170: 0 | BF170: 0 | BJ170: FALSE | BK170: FALSE | BL170: 0 | BM170: 0
C171: 0 | D171: 0 | AQ171: a19 | AR171: 0 | AV171: 0 | AW171: 0 | AX171: 0 | AY171: 0 | AZ171: 0 | BA171: 0 | BB171: 0 | BC171: 0 | BD171: 0 | BE171: 0 | BF171: 0 | BJ171: FALSE | BK171: FALSE | BL171: 0 | BM171: 0
C172: 0 | D172: 0 | AQ172: a20 | AR172: 0 | AV172: 0 | AW172: 0 | AX172: 0 | AY172: 0 | AZ172: 0 | BA172: 0 | BB172: 0 | BC172: 0 | BD172: 0 | BE172: 0 | BF172: 0 | BJ172: FALSE | BK172: FALSE | BL172: 0 | BM172: 0
C173: 0 | D173: 0 | AQ173: a21 | AR173: 0 | AV173: 0 | AW173: 0 | AX173: 0 | AY173: 0 | AZ173: 0 | BA173: 0 | BB173: 0 | BC173: 0 | BD173: 0 | BE173: 0 | BF173: 0 | BJ173: FALSE | BK173: FALSE | BL173: 0 | BM173: 0
C174: 0 | D174: 0 | AQ174: a22 | AR174: 0 | AV174: 0 | AW174: 0 | AX174: 0 | AY174: 0 | AZ174: 0 | BA174: 0 | BB174: 0 | BC174: 0 | BD174: 0 | BE174: 0 | BF174: 0 | BJ174: FALSE | BK174: FALSE | BL174: 0 | BM174: 0
C175: 0 | D175: 0 | AQ175: a23 | AR175: 0 | AV175: 0 | AW175: 0 | AX175: 0 | AY175: 0 | AZ175: 0 | BA175: 0 | BB175: 0 | BC175: 0 | BD175: 0 | BE175: 0 | BF175: 0 | BJ175: FALSE | BK175: FALSE | BL175: 0 | BM175: 0
C176: 0 | D176: 0 | AQ176: a24 | AR176: 0 | AV176: 0 | AW176: 0 | AX176: 0 | AY176: 0 | AZ176: 0 | BA176: 0 | BB176: 0 | BC176: 0 | BD176: 0 | BE176: 0 | BF176: 0 | BJ176: FALSE | BK176: FALSE | BL176: 0 | BM176: 0
C177: 0 | D177: 0 | AQ177: a25 | AR177: 0 | AV177: 0 | AW177: 0 | AX177: 0 | AY177: 0 | AZ177: 0 | BA177: 0 | BB177: 0 | BC177: 0 | BD177: 0 | BE177: 0 | BF177: 0 | BJ177: FALSE | BK177: FALSE | BL177: 0 | BM177: 0
C178: 0 | D178: 0 | AQ178: a26 | AR178: 0 | AV178: 0 | AW178: 0 | AX178: 0 | AY178: 0 | AZ178: 0 | BA178: 0 | BB178: 0 | BC178: 0 | BD178: 0 | BE178: 0 | BF178: 0 | BJ178: FALSE | BK178: FALSE | BL178: 0 | BM178: 0
C179: 0 | D179: 0 | AB179: Opomba: | AQ179: a27 | AR179: 0 | AV179: 0 | AW179: 0 | AX179: 0 | AY179: 0 | AZ179: 0 | BA179: 0 | BB179: 0 | BC179: 0 | BD179: 0 | BE179: 0 | BF179: 0 | BJ179: FALSE | BK179: FALSE | BL179: 0 | BM179: 0
C180: 0 | D180: 0 | AB180: Pripomoček za izračun deleža UVS med posameznimi skupinami odjemalcev - dobavitelji | AQ180: a28 | AR180: 0 | AV180: 0 | AW180: 0 | AX180: 0 | AY180: 0 | AZ180: 0 | BA180: 0 | BB180: 0 | BC180: 0 | BD180: 0 | BE180: 0 | BF180: 0 | BJ180: FALSE | BK180: FALSE | BL180: 0 | BM180: 0
C181: 0 | D181: 0 | AQ181: a29 | AR181: 0 | AV181: 0 | AW181: 0 | AX181: 0 | AY181: 0 | AZ181: 0 | BA181: 0 | BB181: 0 | BC181: 0 | BD181: 0 | BE181: 0 | BF181: 0 | BJ181: FALSE | BK181: FALSE | BL181: 0 | BM181: 0
C182: 0 | D182: 0 | H182: MWh | R182: EUR/MWh | Y182: =IF(AND(BD182="",AR182=0),"",IF(AR182=1,"û","ü")) ->  | AB182: GO | AC182: =IFERROR(G182/SUM(G182:G184),0) -> 0 | AR182: =IF(SUM(AS182:BD182)>0,1,0) -> 0 | AT182: 0 | AV182: =IF(E182="",IF((COUNTA(G182,Q182)>0),1,0),0) -> 0 | BD182: =IF(E182="","",IF(OR(COUNTA(G182,Q182)=0,COUNTA(G182,Q182)<2),1,0)) -> 
C183: 0 | D183: 0 | H183: MWh | R183: EUR/MWh | AB183: ZNGO | AC183: =IFERROR(G183/SUM(G182:G184),0) -> 0 | AR183: 0 | AT183: 0 | AV183: 0
C184: 0 | D184: 0 | H184: MWh | R184: EUR/MWh | AB184: NNGO | AC184: =1-(SUM(AC182:AC183)) -> 1 | AR184: 0 | AT184: 0 | AV184: 0
C185: 0 | D185: 0 | E185: =IF(E130="","",E130) ->  | H185: MW/leto | R185: EUR/MW/leto | S185: =IF(OR(G185="",Q185=""),"",ROUND((G185*Q185)/12,2)) ->  | AR185: 0 | AT185: 0 | AV185: 0 | BD185: =IF(E185="","",IF(OR(COUNTA(G185,Q185)=0,COUNTA(G185,Q185)<2),1,0)) -> 
C186: 0 | D186: 0 | H186: MWh | R186: EUR/MWh | AB186: GO | AC186: =IFERROR(G186/SUM(G186:G188),0) -> 0 | AR186: 0 | AT186: 0 | AV186: 0 | BD186: =IF(E186="","",IF(OR(COUNTA(G186,Q186)=0,COUNTA(G186,Q186)<2),1,0)) -> 
C187: 0 | D187: 0 | H187: MWh | R187: EUR/MWh | AB187: ZNGO | AC187: =IFERROR(G187/SUM(G186:G188),0) -> 0 | AR187: 0 | AT187: 0 | AV187: 0
C188: 0 | D188: 0 | H188: MWh | R188: EUR/MWh | AB188: NNGO | AC188: =1-(SUM(AC186:AC187)) -> 1 | AR188: 0 | AT188: 0 | AV188: 0
C189: 0 | D189: 0 | H189: MW/leto | R189: EUR/MW/leto | S189: =IF(OR(G189="",Q189=""),"",ROUND((G189*Q189)/12,2)) ->  | AR189: 0 | AT189: 0 | AV189: 0 | BD189: =IF(E189="","",IF(OR(COUNTA(G189,Q189)=0,COUNTA(G189,Q189)<2),1,0)) -> 
C190: 0 | D190: 0 | H190: MWh | R190: EUR/MWh | AB190: GO | AC190: =IFERROR(G190/SUM(G190:G192),0) -> 0 | AR190: 0 | AT190: 0 | AV190: 0 | BD190: =IF(E190="","",IF(OR(COUNTA(G190,Q190)=0,COUNTA(G190,Q190)<2),1,0)) -> 
C191: 0 | D191: 0 | H191: MWh | R191: EUR/MWh | AB191: ZNGO | AC191: =IFERROR(G191/SUM(G190:G192),0) -> 0 | AR191: 0 | AT191: 0 | AV191: 0
C192: 0 | D192: 0 | H192: MWh | R192: EUR/MWh | AB192: NNGO | AC192: =1-(SUM(AC190:AC191)) -> 1 | AR192: 0 | AT192: 0 | AV192: 0
C193: 0 | D193: 0 | H193: MW/leto | R193: EUR/MW/leto | S193: =IF(OR(G193="",Q193=""),"",ROUND((G193*Q193)/12,2)) ->  | AR193: 0 | AT193: 0 | AV193: 0
C194: 0 | D194: 0 | H194: MWh | R194: EUR/MWh | AB194: GO | AC194: =IFERROR(G194/SUM(G194:G196),0) -> 0 | AR194: 0 | AT194: 0 | AV194: 0
C195: 0 | D195: 0 | H195: MWh | R195: EUR/MWh | AB195: ZNGO | AC195: =IFERROR(G195/SUM(G194:G196),0) -> 0 | AR195: 0 | AT195: 0 | AV195: 0
C196: 0 | D196: 0 | H196: MWh | R196: EUR/MWh | AB196: NNGO | AC196: =1-(SUM(AC194:AC195)) -> 1 | AR196: 0 | AT196: 0 | AV196: 0
C197: 0 | D197: 0 | E197: =IF(E142="","",E142) ->  | F197: =IF(F142="","",F142) ->  | H197: MW/leto | R197: EUR/MW/leto | S197: =IF(OR(G197="",Q197=""),"",ROUND((G197*Q197)/12,2)) ->  | AR197: 0 | AT197: 0 | AV197: 0
S198: =SUBTOTAL(109,tbl_20_UVS_03[Znesek upravičenega stroška '[EUR']]) -> 0 | T198: =SUBTOTAL(109,tbl_20_UVS_03[Strukturni delež upravičenega stroška '[%']]) -> 0 | W198: =SUBTOTAL(109,tbl_20_UVS_03[Razmerje (ai x Ei / E0i) oz. (bi x Ei / E0i)]) -> 0
E199: Opomba: | F199: Oznaka MSDT je okrajšava za "Matična številka dobavitelja toplote", tej sledi matična številka dobavitelja toplote, prenesena iz Tabele 19: Podatki o vlagatelju in o dobavitelju toplote - izpolniti v primeru nabave toplote od dobaviteljev toplote v letu (t-1)
E202: Tabela 20.4 | F202: Realizirana struktura in cene upravičenih variabilnih stroškov za koledarski mesec - | H202: ="APRIL "&""&BAZA_Sifranti!$AK$6 -> APRIL 2024
D203: 4
F204: Priznani upravičeni variabilni stroški (UVS) | G204: Količinska poraba upravičenih variabilnih stroškov [enot] | L204: Proizvedena koristna energija [MWh] | P204: Cene in dodatni zneski UVS | S204: Zneski in strukturni deleži UVS (brez DDV) | AB204: Opomba: | BN204: Opomba:
I205: EE | J205: TE | L205: EE Bruto | M205: TE predana v distribucijski sistem | O205: TE lastne rabe | AB205: Pripomoček za izračun deleža UVS med posameznimi skupinami odjemalcev | AR205: =SUM(AR208:AR252) -> 0 | BN205: Uporabljen tip proizvodnih naprav in doseženi mesečni parametri
E206: 01 | F206: 02 | G206: 03 | H206: 04 | I206: 05 | J206: 06 | K206: 07 | L206: 08 | M206: 09 | N206: 10 | O206: 11 | P206: 12 | Q206: 13 | R206: 14 | S206: 15 | T206: 16 | U206: 17 | V206: 18 | W206: 19
C207: ID_PP | D207: ID_PR | E207: ID | F207: Naziv upravičenega variabilnega stroška | G207: Skupna poraba [enot] | H207: Enota | I207: Poraba SPTE Proizvodnja EE [enot] | J207: Poraba SPTE Proizvodnja TE [enot] | K207: Poraba Kotli/Ostalo Proizvodnja TE [enot] | L207: SPTE Proizvedena EE [MWh] | M207: SPTE Proizvedena TE [MWh] | N207: Kotli/Ostalo Proizvedena TE [MWh] | O207: Lastna raba TE [MWh] | P207: Znesek omrežnine, dajatev, prispevkov in dodatkov [EUR] | Q207: Pogodbena cena UVS (brez omrežnine, dajatev in prispevkov) [enoto UVS] | R207: Enota UVS | S207: Znesek upravičenega stroška [EUR] | T207: Strukturni delež upravičenega stroška [%] | U207: Ponder | V207: Sprememba cene upravičenega stroška [%] | W207: Razmerje (ai x Ei / E0i) oz. (bi x Ei / E0i) | Y207: Kontrola napak vnosa | AB207: Skupina odjemalcev | AC207: Razmerje odjemov TE med skupinami zaščitenih in nezaščitenih odjemalcev [%) | AD207: Načrtovana oz. realizirana poraba količin UVS [enota] | AE207: Delež porabe UVS po skupinah odjemalcev [enota] | AQ207: Ponder | AR207: Sumarna kontrola | AV207: Kontrola povezana z osnovnim šifrantom | AW207: Kontrola izpolnjenosti SPTE | AX207: Kontrola izpolnjenosti KOTLI | AY207: Omejitev SPTE | AZ207: Omejitev KOTLI | BA207: Omejitev SPTE&KOTLI | BB207: Omejitev TOPČRP | BC207: Kontrola izpolnjenosti I | BD207: Kontrola izpolnjenosti II | BE207: Kontrola regulirana cena A01-7-1 | BF207: Kontrola regulirana cena A01-7-2 | BG207: Regulirana cena A01-7-1 | BH207: Regulirana cena A01-7-2 | BJ207: Ugotavljanje SPTE + Kotli | BK207: Ugotavljanje TOPČRP | BL207: Samo SPTE | BM207: Vrsta naprave | BN207: Izkoristek naprave | BO207: Toplotni izkoristek | BP207: Električni izkoristek | BQ207: Razmernik C = EE/TE | BR207: Tip proizvodnih naprav
C208: =$D$205 -> 0 | D208: =$D$204 -> 0 | E208: =IF(E153="","",E153) ->  | G208: =IF(E208="","",ROUND(IF(OR(O208=0,O208=""),SUM(J208:K208),(SUM(M208:N208))/(SUM(M208:N208)+O208)*SUM(J208:K208)),3)) ->  | H208: =IF(H153="","",H153) ->  | R208: =IF(R153="","",R153) ->  | S208: =IF(OR(G208="",Q208=""),"",ROUND((G208*Q208+P208),2)) ->  | T208: =IFERROR(S208/$S$253,"") ->  | U208: =U153 ->  | V208: =IFERROR(Q208/Q153-1,"") ->  | W208: =IFERROR(T208*$S$253/$S$143,"") ->  | Y208: =IF(AND(E208="",COUNTA(I208:Q208)=0),"",IF(AR208=1,"û","ü")) ->  | AB208: GO | AC208: 0.63 | AD208: 0 | AE208: =ROUND(AD208*AC208,3) -> 0 | AQ208: a1 | AR208: =IF(SUM(AS208:BF208)>0,1,0) -> 0 | AV208: =IF(E208="",0,IFERROR(IF(MATCH(E208,$CF$726:$CF$759,0)>0,0,1),1)) -> 0 | AW208: =IF(SUM(I208:O208)=0,0,IF(LEFT(E208,3)="A01",IF(SUM(I208:J208,L208:M208)=0,0,IF(AND(SUM(I208:J208)>0,SUM(L208:M208)>0),0,1)),0)) -> 0 | AX208: =IF(SUM(I208:O208)=0,0,IF(LEFT(E208,3)="A01",IF(SUM(I208:O208)=0,0,IF(OR(AND(K208=0,N208=0),AND(K208>0,N208>=0))=TRUE,0,1)),0)) -> 0 | AY208: =IFERROR(IF(BM208=1,IF(AND(BN208<=$BZ$44,BN208>=$CA$44,BO208<=$BV$44,BO208>=$BW$44,BP208<=$BX$44,BP208>=$BY$44,BQ208>=$CB$44,BQ208<=$CC$44),0,1),0),0) -> 0 | AZ208: =IFERROR(IF(BM208=2,IF(AND(BN208<=$BZ$45,BN208>=$CA$45,BO208<=$BV$45,BO208>=$BW$45),0,1),0),0) -> 0 | BA208: =IFERROR(IF(BM208=3,IF(AND(BN208<=$BZ$46,BN208>=$CA$46,BO208<=$BV$46,BO208>=$BW$46,BP208<=$BX$46,BP208>=$BY$46,BQ208>=$CB$46,BQ208<=$CC$46),0,1),0),0) -> 0 | BB208: =IFERROR(IF(BM208=4,IF(AND(BN208<=$BZ$47,BN208>=$CA$47,BO208<=$BV$47,BO208>=$BW$47),0,1),0),0) -> 0 | BC208: =IF(E208="",0,IF(AND(OR(AND(I208=0,L208=0),AND(I208>0,L208>0),AND(SUM(I208:J208)>0,SUM(L208:M208)>0)),OR(AND(I208>0,J208>0,L208>0),AND(SUM(I208:J208)=0,SUM(L208:M208)=0)))=TRUE,0,1)) -> 0 | BD208: =IF(OR(COUNTA(I208:Q208)=9,COUNTA(I208:Q208)=0)=TRUE,0,1) -> 0 | BE208: =IF(AND($BG$41=E208,$BG$208<>""),IF(Q208>$BG$208,1,0),0) -> 0 | BF208: =IF(AND($BH$41=E208,$BH$208<>""),IF(Q208>$BH$208,1,0),0) -> 0 | BJ208: =AND(LEFT(E208,3)="A01",SUM(L208:N208)>0,E208<>"A01-13",E208<>"A01-14",E208<>"A01-15") -> FALSE | BK208: =AND(LEFT(E208,3)="A01",SUM(N208:O208)>0,E208="A01-15") -> FALSE | BL208: =IF(BJ208=TRUE,IF(AND(K208=0,BJ208=TRUE),1,IF(SUM(I208:J208)=0,2,3)),0) -> 0 | BM208: =IF(BL208<>0,BL208,IF(BK208=TRUE,4,0)) -> 0 | BN208: =IFERROR(IF($BM208=0,"",ROUND(SUM(L208:O208)/SUM(I208:K208),3)),"") ->  | BO208: =IFERROR(IF($BM208=0,"",ROUND(SUM(M208:O208)/SUM(J208:K208),3)),"") ->  | BP208: =IFERROR(IF($BM208=0,"",ROUND(SUM(L208)/SUM(I208),3)),"") ->  | BQ208: =IFERROR(IF(OR($BM208=1,$BM208=3),ROUND(IF(O208=0,L208/M208,IF((N208+O208)<=(K208*0.85),L208/(M208+O208),L208/(SUM(N208:O208)-K208*0.85+M208))),3),""),"") ->  | BR208: =IF(BM208=0,"",VLOOKUP(BM208,$BT$44:$BU$47,2)) -> 
C209: 0 | D209: 0 | AB209: ZNGO | AC209: 0.15 | AE209: =ROUND(AD208*AC209,3) -> 0 | AQ209: a2 | AR209: 0 | AV209: 0 | AW209: 0 | AX209: 0 | AY209: =IFERROR(IF(BM209=1,IF(AND(BN209<=$BZ$44,BN209>=$CA$44,BO209<=$BV$44,BO209>=$BW$44,BP209<=$BX$44,BP209>=$BY$44,BQ209>=$CB$44,BQ209<=$CC$44),0,1),0),0) -> 0 | AZ209: 0 | BA209: =IFERROR(IF(BM209=3,IF(AND(BN209<=$BZ$46,BN209>=$CA$46,BO209<=$BV$46,BO209>=$BW$46,BP209<=$BX$46,BP209>=$BY$46,BQ209>=$CB$46,BQ209<=$CC$46),0,1),0),0) -> 0 | BB209: 0 | BC209: 0 | BD209: =IF(OR(COUNTA(I209:Q209)=9,COUNTA(I209:Q209)=0)=TRUE,0,1) -> 0 | BE209: 0 | BF209: 0 | BJ209: FALSE | BK209: FALSE | BL209: 0 | BM209: =IF(BL209<>0,BL209,IF(BK209=TRUE,4,0)) -> 0 | BN209: =IFERROR(IF($BM209=0,"",ROUND(SUM(L209:O209)/SUM(I209:K209),3)),"") ->  | BO209: =IFERROR(IF($BM209=0,"",ROUND(SUM(M209:O209)/SUM(J209:K209),3)),"") ->  | BP209: =IFERROR(IF($BM209=0,"",ROUND(SUM(L209)/SUM(I209),3)),"") ->  | BQ209: =IFERROR(IF(OR($BM209=1,$BM209=3),ROUND(IF(O209=0,L209/M209,IF((N209+O209)<=(K209*0.95),L209/(M209+O209),L209/(SUM(N209:O209)-K209*0.95+M209))),3),""),"") ->  | BR209: =IF(BM209=0,"",VLOOKUP(BM209,$BT$44:$BU$47,2)) -> 
C210: 0 | D210: 0 | AB210: NNGO | AC210: =IFERROR(1-SUM(AC208:AC209),0) -> 0.22 | AE210: =ROUND(AD208*AC210,3) -> 0 | AQ210: a3 | AR210: 0 | AV210: 0 | AW210: 0 | AX210: 0 | AY210: 0 | AZ210: 0 | BA210: 0 | BB210: 0 | BC210: 0 | BD210: 0 | BE210: 0 | BF210: 0 | BJ210: FALSE | BK210: FALSE | BL210: 0 | BM210: 0
C211: 0 | D211: 0 | AQ211: a4 | AR211: 0 | AV211: 0 | AW211: 0 | AX211: 0 | AY211: 0 | AZ211: 0 | BA211: 0 | BB211: 0 | BC211: 0 | BD211: 0 | BE211: 0 | BF211: 0 | BJ211: FALSE | BK211: FALSE | BL211: 0 | BM211: 0
C212: 0 | D212: 0 | AQ212: a5 | AR212: 0 | AV212: 0 | AW212: 0 | AX212: 0 | AY212: 0 | AZ212: 0 | BA212: 0 | BB212: 0 | BC212: 0 | BD212: 0 | BE212: 0 | BF212: 0 | BJ212: FALSE | BK212: FALSE | BL212: 0 | BM212: 0
C213: 0 | D213: 0 | AQ213: a6 | AR213: 0 | AV213: 0 | AW213: 0 | AX213: 0 | AY213: 0 | AZ213: 0 | BA213: 0 | BB213: 0 | BC213: 0 | BD213: 0 | BE213: 0 | BF213: 0 | BJ213: FALSE | BK213: FALSE | BL213: 0 | BM213: 0
C214: 0 | D214: 0 | AQ214: a7 | AR214: 0 | AV214: 0 | AW214: 0 | AX214: 0 | AY214: 0 | AZ214: 0 | BA214: 0 | BB214: 0 | BC214: 0 | BD214: 0 | BE214: 0 | BF214: 0 | BJ214: FALSE | BK214: FALSE | BL214: 0 | BM214: 0
C215: 0 | D215: 0 | AQ215: a8 | AR215: 0 | AV215: 0 | AW215: 0 | AX215: 0 | AY215: 0 | AZ215: 0 | BA215: 0 | BB215: 0 | BC215: 0 | BD215: 0 | BE215: 0 | BF215: 0 | BJ215: FALSE | BK215: FALSE | BL215: 0 | BM215: 0
C216: 0 | D216: 0 | AQ216: a9 | AR216: 0 | AV216: 0 | AW216: 0 | AX216: 0 | AY216: 0 | AZ216: 0 | BA216: 0 | BB216: 0 | BC216: 0 | BD216: 0 | BE216: 0 | BF216: 0 | BJ216: FALSE | BK216: FALSE | BL216: 0 | BM216: 0
C217: 0 | D217: 0 | AQ217: a10 | AR217: 0 | AV217: 0 | AW217: 0 | AX217: 0 | AY217: 0 | AZ217: 0 | BA217: 0 | BB217: 0 | BC217: 0 | BD217: 0 | BE217: 0 | BF217: 0 | BJ217: FALSE | BK217: FALSE | BL217: 0 | BM217: 0
C218: 0 | D218: 0 | AQ218: a11 | AR218: 0 | AV218: 0 | AW218: 0 | AX218: 0 | AY218: 0 | AZ218: 0 | BA218: 0 | BB218: 0 | BC218: 0 | BD218: 0 | BE218: 0 | BF218: 0 | BJ218: FALSE | BK218: FALSE | BL218: 0 | BM218: 0
C219: 0 | D219: 0 | AQ219: a12 | AR219: 0 | AV219: 0 | AW219: 0 | AX219: 0 | AY219: 0 | AZ219: 0 | BA219: 0 | BB219: 0 | BC219: 0 | BD219: 0 | BE219: 0 | BF219: 0 | BJ219: FALSE | BK219: FALSE | BL219: 0 | BM219: 0
C220: 0 | D220: 0 | AQ220: a13 | AR220: 0 | AV220: 0 | AW220: 0 | AX220: 0 | AY220: 0 | AZ220: 0 | BA220: 0 | BB220: 0 | BC220: 0 | BD220: 0 | BE220: 0 | BF220: 0 | BJ220: FALSE | BK220: FALSE | BL220: 0 | BM220: 0
C221: 0 | D221: 0 | AQ221: a14 | AR221: 0 | AV221: 0 | AW221: 0 | AX221: 0 | AY221: 0 | AZ221: 0 | BA221: 0 | BB221: 0 | BC221: 0 | BD221: 0 | BE221: 0 | BF221: 0 | BJ221: FALSE | BK221: FALSE | BL221: 0 | BM221: 0
... 509 more rows

Sheet VARIABILNI_DEL_T-1
AK2: 2024
F5: =POVZETEK!C4 -> ZAHTEVA ZA IZDAJO SOGLASJA K IZHODIŠČNI CENI TOPLOTE ZA DALJINSKO OGREVANJE
F6: Struktura in cene upravičenih variabilnih stroškov
F7: Akta o metodologiji za oblikovanje cene toplote za daljinsko ogrevanje", Uradni list št. RS 103/23
M10: Številka zadeve AE:
M12: Matična številka družbe: | N12: =IF(POVZETEK!$J$11="","",POVZETEK!$J$11) ->  | AL12: =SUM(AR43:AR71)+SUM(#REF!) ->  | AQ12: Tip vlagatelja | AR12: 0
E14: Naziv : | F14: =POVZETEK!D13 ->  | AQ14: Število napak delovnega lista: | AR14: =AK37+AR37 -> 
E16: Tip izvajalca: | F16: =UPPER(POVZETEK!E17) ->  | M16: ID distribucijskega sistema: | N16: =POVZETEK!$E$24 ->  | AR16: Načrtovana struktura in cene upravičenih variabilnih stroškov za koledarski mesec -
AR17: Realizirana struktura in cene upravičenih variabilnih stroškov za koledarski mesec -
F18: =IF(COUNTA(F43:K71,I72:K87,P43:P87)=0,"PRISOTNE SO NAPAKE VNOSA ALI PA OBRAZEC NI IZPOLNJEN !",IF(AL12=0,"","PRISOTNE SO NAPAKE VNOSA - PREVERITE VNOS IN NAVODILA ZA IZPOLNJEVANJE OBRAZCA !")) ->  | BN18: =IFERROR((SUM(L43:M43)+(O43*(M43/(M43+O43))))/SUM(I43:J43)>#REF!,0) -> 0 | BP18: =IFERROR((SUM(L45:M45)+(O45*(M45/(M45+O45))))/SUM(I45:J45)<#REF!,0) -> 0
BN19: =IFERROR((SUM(L44:M44)+(O44*(M44/(M44+O44))))/SUM(I44:J44)>#REF!,0) -> 0 | BP19: =IFERROR((SUM(L46:M46)+(O46*(M46/(M46+O46))))/SUM(I46:J46)<#REF!,0) -> 0
AR21: Struktura in cene upravičenih variabilnih stroškov za koledarski mesec -
E24: Tabela 21: | F24: ="Količina lastne proizvedene toplote [ID=0] in nabava toplote od dobaviteljev toplote [ID=1-4] v letu "&""&BAZA_Sifranti!AL6 -> Količina lastne proizvedene toplote [ID=0] in nabava toplote od dobaviteljev toplote [ID=1-4] v letu t-1 (2024)
E25: 01 | F25: 02 | G25: 03 | I25: 04 | K25: 05 | M25: 06
E26: ID | F26: Naziv podjetja | G26: Matična številka dobavitelja toplote | I26: Količina toplote [MWh] | K26: Povprečna letna obračunska moč [MW/leto] | M26: Delež toplote dobavitelja [%]
E27: 0 | F27: =F14 ->  | G27: =IF(N12=0,"",N12) ->  | I27: =IF(F27="","",C40) ->  | K27: =IF(F27="","",PRIHODKI!D216) ->  | M27: =IF(F27="","",IFERROR(I27/I32,0)) -> 
E28: 1 | F28: =IF(G28="","",IFERROR(VLOOKUP(MATCH(G28,tblQ_PSubjekt[Maticna],0),tblQ_PSubjekt[],3),"Proizvajalec toplote ni registriran oz. je matična številka proizvajalca toplote napačna")) ->  | G28: =IF('UVS_T-1'!G28=0,"",'UVS_T-1'!G28) ->  | I28: =IF(F28="","",G72) ->  | K28: =IF(F28="","",G75) ->  | M28: =IF(F28="","",IFERROR(I28/I32,0)) -> 
E29: 2 | F29: =IF(G29="","",IFERROR(VLOOKUP(MATCH(G29,tblQ_PSubjekt[Maticna],0),tblQ_PSubjekt[],3),"Proizvajalec toplote ni registriran oz. je matična številka proizvajalca toplote napačna")) ->  | G29: =IF('UVS_T-1'!G29=0,"",'UVS_T-1'!G29) ->  | I29: =IF(F29="","",G76) ->  | K29: =IF(F29="","",G79) ->  | M29: =IF(F29="","",IFERROR(I29/I32,0)) -> 
E30: 3 | F30: =IF(G30="","",IFERROR(VLOOKUP(MATCH(G30,tblQ_PSubjekt[Maticna],0),tblQ_PSubjekt[],3),"Proizvajalec toplote ni registriran oz. je matična številka proizvajalca toplote napačna")) ->  | G30: =IF('UVS_T-1'!G30=0,"",'UVS_T-1'!G30) ->  | I30: =IF(F30="","",G80) ->  | K30: =IF(F30="","",G83) ->  | M30: =IF(F30="","",IFERROR(I30/I32,0)) -> 
E31: 4 | F31: =IF(G31="","",IFERROR(VLOOKUP(MATCH(G31,tblQ_PSubjekt[Maticna],0),tblQ_PSubjekt[],3),"Proizvajalec toplote ni registriran oz. je matična številka proizvajalca toplote napačna")) ->  | G31: =IF('UVS_T-1'!G31=0,"",'UVS_T-1'!G31) ->  | I31: =IF(F31="","",G84) ->  | K31: =IF(F31="","",G87) ->  | M31: =IF(F31="","",IFERROR(I31/I32,0)) -> 
F32: SKUPAJ | I32: =SUM(I27:J31) -> 0 | K32: =SUM(K27:L31) -> 0 | M32: =SUM(M27:M31) -> 0
E37: Tabela 22: | F37: ="Struktura upravičenih variabilnih stroškov v letu "&""&BAZA_Sifranti!AL6 -> Struktura upravičenih variabilnih stroškov v letu t-1 (2024) | AK37: =IF(COUNTA(F43:F71,G72:G87,I43:Q71)=0,1,0) -> 0 | AQ37: Število napak izpolnjevanja: | AR37: =AR40+#REF!+#REF!+#REF!+#REF!+#REF!+#REF!+#REF!+#REF!+#REF!+#REF!+#REF! ->  | BJ37: Tip proizvodne naprave in njeni mesečni izkoristki
D38: 1
F39: Priznani upravičeni variabilni stroški (UVS) | G39: Količinska poraba upravičenih variabilnih stroškov [enot] | L39: Proizvedena koristna energija [MWh] | P39: Cene in dodatni zneski UVS | S39: Zneski in strukturni deleži UVS (brez DDV) | AB39: Opomba: | BN39: Opomba:
C40: =SUMIF(C43:C71,"A01",N43:N71)+SUMIF(C43:C71,"A01",M43:M71) -> 0 | I40: EE | J40: TE | L40: EE Bruto | M40: TE predana v distribucijski sistem | O40: TE lastne rabe | AB40: Pripomoček za izračun deleža UVS med posameznimi skupinami odjemalcev | AR40: =SUM(AR43:AR87) -> 29 | AT40: Kontrola napak vnosa in vnesenih vrednosti | BN40: Uporabljen tip proizvodnih naprav in doseženi mesečni parametri
E41: 01 | F41: 02 | G41: 03 | H41: 04 | I41: 05 | J41: 06 | K41: 07 | L41: 08 | M41: 09 | N41: 10 | O41: 11 | P41: 12 | Q41: 13 | R41: 14 | S41: 15 | T41: 16 | U41: 17 | V41: 18 | BG41: A01-7-1 | BH41: A01-7-2
C42: ID_PP | D42: ID_PR | E42: ID | F42: Naziv upravičenega variabilnega stroška | G42: Skupna poraba [enot] | H42: Enota | I42: Poraba SPTE Proizvodnja EE [enot] | J42: Poraba SPTE Proizvodnja TE [enot] | K42: Poraba Kotli/Ostalo Proizvodnja TE [enot] | L42: SPTE Proizvedena EE [MWh] | M42: SPTE Proizvedena TE [MWh] | N42: Kotli/Ostalo Proizvedena TE [MWh] | O42: Lastna raba TE [MWh] | P42: Znesek omrežnine, dajatev, prispevkov in dodatkov [EUR] | Q42: Pogodbena cena UVS (brez omrežnine, dajatev in prispevkov) [enoto UVS] | R42: Enota UVS | S42: Znesek upravičenega stroška [EUR] | T42: Strukturni delež upravičenega stroška [%] | U42: Ponder | V42: Ponder ai oz. bi | AB42: Skupina odjemalcev | AC42: Razmerje odjemov TE med skupinami zaščitenih in nezaščitenih odjemalcev [%) | AD42: Načrtovana oz. realizirana poraba količin UVS [enota] | AE42: Delež porabe UVS po skupinah odjemalcev [enota] | AQ42: Ponder | AR42: Sumarna kontrola | AT42: Kontrola prazen prostor | AU42: Kontrola podvajanja | AV42: Kontrola povezana z osnovnim šifrantom | AW42: Kontrola izpolnjenosti SPTE | AX42: Kontrola izpolnjenosti KOTLI | AY42: Omejitev SPTE | AZ42: Omejitev KOTLI | BA42: Omejitev SPTE&KOTLI | BB42: Omejitev TOPČRP | BC42: Kontrola izpolnjenosti I | BD42: Kontrola izpolnjenosti II | BE42: Kontrola regulirana cena A01-7-1 | BF42: Kontrola regulirana cena A01-7-2 | BG42: Regulirana cena A01-7-1 | BH42: Regulirana cena A01-7-2 | BJ42: SPTE + Kotli | BK42: TOPČRP | BL42: SPTE | BM42: Vrsta naprave | BN42: Izkoristek naprave | BO42: Toplotni izkoristek | BP42: Električni izkoristek | BQ42: Razmernik C = EE/TE | BR42: Tip proizvodnih naprav | BT42: Kriteriji izkoristkov proizvodnih naprav in razmernika C za SPTE
C43: =LEFT(E43,3) ->  | D43: =$D$39 -> 0 | E43: =IFERROR(IF(F43="","",LOOKUP(MATCH(F43,'UVS_T-1'!$CG$726:$CG$757,0),'UVS_T-1'!$CD$726:$CD$757,'UVS_T-1'!$CF$726:$CF$757)),"AXX-XX") ->  | F43: =IF('UVS_T-1'!F43="","",'UVS_T-1'!F43) ->  | G43: =IF(E43="","",ROUND(IF(OR(O43=0,O43=""),SUM(J43:K43),(SUM(M43:N43))/(SUM(M43:N43)+O43)*SUM(J43:K43)),3)) ->  | H43: =IFERROR(IF(E43="","",VLOOKUP((MATCH(E43,tblS_VarStroški_SD[ID_STRO_SD],0)-1),tblS_VarStroški_SD[],5)),"") ->  | I43: =IF(E43="","",SUM(tbl_20_UVS_01[[#This Row],[Poraba SPTE Proizvodnja EE '[enot']]],'UVS_T-1'!I98,'UVS_T-1'!I153,'UVS_T-1'!I208,'UVS_T-1'!I263,'UVS_T-1'!I318,'UVS_T-1'!I373,'UVS_T-1'!I428,'UVS_T-1'!I483,'UVS_T-1'!I538,'UVS_T-1'!I593,'UVS_T-1'!I648)) ->  | J43: =IF(F43="","",SUM(tbl_20_UVS_01[[#This Row],[Poraba SPTE Proizvodnja TE '[enot']]],'UVS_T-1'!J98,'UVS_T-1'!J153,'UVS_T-1'!J208,'UVS_T-1'!J263,'UVS_T-1'!J318,'UVS_T-1'!J373,'UVS_T-1'!J428,'UVS_T-1'!J483,'UVS_T-1'!J538,'UVS_T-1'!J593,'UVS_T-1'!J648)) ->  | K43: =IF(E43="","",SUM(tbl_20_UVS_01[[#This Row],[Poraba Kotli/Ostalo Proizvodnja TE '[enot']]],'UVS_T-1'!K98,'UVS_T-1'!K153,'UVS_T-1'!K208,'UVS_T-1'!K263,'UVS_T-1'!K318,'UVS_T-1'!K373,'UVS_T-1'!K428,'UVS_T-1'!K483,'UVS_T-1'!K538,'UVS_T-1'!K593,'UVS_T-1'!K648)) ->  | L43: =IF(E43="","",SUM(tbl_20_UVS_01[[#This Row],[SPTE Proizvedena EE '[MWh']]],'UVS_T-1'!L98,'UVS_T-1'!L153,'UVS_T-1'!L208,'UVS_T-1'!L263,'UVS_T-1'!L318,'UVS_T-1'!L373,'UVS_T-1'!L428,'UVS_T-1'!L483,'UVS_T-1'!L538,'UVS_T-1'!L593,'UVS_T-1'!L648)) ->  | M43: =IF(E43="","",SUM(tbl_20_UVS_01[[#This Row],[SPTE Proizvedena TE '[MWh']]],'UVS_T-1'!M98,'UVS_T-1'!M153,'UVS_T-1'!M208,'UVS_T-1'!M263,'UVS_T-1'!M318,'UVS_T-1'!M373,'UVS_T-1'!M428,'UVS_T-1'!M483,'UVS_T-1'!M538,'UVS_T-1'!M593,'UVS_T-1'!M648)) ->  | N43: =IF(E43="","",SUM(tbl_20_UVS_01[[#This Row],[Kotli/Ostalo Proizvedena TE '[MWh']]],'UVS_T-1'!N98,'UVS_T-1'!N153,'UVS_T-1'!N208,'UVS_T-1'!N263,'UVS_T-1'!N318,'UVS_T-1'!N373,'UVS_T-1'!N428,'UVS_T-1'!N483,'UVS_T-1'!N538,'UVS_T-1'!N593,'UVS_T-1'!N648)) ->  | O43: =IF(E43="","",SUM(tbl_20_UVS_01[[#This Row],[Lastna raba TE '[MWh']]],'UVS_T-1'!O98,'UVS_T-1'!O153,'UVS_T-1'!O208,'UVS_T-1'!O263,'UVS_T-1'!O318,'UVS_T-1'!O373,'UVS_T-1'!O428,'UVS_T-1'!O483,'UVS_T-1'!O538,'UVS_T-1'!O593,'UVS_T-1'!O648)) ->  | P43: =IF(E43="","",SUM(tbl_20_UVS_01[[#This Row],[Znesek omrežnine, dajatev, prispevkov in dodatkov '[EUR']]],'UVS_T-1'!P98,'UVS_T-1'!P153,'UVS_T-1'!P208,'UVS_T-1'!P263,'UVS_T-1'!P318,'UVS_T-1'!P373,'UVS_T-1'!P428,'UVS_T-1'!P483,'UVS_T-1'!P538,'UVS_T-1'!P593,'UVS_T-1'!P648)) ->  | Q43: 54.17 | R43: =IFERROR(IF(E43="","",VLOOKUP((MATCH(E43,tblS_VarStroški_SD[ID_STRO_SD],0)-1),tblS_VarStroški_SD[],6)),"") ->  | S43: =IF(E43="","",SUM(tbl_20_UVS_01[[#This Row],[Znesek upravičenega stroška '[EUR']]],'UVS_T-1'!S98,'UVS_T-1'!S153,'UVS_T-1'!S208,'UVS_T-1'!S263,'UVS_T-1'!S318,'UVS_T-1'!S373,'UVS_T-1'!S428,'UVS_T-1'!S483,'UVS_T-1'!S538,'UVS_T-1'!S593,'UVS_T-1'!S648)) ->  | T43: =IFERROR(S43/$S$88,"") ->  | U43: =IF(F43="","",AQ43) ->  | V43: =IFERROR(T43,"") ->  | AB43: GO | AC43: 0.6328645909 | AD43: 0 | AE43: =ROUND(AD43*AC43,3) -> 0 | AL43: =LEFT(E43,3) ->  | AQ43: a1 | AR43: =IF(SUM(AS43:BF43)>0,1,0) -> 0 | AT43: =IF(AND(F43="",F44<>""),1,0) -> 0 | AU43: =IF(IF(F43="",TRUE,COUNTIF(tbl_22_UVSsum[Naziv upravičenega variabilnega stroška],F43)=1)=FALSE,1,0) -> 0 | AV43: =IF(E43="",0,IFERROR(IF(MATCH(E43,$CF$193:$CF$226,0)>0,0,1),1)) -> 0 | AW43: =IF(SUM(I43:O43)=0,0,IF(LEFT(E43,3)="A01",IF(SUM(I43:J43,L43:M43)=0,0,IF(AND(SUM(I43:J43)>0,SUM(L43:M43)>0),0,1)),0)) -> 0 | AX43: =IF(SUM(I43:O43)=0,0,IF(LEFT(E43,3)="A01",IF(SUM(I43:O43)=0,0,IF(OR(AND(K43=0,N43=0),AND(K43>0,N43>=0))=TRUE,0,1)),0)) -> 0 | AY43: =IFERROR(IF(BM43=1,IF(AND(BN43<=$BZ$44,BN43>=$CA$44,BO43<=$BV$44,BO43>=$BW$44,BP43<=$BX$44,BP43>=$BY$44,BQ43>=$CB$44,BQ43<=$CC$44),0,1),0),0) -> 0 | AZ43: =IFERROR(IF(BM43=2,IF(AND(BN43<=$BZ$45,BN43>=$CA$45,BO43<=$BV$45,BO43>=$BW$45),0,1),0),0) -> 0 | BA43: =IFERROR(IF(BM43=3,IF(AND(BN43<=$BZ$46,BN43>=$CA$46,BO43<=$BV$46,BO43>=$BW$46,BP43<=$BX$46,BP43>=$BY$46,BQ43>=$CB$46,BQ43<=$CC$46),0,1),0),0) -> 0 | BB43: =IFERROR(IF(BM43=4,IF(AND(BN43<=$BZ$47,BN43>=$CA$47,BO43<=$BV$47,BO43>=$BW$47),0,1),0),0) -> 0 | BC43: =IF(E43="",0,IF(AND(OR(AND(I43=0,L43=0),AND(I43>0,L43>0),AND(SUM(I43:J43)>0,SUM(L43:M43)>0)),OR(AND(I43>0,J43>0,L43>0),AND(SUM(I43:J43)=0,SUM(L43:M43)=0)))=TRUE,0,1)) -> 0 | BD43: =IF(OR(COUNTA(F43,I43:Q43)>9,COUNTA(F43,I43:Q43)=0)=TRUE,0,1) -> 0 | BE43: =IF(AND($BG$41=E43,$BG$43<>""),IF(Q43>$BG$43,1,0),0) -> 0 | BF43: =IF(AND($BH$41=E43,$BH$43<>""),IF(Q43>$BH$43,1,0),0) -> 0 | BJ43: =AND(LEFT(E43,3)="A01",SUM(L43:N43)>0,E43<>"A01-13",E43<>"A01-14",E43<>"A01-15") -> FALSE | BK43: =AND(LEFT(E43,3)="A01",SUM(N43:O43)>0,E43="A01-15") -> FALSE | BL43: =IF(BJ43=TRUE,IF(AND(K43=0,BJ43=TRUE),1,IF(SUM(I43:J43)=0,2,3)),0) -> 0 | BM43: =IF(BL43<>0,BL43,IF(BK43=TRUE,4,0)) -> 0 | BN43: =IFERROR(IF($BM43=0,"",ROUND(SUM(L43:O43)/SUM(I43:K43),3)),"") ->  | BO43: =IFERROR(IF($BM43=0,"",ROUND(SUM(M43:O43)/SUM(J43:K43),3)),"") ->  | BP43: =IFERROR(IF($BM43=0,"",ROUND(SUM(L43)/SUM(I43),3)),"") ->  | BQ43: =IFERROR(IF(OR($BM43=1,$BM43=3),ROUND(IF(O43=0,L43/M43,IF((N43+O43)<=(K43*0.85),L43/(M43+O43),L43/(SUM(N43:O43)-K43*0.85+M43))),3),""),"") ->  | BR43: =IF(BM43=0,"",VLOOKUP(BM43,$BT$44:$BU$47,2)) ->  | BT43: ID | BU43: Naprava_TIP | BV43: Izkoristek TE max | BW43: Izkoristek TE min | BX43: Izkoristek EE max | BY43: Izkoristek EE min | BZ43: Izkoristek PN max | CA43: Izkoristek PN min | CB43: Cmin | CC43: Cmax
C44: =LEFT(E44,3) ->  | D44: 0 | E44: =IFERROR(IF(F44="","",LOOKUP(MATCH(F44,'UVS_T-1'!$CG$726:$CG$757,0),'UVS_T-1'!$CD$726:$CD$757,'UVS_T-1'!$CF$726:$CF$757)),"AXX-XX") ->  | F44: =IF('UVS_T-1'!F44="","",'UVS_T-1'!F44) ->  | G44: =IF(E44="","",ROUND(IF(OR(O44=0,O44=""),SUM(J44:K44),(SUM(M44:N44))/(SUM(M44:N44)+O44)*SUM(J44:K44)),3)) ->  | H44: =IFERROR(IF(E44="","",VLOOKUP((MATCH(E44,tblS_VarStroški_SD[ID_STRO_SD],0)-1),tblS_VarStroški_SD[],5)),"") ->  | I44: =IF(E44="","",SUM(tbl_20_UVS_01[[#This Row],[Poraba SPTE Proizvodnja EE '[enot']]],'UVS_T-1'!I99,'UVS_T-1'!I154,'UVS_T-1'!I209,'UVS_T-1'!I264,'UVS_T-1'!I319,'UVS_T-1'!I374,'UVS_T-1'!I429,'UVS_T-1'!I484,'UVS_T-1'!I539,'UVS_T-1'!I594,'UVS_T-1'!I649)) ->  | J44: =IF(F44="","",SUM(tbl_20_UVS_01[[#This Row],[Poraba SPTE Proizvodnja TE '[enot']]],'UVS_T-1'!J99,'UVS_T-1'!J154,'UVS_T-1'!J209,'UVS_T-1'!J264,'UVS_T-1'!J319,'UVS_T-1'!J374,'UVS_T-1'!J429,'UVS_T-1'!J484,'UVS_T-1'!J539,'UVS_T-1'!J594,'UVS_T-1'!J649)) ->  | K44: =IF(E44="","",SUM(tbl_20_UVS_01[[#This Row],[Poraba Kotli/Ostalo Proizvodnja TE '[enot']]],'UVS_T-1'!K99,'UVS_T-1'!K154,'UVS_T-1'!K209,'UVS_T-1'!K264,'UVS_T-1'!K319,'UVS_T-1'!K374,'UVS_T-1'!K429,'UVS_T-1'!K484,'UVS_T-1'!K539,'UVS_T-1'!K594,'UVS_T-1'!K649)) ->  | L44: =IF(E44="","",SUM(tbl_20_UVS_01[[#This Row],[SPTE Proizvedena EE '[MWh']]],'UVS_T-1'!L99,'UVS_T-1'!L154,'UVS_T-1'!L209,'UVS_T-1'!L264,'UVS_T-1'!L319,'UVS_T-1'!L374,'UVS_T-1'!L429,'UVS_T-1'!L484,'UVS_T-1'!L539,'UVS_T-1'!L594,'UVS_T-1'!L649)) ->  | M44: =IF(E44="","",SUM(tbl_20_UVS_01[[#This Row],[SPTE Proizvedena TE '[MWh']]],'UVS_T-1'!M99,'UVS_T-1'!M154,'UVS_T-1'!M209,'UVS_T-1'!M264,'UVS_T-1'!M319,'UVS_T-1'!M374,'UVS_T-1'!M429,'UVS_T-1'!M484,'UVS_T-1'!M539,'UVS_T-1'!M594,'UVS_T-1'!M649)) ->  | N44: =IF(E44="","",SUM(tbl_20_UVS_01[[#This Row],[Kotli/Ostalo Proizvedena TE '[MWh']]],'UVS_T-1'!N99,'UVS_T-1'!N154,'UVS_T-1'!N209,'UVS_T-1'!N264,'UVS_T-1'!N319,'UVS_T-1'!N374,'UVS_T-1'!N429,'UVS_T-1'!N484,'UVS_T-1'!N539,'UVS_T-1'!N594,'UVS_T-1'!N649)) ->  | O44: =IF(E44="","",SUM(tbl_20_UVS_01[[#This Row],[Lastna raba TE '[MWh']]],'UVS_T-1'!O99,'UVS_T-1'!O154,'UVS_T-1'!O209,'UVS_T-1'!O264,'UVS_T-1'!O319,'UVS_T-1'!O374,'UVS_T-1'!O429,'UVS_T-1'!O484,'UVS_T-1'!O539,'UVS_T-1'!O594,'UVS_T-1'!O649)) ->  | P44: =IF(E44="","",SUM(tbl_20_UVS_01[[#This Row],[Znesek omrežnine, dajatev, prispevkov in dodatkov '[EUR']]],'UVS_T-1'!P99,'UVS_T-1'!P154,'UVS_T-1'!P209,'UVS_T-1'!P264,'UVS_T-1'!P319,'UVS_T-1'!P374,'UVS_T-1'!P429,'UVS_T-1'!P484,'UVS_T-1'!P539,'UVS_T-1'!P594,'UVS_T-1'!P649)) ->  | Q44: 54.17 | R44: =IFERROR(IF(E44="","",VLOOKUP((MATCH(E44,tblS_VarStroški_SD[ID_STRO_SD],0)-1),tblS_VarStroški_SD[],6)),"") ->  | S44: =IF(E44="","",SUM(tbl_20_UVS_01[[#This Row],[Znesek upravičenega stroška '[EUR']]],'UVS_T-1'!S99,'UVS_T-1'!S154,'UVS_T-1'!S209,'UVS_T-1'!S264,'UVS_T-1'!S319,'UVS_T-1'!S374,'UVS_T-1'!S429,'UVS_T-1'!S484,'UVS_T-1'!S539,'UVS_T-1'!S594,'UVS_T-1'!S649)) ->  | T44: =IFERROR(S44/$S$88,"") ->  | AB44: ZNGO | AC44: 0.1470905493 | AE44: =ROUND(AD43*AC44,3) -> 0 | AL44: =LEFT(E44,3) ->  | AQ44: a2 | AR44: =IF(SUM(AS44:BF44)>0,1,0) -> 0 | AT44: 0 | AU44: =IF(IF(F44="",TRUE,COUNTIF(tbl_22_UVSsum[Naziv upravičenega variabilnega stroška],F44)=1)=FALSE,1,0) -> 0 | AV44: 0 | AW44: 0 | AX44: 0 | AY44: =IFERROR(IF(BM44=1,IF(AND(BN44<=$BZ$44,BN44>=$CA$44,BO44<=$BV$44,BO44>=$BW$44,BP44<=$BX$44,BP44>=$BY$44,BQ44>=$CB$44,BQ44<=$CC$44),0,1),0),0) -> 0 | AZ44: 0 | BA44: =IFERROR(IF(BM44=3,IF(AND(BN44<=$BZ$46,BN44>=$CA$46,BO44<=$BV$46,BO44>=$BW$46,BP44<=$BX$46,BP44>=$BY$46,BQ44>=$CB$46,BQ44<=$CC$46),0,1),0),0) -> 0 | BB44: 0 | BC44: 0 | BD44: 0 | BE44: =IF(AND($BG$41=E44,$BG$43<>""),IF(Q44>$BG$43,1,0),0) -> 0 | BF44: 0 | BJ44: =AND(LEFT(E44,3)="A01",SUM(L44:N44)>0,E44<>"A01-13",E44<>"A01-14",E44<>"A01-15") -> FALSE | BK44: FALSE | BL44: 0 | BM44: =IF(BL44<>0,BL44,IF(BK44=TRUE,4,0)) -> 0 | BN44: =IFERROR(IF($BM44=0,"",ROUND(SUM(L44:O44)/SUM(I44:K44),3)),"") ->  | BO44: =IFERROR(IF($BM44=0,"",ROUND(SUM(M44:O44)/SUM(J44:K44),3)),"") ->  | BP44: =IFERROR(IF($BM44=0,"",ROUND(SUM(L44)/SUM(I44),3)),"") ->  | BQ44: =IFERROR(IF(OR($BM44=1,$BM44=3),ROUND(IF(O44=0,L44/M44,IF((N44+O44)<=(K44*0.95),L44/(M44+O44),L44/(SUM(N44:O44)-K44*0.95+M44))),3),""),"") ->  | BR44: =IF(BM44=0,"",VLOOKUP(BM44,$BT$44:$BU$47,2)) ->  | BT44: 1 | BU44: SPTE | BV44: 1.2 | BW44: 0.45 | BX44: 0.85 | BY44: 0.25 | BZ44: 1.2 | CA44: 0.45 | CB44: 0.2 | CC44: 1.2
D45: 0 | E45: =IFERROR(IF(F45="","",LOOKUP(MATCH(F45,'UVS_T-1'!$CG$726:$CG$757,0),'UVS_T-1'!$CD$726:$CD$757,'UVS_T-1'!$CF$726:$CF$757)),"AXX-XX") ->  | F45: =IF('UVS_T-1'!F45="","",'UVS_T-1'!F45) ->  | H45: =IFERROR(IF(E45="","",VLOOKUP((MATCH(E45,tblS_VarStroški_SD[ID_STRO_SD],0)-1),tblS_VarStroški_SD[],5)),"") ->  | I45: =IF(E45="","",SUM(tbl_20_UVS_01[[#This Row],[Poraba SPTE Proizvodnja EE '[enot']]],'UVS_T-1'!I100,'UVS_T-1'!I155,'UVS_T-1'!I210,'UVS_T-1'!I265,'UVS_T-1'!I320,'UVS_T-1'!I375,'UVS_T-1'!I430,'UVS_T-1'!I485,'UVS_T-1'!I540,'UVS_T-1'!I595,'UVS_T-1'!I650)) ->  | J45: =IF(F45="","",SUM(tbl_20_UVS_01[[#This Row],[Poraba SPTE Proizvodnja TE '[enot']]],'UVS_T-1'!J100,'UVS_T-1'!J155,'UVS_T-1'!J210,'UVS_T-1'!J265,'UVS_T-1'!J320,'UVS_T-1'!J375,'UVS_T-1'!J430,'UVS_T-1'!J485,'UVS_T-1'!J540,'UVS_T-1'!J595,'UVS_T-1'!J650)) ->  | K45: =IF(E45="","",SUM(tbl_20_UVS_01[[#This Row],[Poraba Kotli/Ostalo Proizvodnja TE '[enot']]],'UVS_T-1'!K100,'UVS_T-1'!K155,'UVS_T-1'!K210,'UVS_T-1'!K265,'UVS_T-1'!K320,'UVS_T-1'!K375,'UVS_T-1'!K430,'UVS_T-1'!K485,'UVS_T-1'!K540,'UVS_T-1'!K595,'UVS_T-1'!K650)) ->  | L45: =IF(E45="","",SUM(tbl_20_UVS_01[[#This Row],[SPTE Proizvedena EE '[MWh']]],'UVS_T-1'!L100,'UVS_T-1'!L155,'UVS_T-1'!L210,'UVS_T-1'!L265,'UVS_T-1'!L320,'UVS_T-1'!L375,'UVS_T-1'!L430,'UVS_T-1'!L485,'UVS_T-1'!L540,'UVS_T-1'!L595,'UVS_T-1'!L650)) ->  | M45: =IF(E45="","",SUM(tbl_20_UVS_01[[#This Row],[SPTE Proizvedena TE '[MWh']]],'UVS_T-1'!M100,'UVS_T-1'!M155,'UVS_T-1'!M210,'UVS_T-1'!M265,'UVS_T-1'!M320,'UVS_T-1'!M375,'UVS_T-1'!M430,'UVS_T-1'!M485,'UVS_T-1'!M540,'UVS_T-1'!M595,'UVS_T-1'!M650)) ->  | N45: =IF(E45="","",SUM(tbl_20_UVS_01[[#This Row],[Kotli/Ostalo Proizvedena TE '[MWh']]],'UVS_T-1'!N100,'UVS_T-1'!N155,'UVS_T-1'!N210,'UVS_T-1'!N265,'UVS_T-1'!N320,'UVS_T-1'!N375,'UVS_T-1'!N430,'UVS_T-1'!N485,'UVS_T-1'!N540,'UVS_T-1'!N595,'UVS_T-1'!N650)) ->  | O45: =IF(E45="","",SUM(tbl_20_UVS_01[[#This Row],[Lastna raba TE '[MWh']]],'UVS_T-1'!O100,'UVS_T-1'!O155,'UVS_T-1'!O210,'UVS_T-1'!O265,'UVS_T-1'!O320,'UVS_T-1'!O375,'UVS_T-1'!O430,'UVS_T-1'!O485,'UVS_T-1'!O540,'UVS_T-1'!O595,'UVS_T-1'!O650)) ->  | P45: =IF(E45="","",SUM(tbl_20_UVS_01[[#This Row],[Znesek omrežnine, dajatev, prispevkov in dodatkov '[EUR']]],'UVS_T-1'!P100,'UVS_T-1'!P155,'UVS_T-1'!P210,'UVS_T-1'!P265,'UVS_T-1'!P320,'UVS_T-1'!P375,'UVS_T-1'!P430,'UVS_T-1'!P485,'UVS_T-1'!P540,'UVS_T-1'!P595,'UVS_T-1'!P650)) ->  | Q45: 54.17 | R45: =IFERROR(IF(E45="","",VLOOKUP((MATCH(E45,tblS_VarStroški_SD[ID_STRO_SD],0)-1),tblS_VarStroški_SD[],6)),"") ->  | S45: =IF(E45="","",SUM(tbl_20_UVS_01[[#This Row],[Znesek upravičenega stroška '[EUR']]],'UVS_T-1'!S100,'UVS_T-1'!S155,'UVS_T-1'!S210,'UVS_T-1'!S265,'UVS_T-1'!S320,'UVS_T-1'!S375,'UVS_T-1'!S430,'UVS_T-1'!S485,'UVS_T-1'!S540,'UVS_T-1'!S595,'UVS_T-1'!S650)) ->  | AB45: NNGO | AC45: =IFERROR(1-SUM(AC43:AC44),0) -> 0.2200448598 | AE45: =ROUND(AD43*AC45,3) -> 0 | AL45: =LEFT(E45,3) ->  | AQ45: a3 | AR45: 0 | AT45: 0 | AU45: =IF(IF(F45="",TRUE,COUNTIF(tbl_22_UVSsum[Naziv upravičenega variabilnega stroška],F45)=1)=FALSE,1,0) -> 0 | AV45: 0 | AW45: 0 | AX45: 0 | AY45: 0 | AZ45: 0 | BA45: 0 | BB45: 0 | BC45: 0 | BD45: 0 | BE45: 0 | BF45: 0 | BJ45: FALSE | BK45: FALSE | BL45: 0 | BM45: 0 | BT45: 2 | BU45: KOTLI | BV45: 1 | BW45: 0.65 | BX45: 0 | BY45: 0 | BZ45: 1 | CA45: 0.65 | CB45: 0 | CC45: 0
D46: 0 | E46: =IFERROR(IF(F46="","",LOOKUP(MATCH(F46,'UVS_T-1'!$CG$726:$CG$757,0),'UVS_T-1'!$CD$726:$CD$757,'UVS_T-1'!$CF$726:$CF$757)),"AXX-XX") ->  | F46: =IF('UVS_T-1'!F46="","",'UVS_T-1'!F46) ->  | H46: =IFERROR(IF(E46="","",VLOOKUP((MATCH(E46,tblS_VarStroški_SD[ID_STRO_SD],0)-1),tblS_VarStroški_SD[],5)),"") ->  | I46: =IF(E46="","",SUM(tbl_20_UVS_01[[#This Row],[Poraba SPTE Proizvodnja EE '[enot']]],'UVS_T-1'!I101,'UVS_T-1'!I156,'UVS_T-1'!I211,'UVS_T-1'!I266,'UVS_T-1'!I321,'UVS_T-1'!I376,'UVS_T-1'!I431,'UVS_T-1'!I486,'UVS_T-1'!I541,'UVS_T-1'!I596,'UVS_T-1'!I651)) ->  | J46: =IF(F46="","",SUM(tbl_20_UVS_01[[#This Row],[Poraba SPTE Proizvodnja TE '[enot']]],'UVS_T-1'!J101,'UVS_T-1'!J156,'UVS_T-1'!J211,'UVS_T-1'!J266,'UVS_T-1'!J321,'UVS_T-1'!J376,'UVS_T-1'!J431,'UVS_T-1'!J486,'UVS_T-1'!J541,'UVS_T-1'!J596,'UVS_T-1'!J651)) ->  | K46: =IF(E46="","",SUM(tbl_20_UVS_01[[#This Row],[Poraba Kotli/Ostalo Proizvodnja TE '[enot']]],'UVS_T-1'!K101,'UVS_T-1'!K156,'UVS_T-1'!K211,'UVS_T-1'!K266,'UVS_T-1'!K321,'UVS_T-1'!K376,'UVS_T-1'!K431,'UVS_T-1'!K486,'UVS_T-1'!K541,'UVS_T-1'!K596,'UVS_T-1'!K651)) ->  | L46: =IF(E46="","",SUM(tbl_20_UVS_01[[#This Row],[SPTE Proizvedena EE '[MWh']]],'UVS_T-1'!L101,'UVS_T-1'!L156,'UVS_T-1'!L211,'UVS_T-1'!L266,'UVS_T-1'!L321,'UVS_T-1'!L376,'UVS_T-1'!L431,'UVS_T-1'!L486,'UVS_T-1'!L541,'UVS_T-1'!L596,'UVS_T-1'!L651)) ->  | M46: =IF(E46="","",SUM(tbl_20_UVS_01[[#This Row],[SPTE Proizvedena TE '[MWh']]],'UVS_T-1'!M101,'UVS_T-1'!M156,'UVS_T-1'!M211,'UVS_T-1'!M266,'UVS_T-1'!M321,'UVS_T-1'!M376,'UVS_T-1'!M431,'UVS_T-1'!M486,'UVS_T-1'!M541,'UVS_T-1'!M596,'UVS_T-1'!M651)) ->  | N46: =IF(E46="","",SUM(tbl_20_UVS_01[[#This Row],[Kotli/Ostalo Proizvedena TE '[MWh']]],'UVS_T-1'!N101,'UVS_T-1'!N156,'UVS_T-1'!N211,'UVS_T-1'!N266,'UVS_T-1'!N321,'UVS_T-1'!N376,'UVS_T-1'!N431,'UVS_T-1'!N486,'UVS_T-1'!N541,'UVS_T-1'!N596,'UVS_T-1'!N651)) ->  | O46: =IF(E46="","",SUM(tbl_20_UVS_01[[#This Row],[Lastna raba TE '[MWh']]],'UVS_T-1'!O101,'UVS_T-1'!O156,'UVS_T-1'!O211,'UVS_T-1'!O266,'UVS_T-1'!O321,'UVS_T-1'!O376,'UVS_T-1'!O431,'UVS_T-1'!O486,'UVS_T-1'!O541,'UVS_T-1'!O596,'UVS_T-1'!O651)) ->  | P46: =IF(E46="","",SUM(tbl_20_UVS_01[[#This Row],[Znesek omrežnine, dajatev, prispevkov in dodatkov '[EUR']]],'UVS_T-1'!P101,'UVS_T-1'!P156,'UVS_T-1'!P211,'UVS_T-1'!P266,'UVS_T-1'!P321,'UVS_T-1'!P376,'UVS_T-1'!P431,'UVS_T-1'!P486,'UVS_T-1'!P541,'UVS_T-1'!P596,'UVS_T-1'!P651)) ->  | Q46: 168.80292 | R46: =IFERROR(IF(E46="","",VLOOKUP((MATCH(E46,tblS_VarStroški_SD[ID_STRO_SD],0)-1),tblS_VarStroški_SD[],6)),"") ->  | S46: =IF(E46="","",SUM(tbl_20_UVS_01[[#This Row],[Znesek upravičenega stroška '[EUR']]],'UVS_T-1'!S101,'UVS_T-1'!S156,'UVS_T-1'!S211,'UVS_T-1'!S266,'UVS_T-1'!S321,'UVS_T-1'!S376,'UVS_T-1'!S431,'UVS_T-1'!S486,'UVS_T-1'!S541,'UVS_T-1'!S596,'UVS_T-1'!S651)) ->  | AQ46: a4 | AR46: 0 | AT46: 0 | AU46: =IF(IF(F46="",TRUE,COUNTIF(tbl_22_UVSsum[Naziv upravičenega variabilnega stroška],F46)=1)=FALSE,1,0) -> 0 | AV46: 0 | AW46: 0 | AX46: 0 | AY46: 0 | AZ46: 0 | BA46: 0 | BB46: 0 | BC46: 0 | BD46: 0 | BE46: 0 | BF46: 0 | BJ46: FALSE | BK46: FALSE | BL46: 0 | BM46: 0 | BT46: 3 | BU46: SPTE&KOTLI | BV46: 1 | BW46: 0.45 | BX46: 0.85 | BY46: 0.25 | BZ46: 1 | CA46: 0.45 | CB46: 0.2 | CC46: 1.5
D47: 0 | E47: =IFERROR(IF(F47="","",LOOKUP(MATCH(F47,'UVS_T-1'!$CG$726:$CG$757,0),'UVS_T-1'!$CD$726:$CD$757,'UVS_T-1'!$CF$726:$CF$757)),"AXX-XX") ->  | F47: =IF('UVS_T-1'!F47="","",'UVS_T-1'!F47) ->  | H47: =IFERROR(IF(E47="","",VLOOKUP((MATCH(E47,tblS_VarStroški_SD[ID_STRO_SD],0)-1),tblS_VarStroški_SD[],5)),"") ->  | I47: =IF(E47="","",SUM(tbl_20_UVS_01[[#This Row],[Poraba SPTE Proizvodnja EE '[enot']]],'UVS_T-1'!I102,'UVS_T-1'!I157,'UVS_T-1'!I212,'UVS_T-1'!I267,'UVS_T-1'!I322,'UVS_T-1'!I377,'UVS_T-1'!I432,'UVS_T-1'!I487,'UVS_T-1'!I542,'UVS_T-1'!I597,'UVS_T-1'!I652)) ->  | J47: =IF(F47="","",SUM(tbl_20_UVS_01[[#This Row],[Poraba SPTE Proizvodnja TE '[enot']]],'UVS_T-1'!J102,'UVS_T-1'!J157,'UVS_T-1'!J212,'UVS_T-1'!J267,'UVS_T-1'!J322,'UVS_T-1'!J377,'UVS_T-1'!J432,'UVS_T-1'!J487,'UVS_T-1'!J542,'UVS_T-1'!J597,'UVS_T-1'!J652)) ->  | K47: =IF(E47="","",SUM(tbl_20_UVS_01[[#This Row],[Poraba Kotli/Ostalo Proizvodnja TE '[enot']]],'UVS_T-1'!K102,'UVS_T-1'!K157,'UVS_T-1'!K212,'UVS_T-1'!K267,'UVS_T-1'!K322,'UVS_T-1'!K377,'UVS_T-1'!K432,'UVS_T-1'!K487,'UVS_T-1'!K542,'UVS_T-1'!K597,'UVS_T-1'!K652)) ->  | L47: =IF(E47="","",SUM(tbl_20_UVS_01[[#This Row],[SPTE Proizvedena EE '[MWh']]],'UVS_T-1'!L102,'UVS_T-1'!L157,'UVS_T-1'!L212,'UVS_T-1'!L267,'UVS_T-1'!L322,'UVS_T-1'!L377,'UVS_T-1'!L432,'UVS_T-1'!L487,'UVS_T-1'!L542,'UVS_T-1'!L597,'UVS_T-1'!L652)) ->  | M47: =IF(E47="","",SUM(tbl_20_UVS_01[[#This Row],[SPTE Proizvedena TE '[MWh']]],'UVS_T-1'!M102,'UVS_T-1'!M157,'UVS_T-1'!M212,'UVS_T-1'!M267,'UVS_T-1'!M322,'UVS_T-1'!M377,'UVS_T-1'!M432,'UVS_T-1'!M487,'UVS_T-1'!M542,'UVS_T-1'!M597,'UVS_T-1'!M652)) ->  | N47: =IF(E47="","",SUM(tbl_20_UVS_01[[#This Row],[Kotli/Ostalo Proizvedena TE '[MWh']]],'UVS_T-1'!N102,'UVS_T-1'!N157,'UVS_T-1'!N212,'UVS_T-1'!N267,'UVS_T-1'!N322,'UVS_T-1'!N377,'UVS_T-1'!N432,'UVS_T-1'!N487,'UVS_T-1'!N542,'UVS_T-1'!N597,'UVS_T-1'!N652)) ->  | O47: =IF(E47="","",SUM(tbl_20_UVS_01[[#This Row],[Lastna raba TE '[MWh']]],'UVS_T-1'!O102,'UVS_T-1'!O157,'UVS_T-1'!O212,'UVS_T-1'!O267,'UVS_T-1'!O322,'UVS_T-1'!O377,'UVS_T-1'!O432,'UVS_T-1'!O487,'UVS_T-1'!O542,'UVS_T-1'!O597,'UVS_T-1'!O652)) ->  | P47: =IF(E47="","",SUM(tbl_20_UVS_01[[#This Row],[Znesek omrežnine, dajatev, prispevkov in dodatkov '[EUR']]],'UVS_T-1'!P102,'UVS_T-1'!P157,'UVS_T-1'!P212,'UVS_T-1'!P267,'UVS_T-1'!P322,'UVS_T-1'!P377,'UVS_T-1'!P432,'UVS_T-1'!P487,'UVS_T-1'!P542,'UVS_T-1'!P597,'UVS_T-1'!P652)) ->  | Q47: 168.80292 | R47: =IFERROR(IF(E47="","",VLOOKUP((MATCH(E47,tblS_VarStroški_SD[ID_STRO_SD],0)-1),tblS_VarStroški_SD[],6)),"") ->  | S47: =IF(E47="","",SUM(tbl_20_UVS_01[[#This Row],[Znesek upravičenega stroška '[EUR']]],'UVS_T-1'!S102,'UVS_T-1'!S157,'UVS_T-1'!S212,'UVS_T-1'!S267,'UVS_T-1'!S322,'UVS_T-1'!S377,'UVS_T-1'!S432,'UVS_T-1'!S487,'UVS_T-1'!S542,'UVS_T-1'!S597,'UVS_T-1'!S652)) ->  | AQ47: a5 | AR47: 0 | AT47: 0 | AU47: =IF(IF(F47="",TRUE,COUNTIF(tbl_22_UVSsum[Naziv upravičenega variabilnega stroška],F47)=1)=FALSE,1,0) -> 0 | AV47: 0 | AW47: 0 | AX47: 0 | AY47: 0 | AZ47: 0 | BA47: 0 | BB47: 0 | BC47: 0 | BD47: 0 | BE47: 0 | BF47: 0 | BJ47: FALSE | BK47: FALSE | BL47: 0 | BM47: 0 | BT47: 4 | BU47: TOPČRP | BV47: 3.5 | BW47: 1.2 | BX47: 0 | BY47: 0 | BZ47: 3.5 | CA47: 1.2 | CB47: 0 | CC47: 0
D48: 0 | E48: =IFERROR(IF(F48="","",LOOKUP(MATCH(F48,'UVS_T-1'!$CG$726:$CG$757,0),'UVS_T-1'!$CD$726:$CD$757,'UVS_T-1'!$CF$726:$CF$757)),"AXX-XX") ->  | F48: =IF('UVS_T-1'!F48="","",'UVS_T-1'!F48) ->  | H48: =IFERROR(IF(E48="","",VLOOKUP((MATCH(E48,tblS_VarStroški_SD[ID_STRO_SD],0)-1),tblS_VarStroški_SD[],5)),"") ->  | I48: =IF(E48="","",SUM(tbl_20_UVS_01[[#This Row],[Poraba SPTE Proizvodnja EE '[enot']]],'UVS_T-1'!I103,'UVS_T-1'!I158,'UVS_T-1'!I213,'UVS_T-1'!I268,'UVS_T-1'!I323,'UVS_T-1'!I378,'UVS_T-1'!I433,'UVS_T-1'!I488,'UVS_T-1'!I543,'UVS_T-1'!I598,'UVS_T-1'!I653)) ->  | J48: =IF(F48="","",SUM(tbl_20_UVS_01[[#This Row],[Poraba SPTE Proizvodnja TE '[enot']]],'UVS_T-1'!J103,'UVS_T-1'!J158,'UVS_T-1'!J213,'UVS_T-1'!J268,'UVS_T-1'!J323,'UVS_T-1'!J378,'UVS_T-1'!J433,'UVS_T-1'!J488,'UVS_T-1'!J543,'UVS_T-1'!J598,'UVS_T-1'!J653)) ->  | K48: =IF(E48="","",SUM(tbl_20_UVS_01[[#This Row],[Poraba Kotli/Ostalo Proizvodnja TE '[enot']]],'UVS_T-1'!K103,'UVS_T-1'!K158,'UVS_T-1'!K213,'UVS_T-1'!K268,'UVS_T-1'!K323,'UVS_T-1'!K378,'UVS_T-1'!K433,'UVS_T-1'!K488,'UVS_T-1'!K543,'UVS_T-1'!K598,'UVS_T-1'!K653)) ->  | L48: =IF(E48="","",SUM(tbl_20_UVS_01[[#This Row],[SPTE Proizvedena EE '[MWh']]],'UVS_T-1'!L103,'UVS_T-1'!L158,'UVS_T-1'!L213,'UVS_T-1'!L268,'UVS_T-1'!L323,'UVS_T-1'!L378,'UVS_T-1'!L433,'UVS_T-1'!L488,'UVS_T-1'!L543,'UVS_T-1'!L598,'UVS_T-1'!L653)) ->  | M48: =IF(E48="","",SUM(tbl_20_UVS_01[[#This Row],[SPTE Proizvedena TE '[MWh']]],'UVS_T-1'!M103,'UVS_T-1'!M158,'UVS_T-1'!M213,'UVS_T-1'!M268,'UVS_T-1'!M323,'UVS_T-1'!M378,'UVS_T-1'!M433,'UVS_T-1'!M488,'UVS_T-1'!M543,'UVS_T-1'!M598,'UVS_T-1'!M653)) ->  | N48: =IF(E48="","",SUM(tbl_20_UVS_01[[#This Row],[Kotli/Ostalo Proizvedena TE '[MWh']]],'UVS_T-1'!N103,'UVS_T-1'!N158,'UVS_T-1'!N213,'UVS_T-1'!N268,'UVS_T-1'!N323,'UVS_T-1'!N378,'UVS_T-1'!N433,'UVS_T-1'!N488,'UVS_T-1'!N543,'UVS_T-1'!N598,'UVS_T-1'!N653)) ->  | O48: =IF(E48="","",SUM(tbl_20_UVS_01[[#This Row],[Lastna raba TE '[MWh']]],'UVS_T-1'!O103,'UVS_T-1'!O158,'UVS_T-1'!O213,'UVS_T-1'!O268,'UVS_T-1'!O323,'UVS_T-1'!O378,'UVS_T-1'!O433,'UVS_T-1'!O488,'UVS_T-1'!O543,'UVS_T-1'!O598,'UVS_T-1'!O653)) ->  | P48: =IF(E48="","",SUM(tbl_20_UVS_01[[#This Row],[Znesek omrežnine, dajatev, prispevkov in dodatkov '[EUR']]],'UVS_T-1'!P103,'UVS_T-1'!P158,'UVS_T-1'!P213,'UVS_T-1'!P268,'UVS_T-1'!P323,'UVS_T-1'!P378,'UVS_T-1'!P433,'UVS_T-1'!P488,'UVS_T-1'!P543,'UVS_T-1'!P598,'UVS_T-1'!P653)) ->  | Q48: 1.84915 | R48: =IFERROR(IF(E48="","",VLOOKUP((MATCH(E48,tblS_VarStroški_SD[ID_STRO_SD],0)-1),tblS_VarStroški_SD[],6)),"") ->  | S48: =IF(E48="","",SUM(tbl_20_UVS_01[[#This Row],[Znesek upravičenega stroška '[EUR']]],'UVS_T-1'!S103,'UVS_T-1'!S158,'UVS_T-1'!S213,'UVS_T-1'!S268,'UVS_T-1'!S323,'UVS_T-1'!S378,'UVS_T-1'!S433,'UVS_T-1'!S488,'UVS_T-1'!S543,'UVS_T-1'!S598,'UVS_T-1'!S653)) ->  | AQ48: a6 | AR48: 0 | AT48: 0 | AU48: =IF(IF(F48="",TRUE,COUNTIF(tbl_22_UVSsum[Naziv upravičenega variabilnega stroška],F48)=1)=FALSE,1,0) -> 0 | AV48: 0 | AW48: 0 | AX48: 0 | AY48: 0 | AZ48: 0 | BA48: 0 | BB48: 0 | BC48: 0 | BD48: 0 | BE48: 0 | BF48: 0 | BJ48: FALSE | BK48: FALSE | BL48: 0 | BM48: 0
D49: 0 | E49: =IFERROR(IF(F49="","",LOOKUP(MATCH(F49,'UVS_T-1'!$CG$726:$CG$757,0),'UVS_T-1'!$CD$726:$CD$757,'UVS_T-1'!$CF$726:$CF$757)),"AXX-XX") ->  | F49: =IF('UVS_T-1'!F49="","",'UVS_T-1'!F49) ->  | H49: =IFERROR(IF(E49="","",VLOOKUP((MATCH(E49,tblS_VarStroški_SD[ID_STRO_SD],0)-1),tblS_VarStroški_SD[],5)),"") ->  | I49: =IF(E49="","",SUM(tbl_20_UVS_01[[#This Row],[Poraba SPTE Proizvodnja EE '[enot']]],'UVS_T-1'!I104,'UVS_T-1'!I159,'UVS_T-1'!I214,'UVS_T-1'!I269,'UVS_T-1'!I324,'UVS_T-1'!I379,'UVS_T-1'!I434,'UVS_T-1'!I489,'UVS_T-1'!I544,'UVS_T-1'!I599,'UVS_T-1'!I654)) ->  | J49: =IF(F49="","",SUM(tbl_20_UVS_01[[#This Row],[Poraba SPTE Proizvodnja TE '[enot']]],'UVS_T-1'!J104,'UVS_T-1'!J159,'UVS_T-1'!J214,'UVS_T-1'!J269,'UVS_T-1'!J324,'UVS_T-1'!J379,'UVS_T-1'!J434,'UVS_T-1'!J489,'UVS_T-1'!J544,'UVS_T-1'!J599,'UVS_T-1'!J654)) ->  | K49: =IF(E49="","",SUM(tbl_20_UVS_01[[#This Row],[Poraba Kotli/Ostalo Proizvodnja TE '[enot']]],'UVS_T-1'!K104,'UVS_T-1'!K159,'UVS_T-1'!K214,'UVS_T-1'!K269,'UVS_T-1'!K324,'UVS_T-1'!K379,'UVS_T-1'!K434,'UVS_T-1'!K489,'UVS_T-1'!K544,'UVS_T-1'!K599,'UVS_T-1'!K654)) ->  | L49: =IF(E49="","",SUM(tbl_20_UVS_01[[#This Row],[SPTE Proizvedena EE '[MWh']]],'UVS_T-1'!L104,'UVS_T-1'!L159,'UVS_T-1'!L214,'UVS_T-1'!L269,'UVS_T-1'!L324,'UVS_T-1'!L379,'UVS_T-1'!L434,'UVS_T-1'!L489,'UVS_T-1'!L544,'UVS_T-1'!L599,'UVS_T-1'!L654)) ->  | M49: =IF(E49="","",SUM(tbl_20_UVS_01[[#This Row],[SPTE Proizvedena TE '[MWh']]],'UVS_T-1'!M104,'UVS_T-1'!M159,'UVS_T-1'!M214,'UVS_T-1'!M269,'UVS_T-1'!M324,'UVS_T-1'!M379,'UVS_T-1'!M434,'UVS_T-1'!M489,'UVS_T-1'!M544,'UVS_T-1'!M599,'UVS_T-1'!M654)) ->  | N49: =IF(E49="","",SUM(tbl_20_UVS_01[[#This Row],[Kotli/Ostalo Proizvedena TE '[MWh']]],'UVS_T-1'!N104,'UVS_T-1'!N159,'UVS_T-1'!N214,'UVS_T-1'!N269,'UVS_T-1'!N324,'UVS_T-1'!N379,'UVS_T-1'!N434,'UVS_T-1'!N489,'UVS_T-1'!N544,'UVS_T-1'!N599,'UVS_T-1'!N654)) ->  | O49: =IF(E49="","",SUM(tbl_20_UVS_01[[#This Row],[Lastna raba TE '[MWh']]],'UVS_T-1'!O104,'UVS_T-1'!O159,'UVS_T-1'!O214,'UVS_T-1'!O269,'UVS_T-1'!O324,'UVS_T-1'!O379,'UVS_T-1'!O434,'UVS_T-1'!O489,'UVS_T-1'!O544,'UVS_T-1'!O599,'UVS_T-1'!O654)) ->  | P49: =IF(E49="","",SUM(tbl_20_UVS_01[[#This Row],[Znesek omrežnine, dajatev, prispevkov in dodatkov '[EUR']]],'UVS_T-1'!P104,'UVS_T-1'!P159,'UVS_T-1'!P214,'UVS_T-1'!P269,'UVS_T-1'!P324,'UVS_T-1'!P379,'UVS_T-1'!P434,'UVS_T-1'!P489,'UVS_T-1'!P544,'UVS_T-1'!P599,'UVS_T-1'!P654)) ->  | Q49: 0 | R49: =IFERROR(IF(E49="","",VLOOKUP((MATCH(E49,tblS_VarStroški_SD[ID_STRO_SD],0)-1),tblS_VarStroški_SD[],6)),"") ->  | S49: =IF(E49="","",SUM(tbl_20_UVS_01[[#This Row],[Znesek upravičenega stroška '[EUR']]],'UVS_T-1'!S104,'UVS_T-1'!S159,'UVS_T-1'!S214,'UVS_T-1'!S269,'UVS_T-1'!S324,'UVS_T-1'!S379,'UVS_T-1'!S434,'UVS_T-1'!S489,'UVS_T-1'!S544,'UVS_T-1'!S599,'UVS_T-1'!S654)) ->  | AQ49: a7 | AR49: 0 | AT49: 0 | AU49: =IF(IF(F49="",TRUE,COUNTIF(tbl_22_UVSsum[Naziv upravičenega variabilnega stroška],F49)=1)=FALSE,1,0) -> 0 | AV49: 0 | AW49: 0 | AX49: 0 | AY49: 0 | AZ49: 0 | BA49: 0 | BB49: 0 | BC49: 0 | BD49: 0 | BE49: 0 | BF49: 0 | BJ49: FALSE | BK49: FALSE | BL49: 0 | BM49: 0
D50: 0 | E50: =IFERROR(IF(F50="","",LOOKUP(MATCH(F50,'UVS_T-1'!$CG$726:$CG$757,0),'UVS_T-1'!$CD$726:$CD$757,'UVS_T-1'!$CF$726:$CF$757)),"AXX-XX") ->  | F50: =IF('UVS_T-1'!F50="","",'UVS_T-1'!F50) ->  | H50: =IFERROR(IF(E50="","",VLOOKUP((MATCH(E50,tblS_VarStroški_SD[ID_STRO_SD],0)-1),tblS_VarStroški_SD[],5)),"") ->  | I50: =IF(E50="","",SUM(tbl_20_UVS_01[[#This Row],[Poraba SPTE Proizvodnja EE '[enot']]],'UVS_T-1'!I105,'UVS_T-1'!I160,'UVS_T-1'!I215,'UVS_T-1'!I270,'UVS_T-1'!I325,'UVS_T-1'!I380,'UVS_T-1'!I435,'UVS_T-1'!I490,'UVS_T-1'!I545,'UVS_T-1'!I600,'UVS_T-1'!I655)) ->  | J50: =IF(F50="","",SUM(tbl_20_UVS_01[[#This Row],[Poraba SPTE Proizvodnja TE '[enot']]],'UVS_T-1'!J105,'UVS_T-1'!J160,'UVS_T-1'!J215,'UVS_T-1'!J270,'UVS_T-1'!J325,'UVS_T-1'!J380,'UVS_T-1'!J435,'UVS_T-1'!J490,'UVS_T-1'!J545,'UVS_T-1'!J600,'UVS_T-1'!J655)) ->  | K50: =IF(E50="","",SUM(tbl_20_UVS_01[[#This Row],[Poraba Kotli/Ostalo Proizvodnja TE '[enot']]],'UVS_T-1'!K105,'UVS_T-1'!K160,'UVS_T-1'!K215,'UVS_T-1'!K270,'UVS_T-1'!K325,'UVS_T-1'!K380,'UVS_T-1'!K435,'UVS_T-1'!K490,'UVS_T-1'!K545,'UVS_T-1'!K600,'UVS_T-1'!K655)) ->  | L50: =IF(E50="","",SUM(tbl_20_UVS_01[[#This Row],[SPTE Proizvedena EE '[MWh']]],'UVS_T-1'!L105,'UVS_T-1'!L160,'UVS_T-1'!L215,'UVS_T-1'!L270,'UVS_T-1'!L325,'UVS_T-1'!L380,'UVS_T-1'!L435,'UVS_T-1'!L490,'UVS_T-1'!L545,'UVS_T-1'!L600,'UVS_T-1'!L655)) ->  | M50: =IF(E50="","",SUM(tbl_20_UVS_01[[#This Row],[SPTE Proizvedena TE '[MWh']]],'UVS_T-1'!M105,'UVS_T-1'!M160,'UVS_T-1'!M215,'UVS_T-1'!M270,'UVS_T-1'!M325,'UVS_T-1'!M380,'UVS_T-1'!M435,'UVS_T-1'!M490,'UVS_T-1'!M545,'UVS_T-1'!M600,'UVS_T-1'!M655)) ->  | N50: =IF(E50="","",SUM(tbl_20_UVS_01[[#This Row],[Kotli/Ostalo Proizvedena TE '[MWh']]],'UVS_T-1'!N105,'UVS_T-1'!N160,'UVS_T-1'!N215,'UVS_T-1'!N270,'UVS_T-1'!N325,'UVS_T-1'!N380,'UVS_T-1'!N435,'UVS_T-1'!N490,'UVS_T-1'!N545,'UVS_T-1'!N600,'UVS_T-1'!N655)) ->  | O50: =IF(E50="","",SUM(tbl_20_UVS_01[[#This Row],[Lastna raba TE '[MWh']]],'UVS_T-1'!O105,'UVS_T-1'!O160,'UVS_T-1'!O215,'UVS_T-1'!O270,'UVS_T-1'!O325,'UVS_T-1'!O380,'UVS_T-1'!O435,'UVS_T-1'!O490,'UVS_T-1'!O545,'UVS_T-1'!O600,'UVS_T-1'!O655)) ->  | P50: =IF(E50="","",SUM(tbl_20_UVS_01[[#This Row],[Znesek omrežnine, dajatev, prispevkov in dodatkov '[EUR']]],'UVS_T-1'!P105,'UVS_T-1'!P160,'UVS_T-1'!P215,'UVS_T-1'!P270,'UVS_T-1'!P325,'UVS_T-1'!P380,'UVS_T-1'!P435,'UVS_T-1'!P490,'UVS_T-1'!P545,'UVS_T-1'!P600,'UVS_T-1'!P655)) ->  | Q50: 70.94112 | R50: =IFERROR(IF(E50="","",VLOOKUP((MATCH(E50,tblS_VarStroški_SD[ID_STRO_SD],0)-1),tblS_VarStroški_SD[],6)),"") ->  | S50: =IF(E50="","",SUM(tbl_20_UVS_01[[#This Row],[Znesek upravičenega stroška '[EUR']]],'UVS_T-1'!S105,'UVS_T-1'!S160,'UVS_T-1'!S215,'UVS_T-1'!S270,'UVS_T-1'!S325,'UVS_T-1'!S380,'UVS_T-1'!S435,'UVS_T-1'!S490,'UVS_T-1'!S545,'UVS_T-1'!S600,'UVS_T-1'!S655)) ->  | AQ50: a8 | AR50: 0 | AT50: 0 | AU50: =IF(IF(F50="",TRUE,COUNTIF(tbl_22_UVSsum[Naziv upravičenega variabilnega stroška],F50)=1)=FALSE,1,0) -> 0 | AV50: 0 | AW50: 0 | AX50: 0 | AY50: 0 | AZ50: 0 | BA50: 0 | BB50: 0 | BC50: 0 | BD50: 0 | BE50: 0 | BF50: 0 | BJ50: FALSE | BK50: FALSE | BL50: 0 | BM50: 0
D51: 0 | E51: =IFERROR(IF(F51="","",LOOKUP(MATCH(F51,'UVS_T-1'!$CG$726:$CG$757,0),'UVS_T-1'!$CD$726:$CD$757,'UVS_T-1'!$CF$726:$CF$757)),"AXX-XX") ->  | F51: =IF('UVS_T-1'!F51="","",'UVS_T-1'!F51) ->  | G51: =IF(E51="","",ROUND(IF(OR(O51=0,O51=""),SUM(J51:K51),(SUM(M51:N51))/(SUM(M51:N51)+O51)*SUM(J51:K51)),3)) ->  | H51: =IFERROR(IF(E51="","",VLOOKUP((MATCH(E51,tblS_VarStroški_SD[ID_STRO_SD],0)-1),tblS_VarStroški_SD[],5)),"") ->  | I51: =IF(E51="","",SUM(tbl_20_UVS_01[[#This Row],[Poraba SPTE Proizvodnja EE '[enot']]],'UVS_T-1'!I106,'UVS_T-1'!I161,'UVS_T-1'!I216,'UVS_T-1'!I271,'UVS_T-1'!I326,'UVS_T-1'!I381,'UVS_T-1'!I436,'UVS_T-1'!I491,'UVS_T-1'!I546,'UVS_T-1'!I601,'UVS_T-1'!I656)) ->  | J51: =IF(F51="","",SUM(tbl_20_UVS_01[[#This Row],[Poraba SPTE Proizvodnja TE '[enot']]],'UVS_T-1'!J106,'UVS_T-1'!J161,'UVS_T-1'!J216,'UVS_T-1'!J271,'UVS_T-1'!J326,'UVS_T-1'!J381,'UVS_T-1'!J436,'UVS_T-1'!J491,'UVS_T-1'!J546,'UVS_T-1'!J601,'UVS_T-1'!J656)) ->  | K51: =IF(E51="","",SUM(tbl_20_UVS_01[[#This Row],[Poraba Kotli/Ostalo Proizvodnja TE '[enot']]],'UVS_T-1'!K106,'UVS_T-1'!K161,'UVS_T-1'!K216,'UVS_T-1'!K271,'UVS_T-1'!K326,'UVS_T-1'!K381,'UVS_T-1'!K436,'UVS_T-1'!K491,'UVS_T-1'!K546,'UVS_T-1'!K601,'UVS_T-1'!K656)) ->  | L51: =IF(E51="","",SUM(tbl_20_UVS_01[[#This Row],[SPTE Proizvedena EE '[MWh']]],'UVS_T-1'!L106,'UVS_T-1'!L161,'UVS_T-1'!L216,'UVS_T-1'!L271,'UVS_T-1'!L326,'UVS_T-1'!L381,'UVS_T-1'!L436,'UVS_T-1'!L491,'UVS_T-1'!L546,'UVS_T-1'!L601,'UVS_T-1'!L656)) ->  | M51: =IF(E51="","",SUM(tbl_20_UVS_01[[#This Row],[SPTE Proizvedena TE '[MWh']]],'UVS_T-1'!M106,'UVS_T-1'!M161,'UVS_T-1'!M216,'UVS_T-1'!M271,'UVS_T-1'!M326,'UVS_T-1'!M381,'UVS_T-1'!M436,'UVS_T-1'!M491,'UVS_T-1'!M546,'UVS_T-1'!M601,'UVS_T-1'!M656)) ->  | N51: =IF(E51="","",SUM(tbl_20_UVS_01[[#This Row],[Kotli/Ostalo Proizvedena TE '[MWh']]],'UVS_T-1'!N106,'UVS_T-1'!N161,'UVS_T-1'!N216,'UVS_T-1'!N271,'UVS_T-1'!N326,'UVS_T-1'!N381,'UVS_T-1'!N436,'UVS_T-1'!N491,'UVS_T-1'!N546,'UVS_T-1'!N601,'UVS_T-1'!N656)) ->  | O51: =IF(E51="","",SUM(tbl_20_UVS_01[[#This Row],[Lastna raba TE '[MWh']]],'UVS_T-1'!O106,'UVS_T-1'!O161,'UVS_T-1'!O216,'UVS_T-1'!O271,'UVS_T-1'!O326,'UVS_T-1'!O381,'UVS_T-1'!O436,'UVS_T-1'!O491,'UVS_T-1'!O546,'UVS_T-1'!O601,'UVS_T-1'!O656)) ->  | P51: =IF(E51="","",SUM(tbl_20_UVS_01[[#This Row],[Znesek omrežnine, dajatev, prispevkov in dodatkov '[EUR']]],'UVS_T-1'!P106,'UVS_T-1'!P161,'UVS_T-1'!P216,'UVS_T-1'!P271,'UVS_T-1'!P326,'UVS_T-1'!P381,'UVS_T-1'!P436,'UVS_T-1'!P491,'UVS_T-1'!P546,'UVS_T-1'!P601,'UVS_T-1'!P656)) ->  | R51: =IFERROR(IF(E51="","",VLOOKUP((MATCH(E51,tblS_VarStroški_SD[ID_STRO_SD],0)-1),tblS_VarStroški_SD[],6)),"") ->  | S51: =IF(E51="","",SUM(tbl_20_UVS_01[[#This Row],[Znesek upravičenega stroška '[EUR']]],'UVS_T-1'!S106,'UVS_T-1'!S161,'UVS_T-1'!S216,'UVS_T-1'!S271,'UVS_T-1'!S326,'UVS_T-1'!S381,'UVS_T-1'!S436,'UVS_T-1'!S491,'UVS_T-1'!S546,'UVS_T-1'!S601,'UVS_T-1'!S656)) ->  | AQ51: a9 | AR51: 1 | AT51: 0 | AU51: =IF(IF(F51="",TRUE,COUNTIF(tbl_22_UVSsum[Naziv upravičenega variabilnega stroška],F51)=1)=FALSE,1,0) -> 0 | AV51: 0 | AW51: 0 | AX51: 0 | AY51: 0 | AZ51: 0 | BA51: 0 | BB51: 0 | BC51: 0 | BD51: =IF(OR(COUNTA(F51,I51:Q51)>9,COUNTA(F51,I51:Q51)=0)=TRUE,0,1) -> 1 | BE51: 0 | BF51: 0 | BJ51: FALSE | BK51: FALSE | BL51: 0 | BM51: 0
D52: 0 | E52: =IFERROR(IF(F52="","",LOOKUP(MATCH(F52,'UVS_T-1'!$CG$726:$CG$757,0),'UVS_T-1'!$CD$726:$CD$757,'UVS_T-1'!$CF$726:$CF$757)),"AXX-XX") ->  | F52: =IF('UVS_T-1'!F52="","",'UVS_T-1'!F52) ->  | H52: =IFERROR(IF(E52="","",VLOOKUP((MATCH(E52,tblS_VarStroški_SD[ID_STRO_SD],0)-1),tblS_VarStroški_SD[],5)),"") ->  | I52: =IF(E52="","",SUM(tbl_20_UVS_01[[#This Row],[Poraba SPTE Proizvodnja EE '[enot']]],'UVS_T-1'!I107,'UVS_T-1'!I162,'UVS_T-1'!I217,'UVS_T-1'!I272,'UVS_T-1'!I327,'UVS_T-1'!I382,'UVS_T-1'!I437,'UVS_T-1'!I492,'UVS_T-1'!I547,'UVS_T-1'!I602,'UVS_T-1'!I657)) ->  | J52: =IF(F52="","",SUM(tbl_20_UVS_01[[#This Row],[Poraba SPTE Proizvodnja TE '[enot']]],'UVS_T-1'!J107,'UVS_T-1'!J162,'UVS_T-1'!J217,'UVS_T-1'!J272,'UVS_T-1'!J327,'UVS_T-1'!J382,'UVS_T-1'!J437,'UVS_T-1'!J492,'UVS_T-1'!J547,'UVS_T-1'!J602,'UVS_T-1'!J657)) ->  | K52: =IF(E52="","",SUM(tbl_20_UVS_01[[#This Row],[Poraba Kotli/Ostalo Proizvodnja TE '[enot']]],'UVS_T-1'!K107,'UVS_T-1'!K162,'UVS_T-1'!K217,'UVS_T-1'!K272,'UVS_T-1'!K327,'UVS_T-1'!K382,'UVS_T-1'!K437,'UVS_T-1'!K492,'UVS_T-1'!K547,'UVS_T-1'!K602,'UVS_T-1'!K657)) ->  | L52: =IF(E52="","",SUM(tbl_20_UVS_01[[#This Row],[SPTE Proizvedena EE '[MWh']]],'UVS_T-1'!L107,'UVS_T-1'!L162,'UVS_T-1'!L217,'UVS_T-1'!L272,'UVS_T-1'!L327,'UVS_T-1'!L382,'UVS_T-1'!L437,'UVS_T-1'!L492,'UVS_T-1'!L547,'UVS_T-1'!L602,'UVS_T-1'!L657)) ->  | M52: =IF(E52="","",SUM(tbl_20_UVS_01[[#This Row],[SPTE Proizvedena TE '[MWh']]],'UVS_T-1'!M107,'UVS_T-1'!M162,'UVS_T-1'!M217,'UVS_T-1'!M272,'UVS_T-1'!M327,'UVS_T-1'!M382,'UVS_T-1'!M437,'UVS_T-1'!M492,'UVS_T-1'!M547,'UVS_T-1'!M602,'UVS_T-1'!M657)) ->  | N52: =IF(E52="","",SUM(tbl_20_UVS_01[[#This Row],[Kotli/Ostalo Proizvedena TE '[MWh']]],'UVS_T-1'!N107,'UVS_T-1'!N162,'UVS_T-1'!N217,'UVS_T-1'!N272,'UVS_T-1'!N327,'UVS_T-1'!N382,'UVS_T-1'!N437,'UVS_T-1'!N492,'UVS_T-1'!N547,'UVS_T-1'!N602,'UVS_T-1'!N657)) ->  | O52: =IF(E52="","",SUM(tbl_20_UVS_01[[#This Row],[Lastna raba TE '[MWh']]],'UVS_T-1'!O107,'UVS_T-1'!O162,'UVS_T-1'!O217,'UVS_T-1'!O272,'UVS_T-1'!O327,'UVS_T-1'!O382,'UVS_T-1'!O437,'UVS_T-1'!O492,'UVS_T-1'!O547,'UVS_T-1'!O602,'UVS_T-1'!O657)) ->  | P52: =IF(E52="","",SUM(tbl_20_UVS_01[[#This Row],[Znesek omrežnine, dajatev, prispevkov in dodatkov '[EUR']]],'UVS_T-1'!P107,'UVS_T-1'!P162,'UVS_T-1'!P217,'UVS_T-1'!P272,'UVS_T-1'!P327,'UVS_T-1'!P382,'UVS_T-1'!P437,'UVS_T-1'!P492,'UVS_T-1'!P547,'UVS_T-1'!P602,'UVS_T-1'!P657)) ->  | R52: =IFERROR(IF(E52="","",VLOOKUP((MATCH(E52,tblS_VarStroški_SD[ID_STRO_SD],0)-1),tblS_VarStroški_SD[],6)),"") ->  | S52: =IF(E52="","",SUM(tbl_20_UVS_01[[#This Row],[Znesek upravičenega stroška '[EUR']]],'UVS_T-1'!S107,'UVS_T-1'!S162,'UVS_T-1'!S217,'UVS_T-1'!S272,'UVS_T-1'!S327,'UVS_T-1'!S382,'UVS_T-1'!S437,'UVS_T-1'!S492,'UVS_T-1'!S547,'UVS_T-1'!S602,'UVS_T-1'!S657)) ->  | AQ52: a10 | AR52: 1 | AT52: 0 | AU52: =IF(IF(F52="",TRUE,COUNTIF(tbl_22_UVSsum[Naziv upravičenega variabilnega stroška],F52)=1)=FALSE,1,0) -> 0 | AV52: 0 | AW52: 0 | AX52: 0 | AY52: 0 | AZ52: 0 | BA52: 0 | BB52: 0 | BC52: 0 | BD52: 1 | BE52: 0 | BF52: 0 | BJ52: FALSE | BK52: FALSE | BL52: 0 | BM52: 0
D53: 0 | E53: =IFERROR(IF(F53="","",LOOKUP(MATCH(F53,'UVS_T-1'!$CG$726:$CG$757,0),'UVS_T-1'!$CD$726:$CD$757,'UVS_T-1'!$CF$726:$CF$757)),"AXX-XX") ->  | F53: =IF('UVS_T-1'!F53="","",'UVS_T-1'!F53) ->  | H53: =IFERROR(IF(E53="","",VLOOKUP((MATCH(E53,tblS_VarStroški_SD[ID_STRO_SD],0)-1),tblS_VarStroški_SD[],5)),"") ->  | I53: =IF(E53="","",SUM(tbl_20_UVS_01[[#This Row],[Poraba SPTE Proizvodnja EE '[enot']]],'UVS_T-1'!I108,'UVS_T-1'!I163,'UVS_T-1'!I218,'UVS_T-1'!I273,'UVS_T-1'!I328,'UVS_T-1'!I383,'UVS_T-1'!I438,'UVS_T-1'!I493,'UVS_T-1'!I548,'UVS_T-1'!I603,'UVS_T-1'!I658)) ->  | J53: =IF(F53="","",SUM(tbl_20_UVS_01[[#This Row],[Poraba SPTE Proizvodnja TE '[enot']]],'UVS_T-1'!J108,'UVS_T-1'!J163,'UVS_T-1'!J218,'UVS_T-1'!J273,'UVS_T-1'!J328,'UVS_T-1'!J383,'UVS_T-1'!J438,'UVS_T-1'!J493,'UVS_T-1'!J548,'UVS_T-1'!J603,'UVS_T-1'!J658)) ->  | K53: =IF(E53="","",SUM(tbl_20_UVS_01[[#This Row],[Poraba Kotli/Ostalo Proizvodnja TE '[enot']]],'UVS_T-1'!K108,'UVS_T-1'!K163,'UVS_T-1'!K218,'UVS_T-1'!K273,'UVS_T-1'!K328,'UVS_T-1'!K383,'UVS_T-1'!K438,'UVS_T-1'!K493,'UVS_T-1'!K548,'UVS_T-1'!K603,'UVS_T-1'!K658)) ->  | L53: =IF(E53="","",SUM(tbl_20_UVS_01[[#This Row],[SPTE Proizvedena EE '[MWh']]],'UVS_T-1'!L108,'UVS_T-1'!L163,'UVS_T-1'!L218,'UVS_T-1'!L273,'UVS_T-1'!L328,'UVS_T-1'!L383,'UVS_T-1'!L438,'UVS_T-1'!L493,'UVS_T-1'!L548,'UVS_T-1'!L603,'UVS_T-1'!L658)) ->  | M53: =IF(E53="","",SUM(tbl_20_UVS_01[[#This Row],[SPTE Proizvedena TE '[MWh']]],'UVS_T-1'!M108,'UVS_T-1'!M163,'UVS_T-1'!M218,'UVS_T-1'!M273,'UVS_T-1'!M328,'UVS_T-1'!M383,'UVS_T-1'!M438,'UVS_T-1'!M493,'UVS_T-1'!M548,'UVS_T-1'!M603,'UVS_T-1'!M658)) ->  | N53: =IF(E53="","",SUM(tbl_20_UVS_01[[#This Row],[Kotli/Ostalo Proizvedena TE '[MWh']]],'UVS_T-1'!N108,'UVS_T-1'!N163,'UVS_T-1'!N218,'UVS_T-1'!N273,'UVS_T-1'!N328,'UVS_T-1'!N383,'UVS_T-1'!N438,'UVS_T-1'!N493,'UVS_T-1'!N548,'UVS_T-1'!N603,'UVS_T-1'!N658)) ->  | O53: =IF(E53="","",SUM(tbl_20_UVS_01[[#This Row],[Lastna raba TE '[MWh']]],'UVS_T-1'!O108,'UVS_T-1'!O163,'UVS_T-1'!O218,'UVS_T-1'!O273,'UVS_T-1'!O328,'UVS_T-1'!O383,'UVS_T-1'!O438,'UVS_T-1'!O493,'UVS_T-1'!O548,'UVS_T-1'!O603,'UVS_T-1'!O658)) ->  | P53: =IF(E53="","",SUM(tbl_20_UVS_01[[#This Row],[Znesek omrežnine, dajatev, prispevkov in dodatkov '[EUR']]],'UVS_T-1'!P108,'UVS_T-1'!P163,'UVS_T-1'!P218,'UVS_T-1'!P273,'UVS_T-1'!P328,'UVS_T-1'!P383,'UVS_T-1'!P438,'UVS_T-1'!P493,'UVS_T-1'!P548,'UVS_T-1'!P603,'UVS_T-1'!P658)) ->  | R53: =IFERROR(IF(E53="","",VLOOKUP((MATCH(E53,tblS_VarStroški_SD[ID_STRO_SD],0)-1),tblS_VarStroški_SD[],6)),"") ->  | S53: =IF(E53="","",SUM(tbl_20_UVS_01[[#This Row],[Znesek upravičenega stroška '[EUR']]],'UVS_T-1'!S108,'UVS_T-1'!S163,'UVS_T-1'!S218,'UVS_T-1'!S273,'UVS_T-1'!S328,'UVS_T-1'!S383,'UVS_T-1'!S438,'UVS_T-1'!S493,'UVS_T-1'!S548,'UVS_T-1'!S603,'UVS_T-1'!S658)) ->  | AQ53: a11 | AR53: 1 | AT53: 0 | AU53: =IF(IF(F53="",TRUE,COUNTIF(tbl_22_UVSsum[Naziv upravičenega variabilnega stroška],F53)=1)=FALSE,1,0) -> 0 | AV53: 0 | AW53: 0 | AX53: 0 | AY53: 0 | AZ53: 0 | BA53: 0 | BB53: 0 | BC53: 0 | BD53: 1 | BE53: 0 | BF53: 0 | BJ53: FALSE | BK53: FALSE | BL53: 0 | BM53: 0
D54: 0 | E54: =IFERROR(IF(F54="","",LOOKUP(MATCH(F54,'UVS_T-1'!$CG$726:$CG$757,0),'UVS_T-1'!$CD$726:$CD$757,'UVS_T-1'!$CF$726:$CF$757)),"AXX-XX") ->  | F54: =IF('UVS_T-1'!F54="","",'UVS_T-1'!F54) ->  | H54: =IFERROR(IF(E54="","",VLOOKUP((MATCH(E54,tblS_VarStroški_SD[ID_STRO_SD],0)-1),tblS_VarStroški_SD[],5)),"") ->  | I54: =IF(E54="","",SUM(tbl_20_UVS_01[[#This Row],[Poraba SPTE Proizvodnja EE '[enot']]],'UVS_T-1'!I109,'UVS_T-1'!I164,'UVS_T-1'!I219,'UVS_T-1'!I274,'UVS_T-1'!I329,'UVS_T-1'!I384,'UVS_T-1'!I439,'UVS_T-1'!I494,'UVS_T-1'!I549,'UVS_T-1'!I604,'UVS_T-1'!I659)) ->  | J54: =IF(F54="","",SUM(tbl_20_UVS_01[[#This Row],[Poraba SPTE Proizvodnja TE '[enot']]],'UVS_T-1'!J109,'UVS_T-1'!J164,'UVS_T-1'!J219,'UVS_T-1'!J274,'UVS_T-1'!J329,'UVS_T-1'!J384,'UVS_T-1'!J439,'UVS_T-1'!J494,'UVS_T-1'!J549,'UVS_T-1'!J604,'UVS_T-1'!J659)) ->  | K54: =IF(E54="","",SUM(tbl_20_UVS_01[[#This Row],[Poraba Kotli/Ostalo Proizvodnja TE '[enot']]],'UVS_T-1'!K109,'UVS_T-1'!K164,'UVS_T-1'!K219,'UVS_T-1'!K274,'UVS_T-1'!K329,'UVS_T-1'!K384,'UVS_T-1'!K439,'UVS_T-1'!K494,'UVS_T-1'!K549,'UVS_T-1'!K604,'UVS_T-1'!K659)) ->  | L54: =IF(E54="","",SUM(tbl_20_UVS_01[[#This Row],[SPTE Proizvedena EE '[MWh']]],'UVS_T-1'!L109,'UVS_T-1'!L164,'UVS_T-1'!L219,'UVS_T-1'!L274,'UVS_T-1'!L329,'UVS_T-1'!L384,'UVS_T-1'!L439,'UVS_T-1'!L494,'UVS_T-1'!L549,'UVS_T-1'!L604,'UVS_T-1'!L659)) ->  | M54: =IF(E54="","",SUM(tbl_20_UVS_01[[#This Row],[SPTE Proizvedena TE '[MWh']]],'UVS_T-1'!M109,'UVS_T-1'!M164,'UVS_T-1'!M219,'UVS_T-1'!M274,'UVS_T-1'!M329,'UVS_T-1'!M384,'UVS_T-1'!M439,'UVS_T-1'!M494,'UVS_T-1'!M549,'UVS_T-1'!M604,'UVS_T-1'!M659)) ->  | N54: =IF(E54="","",SUM(tbl_20_UVS_01[[#This Row],[Kotli/Ostalo Proizvedena TE '[MWh']]],'UVS_T-1'!N109,'UVS_T-1'!N164,'UVS_T-1'!N219,'UVS_T-1'!N274,'UVS_T-1'!N329,'UVS_T-1'!N384,'UVS_T-1'!N439,'UVS_T-1'!N494,'UVS_T-1'!N549,'UVS_T-1'!N604,'UVS_T-1'!N659)) ->  | O54: =IF(E54="","",SUM(tbl_20_UVS_01[[#This Row],[Lastna raba TE '[MWh']]],'UVS_T-1'!O109,'UVS_T-1'!O164,'UVS_T-1'!O219,'UVS_T-1'!O274,'UVS_T-1'!O329,'UVS_T-1'!O384,'UVS_T-1'!O439,'UVS_T-1'!O494,'UVS_T-1'!O549,'UVS_T-1'!O604,'UVS_T-1'!O659)) ->  | P54: =IF(E54="","",SUM(tbl_20_UVS_01[[#This Row],[Znesek omrežnine, dajatev, prispevkov in dodatkov '[EUR']]],'UVS_T-1'!P109,'UVS_T-1'!P164,'UVS_T-1'!P219,'UVS_T-1'!P274,'UVS_T-1'!P329,'UVS_T-1'!P384,'UVS_T-1'!P439,'UVS_T-1'!P494,'UVS_T-1'!P549,'UVS_T-1'!P604,'UVS_T-1'!P659)) ->  | R54: =IFERROR(IF(E54="","",VLOOKUP((MATCH(E54,tblS_VarStroški_SD[ID_STRO_SD],0)-1),tblS_VarStroški_SD[],6)),"") ->  | S54: =IF(E54="","",SUM(tbl_20_UVS_01[[#This Row],[Znesek upravičenega stroška '[EUR']]],'UVS_T-1'!S109,'UVS_T-1'!S164,'UVS_T-1'!S219,'UVS_T-1'!S274,'UVS_T-1'!S329,'UVS_T-1'!S384,'UVS_T-1'!S439,'UVS_T-1'!S494,'UVS_T-1'!S549,'UVS_T-1'!S604,'UVS_T-1'!S659)) ->  | AQ54: a12 | AR54: 1 | AT54: 0 | AU54: =IF(IF(F54="",TRUE,COUNTIF(tbl_22_UVSsum[Naziv upravičenega variabilnega stroška],F54)=1)=FALSE,1,0) -> 0 | AV54: 0 | AW54: 0 | AX54: 0 | AY54: 0 | AZ54: 0 | BA54: 0 | BB54: 0 | BC54: 0 | BD54: 1 | BE54: 0 | BF54: 0 | BJ54: FALSE | BK54: FALSE | BL54: 0 | BM54: 0
D55: 0 | E55: =IFERROR(IF(F55="","",LOOKUP(MATCH(F55,'UVS_T-1'!$CG$726:$CG$757,0),'UVS_T-1'!$CD$726:$CD$757,'UVS_T-1'!$CF$726:$CF$757)),"AXX-XX") ->  | F55: =IF('UVS_T-1'!F55="","",'UVS_T-1'!F55) ->  | H55: =IFERROR(IF(E55="","",VLOOKUP((MATCH(E55,tblS_VarStroški_SD[ID_STRO_SD],0)-1),tblS_VarStroški_SD[],5)),"") ->  | I55: =IF(E55="","",SUM(tbl_20_UVS_01[[#This Row],[Poraba SPTE Proizvodnja EE '[enot']]],'UVS_T-1'!I110,'UVS_T-1'!I165,'UVS_T-1'!I220,'UVS_T-1'!I275,'UVS_T-1'!I330,'UVS_T-1'!I385,'UVS_T-1'!I440,'UVS_T-1'!I495,'UVS_T-1'!I550,'UVS_T-1'!I605,'UVS_T-1'!I660)) ->  | J55: =IF(F55="","",SUM(tbl_20_UVS_01[[#This Row],[Poraba SPTE Proizvodnja TE '[enot']]],'UVS_T-1'!J110,'UVS_T-1'!J165,'UVS_T-1'!J220,'UVS_T-1'!J275,'UVS_T-1'!J330,'UVS_T-1'!J385,'UVS_T-1'!J440,'UVS_T-1'!J495,'UVS_T-1'!J550,'UVS_T-1'!J605,'UVS_T-1'!J660)) ->  | K55: =IF(E55="","",SUM(tbl_20_UVS_01[[#This Row],[Poraba Kotli/Ostalo Proizvodnja TE '[enot']]],'UVS_T-1'!K110,'UVS_T-1'!K165,'UVS_T-1'!K220,'UVS_T-1'!K275,'UVS_T-1'!K330,'UVS_T-1'!K385,'UVS_T-1'!K440,'UVS_T-1'!K495,'UVS_T-1'!K550,'UVS_T-1'!K605,'UVS_T-1'!K660)) ->  | L55: =IF(E55="","",SUM(tbl_20_UVS_01[[#This Row],[SPTE Proizvedena EE '[MWh']]],'UVS_T-1'!L110,'UVS_T-1'!L165,'UVS_T-1'!L220,'UVS_T-1'!L275,'UVS_T-1'!L330,'UVS_T-1'!L385,'UVS_T-1'!L440,'UVS_T-1'!L495,'UVS_T-1'!L550,'UVS_T-1'!L605,'UVS_T-1'!L660)) ->  | M55: =IF(E55="","",SUM(tbl_20_UVS_01[[#This Row],[SPTE Proizvedena TE '[MWh']]],'UVS_T-1'!M110,'UVS_T-1'!M165,'UVS_T-1'!M220,'UVS_T-1'!M275,'UVS_T-1'!M330,'UVS_T-1'!M385,'UVS_T-1'!M440,'UVS_T-1'!M495,'UVS_T-1'!M550,'UVS_T-1'!M605,'UVS_T-1'!M660)) ->  | N55: =IF(E55="","",SUM(tbl_20_UVS_01[[#This Row],[Kotli/Ostalo Proizvedena TE '[MWh']]],'UVS_T-1'!N110,'UVS_T-1'!N165,'UVS_T-1'!N220,'UVS_T-1'!N275,'UVS_T-1'!N330,'UVS_T-1'!N385,'UVS_T-1'!N440,'UVS_T-1'!N495,'UVS_T-1'!N550,'UVS_T-1'!N605,'UVS_T-1'!N660)) ->  | O55: =IF(E55="","",SUM(tbl_20_UVS_01[[#This Row],[Lastna raba TE '[MWh']]],'UVS_T-1'!O110,'UVS_T-1'!O165,'UVS_T-1'!O220,'UVS_T-1'!O275,'UVS_T-1'!O330,'UVS_T-1'!O385,'UVS_T-1'!O440,'UVS_T-1'!O495,'UVS_T-1'!O550,'UVS_T-1'!O605,'UVS_T-1'!O660)) ->  | P55: =IF(E55="","",SUM(tbl_20_UVS_01[[#This Row],[Znesek omrežnine, dajatev, prispevkov in dodatkov '[EUR']]],'UVS_T-1'!P110,'UVS_T-1'!P165,'UVS_T-1'!P220,'UVS_T-1'!P275,'UVS_T-1'!P330,'UVS_T-1'!P385,'UVS_T-1'!P440,'UVS_T-1'!P495,'UVS_T-1'!P550,'UVS_T-1'!P605,'UVS_T-1'!P660)) ->  | R55: =IFERROR(IF(E55="","",VLOOKUP((MATCH(E55,tblS_VarStroški_SD[ID_STRO_SD],0)-1),tblS_VarStroški_SD[],6)),"") ->  | S55: =IF(E55="","",SUM(tbl_20_UVS_01[[#This Row],[Znesek upravičenega stroška '[EUR']]],'UVS_T-1'!S110,'UVS_T-1'!S165,'UVS_T-1'!S220,'UVS_T-1'!S275,'UVS_T-1'!S330,'UVS_T-1'!S385,'UVS_T-1'!S440,'UVS_T-1'!S495,'UVS_T-1'!S550,'UVS_T-1'!S605,'UVS_T-1'!S660)) ->  | AQ55: a13 | AR55: 1 | AT55: 0 | AU55: =IF(IF(F55="",TRUE,COUNTIF(tbl_22_UVSsum[Naziv upravičenega variabilnega stroška],F55)=1)=FALSE,1,0) -> 0 | AV55: 0 | AW55: 0 | AX55: 0 | AY55: 0 | AZ55: 0 | BA55: 0 | BB55: 0 | BC55: 0 | BD55: 1 | BE55: 0 | BF55: 0 | BJ55: FALSE | BK55: FALSE | BL55: 0 | BM55: 0
D56: 0 | E56: =IFERROR(IF(F56="","",LOOKUP(MATCH(F56,'UVS_T-1'!$CG$726:$CG$757,0),'UVS_T-1'!$CD$726:$CD$757,'UVS_T-1'!$CF$726:$CF$757)),"AXX-XX") ->  | F56: =IF('UVS_T-1'!F56="","",'UVS_T-1'!F56) ->  | H56: =IFERROR(IF(E56="","",VLOOKUP((MATCH(E56,tblS_VarStroški_SD[ID_STRO_SD],0)-1),tblS_VarStroški_SD[],5)),"") ->  | I56: =IF(E56="","",SUM(tbl_20_UVS_01[[#This Row],[Poraba SPTE Proizvodnja EE '[enot']]],'UVS_T-1'!I111,'UVS_T-1'!I166,'UVS_T-1'!I221,'UVS_T-1'!I276,'UVS_T-1'!I331,'UVS_T-1'!I386,'UVS_T-1'!I441,'UVS_T-1'!I496,'UVS_T-1'!I551,'UVS_T-1'!I606,'UVS_T-1'!I661)) ->  | J56: =IF(F56="","",SUM(tbl_20_UVS_01[[#This Row],[Poraba SPTE Proizvodnja TE '[enot']]],'UVS_T-1'!J111,'UVS_T-1'!J166,'UVS_T-1'!J221,'UVS_T-1'!J276,'UVS_T-1'!J331,'UVS_T-1'!J386,'UVS_T-1'!J441,'UVS_T-1'!J496,'UVS_T-1'!J551,'UVS_T-1'!J606,'UVS_T-1'!J661)) ->  | K56: =IF(E56="","",SUM(tbl_20_UVS_01[[#This Row],[Poraba Kotli/Ostalo Proizvodnja TE '[enot']]],'UVS_T-1'!K111,'UVS_T-1'!K166,'UVS_T-1'!K221,'UVS_T-1'!K276,'UVS_T-1'!K331,'UVS_T-1'!K386,'UVS_T-1'!K441,'UVS_T-1'!K496,'UVS_T-1'!K551,'UVS_T-1'!K606,'UVS_T-1'!K661)) ->  | L56: =IF(E56="","",SUM(tbl_20_UVS_01[[#This Row],[SPTE Proizvedena EE '[MWh']]],'UVS_T-1'!L111,'UVS_T-1'!L166,'UVS_T-1'!L221,'UVS_T-1'!L276,'UVS_T-1'!L331,'UVS_T-1'!L386,'UVS_T-1'!L441,'UVS_T-1'!L496,'UVS_T-1'!L551,'UVS_T-1'!L606,'UVS_T-1'!L661)) ->  | M56: =IF(E56="","",SUM(tbl_20_UVS_01[[#This Row],[SPTE Proizvedena TE '[MWh']]],'UVS_T-1'!M111,'UVS_T-1'!M166,'UVS_T-1'!M221,'UVS_T-1'!M276,'UVS_T-1'!M331,'UVS_T-1'!M386,'UVS_T-1'!M441,'UVS_T-1'!M496,'UVS_T-1'!M551,'UVS_T-1'!M606,'UVS_T-1'!M661)) ->  | N56: =IF(E56="","",SUM(tbl_20_UVS_01[[#This Row],[Kotli/Ostalo Proizvedena TE '[MWh']]],'UVS_T-1'!N111,'UVS_T-1'!N166,'UVS_T-1'!N221,'UVS_T-1'!N276,'UVS_T-1'!N331,'UVS_T-1'!N386,'UVS_T-1'!N441,'UVS_T-1'!N496,'UVS_T-1'!N551,'UVS_T-1'!N606,'UVS_T-1'!N661)) ->  | O56: =IF(E56="","",SUM(tbl_20_UVS_01[[#This Row],[Lastna raba TE '[MWh']]],'UVS_T-1'!O111,'UVS_T-1'!O166,'UVS_T-1'!O221,'UVS_T-1'!O276,'UVS_T-1'!O331,'UVS_T-1'!O386,'UVS_T-1'!O441,'UVS_T-1'!O496,'UVS_T-1'!O551,'UVS_T-1'!O606,'UVS_T-1'!O661)) ->  | P56: =IF(E56="","",SUM(tbl_20_UVS_01[[#This Row],[Znesek omrežnine, dajatev, prispevkov in dodatkov '[EUR']]],'UVS_T-1'!P111,'UVS_T-1'!P166,'UVS_T-1'!P221,'UVS_T-1'!P276,'UVS_T-1'!P331,'UVS_T-1'!P386,'UVS_T-1'!P441,'UVS_T-1'!P496,'UVS_T-1'!P551,'UVS_T-1'!P606,'UVS_T-1'!P661)) ->  | R56: =IFERROR(IF(E56="","",VLOOKUP((MATCH(E56,tblS_VarStroški_SD[ID_STRO_SD],0)-1),tblS_VarStroški_SD[],6)),"") ->  | S56: =IF(E56="","",SUM(tbl_20_UVS_01[[#This Row],[Znesek upravičenega stroška '[EUR']]],'UVS_T-1'!S111,'UVS_T-1'!S166,'UVS_T-1'!S221,'UVS_T-1'!S276,'UVS_T-1'!S331,'UVS_T-1'!S386,'UVS_T-1'!S441,'UVS_T-1'!S496,'UVS_T-1'!S551,'UVS_T-1'!S606,'UVS_T-1'!S661)) ->  | AQ56: a14 | AR56: 1 | AT56: 0 | AU56: =IF(IF(F56="",TRUE,COUNTIF(tbl_22_UVSsum[Naziv upravičenega variabilnega stroška],F56)=1)=FALSE,1,0) -> 0 | AV56: 0 | AW56: 0 | AX56: 0 | AY56: 0 | AZ56: 0 | BA56: 0 | BB56: 0 | BC56: 0 | BD56: 1 | BE56: 0 | BF56: 0 | BJ56: FALSE | BK56: FALSE | BL56: 0 | BM56: 0
D57: 0 | E57: =IFERROR(IF(F57="","",LOOKUP(MATCH(F57,'UVS_T-1'!$CG$726:$CG$757,0),'UVS_T-1'!$CD$726:$CD$757,'UVS_T-1'!$CF$726:$CF$757)),"AXX-XX") ->  | F57: =IF('UVS_T-1'!F57="","",'UVS_T-1'!F57) ->  | H57: =IFERROR(IF(E57="","",VLOOKUP((MATCH(E57,tblS_VarStroški_SD[ID_STRO_SD],0)-1),tblS_VarStroški_SD[],5)),"") ->  | I57: =IF(E57="","",SUM(tbl_20_UVS_01[[#This Row],[Poraba SPTE Proizvodnja EE '[enot']]],'UVS_T-1'!I112,'UVS_T-1'!I167,'UVS_T-1'!I222,'UVS_T-1'!I277,'UVS_T-1'!I332,'UVS_T-1'!I387,'UVS_T-1'!I442,'UVS_T-1'!I497,'UVS_T-1'!I552,'UVS_T-1'!I607,'UVS_T-1'!I662)) ->  | J57: =IF(F57="","",SUM(tbl_20_UVS_01[[#This Row],[Poraba SPTE Proizvodnja TE '[enot']]],'UVS_T-1'!J112,'UVS_T-1'!J167,'UVS_T-1'!J222,'UVS_T-1'!J277,'UVS_T-1'!J332,'UVS_T-1'!J387,'UVS_T-1'!J442,'UVS_T-1'!J497,'UVS_T-1'!J552,'UVS_T-1'!J607,'UVS_T-1'!J662)) ->  | K57: =IF(E57="","",SUM(tbl_20_UVS_01[[#This Row],[Poraba Kotli/Ostalo Proizvodnja TE '[enot']]],'UVS_T-1'!K112,'UVS_T-1'!K167,'UVS_T-1'!K222,'UVS_T-1'!K277,'UVS_T-1'!K332,'UVS_T-1'!K387,'UVS_T-1'!K442,'UVS_T-1'!K497,'UVS_T-1'!K552,'UVS_T-1'!K607,'UVS_T-1'!K662)) ->  | L57: =IF(E57="","",SUM(tbl_20_UVS_01[[#This Row],[SPTE Proizvedena EE '[MWh']]],'UVS_T-1'!L112,'UVS_T-1'!L167,'UVS_T-1'!L222,'UVS_T-1'!L277,'UVS_T-1'!L332,'UVS_T-1'!L387,'UVS_T-1'!L442,'UVS_T-1'!L497,'UVS_T-1'!L552,'UVS_T-1'!L607,'UVS_T-1'!L662)) ->  | M57: =IF(E57="","",SUM(tbl_20_UVS_01[[#This Row],[SPTE Proizvedena TE '[MWh']]],'UVS_T-1'!M112,'UVS_T-1'!M167,'UVS_T-1'!M222,'UVS_T-1'!M277,'UVS_T-1'!M332,'UVS_T-1'!M387,'UVS_T-1'!M442,'UVS_T-1'!M497,'UVS_T-1'!M552,'UVS_T-1'!M607,'UVS_T-1'!M662)) ->  | N57: =IF(E57="","",SUM(tbl_20_UVS_01[[#This Row],[Kotli/Ostalo Proizvedena TE '[MWh']]],'UVS_T-1'!N112,'UVS_T-1'!N167,'UVS_T-1'!N222,'UVS_T-1'!N277,'UVS_T-1'!N332,'UVS_T-1'!N387,'UVS_T-1'!N442,'UVS_T-1'!N497,'UVS_T-1'!N552,'UVS_T-1'!N607,'UVS_T-1'!N662)) ->  | O57: =IF(E57="","",SUM(tbl_20_UVS_01[[#This Row],[Lastna raba TE '[MWh']]],'UVS_T-1'!O112,'UVS_T-1'!O167,'UVS_T-1'!O222,'UVS_T-1'!O277,'UVS_T-1'!O332,'UVS_T-1'!O387,'UVS_T-1'!O442,'UVS_T-1'!O497,'UVS_T-1'!O552,'UVS_T-1'!O607,'UVS_T-1'!O662)) ->  | P57: =IF(E57="","",SUM(tbl_20_UVS_01[[#This Row],[Znesek omrežnine, dajatev, prispevkov in dodatkov '[EUR']]],'UVS_T-1'!P112,'UVS_T-1'!P167,'UVS_T-1'!P222,'UVS_T-1'!P277,'UVS_T-1'!P332,'UVS_T-1'!P387,'UVS_T-1'!P442,'UVS_T-1'!P497,'UVS_T-1'!P552,'UVS_T-1'!P607,'UVS_T-1'!P662)) ->  | R57: =IFERROR(IF(E57="","",VLOOKUP((MATCH(E57,tblS_VarStroški_SD[ID_STRO_SD],0)-1),tblS_VarStroški_SD[],6)),"") ->  | S57: =IF(E57="","",SUM(tbl_20_UVS_01[[#This Row],[Znesek upravičenega stroška '[EUR']]],'UVS_T-1'!S112,'UVS_T-1'!S167,'UVS_T-1'!S222,'UVS_T-1'!S277,'UVS_T-1'!S332,'UVS_T-1'!S387,'UVS_T-1'!S442,'UVS_T-1'!S497,'UVS_T-1'!S552,'UVS_T-1'!S607,'UVS_T-1'!S662)) ->  | AQ57: a15 | AR57: 1 | AT57: 0 | AU57: =IF(IF(F57="",TRUE,COUNTIF(tbl_22_UVSsum[Naziv upravičenega variabilnega stroška],F57)=1)=FALSE,1,0) -> 0 | AV57: 0 | AW57: 0 | AX57: 0 | AY57: 0 | AZ57: 0 | BA57: 0 | BB57: 0 | BC57: 0 | BD57: 1 | BE57: 0 | BF57: 0 | BJ57: FALSE | BK57: FALSE | BL57: 0 | BM57: 0
D58: 0 | E58: =IFERROR(IF(F58="","",LOOKUP(MATCH(F58,'UVS_T-1'!$CG$726:$CG$757,0),'UVS_T-1'!$CD$726:$CD$757,'UVS_T-1'!$CF$726:$CF$757)),"AXX-XX") ->  | F58: =IF('UVS_T-1'!F58="","",'UVS_T-1'!F58) ->  | H58: =IFERROR(IF(E58="","",VLOOKUP((MATCH(E58,tblS_VarStroški_SD[ID_STRO_SD],0)-1),tblS_VarStroški_SD[],5)),"") ->  | I58: =IF(E58="","",SUM(tbl_20_UVS_01[[#This Row],[Poraba SPTE Proizvodnja EE '[enot']]],'UVS_T-1'!I113,'UVS_T-1'!I168,'UVS_T-1'!I223,'UVS_T-1'!I278,'UVS_T-1'!I333,'UVS_T-1'!I388,'UVS_T-1'!I443,'UVS_T-1'!I498,'UVS_T-1'!I553,'UVS_T-1'!I608,'UVS_T-1'!I663)) ->  | J58: =IF(F58="","",SUM(tbl_20_UVS_01[[#This Row],[Poraba SPTE Proizvodnja TE '[enot']]],'UVS_T-1'!J113,'UVS_T-1'!J168,'UVS_T-1'!J223,'UVS_T-1'!J278,'UVS_T-1'!J333,'UVS_T-1'!J388,'UVS_T-1'!J443,'UVS_T-1'!J498,'UVS_T-1'!J553,'UVS_T-1'!J608,'UVS_T-1'!J663)) ->  | K58: =IF(E58="","",SUM(tbl_20_UVS_01[[#This Row],[Poraba Kotli/Ostalo Proizvodnja TE '[enot']]],'UVS_T-1'!K113,'UVS_T-1'!K168,'UVS_T-1'!K223,'UVS_T-1'!K278,'UVS_T-1'!K333,'UVS_T-1'!K388,'UVS_T-1'!K443,'UVS_T-1'!K498,'UVS_T-1'!K553,'UVS_T-1'!K608,'UVS_T-1'!K663)) ->  | L58: =IF(E58="","",SUM(tbl_20_UVS_01[[#This Row],[SPTE Proizvedena EE '[MWh']]],'UVS_T-1'!L113,'UVS_T-1'!L168,'UVS_T-1'!L223,'UVS_T-1'!L278,'UVS_T-1'!L333,'UVS_T-1'!L388,'UVS_T-1'!L443,'UVS_T-1'!L498,'UVS_T-1'!L553,'UVS_T-1'!L608,'UVS_T-1'!L663)) ->  | M58: =IF(E58="","",SUM(tbl_20_UVS_01[[#This Row],[SPTE Proizvedena TE '[MWh']]],'UVS_T-1'!M113,'UVS_T-1'!M168,'UVS_T-1'!M223,'UVS_T-1'!M278,'UVS_T-1'!M333,'UVS_T-1'!M388,'UVS_T-1'!M443,'UVS_T-1'!M498,'UVS_T-1'!M553,'UVS_T-1'!M608,'UVS_T-1'!M663)) ->  | N58: =IF(E58="","",SUM(tbl_20_UVS_01[[#This Row],[Kotli/Ostalo Proizvedena TE '[MWh']]],'UVS_T-1'!N113,'UVS_T-1'!N168,'UVS_T-1'!N223,'UVS_T-1'!N278,'UVS_T-1'!N333,'UVS_T-1'!N388,'UVS_T-1'!N443,'UVS_T-1'!N498,'UVS_T-1'!N553,'UVS_T-1'!N608,'UVS_T-1'!N663)) ->  | O58: =IF(E58="","",SUM(tbl_20_UVS_01[[#This Row],[Lastna raba TE '[MWh']]],'UVS_T-1'!O113,'UVS_T-1'!O168,'UVS_T-1'!O223,'UVS_T-1'!O278,'UVS_T-1'!O333,'UVS_T-1'!O388,'UVS_T-1'!O443,'UVS_T-1'!O498,'UVS_T-1'!O553,'UVS_T-1'!O608,'UVS_T-1'!O663)) ->  | P58: =IF(E58="","",SUM(tbl_20_UVS_01[[#This Row],[Znesek omrežnine, dajatev, prispevkov in dodatkov '[EUR']]],'UVS_T-1'!P113,'UVS_T-1'!P168,'UVS_T-1'!P223,'UVS_T-1'!P278,'UVS_T-1'!P333,'UVS_T-1'!P388,'UVS_T-1'!P443,'UVS_T-1'!P498,'UVS_T-1'!P553,'UVS_T-1'!P608,'UVS_T-1'!P663)) ->  | R58: =IFERROR(IF(E58="","",VLOOKUP((MATCH(E58,tblS_VarStroški_SD[ID_STRO_SD],0)-1),tblS_VarStroški_SD[],6)),"") ->  | S58: =IF(E58="","",SUM(tbl_20_UVS_01[[#This Row],[Znesek upravičenega stroška '[EUR']]],'UVS_T-1'!S113,'UVS_T-1'!S168,'UVS_T-1'!S223,'UVS_T-1'!S278,'UVS_T-1'!S333,'UVS_T-1'!S388,'UVS_T-1'!S443,'UVS_T-1'!S498,'UVS_T-1'!S553,'UVS_T-1'!S608,'UVS_T-1'!S663)) ->  | AQ58: a16 | AR58: 1 | AT58: 0 | AU58: =IF(IF(F58="",TRUE,COUNTIF(tbl_22_UVSsum[Naziv upravičenega variabilnega stroška],F58)=1)=FALSE,1,0) -> 0 | AV58: 0 | AW58: 0 | AX58: 0 | AY58: 0 | AZ58: 0 | BA58: 0 | BB58: 0 | BC58: 0 | BD58: 1 | BE58: 0 | BF58: 0 | BJ58: FALSE | BK58: FALSE | BL58: 0 | BM58: 0
D59: 0 | E59: =IFERROR(IF(F59="","",LOOKUP(MATCH(F59,'UVS_T-1'!$CG$726:$CG$757,0),'UVS_T-1'!$CD$726:$CD$757,'UVS_T-1'!$CF$726:$CF$757)),"AXX-XX") ->  | F59: =IF('UVS_T-1'!F59="","",'UVS_T-1'!F59) ->  | H59: =IFERROR(IF(E59="","",VLOOKUP((MATCH(E59,tblS_VarStroški_SD[ID_STRO_SD],0)-1),tblS_VarStroški_SD[],5)),"") ->  | I59: =IF(E59="","",SUM(tbl_20_UVS_01[[#This Row],[Poraba SPTE Proizvodnja EE '[enot']]],'UVS_T-1'!I114,'UVS_T-1'!I169,'UVS_T-1'!I224,'UVS_T-1'!I279,'UVS_T-1'!I334,'UVS_T-1'!I389,'UVS_T-1'!I444,'UVS_T-1'!I499,'UVS_T-1'!I554,'UVS_T-1'!I609,'UVS_T-1'!I664)) ->  | J59: =IF(F59="","",SUM(tbl_20_UVS_01[[#This Row],[Poraba SPTE Proizvodnja TE '[enot']]],'UVS_T-1'!J114,'UVS_T-1'!J169,'UVS_T-1'!J224,'UVS_T-1'!J279,'UVS_T-1'!J334,'UVS_T-1'!J389,'UVS_T-1'!J444,'UVS_T-1'!J499,'UVS_T-1'!J554,'UVS_T-1'!J609,'UVS_T-1'!J664)) ->  | K59: =IF(E59="","",SUM(tbl_20_UVS_01[[#This Row],[Poraba Kotli/Ostalo Proizvodnja TE '[enot']]],'UVS_T-1'!K114,'UVS_T-1'!K169,'UVS_T-1'!K224,'UVS_T-1'!K279,'UVS_T-1'!K334,'UVS_T-1'!K389,'UVS_T-1'!K444,'UVS_T-1'!K499,'UVS_T-1'!K554,'UVS_T-1'!K609,'UVS_T-1'!K664)) ->  | L59: =IF(E59="","",SUM(tbl_20_UVS_01[[#This Row],[SPTE Proizvedena EE '[MWh']]],'UVS_T-1'!L114,'UVS_T-1'!L169,'UVS_T-1'!L224,'UVS_T-1'!L279,'UVS_T-1'!L334,'UVS_T-1'!L389,'UVS_T-1'!L444,'UVS_T-1'!L499,'UVS_T-1'!L554,'UVS_T-1'!L609,'UVS_T-1'!L664)) ->  | M59: =IF(E59="","",SUM(tbl_20_UVS_01[[#This Row],[SPTE Proizvedena TE '[MWh']]],'UVS_T-1'!M114,'UVS_T-1'!M169,'UVS_T-1'!M224,'UVS_T-1'!M279,'UVS_T-1'!M334,'UVS_T-1'!M389,'UVS_T-1'!M444,'UVS_T-1'!M499,'UVS_T-1'!M554,'UVS_T-1'!M609,'UVS_T-1'!M664)) ->  | N59: =IF(E59="","",SUM(tbl_20_UVS_01[[#This Row],[Kotli/Ostalo Proizvedena TE '[MWh']]],'UVS_T-1'!N114,'UVS_T-1'!N169,'UVS_T-1'!N224,'UVS_T-1'!N279,'UVS_T-1'!N334,'UVS_T-1'!N389,'UVS_T-1'!N444,'UVS_T-1'!N499,'UVS_T-1'!N554,'UVS_T-1'!N609,'UVS_T-1'!N664)) ->  | O59: =IF(E59="","",SUM(tbl_20_UVS_01[[#This Row],[Lastna raba TE '[MWh']]],'UVS_T-1'!O114,'UVS_T-1'!O169,'UVS_T-1'!O224,'UVS_T-1'!O279,'UVS_T-1'!O334,'UVS_T-1'!O389,'UVS_T-1'!O444,'UVS_T-1'!O499,'UVS_T-1'!O554,'UVS_T-1'!O609,'UVS_T-1'!O664)) ->  | P59: =IF(E59="","",SUM(tbl_20_UVS_01[[#This Row],[Znesek omrežnine, dajatev, prispevkov in dodatkov '[EUR']]],'UVS_T-1'!P114,'UVS_T-1'!P169,'UVS_T-1'!P224,'UVS_T-1'!P279,'UVS_T-1'!P334,'UVS_T-1'!P389,'UVS_T-1'!P444,'UVS_T-1'!P499,'UVS_T-1'!P554,'UVS_T-1'!P609,'UVS_T-1'!P664)) ->  | R59: =IFERROR(IF(E59="","",VLOOKUP((MATCH(E59,tblS_VarStroški_SD[ID_STRO_SD],0)-1),tblS_VarStroški_SD[],6)),"") ->  | S59: =IF(E59="","",SUM(tbl_20_UVS_01[[#This Row],[Znesek upravičenega stroška '[EUR']]],'UVS_T-1'!S114,'UVS_T-1'!S169,'UVS_T-1'!S224,'UVS_T-1'!S279,'UVS_T-1'!S334,'UVS_T-1'!S389,'UVS_T-1'!S444,'UVS_T-1'!S499,'UVS_T-1'!S554,'UVS_T-1'!S609,'UVS_T-1'!S664)) ->  | AQ59: a17 | AR59: 1 | AT59: 0 | AU59: =IF(IF(F59="",TRUE,COUNTIF(tbl_22_UVSsum[Naziv upravičenega variabilnega stroška],F59)=1)=FALSE,1,0) -> 0 | AV59: 0 | AW59: 0 | AX59: 0 | AY59: 0 | AZ59: 0 | BA59: 0 | BB59: 0 | BC59: 0 | BD59: 1 | BE59: 0 | BF59: 0 | BJ59: FALSE | BK59: FALSE | BL59: 0 | BM59: 0
D60: 0 | E60: =IFERROR(IF(F60="","",LOOKUP(MATCH(F60,'UVS_T-1'!$CG$726:$CG$757,0),'UVS_T-1'!$CD$726:$CD$757,'UVS_T-1'!$CF$726:$CF$757)),"AXX-XX") ->  | F60: =IF('UVS_T-1'!F60="","",'UVS_T-1'!F60) ->  | H60: =IFERROR(IF(E60="","",VLOOKUP((MATCH(E60,tblS_VarStroški_SD[ID_STRO_SD],0)-1),tblS_VarStroški_SD[],5)),"") ->  | I60: =IF(E60="","",SUM(tbl_20_UVS_01[[#This Row],[Poraba SPTE Proizvodnja EE '[enot']]],'UVS_T-1'!I115,'UVS_T-1'!I170,'UVS_T-1'!I225,'UVS_T-1'!I280,'UVS_T-1'!I335,'UVS_T-1'!I390,'UVS_T-1'!I445,'UVS_T-1'!I500,'UVS_T-1'!I555,'UVS_T-1'!I610,'UVS_T-1'!I665)) ->  | J60: =IF(F60="","",SUM(tbl_20_UVS_01[[#This Row],[Poraba SPTE Proizvodnja TE '[enot']]],'UVS_T-1'!J115,'UVS_T-1'!J170,'UVS_T-1'!J225,'UVS_T-1'!J280,'UVS_T-1'!J335,'UVS_T-1'!J390,'UVS_T-1'!J445,'UVS_T-1'!J500,'UVS_T-1'!J555,'UVS_T-1'!J610,'UVS_T-1'!J665)) ->  | K60: =IF(E60="","",SUM(tbl_20_UVS_01[[#This Row],[Poraba Kotli/Ostalo Proizvodnja TE '[enot']]],'UVS_T-1'!K115,'UVS_T-1'!K170,'UVS_T-1'!K225,'UVS_T-1'!K280,'UVS_T-1'!K335,'UVS_T-1'!K390,'UVS_T-1'!K445,'UVS_T-1'!K500,'UVS_T-1'!K555,'UVS_T-1'!K610,'UVS_T-1'!K665)) ->  | L60: =IF(E60="","",SUM(tbl_20_UVS_01[[#This Row],[SPTE Proizvedena EE '[MWh']]],'UVS_T-1'!L115,'UVS_T-1'!L170,'UVS_T-1'!L225,'UVS_T-1'!L280,'UVS_T-1'!L335,'UVS_T-1'!L390,'UVS_T-1'!L445,'UVS_T-1'!L500,'UVS_T-1'!L555,'UVS_T-1'!L610,'UVS_T-1'!L665)) ->  | M60: =IF(E60="","",SUM(tbl_20_UVS_01[[#This Row],[SPTE Proizvedena TE '[MWh']]],'UVS_T-1'!M115,'UVS_T-1'!M170,'UVS_T-1'!M225,'UVS_T-1'!M280,'UVS_T-1'!M335,'UVS_T-1'!M390,'UVS_T-1'!M445,'UVS_T-1'!M500,'UVS_T-1'!M555,'UVS_T-1'!M610,'UVS_T-1'!M665)) ->  | N60: =IF(E60="","",SUM(tbl_20_UVS_01[[#This Row],[Kotli/Ostalo Proizvedena TE '[MWh']]],'UVS_T-1'!N115,'UVS_T-1'!N170,'UVS_T-1'!N225,'UVS_T-1'!N280,'UVS_T-1'!N335,'UVS_T-1'!N390,'UVS_T-1'!N445,'UVS_T-1'!N500,'UVS_T-1'!N555,'UVS_T-1'!N610,'UVS_T-1'!N665)) ->  | O60: =IF(E60="","",SUM(tbl_20_UVS_01[[#This Row],[Lastna raba TE '[MWh']]],'UVS_T-1'!O115,'UVS_T-1'!O170,'UVS_T-1'!O225,'UVS_T-1'!O280,'UVS_T-1'!O335,'UVS_T-1'!O390,'UVS_T-1'!O445,'UVS_T-1'!O500,'UVS_T-1'!O555,'UVS_T-1'!O610,'UVS_T-1'!O665)) ->  | P60: =IF(E60="","",SUM(tbl_20_UVS_01[[#This Row],[Znesek omrežnine, dajatev, prispevkov in dodatkov '[EUR']]],'UVS_T-1'!P115,'UVS_T-1'!P170,'UVS_T-1'!P225,'UVS_T-1'!P280,'UVS_T-1'!P335,'UVS_T-1'!P390,'UVS_T-1'!P445,'UVS_T-1'!P500,'UVS_T-1'!P555,'UVS_T-1'!P610,'UVS_T-1'!P665)) ->  | R60: =IFERROR(IF(E60="","",VLOOKUP((MATCH(E60,tblS_VarStroški_SD[ID_STRO_SD],0)-1),tblS_VarStroški_SD[],6)),"") ->  | S60: =IF(E60="","",SUM(tbl_20_UVS_01[[#This Row],[Znesek upravičenega stroška '[EUR']]],'UVS_T-1'!S115,'UVS_T-1'!S170,'UVS_T-1'!S225,'UVS_T-1'!S280,'UVS_T-1'!S335,'UVS_T-1'!S390,'UVS_T-1'!S445,'UVS_T-1'!S500,'UVS_T-1'!S555,'UVS_T-1'!S610,'UVS_T-1'!S665)) ->  | AQ60: a18 | AR60: 1 | AT60: 0 | AU60: =IF(IF(F60="",TRUE,COUNTIF(tbl_22_UVSsum[Naziv upravičenega variabilnega stroška],F60)=1)=FALSE,1,0) -> 0 | AV60: 0 | AW60: 0 | AX60: 0 | AY60: 0 | AZ60: 0 | BA60: 0 | BB60: 0 | BC60: 0 | BD60: 1 | BE60: 0 | BF60: 0 | BJ60: FALSE | BK60: FALSE | BL60: 0 | BM60: 0
D61: 0 | E61: =IFERROR(IF(F61="","",LOOKUP(MATCH(F61,'UVS_T-1'!$CG$726:$CG$757,0),'UVS_T-1'!$CD$726:$CD$757,'UVS_T-1'!$CF$726:$CF$757)),"AXX-XX") ->  | F61: =IF('UVS_T-1'!F61="","",'UVS_T-1'!F61) ->  | H61: =IFERROR(IF(E61="","",VLOOKUP((MATCH(E61,tblS_VarStroški_SD[ID_STRO_SD],0)-1),tblS_VarStroški_SD[],5)),"") ->  | I61: =IF(E61="","",SUM(tbl_20_UVS_01[[#This Row],[Poraba SPTE Proizvodnja EE '[enot']]],'UVS_T-1'!I116,'UVS_T-1'!I171,'UVS_T-1'!I226,'UVS_T-1'!I281,'UVS_T-1'!I336,'UVS_T-1'!I391,'UVS_T-1'!I446,'UVS_T-1'!I501,'UVS_T-1'!I556,'UVS_T-1'!I611,'UVS_T-1'!I666)) ->  | J61: =IF(F61="","",SUM(tbl_20_UVS_01[[#This Row],[Poraba SPTE Proizvodnja TE '[enot']]],'UVS_T-1'!J116,'UVS_T-1'!J171,'UVS_T-1'!J226,'UVS_T-1'!J281,'UVS_T-1'!J336,'UVS_T-1'!J391,'UVS_T-1'!J446,'UVS_T-1'!J501,'UVS_T-1'!J556,'UVS_T-1'!J611,'UVS_T-1'!J666)) ->  | K61: =IF(E61="","",SUM(tbl_20_UVS_01[[#This Row],[Poraba Kotli/Ostalo Proizvodnja TE '[enot']]],'UVS_T-1'!K116,'UVS_T-1'!K171,'UVS_T-1'!K226,'UVS_T-1'!K281,'UVS_T-1'!K336,'UVS_T-1'!K391,'UVS_T-1'!K446,'UVS_T-1'!K501,'UVS_T-1'!K556,'UVS_T-1'!K611,'UVS_T-1'!K666)) ->  | L61: =IF(E61="","",SUM(tbl_20_UVS_01[[#This Row],[SPTE Proizvedena EE '[MWh']]],'UVS_T-1'!L116,'UVS_T-1'!L171,'UVS_T-1'!L226,'UVS_T-1'!L281,'UVS_T-1'!L336,'UVS_T-1'!L391,'UVS_T-1'!L446,'UVS_T-1'!L501,'UVS_T-1'!L556,'UVS_T-1'!L611,'UVS_T-1'!L666)) ->  | M61: =IF(E61="","",SUM(tbl_20_UVS_01[[#This Row],[SPTE Proizvedena TE '[MWh']]],'UVS_T-1'!M116,'UVS_T-1'!M171,'UVS_T-1'!M226,'UVS_T-1'!M281,'UVS_T-1'!M336,'UVS_T-1'!M391,'UVS_T-1'!M446,'UVS_T-1'!M501,'UVS_T-1'!M556,'UVS_T-1'!M611,'UVS_T-1'!M666)) ->  | N61: =IF(E61="","",SUM(tbl_20_UVS_01[[#This Row],[Kotli/Ostalo Proizvedena TE '[MWh']]],'UVS_T-1'!N116,'UVS_T-1'!N171,'UVS_T-1'!N226,'UVS_T-1'!N281,'UVS_T-1'!N336,'UVS_T-1'!N391,'UVS_T-1'!N446,'UVS_T-1'!N501,'UVS_T-1'!N556,'UVS_T-1'!N611,'UVS_T-1'!N666)) ->  | O61: =IF(E61="","",SUM(tbl_20_UVS_01[[#This Row],[Lastna raba TE '[MWh']]],'UVS_T-1'!O116,'UVS_T-1'!O171,'UVS_T-1'!O226,'UVS_T-1'!O281,'UVS_T-1'!O336,'UVS_T-1'!O391,'UVS_T-1'!O446,'UVS_T-1'!O501,'UVS_T-1'!O556,'UVS_T-1'!O611,'UVS_T-1'!O666)) ->  | P61: =IF(E61="","",SUM(tbl_20_UVS_01[[#This Row],[Znesek omrežnine, dajatev, prispevkov in dodatkov '[EUR']]],'UVS_T-1'!P116,'UVS_T-1'!P171,'UVS_T-1'!P226,'UVS_T-1'!P281,'UVS_T-1'!P336,'UVS_T-1'!P391,'UVS_T-1'!P446,'UVS_T-1'!P501,'UVS_T-1'!P556,'UVS_T-1'!P611,'UVS_T-1'!P666)) ->  | R61: =IFERROR(IF(E61="","",VLOOKUP((MATCH(E61,tblS_VarStroški_SD[ID_STRO_SD],0)-1),tblS_VarStroški_SD[],6)),"") ->  | S61: =IF(E61="","",SUM(tbl_20_UVS_01[[#This Row],[Znesek upravičenega stroška '[EUR']]],'UVS_T-1'!S116,'UVS_T-1'!S171,'UVS_T-1'!S226,'UVS_T-1'!S281,'UVS_T-1'!S336,'UVS_T-1'!S391,'UVS_T-1'!S446,'UVS_T-1'!S501,'UVS_T-1'!S556,'UVS_T-1'!S611,'UVS_T-1'!S666)) ->  | AQ61: a19 | AR61: 1 | AT61: 0 | AU61: =IF(IF(F61="",TRUE,COUNTIF(tbl_22_UVSsum[Naziv upravičenega variabilnega stroška],F61)=1)=FALSE,1,0) -> 0 | AV61: 0 | AW61: 0 | AX61: 0 | AY61: 0 | AZ61: 0 | BA61: 0 | BB61: 0 | BC61: 0 | BD61: 1 | BE61: 0 | BF61: 0 | BJ61: FALSE | BK61: FALSE | BL61: 0 | BM61: 0
D62: 0 | E62: =IFERROR(IF(F62="","",LOOKUP(MATCH(F62,'UVS_T-1'!$CG$726:$CG$757,0),'UVS_T-1'!$CD$726:$CD$757,'UVS_T-1'!$CF$726:$CF$757)),"AXX-XX") ->  | F62: =IF('UVS_T-1'!F62="","",'UVS_T-1'!F62) ->  | H62: =IFERROR(IF(E62="","",VLOOKUP((MATCH(E62,tblS_VarStroški_SD[ID_STRO_SD],0)-1),tblS_VarStroški_SD[],5)),"") ->  | I62: =IF(E62="","",SUM(tbl_20_UVS_01[[#This Row],[Poraba SPTE Proizvodnja EE '[enot']]],'UVS_T-1'!I117,'UVS_T-1'!I172,'UVS_T-1'!I227,'UVS_T-1'!I282,'UVS_T-1'!I337,'UVS_T-1'!I392,'UVS_T-1'!I447,'UVS_T-1'!I502,'UVS_T-1'!I557,'UVS_T-1'!I612,'UVS_T-1'!I667)) ->  | J62: =IF(F62="","",SUM(tbl_20_UVS_01[[#This Row],[Poraba SPTE Proizvodnja TE '[enot']]],'UVS_T-1'!J117,'UVS_T-1'!J172,'UVS_T-1'!J227,'UVS_T-1'!J282,'UVS_T-1'!J337,'UVS_T-1'!J392,'UVS_T-1'!J447,'UVS_T-1'!J502,'UVS_T-1'!J557,'UVS_T-1'!J612,'UVS_T-1'!J667)) ->  | K62: =IF(E62="","",SUM(tbl_20_UVS_01[[#This Row],[Poraba Kotli/Ostalo Proizvodnja TE '[enot']]],'UVS_T-1'!K117,'UVS_T-1'!K172,'UVS_T-1'!K227,'UVS_T-1'!K282,'UVS_T-1'!K337,'UVS_T-1'!K392,'UVS_T-1'!K447,'UVS_T-1'!K502,'UVS_T-1'!K557,'UVS_T-1'!K612,'UVS_T-1'!K667)) ->  | L62: =IF(E62="","",SUM(tbl_20_UVS_01[[#This Row],[SPTE Proizvedena EE '[MWh']]],'UVS_T-1'!L117,'UVS_T-1'!L172,'UVS_T-1'!L227,'UVS_T-1'!L282,'UVS_T-1'!L337,'UVS_T-1'!L392,'UVS_T-1'!L447,'UVS_T-1'!L502,'UVS_T-1'!L557,'UVS_T-1'!L612,'UVS_T-1'!L667)) ->  | M62: =IF(E62="","",SUM(tbl_20_UVS_01[[#This Row],[SPTE Proizvedena TE '[MWh']]],'UVS_T-1'!M117,'UVS_T-1'!M172,'UVS_T-1'!M227,'UVS_T-1'!M282,'UVS_T-1'!M337,'UVS_T-1'!M392,'UVS_T-1'!M447,'UVS_T-1'!M502,'UVS_T-1'!M557,'UVS_T-1'!M612,'UVS_T-1'!M667)) ->  | N62: =IF(E62="","",SUM(tbl_20_UVS_01[[#This Row],[Kotli/Ostalo Proizvedena TE '[MWh']]],'UVS_T-1'!N117,'UVS_T-1'!N172,'UVS_T-1'!N227,'UVS_T-1'!N282,'UVS_T-1'!N337,'UVS_T-1'!N392,'UVS_T-1'!N447,'UVS_T-1'!N502,'UVS_T-1'!N557,'UVS_T-1'!N612,'UVS_T-1'!N667)) ->  | O62: =IF(E62="","",SUM(tbl_20_UVS_01[[#This Row],[Lastna raba TE '[MWh']]],'UVS_T-1'!O117,'UVS_T-1'!O172,'UVS_T-1'!O227,'UVS_T-1'!O282,'UVS_T-1'!O337,'UVS_T-1'!O392,'UVS_T-1'!O447,'UVS_T-1'!O502,'UVS_T-1'!O557,'UVS_T-1'!O612,'UVS_T-1'!O667)) ->  | P62: =IF(E62="","",SUM(tbl_20_UVS_01[[#This Row],[Znesek omrežnine, dajatev, prispevkov in dodatkov '[EUR']]],'UVS_T-1'!P117,'UVS_T-1'!P172,'UVS_T-1'!P227,'UVS_T-1'!P282,'UVS_T-1'!P337,'UVS_T-1'!P392,'UVS_T-1'!P447,'UVS_T-1'!P502,'UVS_T-1'!P557,'UVS_T-1'!P612,'UVS_T-1'!P667)) ->  | R62: =IFERROR(IF(E62="","",VLOOKUP((MATCH(E62,tblS_VarStroški_SD[ID_STRO_SD],0)-1),tblS_VarStroški_SD[],6)),"") ->  | S62: =IF(E62="","",SUM(tbl_20_UVS_01[[#This Row],[Znesek upravičenega stroška '[EUR']]],'UVS_T-1'!S117,'UVS_T-1'!S172,'UVS_T-1'!S227,'UVS_T-1'!S282,'UVS_T-1'!S337,'UVS_T-1'!S392,'UVS_T-1'!S447,'UVS_T-1'!S502,'UVS_T-1'!S557,'UVS_T-1'!S612,'UVS_T-1'!S667)) ->  | AQ62: a20 | AR62: 1 | AT62: 0 | AU62: =IF(IF(F62="",TRUE,COUNTIF(tbl_22_UVSsum[Naziv upravičenega variabilnega stroška],F62)=1)=FALSE,1,0) -> 0 | AV62: 0 | AW62: 0 | AX62: 0 | AY62: 0 | AZ62: 0 | BA62: 0 | BB62: 0 | BC62: 0 | BD62: 1 | BE62: 0 | BF62: 0 | BJ62: FALSE | BK62: FALSE | BL62: 0 | BM62: 0
D63: 0 | E63: =IFERROR(IF(F63="","",LOOKUP(MATCH(F63,'UVS_T-1'!$CG$726:$CG$757,0),'UVS_T-1'!$CD$726:$CD$757,'UVS_T-1'!$CF$726:$CF$757)),"AXX-XX") ->  | F63: =IF('UVS_T-1'!F63="","",'UVS_T-1'!F63) ->  | H63: =IFERROR(IF(E63="","",VLOOKUP((MATCH(E63,tblS_VarStroški_SD[ID_STRO_SD],0)-1),tblS_VarStroški_SD[],5)),"") ->  | I63: =IF(E63="","",SUM(tbl_20_UVS_01[[#This Row],[Poraba SPTE Proizvodnja EE '[enot']]],'UVS_T-1'!I118,'UVS_T-1'!I173,'UVS_T-1'!I228,'UVS_T-1'!I283,'UVS_T-1'!I338,'UVS_T-1'!I393,'UVS_T-1'!I448,'UVS_T-1'!I503,'UVS_T-1'!I558,'UVS_T-1'!I613,'UVS_T-1'!I668)) ->  | J63: =IF(F63="","",SUM(tbl_20_UVS_01[[#This Row],[Poraba SPTE Proizvodnja TE '[enot']]],'UVS_T-1'!J118,'UVS_T-1'!J173,'UVS_T-1'!J228,'UVS_T-1'!J283,'UVS_T-1'!J338,'UVS_T-1'!J393,'UVS_T-1'!J448,'UVS_T-1'!J503,'UVS_T-1'!J558,'UVS_T-1'!J613,'UVS_T-1'!J668)) ->  | K63: =IF(E63="","",SUM(tbl_20_UVS_01[[#This Row],[Poraba Kotli/Ostalo Proizvodnja TE '[enot']]],'UVS_T-1'!K118,'UVS_T-1'!K173,'UVS_T-1'!K228,'UVS_T-1'!K283,'UVS_T-1'!K338,'UVS_T-1'!K393,'UVS_T-1'!K448,'UVS_T-1'!K503,'UVS_T-1'!K558,'UVS_T-1'!K613,'UVS_T-1'!K668)) ->  | L63: =IF(E63="","",SUM(tbl_20_UVS_01[[#This Row],[SPTE Proizvedena EE '[MWh']]],'UVS_T-1'!L118,'UVS_T-1'!L173,'UVS_T-1'!L228,'UVS_T-1'!L283,'UVS_T-1'!L338,'UVS_T-1'!L393,'UVS_T-1'!L448,'UVS_T-1'!L503,'UVS_T-1'!L558,'UVS_T-1'!L613,'UVS_T-1'!L668)) ->  | M63: =IF(E63="","",SUM(tbl_20_UVS_01[[#This Row],[SPTE Proizvedena TE '[MWh']]],'UVS_T-1'!M118,'UVS_T-1'!M173,'UVS_T-1'!M228,'UVS_T-1'!M283,'UVS_T-1'!M338,'UVS_T-1'!M393,'UVS_T-1'!M448,'UVS_T-1'!M503,'UVS_T-1'!M558,'UVS_T-1'!M613,'UVS_T-1'!M668)) ->  | N63: =IF(E63="","",SUM(tbl_20_UVS_01[[#This Row],[Kotli/Ostalo Proizvedena TE '[MWh']]],'UVS_T-1'!N118,'UVS_T-1'!N173,'UVS_T-1'!N228,'UVS_T-1'!N283,'UVS_T-1'!N338,'UVS_T-1'!N393,'UVS_T-1'!N448,'UVS_T-1'!N503,'UVS_T-1'!N558,'UVS_T-1'!N613,'UVS_T-1'!N668)) ->  | O63: =IF(E63="","",SUM(tbl_20_UVS_01[[#This Row],[Lastna raba TE '[MWh']]],'UVS_T-1'!O118,'UVS_T-1'!O173,'UVS_T-1'!O228,'UVS_T-1'!O283,'UVS_T-1'!O338,'UVS_T-1'!O393,'UVS_T-1'!O448,'UVS_T-1'!O503,'UVS_T-1'!O558,'UVS_T-1'!O613,'UVS_T-1'!O668)) ->  | P63: =IF(E63="","",SUM(tbl_20_UVS_01[[#This Row],[Znesek omrežnine, dajatev, prispevkov in dodatkov '[EUR']]],'UVS_T-1'!P118,'UVS_T-1'!P173,'UVS_T-1'!P228,'UVS_T-1'!P283,'UVS_T-1'!P338,'UVS_T-1'!P393,'UVS_T-1'!P448,'UVS_T-1'!P503,'UVS_T-1'!P558,'UVS_T-1'!P613,'UVS_T-1'!P668)) ->  | R63: =IFERROR(IF(E63="","",VLOOKUP((MATCH(E63,tblS_VarStroški_SD[ID_STRO_SD],0)-1),tblS_VarStroški_SD[],6)),"") ->  | S63: =IF(E63="","",SUM(tbl_20_UVS_01[[#This Row],[Znesek upravičenega stroška '[EUR']]],'UVS_T-1'!S118,'UVS_T-1'!S173,'UVS_T-1'!S228,'UVS_T-1'!S283,'UVS_T-1'!S338,'UVS_T-1'!S393,'UVS_T-1'!S448,'UVS_T-1'!S503,'UVS_T-1'!S558,'UVS_T-1'!S613,'UVS_T-1'!S668)) ->  | AQ63: a21 | AR63: 1 | AT63: 0 | AU63: =IF(IF(F63="",TRUE,COUNTIF(tbl_22_UVSsum[Naziv upravičenega variabilnega stroška],F63)=1)=FALSE,1,0) -> 0 | AV63: 0 | AW63: 0 | AX63: 0 | AY63: 0 | AZ63: 0 | BA63: 0 | BB63: 0 | BC63: 0 | BD63: 1 | BE63: 0 | BF63: 0 | BJ63: FALSE | BK63: FALSE | BL63: 0 | BM63: 0
D64: 0 | E64: =IFERROR(IF(F64="","",LOOKUP(MATCH(F64,'UVS_T-1'!$CG$726:$CG$757,0),'UVS_T-1'!$CD$726:$CD$757,'UVS_T-1'!$CF$726:$CF$757)),"AXX-XX") ->  | F64: =IF('UVS_T-1'!F64="","",'UVS_T-1'!F64) ->  | H64: =IFERROR(IF(E64="","",VLOOKUP((MATCH(E64,tblS_VarStroški_SD[ID_STRO_SD],0)-1),tblS_VarStroški_SD[],5)),"") ->  | I64: =IF(E64="","",SUM(tbl_20_UVS_01[[#This Row],[Poraba SPTE Proizvodnja EE '[enot']]],'UVS_T-1'!I119,'UVS_T-1'!I174,'UVS_T-1'!I229,'UVS_T-1'!I284,'UVS_T-1'!I339,'UVS_T-1'!I394,'UVS_T-1'!I449,'UVS_T-1'!I504,'UVS_T-1'!I559,'UVS_T-1'!I614,'UVS_T-1'!I669)) ->  | J64: =IF(F64="","",SUM(tbl_20_UVS_01[[#This Row],[Poraba SPTE Proizvodnja TE '[enot']]],'UVS_T-1'!J119,'UVS_T-1'!J174,'UVS_T-1'!J229,'UVS_T-1'!J284,'UVS_T-1'!J339,'UVS_T-1'!J394,'UVS_T-1'!J449,'UVS_T-1'!J504,'UVS_T-1'!J559,'UVS_T-1'!J614,'UVS_T-1'!J669)) ->  | K64: =IF(E64="","",SUM(tbl_20_UVS_01[[#This Row],[Poraba Kotli/Ostalo Proizvodnja TE '[enot']]],'UVS_T-1'!K119,'UVS_T-1'!K174,'UVS_T-1'!K229,'UVS_T-1'!K284,'UVS_T-1'!K339,'UVS_T-1'!K394,'UVS_T-1'!K449,'UVS_T-1'!K504,'UVS_T-1'!K559,'UVS_T-1'!K614,'UVS_T-1'!K669)) ->  | L64: =IF(E64="","",SUM(tbl_20_UVS_01[[#This Row],[SPTE Proizvedena EE '[MWh']]],'UVS_T-1'!L119,'UVS_T-1'!L174,'UVS_T-1'!L229,'UVS_T-1'!L284,'UVS_T-1'!L339,'UVS_T-1'!L394,'UVS_T-1'!L449,'UVS_T-1'!L504,'UVS_T-1'!L559,'UVS_T-1'!L614,'UVS_T-1'!L669)) ->  | M64: =IF(E64="","",SUM(tbl_20_UVS_01[[#This Row],[SPTE Proizvedena TE '[MWh']]],'UVS_T-1'!M119,'UVS_T-1'!M174,'UVS_T-1'!M229,'UVS_T-1'!M284,'UVS_T-1'!M339,'UVS_T-1'!M394,'UVS_T-1'!M449,'UVS_T-1'!M504,'UVS_T-1'!M559,'UVS_T-1'!M614,'UVS_T-1'!M669)) ->  | N64: =IF(E64="","",SUM(tbl_20_UVS_01[[#This Row],[Kotli/Ostalo Proizvedena TE '[MWh']]],'UVS_T-1'!N119,'UVS_T-1'!N174,'UVS_T-1'!N229,'UVS_T-1'!N284,'UVS_T-1'!N339,'UVS_T-1'!N394,'UVS_T-1'!N449,'UVS_T-1'!N504,'UVS_T-1'!N559,'UVS_T-1'!N614,'UVS_T-1'!N669)) ->  | O64: =IF(E64="","",SUM(tbl_20_UVS_01[[#This Row],[Lastna raba TE '[MWh']]],'UVS_T-1'!O119,'UVS_T-1'!O174,'UVS_T-1'!O229,'UVS_T-1'!O284,'UVS_T-1'!O339,'UVS_T-1'!O394,'UVS_T-1'!O449,'UVS_T-1'!O504,'UVS_T-1'!O559,'UVS_T-1'!O614,'UVS_T-1'!O669)) ->  | P64: =IF(E64="","",SUM(tbl_20_UVS_01[[#This Row],[Znesek omrežnine, dajatev, prispevkov in dodatkov '[EUR']]],'UVS_T-1'!P119,'UVS_T-1'!P174,'UVS_T-1'!P229,'UVS_T-1'!P284,'UVS_T-1'!P339,'UVS_T-1'!P394,'UVS_T-1'!P449,'UVS_T-1'!P504,'UVS_T-1'!P559,'UVS_T-1'!P614,'UVS_T-1'!P669)) ->  | R64: =IFERROR(IF(E64="","",VLOOKUP((MATCH(E64,tblS_VarStroški_SD[ID_STRO_SD],0)-1),tblS_VarStroški_SD[],6)),"") ->  | S64: =IF(E64="","",SUM(tbl_20_UVS_01[[#This Row],[Znesek upravičenega stroška '[EUR']]],'UVS_T-1'!S119,'UVS_T-1'!S174,'UVS_T-1'!S229,'UVS_T-1'!S284,'UVS_T-1'!S339,'UVS_T-1'!S394,'UVS_T-1'!S449,'UVS_T-1'!S504,'UVS_T-1'!S559,'UVS_T-1'!S614,'UVS_T-1'!S669)) ->  | AQ64: a22 | AR64: 1 | AT64: 0 | AU64: =IF(IF(F64="",TRUE,COUNTIF(tbl_22_UVSsum[Naziv upravičenega variabilnega stroška],F64)=1)=FALSE,1,0) -> 0 | AV64: 0 | AW64: 0 | AX64: 0 | AY64: 0 | AZ64: 0 | BA64: 0 | BB64: 0 | BC64: 0 | BD64: 1 | BE64: 0 | BF64: 0 | BJ64: FALSE | BK64: FALSE | BL64: 0 | BM64: 0
D65: 0 | E65: =IFERROR(IF(F65="","",LOOKUP(MATCH(F65,'UVS_T-1'!$CG$726:$CG$757,0),'UVS_T-1'!$CD$726:$CD$757,'UVS_T-1'!$CF$726:$CF$757)),"AXX-XX") ->  | F65: =IF('UVS_T-1'!F65="","",'UVS_T-1'!F65) ->  | H65: =IFERROR(IF(E65="","",VLOOKUP((MATCH(E65,tblS_VarStroški_SD[ID_STRO_SD],0)-1),tblS_VarStroški_SD[],5)),"") ->  | I65: =IF(E65="","",SUM(tbl_20_UVS_01[[#This Row],[Poraba SPTE Proizvodnja EE '[enot']]],'UVS_T-1'!I120,'UVS_T-1'!I175,'UVS_T-1'!I230,'UVS_T-1'!I285,'UVS_T-1'!I340,'UVS_T-1'!I395,'UVS_T-1'!I450,'UVS_T-1'!I505,'UVS_T-1'!I560,'UVS_T-1'!I615,'UVS_T-1'!I670)) ->  | J65: =IF(F65="","",SUM(tbl_20_UVS_01[[#This Row],[Poraba SPTE Proizvodnja TE '[enot']]],'UVS_T-1'!J120,'UVS_T-1'!J175,'UVS_T-1'!J230,'UVS_T-1'!J285,'UVS_T-1'!J340,'UVS_T-1'!J395,'UVS_T-1'!J450,'UVS_T-1'!J505,'UVS_T-1'!J560,'UVS_T-1'!J615,'UVS_T-1'!J670)) ->  | K65: =IF(E65="","",SUM(tbl_20_UVS_01[[#This Row],[Poraba Kotli/Ostalo Proizvodnja TE '[enot']]],'UVS_T-1'!K120,'UVS_T-1'!K175,'UVS_T-1'!K230,'UVS_T-1'!K285,'UVS_T-1'!K340,'UVS_T-1'!K395,'UVS_T-1'!K450,'UVS_T-1'!K505,'UVS_T-1'!K560,'UVS_T-1'!K615,'UVS_T-1'!K670)) ->  | L65: =IF(E65="","",SUM(tbl_20_UVS_01[[#This Row],[SPTE Proizvedena EE '[MWh']]],'UVS_T-1'!L120,'UVS_T-1'!L175,'UVS_T-1'!L230,'UVS_T-1'!L285,'UVS_T-1'!L340,'UVS_T-1'!L395,'UVS_T-1'!L450,'UVS_T-1'!L505,'UVS_T-1'!L560,'UVS_T-1'!L615,'UVS_T-1'!L670)) ->  | M65: =IF(E65="","",SUM(tbl_20_UVS_01[[#This Row],[SPTE Proizvedena TE '[MWh']]],'UVS_T-1'!M120,'UVS_T-1'!M175,'UVS_T-1'!M230,'UVS_T-1'!M285,'UVS_T-1'!M340,'UVS_T-1'!M395,'UVS_T-1'!M450,'UVS_T-1'!M505,'UVS_T-1'!M560,'UVS_T-1'!M615,'UVS_T-1'!M670)) ->  | N65: =IF(E65="","",SUM(tbl_20_UVS_01[[#This Row],[Kotli/Ostalo Proizvedena TE '[MWh']]],'UVS_T-1'!N120,'UVS_T-1'!N175,'UVS_T-1'!N230,'UVS_T-1'!N285,'UVS_T-1'!N340,'UVS_T-1'!N395,'UVS_T-1'!N450,'UVS_T-1'!N505,'UVS_T-1'!N560,'UVS_T-1'!N615,'UVS_T-1'!N670)) ->  | O65: =IF(E65="","",SUM(tbl_20_UVS_01[[#This Row],[Lastna raba TE '[MWh']]],'UVS_T-1'!O120,'UVS_T-1'!O175,'UVS_T-1'!O230,'UVS_T-1'!O285,'UVS_T-1'!O340,'UVS_T-1'!O395,'UVS_T-1'!O450,'UVS_T-1'!O505,'UVS_T-1'!O560,'UVS_T-1'!O615,'UVS_T-1'!O670)) ->  | P65: =IF(E65="","",SUM(tbl_20_UVS_01[[#This Row],[Znesek omrežnine, dajatev, prispevkov in dodatkov '[EUR']]],'UVS_T-1'!P120,'UVS_T-1'!P175,'UVS_T-1'!P230,'UVS_T-1'!P285,'UVS_T-1'!P340,'UVS_T-1'!P395,'UVS_T-1'!P450,'UVS_T-1'!P505,'UVS_T-1'!P560,'UVS_T-1'!P615,'UVS_T-1'!P670)) ->  | R65: =IFERROR(IF(E65="","",VLOOKUP((MATCH(E65,tblS_VarStroški_SD[ID_STRO_SD],0)-1),tblS_VarStroški_SD[],6)),"") ->  | S65: =IF(E65="","",SUM(tbl_20_UVS_01[[#This Row],[Znesek upravičenega stroška '[EUR']]],'UVS_T-1'!S120,'UVS_T-1'!S175,'UVS_T-1'!S230,'UVS_T-1'!S285,'UVS_T-1'!S340,'UVS_T-1'!S395,'UVS_T-1'!S450,'UVS_T-1'!S505,'UVS_T-1'!S560,'UVS_T-1'!S615,'UVS_T-1'!S670)) ->  | AQ65: a23 | AR65: 1 | AT65: 0 | AU65: =IF(IF(F65="",TRUE,COUNTIF(tbl_22_UVSsum[Naziv upravičenega variabilnega stroška],F65)=1)=FALSE,1,0) -> 0 | AV65: 0 | AW65: 0 | AX65: 0 | AY65: 0 | AZ65: 0 | BA65: 0 | BB65: 0 | BC65: 0 | BD65: 1 | BE65: 0 | BF65: 0 | BJ65: FALSE | BK65: FALSE | BL65: 0 | BM65: 0
D66: 0 | E66: =IFERROR(IF(F66="","",LOOKUP(MATCH(F66,'UVS_T-1'!$CG$726:$CG$757,0),'UVS_T-1'!$CD$726:$CD$757,'UVS_T-1'!$CF$726:$CF$757)),"AXX-XX") ->  | F66: =IF('UVS_T-1'!F66="","",'UVS_T-1'!F66) ->  | H66: =IFERROR(IF(E66="","",VLOOKUP((MATCH(E66,tblS_VarStroški_SD[ID_STRO_SD],0)-1),tblS_VarStroški_SD[],5)),"") ->  | I66: =IF(E66="","",SUM(tbl_20_UVS_01[[#This Row],[Poraba SPTE Proizvodnja EE '[enot']]],'UVS_T-1'!I121,'UVS_T-1'!I176,'UVS_T-1'!I231,'UVS_T-1'!I286,'UVS_T-1'!I341,'UVS_T-1'!I396,'UVS_T-1'!I451,'UVS_T-1'!I506,'UVS_T-1'!I561,'UVS_T-1'!I616,'UVS_T-1'!I671)) ->  | J66: =IF(F66="","",SUM(tbl_20_UVS_01[[#This Row],[Poraba SPTE Proizvodnja TE '[enot']]],'UVS_T-1'!J121,'UVS_T-1'!J176,'UVS_T-1'!J231,'UVS_T-1'!J286,'UVS_T-1'!J341,'UVS_T-1'!J396,'UVS_T-1'!J451,'UVS_T-1'!J506,'UVS_T-1'!J561,'UVS_T-1'!J616,'UVS_T-1'!J671)) ->  | K66: =IF(E66="","",SUM(tbl_20_UVS_01[[#This Row],[Poraba Kotli/Ostalo Proizvodnja TE '[enot']]],'UVS_T-1'!K121,'UVS_T-1'!K176,'UVS_T-1'!K231,'UVS_T-1'!K286,'UVS_T-1'!K341,'UVS_T-1'!K396,'UVS_T-1'!K451,'UVS_T-1'!K506,'UVS_T-1'!K561,'UVS_T-1'!K616,'UVS_T-1'!K671)) ->  | L66: =IF(E66="","",SUM(tbl_20_UVS_01[[#This Row],[SPTE Proizvedena EE '[MWh']]],'UVS_T-1'!L121,'UVS_T-1'!L176,'UVS_T-1'!L231,'UVS_T-1'!L286,'UVS_T-1'!L341,'UVS_T-1'!L396,'UVS_T-1'!L451,'UVS_T-1'!L506,'UVS_T-1'!L561,'UVS_T-1'!L616,'UVS_T-1'!L671)) ->  | M66: =IF(E66="","",SUM(tbl_20_UVS_01[[#This Row],[SPTE Proizvedena TE '[MWh']]],'UVS_T-1'!M121,'UVS_T-1'!M176,'UVS_T-1'!M231,'UVS_T-1'!M286,'UVS_T-1'!M341,'UVS_T-1'!M396,'UVS_T-1'!M451,'UVS_T-1'!M506,'UVS_T-1'!M561,'UVS_T-1'!M616,'UVS_T-1'!M671)) ->  | N66: =IF(E66="","",SUM(tbl_20_UVS_01[[#This Row],[Kotli/Ostalo Proizvedena TE '[MWh']]],'UVS_T-1'!N121,'UVS_T-1'!N176,'UVS_T-1'!N231,'UVS_T-1'!N286,'UVS_T-1'!N341,'UVS_T-1'!N396,'UVS_T-1'!N451,'UVS_T-1'!N506,'UVS_T-1'!N561,'UVS_T-1'!N616,'UVS_T-1'!N671)) ->  | O66: =IF(E66="","",SUM(tbl_20_UVS_01[[#This Row],[Lastna raba TE '[MWh']]],'UVS_T-1'!O121,'UVS_T-1'!O176,'UVS_T-1'!O231,'UVS_T-1'!O286,'UVS_T-1'!O341,'UVS_T-1'!O396,'UVS_T-1'!O451,'UVS_T-1'!O506,'UVS_T-1'!O561,'UVS_T-1'!O616,'UVS_T-1'!O671)) ->  | P66: =IF(E66="","",SUM(tbl_20_UVS_01[[#This Row],[Znesek omrežnine, dajatev, prispevkov in dodatkov '[EUR']]],'UVS_T-1'!P121,'UVS_T-1'!P176,'UVS_T-1'!P231,'UVS_T-1'!P286,'UVS_T-1'!P341,'UVS_T-1'!P396,'UVS_T-1'!P451,'UVS_T-1'!P506,'UVS_T-1'!P561,'UVS_T-1'!P616,'UVS_T-1'!P671)) ->  | R66: =IFERROR(IF(E66="","",VLOOKUP((MATCH(E66,tblS_VarStroški_SD[ID_STRO_SD],0)-1),tblS_VarStroški_SD[],6)),"") ->  | S66: =IF(E66="","",SUM(tbl_20_UVS_01[[#This Row],[Znesek upravičenega stroška '[EUR']]],'UVS_T-1'!S121,'UVS_T-1'!S176,'UVS_T-1'!S231,'UVS_T-1'!S286,'UVS_T-1'!S341,'UVS_T-1'!S396,'UVS_T-1'!S451,'UVS_T-1'!S506,'UVS_T-1'!S561,'UVS_T-1'!S616,'UVS_T-1'!S671)) ->  | AQ66: a24 | AR66: 1 | AT66: 0 | AU66: =IF(IF(F66="",TRUE,COUNTIF(tbl_22_UVSsum[Naziv upravičenega variabilnega stroška],F66)=1)=FALSE,1,0) -> 0 | AV66: 0 | AW66: 0 | AX66: 0 | AY66: 0 | AZ66: 0 | BA66: 0 | BB66: 0 | BC66: 0 | BD66: 1 | BE66: 0 | BF66: 0 | BJ66: FALSE | BK66: FALSE | BL66: 0 | BM66: 0
D67: 0 | E67: =IFERROR(IF(F67="","",LOOKUP(MATCH(F67,'UVS_T-1'!$CG$726:$CG$757,0),'UVS_T-1'!$CD$726:$CD$757,'UVS_T-1'!$CF$726:$CF$757)),"AXX-XX") ->  | F67: =IF('UVS_T-1'!F67="","",'UVS_T-1'!F67) ->  | H67: =IFERROR(IF(E67="","",VLOOKUP((MATCH(E67,tblS_VarStroški_SD[ID_STRO_SD],0)-1),tblS_VarStroški_SD[],5)),"") ->  | I67: =IF(E67="","",SUM(tbl_20_UVS_01[[#This Row],[Poraba SPTE Proizvodnja EE '[enot']]],'UVS_T-1'!I122,'UVS_T-1'!I177,'UVS_T-1'!I232,'UVS_T-1'!I287,'UVS_T-1'!I342,'UVS_T-1'!I397,'UVS_T-1'!I452,'UVS_T-1'!I507,'UVS_T-1'!I562,'UVS_T-1'!I617,'UVS_T-1'!I672)) ->  | J67: =IF(F67="","",SUM(tbl_20_UVS_01[[#This Row],[Poraba SPTE Proizvodnja TE '[enot']]],'UVS_T-1'!J122,'UVS_T-1'!J177,'UVS_T-1'!J232,'UVS_T-1'!J287,'UVS_T-1'!J342,'UVS_T-1'!J397,'UVS_T-1'!J452,'UVS_T-1'!J507,'UVS_T-1'!J562,'UVS_T-1'!J617,'UVS_T-1'!J672)) ->  | K67: =IF(E67="","",SUM(tbl_20_UVS_01[[#This Row],[Poraba Kotli/Ostalo Proizvodnja TE '[enot']]],'UVS_T-1'!K122,'UVS_T-1'!K177,'UVS_T-1'!K232,'UVS_T-1'!K287,'UVS_T-1'!K342,'UVS_T-1'!K397,'UVS_T-1'!K452,'UVS_T-1'!K507,'UVS_T-1'!K562,'UVS_T-1'!K617,'UVS_T-1'!K672)) ->  | L67: =IF(E67="","",SUM(tbl_20_UVS_01[[#This Row],[SPTE Proizvedena EE '[MWh']]],'UVS_T-1'!L122,'UVS_T-1'!L177,'UVS_T-1'!L232,'UVS_T-1'!L287,'UVS_T-1'!L342,'UVS_T-1'!L397,'UVS_T-1'!L452,'UVS_T-1'!L507,'UVS_T-1'!L562,'UVS_T-1'!L617,'UVS_T-1'!L672)) ->  | M67: =IF(E67="","",SUM(tbl_20_UVS_01[[#This Row],[SPTE Proizvedena TE '[MWh']]],'UVS_T-1'!M122,'UVS_T-1'!M177,'UVS_T-1'!M232,'UVS_T-1'!M287,'UVS_T-1'!M342,'UVS_T-1'!M397,'UVS_T-1'!M452,'UVS_T-1'!M507,'UVS_T-1'!M562,'UVS_T-1'!M617,'UVS_T-1'!M672)) ->  | N67: =IF(E67="","",SUM(tbl_20_UVS_01[[#This Row],[Kotli/Ostalo Proizvedena TE '[MWh']]],'UVS_T-1'!N122,'UVS_T-1'!N177,'UVS_T-1'!N232,'UVS_T-1'!N287,'UVS_T-1'!N342,'UVS_T-1'!N397,'UVS_T-1'!N452,'UVS_T-1'!N507,'UVS_T-1'!N562,'UVS_T-1'!N617,'UVS_T-1'!N672)) ->  | O67: =IF(E67="","",SUM(tbl_20_UVS_01[[#This Row],[Lastna raba TE '[MWh']]],'UVS_T-1'!O122,'UVS_T-1'!O177,'UVS_T-1'!O232,'UVS_T-1'!O287,'UVS_T-1'!O342,'UVS_T-1'!O397,'UVS_T-1'!O452,'UVS_T-1'!O507,'UVS_T-1'!O562,'UVS_T-1'!O617,'UVS_T-1'!O672)) ->  | P67: =IF(E67="","",SUM(tbl_20_UVS_01[[#This Row],[Znesek omrežnine, dajatev, prispevkov in dodatkov '[EUR']]],'UVS_T-1'!P122,'UVS_T-1'!P177,'UVS_T-1'!P232,'UVS_T-1'!P287,'UVS_T-1'!P342,'UVS_T-1'!P397,'UVS_T-1'!P452,'UVS_T-1'!P507,'UVS_T-1'!P562,'UVS_T-1'!P617,'UVS_T-1'!P672)) ->  | R67: =IFERROR(IF(E67="","",VLOOKUP((MATCH(E67,tblS_VarStroški_SD[ID_STRO_SD],0)-1),tblS_VarStroški_SD[],6)),"") ->  | S67: =IF(E67="","",SUM(tbl_20_UVS_01[[#This Row],[Znesek upravičenega stroška '[EUR']]],'UVS_T-1'!S122,'UVS_T-1'!S177,'UVS_T-1'!S232,'UVS_T-1'!S287,'UVS_T-1'!S342,'UVS_T-1'!S397,'UVS_T-1'!S452,'UVS_T-1'!S507,'UVS_T-1'!S562,'UVS_T-1'!S617,'UVS_T-1'!S672)) ->  | AQ67: a25 | AR67: 1 | AT67: 0 | AU67: =IF(IF(F67="",TRUE,COUNTIF(tbl_22_UVSsum[Naziv upravičenega variabilnega stroška],F67)=1)=FALSE,1,0) -> 0 | AV67: 0 | AW67: 0 | AX67: 0 | AY67: 0 | AZ67: 0 | BA67: 0 | BB67: 0 | BC67: 0 | BD67: 1 | BE67: 0 | BF67: 0 | BJ67: FALSE | BK67: FALSE | BL67: 0 | BM67: 0
D68: 0 | E68: =IFERROR(IF(F68="","",LOOKUP(MATCH(F68,'UVS_T-1'!$CG$726:$CG$757,0),'UVS_T-1'!$CD$726:$CD$757,'UVS_T-1'!$CF$726:$CF$757)),"AXX-XX") ->  | F68: =IF('UVS_T-1'!F68="","",'UVS_T-1'!F68) ->  | H68: =IFERROR(IF(E68="","",VLOOKUP((MATCH(E68,tblS_VarStroški_SD[ID_STRO_SD],0)-1),tblS_VarStroški_SD[],5)),"") ->  | I68: =IF(E68="","",SUM(tbl_20_UVS_01[[#This Row],[Poraba SPTE Proizvodnja EE '[enot']]],'UVS_T-1'!I123,'UVS_T-1'!I178,'UVS_T-1'!I233,'UVS_T-1'!I288,'UVS_T-1'!I343,'UVS_T-1'!I398,'UVS_T-1'!I453,'UVS_T-1'!I508,'UVS_T-1'!I563,'UVS_T-1'!I618,'UVS_T-1'!I673)) ->  | J68: =IF(F68="","",SUM(tbl_20_UVS_01[[#This Row],[Poraba SPTE Proizvodnja TE '[enot']]],'UVS_T-1'!J123,'UVS_T-1'!J178,'UVS_T-1'!J233,'UVS_T-1'!J288,'UVS_T-1'!J343,'UVS_T-1'!J398,'UVS_T-1'!J453,'UVS_T-1'!J508,'UVS_T-1'!J563,'UVS_T-1'!J618,'UVS_T-1'!J673)) ->  | K68: =IF(E68="","",SUM(tbl_20_UVS_01[[#This Row],[Poraba Kotli/Ostalo Proizvodnja TE '[enot']]],'UVS_T-1'!K123,'UVS_T-1'!K178,'UVS_T-1'!K233,'UVS_T-1'!K288,'UVS_T-1'!K343,'UVS_T-1'!K398,'UVS_T-1'!K453,'UVS_T-1'!K508,'UVS_T-1'!K563,'UVS_T-1'!K618,'UVS_T-1'!K673)) ->  | L68: =IF(E68="","",SUM(tbl_20_UVS_01[[#This Row],[SPTE Proizvedena EE '[MWh']]],'UVS_T-1'!L123,'UVS_T-1'!L178,'UVS_T-1'!L233,'UVS_T-1'!L288,'UVS_T-1'!L343,'UVS_T-1'!L398,'UVS_T-1'!L453,'UVS_T-1'!L508,'UVS_T-1'!L563,'UVS_T-1'!L618,'UVS_T-1'!L673)) ->  | M68: =IF(E68="","",SUM(tbl_20_UVS_01[[#This Row],[SPTE Proizvedena TE '[MWh']]],'UVS_T-1'!M123,'UVS_T-1'!M178,'UVS_T-1'!M233,'UVS_T-1'!M288,'UVS_T-1'!M343,'UVS_T-1'!M398,'UVS_T-1'!M453,'UVS_T-1'!M508,'UVS_T-1'!M563,'UVS_T-1'!M618,'UVS_T-1'!M673)) ->  | N68: =IF(E68="","",SUM(tbl_20_UVS_01[[#This Row],[Kotli/Ostalo Proizvedena TE '[MWh']]],'UVS_T-1'!N123,'UVS_T-1'!N178,'UVS_T-1'!N233,'UVS_T-1'!N288,'UVS_T-1'!N343,'UVS_T-1'!N398,'UVS_T-1'!N453,'UVS_T-1'!N508,'UVS_T-1'!N563,'UVS_T-1'!N618,'UVS_T-1'!N673)) ->  | O68: =IF(E68="","",SUM(tbl_20_UVS_01[[#This Row],[Lastna raba TE '[MWh']]],'UVS_T-1'!O123,'UVS_T-1'!O178,'UVS_T-1'!O233,'UVS_T-1'!O288,'UVS_T-1'!O343,'UVS_T-1'!O398,'UVS_T-1'!O453,'UVS_T-1'!O508,'UVS_T-1'!O563,'UVS_T-1'!O618,'UVS_T-1'!O673)) ->  | P68: =IF(E68="","",SUM(tbl_20_UVS_01[[#This Row],[Znesek omrežnine, dajatev, prispevkov in dodatkov '[EUR']]],'UVS_T-1'!P123,'UVS_T-1'!P178,'UVS_T-1'!P233,'UVS_T-1'!P288,'UVS_T-1'!P343,'UVS_T-1'!P398,'UVS_T-1'!P453,'UVS_T-1'!P508,'UVS_T-1'!P563,'UVS_T-1'!P618,'UVS_T-1'!P673)) ->  | R68: =IFERROR(IF(E68="","",VLOOKUP((MATCH(E68,tblS_VarStroški_SD[ID_STRO_SD],0)-1),tblS_VarStroški_SD[],6)),"") ->  | S68: =IF(E68="","",SUM(tbl_20_UVS_01[[#This Row],[Znesek upravičenega stroška '[EUR']]],'UVS_T-1'!S123,'UVS_T-1'!S178,'UVS_T-1'!S233,'UVS_T-1'!S288,'UVS_T-1'!S343,'UVS_T-1'!S398,'UVS_T-1'!S453,'UVS_T-1'!S508,'UVS_T-1'!S563,'UVS_T-1'!S618,'UVS_T-1'!S673)) ->  | AQ68: a26 | AR68: 1 | AT68: 0 | AU68: =IF(IF(F68="",TRUE,COUNTIF(tbl_22_UVSsum[Naziv upravičenega variabilnega stroška],F68)=1)=FALSE,1,0) -> 0 | AV68: 0 | AW68: 0 | AX68: 0 | AY68: 0 | AZ68: 0 | BA68: 0 | BB68: 0 | BC68: 0 | BD68: 1 | BE68: 0 | BF68: 0 | BJ68: FALSE | BK68: FALSE | BL68: 0 | BM68: 0
D69: 0 | E69: =IFERROR(IF(F69="","",LOOKUP(MATCH(F69,'UVS_T-1'!$CG$726:$CG$757,0),'UVS_T-1'!$CD$726:$CD$757,'UVS_T-1'!$CF$726:$CF$757)),"AXX-XX") ->  | F69: =IF('UVS_T-1'!F69="","",'UVS_T-1'!F69) ->  | H69: =IFERROR(IF(E69="","",VLOOKUP((MATCH(E69,tblS_VarStroški_SD[ID_STRO_SD],0)-1),tblS_VarStroški_SD[],5)),"") ->  | I69: =IF(E69="","",SUM(tbl_20_UVS_01[[#This Row],[Poraba SPTE Proizvodnja EE '[enot']]],'UVS_T-1'!I124,'UVS_T-1'!I179,'UVS_T-1'!I234,'UVS_T-1'!I289,'UVS_T-1'!I344,'UVS_T-1'!I399,'UVS_T-1'!I454,'UVS_T-1'!I509,'UVS_T-1'!I564,'UVS_T-1'!I619,'UVS_T-1'!I674)) ->  | J69: =IF(F69="","",SUM(tbl_20_UVS_01[[#This Row],[Poraba SPTE Proizvodnja TE '[enot']]],'UVS_T-1'!J124,'UVS_T-1'!J179,'UVS_T-1'!J234,'UVS_T-1'!J289,'UVS_T-1'!J344,'UVS_T-1'!J399,'UVS_T-1'!J454,'UVS_T-1'!J509,'UVS_T-1'!J564,'UVS_T-1'!J619,'UVS_T-1'!J674)) ->  | K69: =IF(E69="","",SUM(tbl_20_UVS_01[[#This Row],[Poraba Kotli/Ostalo Proizvodnja TE '[enot']]],'UVS_T-1'!K124,'UVS_T-1'!K179,'UVS_T-1'!K234,'UVS_T-1'!K289,'UVS_T-1'!K344,'UVS_T-1'!K399,'UVS_T-1'!K454,'UVS_T-1'!K509,'UVS_T-1'!K564,'UVS_T-1'!K619,'UVS_T-1'!K674)) ->  | L69: =IF(E69="","",SUM(tbl_20_UVS_01[[#This Row],[SPTE Proizvedena EE '[MWh']]],'UVS_T-1'!L124,'UVS_T-1'!L179,'UVS_T-1'!L234,'UVS_T-1'!L289,'UVS_T-1'!L344,'UVS_T-1'!L399,'UVS_T-1'!L454,'UVS_T-1'!L509,'UVS_T-1'!L564,'UVS_T-1'!L619,'UVS_T-1'!L674)) ->  | M69: =IF(E69="","",SUM(tbl_20_UVS_01[[#This Row],[SPTE Proizvedena TE '[MWh']]],'UVS_T-1'!M124,'UVS_T-1'!M179,'UVS_T-1'!M234,'UVS_T-1'!M289,'UVS_T-1'!M344,'UVS_T-1'!M399,'UVS_T-1'!M454,'UVS_T-1'!M509,'UVS_T-1'!M564,'UVS_T-1'!M619,'UVS_T-1'!M674)) ->  | N69: =IF(E69="","",SUM(tbl_20_UVS_01[[#This Row],[Kotli/Ostalo Proizvedena TE '[MWh']]],'UVS_T-1'!N124,'UVS_T-1'!N179,'UVS_T-1'!N234,'UVS_T-1'!N289,'UVS_T-1'!N344,'UVS_T-1'!N399,'UVS_T-1'!N454,'UVS_T-1'!N509,'UVS_T-1'!N564,'UVS_T-1'!N619,'UVS_T-1'!N674)) ->  | O69: =IF(E69="","",SUM(tbl_20_UVS_01[[#This Row],[Lastna raba TE '[MWh']]],'UVS_T-1'!O124,'UVS_T-1'!O179,'UVS_T-1'!O234,'UVS_T-1'!O289,'UVS_T-1'!O344,'UVS_T-1'!O399,'UVS_T-1'!O454,'UVS_T-1'!O509,'UVS_T-1'!O564,'UVS_T-1'!O619,'UVS_T-1'!O674)) ->  | P69: =IF(E69="","",SUM(tbl_20_UVS_01[[#This Row],[Znesek omrežnine, dajatev, prispevkov in dodatkov '[EUR']]],'UVS_T-1'!P124,'UVS_T-1'!P179,'UVS_T-1'!P234,'UVS_T-1'!P289,'UVS_T-1'!P344,'UVS_T-1'!P399,'UVS_T-1'!P454,'UVS_T-1'!P509,'UVS_T-1'!P564,'UVS_T-1'!P619,'UVS_T-1'!P674)) ->  | R69: =IFERROR(IF(E69="","",VLOOKUP((MATCH(E69,tblS_VarStroški_SD[ID_STRO_SD],0)-1),tblS_VarStroški_SD[],6)),"") ->  | S69: =IF(E69="","",SUM(tbl_20_UVS_01[[#This Row],[Znesek upravičenega stroška '[EUR']]],'UVS_T-1'!S124,'UVS_T-1'!S179,'UVS_T-1'!S234,'UVS_T-1'!S289,'UVS_T-1'!S344,'UVS_T-1'!S399,'UVS_T-1'!S454,'UVS_T-1'!S509,'UVS_T-1'!S564,'UVS_T-1'!S619,'UVS_T-1'!S674)) ->  | AB69: Opomba: | AQ69: a27 | AR69: 1 | AT69: 0 | AU69: =IF(IF(F69="",TRUE,COUNTIF(tbl_22_UVSsum[Naziv upravičenega variabilnega stroška],F69)=1)=FALSE,1,0) -> 0 | AV69: 0 | AW69: 0 | AX69: 0 | AY69: 0 | AZ69: 0 | BA69: 0 | BB69: 0 | BC69: 0 | BD69: 1 | BE69: 0 | BF69: 0 | BJ69: FALSE | BK69: FALSE | BL69: 0 | BM69: 0
D70: 0 | E70: =IFERROR(IF(F70="","",LOOKUP(MATCH(F70,'UVS_T-1'!$CG$726:$CG$757,0),'UVS_T-1'!$CD$726:$CD$757,'UVS_T-1'!$CF$726:$CF$757)),"AXX-XX") ->  | F70: =IF('UVS_T-1'!F70="","",'UVS_T-1'!F70) ->  | H70: =IFERROR(IF(E70="","",VLOOKUP((MATCH(E70,tblS_VarStroški_SD[ID_STRO_SD],0)-1),tblS_VarStroški_SD[],5)),"") ->  | I70: =IF(E70="","",SUM(tbl_20_UVS_01[[#This Row],[Poraba SPTE Proizvodnja EE '[enot']]],'UVS_T-1'!I125,'UVS_T-1'!I180,'UVS_T-1'!I235,'UVS_T-1'!I290,'UVS_T-1'!I345,'UVS_T-1'!I400,'UVS_T-1'!I455,'UVS_T-1'!I510,'UVS_T-1'!I565,'UVS_T-1'!I620,'UVS_T-1'!I675)) ->  | J70: =IF(F70="","",SUM(tbl_20_UVS_01[[#This Row],[Poraba SPTE Proizvodnja TE '[enot']]],'UVS_T-1'!J125,'UVS_T-1'!J180,'UVS_T-1'!J235,'UVS_T-1'!J290,'UVS_T-1'!J345,'UVS_T-1'!J400,'UVS_T-1'!J455,'UVS_T-1'!J510,'UVS_T-1'!J565,'UVS_T-1'!J620,'UVS_T-1'!J675)) ->  | K70: =IF(E70="","",SUM(tbl_20_UVS_01[[#This Row],[Poraba Kotli/Ostalo Proizvodnja TE '[enot']]],'UVS_T-1'!K125,'UVS_T-1'!K180,'UVS_T-1'!K235,'UVS_T-1'!K290,'UVS_T-1'!K345,'UVS_T-1'!K400,'UVS_T-1'!K455,'UVS_T-1'!K510,'UVS_T-1'!K565,'UVS_T-1'!K620,'UVS_T-1'!K675)) ->  | L70: =IF(E70="","",SUM(tbl_20_UVS_01[[#This Row],[SPTE Proizvedena EE '[MWh']]],'UVS_T-1'!L125,'UVS_T-1'!L180,'UVS_T-1'!L235,'UVS_T-1'!L290,'UVS_T-1'!L345,'UVS_T-1'!L400,'UVS_T-1'!L455,'UVS_T-1'!L510,'UVS_T-1'!L565,'UVS_T-1'!L620,'UVS_T-1'!L675)) ->  | M70: =IF(E70="","",SUM(tbl_20_UVS_01[[#This Row],[SPTE Proizvedena TE '[MWh']]],'UVS_T-1'!M125,'UVS_T-1'!M180,'UVS_T-1'!M235,'UVS_T-1'!M290,'UVS_T-1'!M345,'UVS_T-1'!M400,'UVS_T-1'!M455,'UVS_T-1'!M510,'UVS_T-1'!M565,'UVS_T-1'!M620,'UVS_T-1'!M675)) ->  | N70: =IF(E70="","",SUM(tbl_20_UVS_01[[#This Row],[Kotli/Ostalo Proizvedena TE '[MWh']]],'UVS_T-1'!N125,'UVS_T-1'!N180,'UVS_T-1'!N235,'UVS_T-1'!N290,'UVS_T-1'!N345,'UVS_T-1'!N400,'UVS_T-1'!N455,'UVS_T-1'!N510,'UVS_T-1'!N565,'UVS_T-1'!N620,'UVS_T-1'!N675)) ->  | O70: =IF(E70="","",SUM(tbl_20_UVS_01[[#This Row],[Lastna raba TE '[MWh']]],'UVS_T-1'!O125,'UVS_T-1'!O180,'UVS_T-1'!O235,'UVS_T-1'!O290,'UVS_T-1'!O345,'UVS_T-1'!O400,'UVS_T-1'!O455,'UVS_T-1'!O510,'UVS_T-1'!O565,'UVS_T-1'!O620,'UVS_T-1'!O675)) ->  | P70: =IF(E70="","",SUM(tbl_20_UVS_01[[#This Row],[Znesek omrežnine, dajatev, prispevkov in dodatkov '[EUR']]],'UVS_T-1'!P125,'UVS_T-1'!P180,'UVS_T-1'!P235,'UVS_T-1'!P290,'UVS_T-1'!P345,'UVS_T-1'!P400,'UVS_T-1'!P455,'UVS_T-1'!P510,'UVS_T-1'!P565,'UVS_T-1'!P620,'UVS_T-1'!P675)) ->  | R70: =IFERROR(IF(E70="","",VLOOKUP((MATCH(E70,tblS_VarStroški_SD[ID_STRO_SD],0)-1),tblS_VarStroški_SD[],6)),"") ->  | S70: =IF(E70="","",SUM(tbl_20_UVS_01[[#This Row],[Znesek upravičenega stroška '[EUR']]],'UVS_T-1'!S125,'UVS_T-1'!S180,'UVS_T-1'!S235,'UVS_T-1'!S290,'UVS_T-1'!S345,'UVS_T-1'!S400,'UVS_T-1'!S455,'UVS_T-1'!S510,'UVS_T-1'!S565,'UVS_T-1'!S620,'UVS_T-1'!S675)) ->  | AB70: Pripomoček za izračun deleža UVS med posameznimi skupinami odjemalcev - dobavitelji | AQ70: a28 | AR70: 1 | AT70: 0 | AU70: =IF(IF(F70="",TRUE,COUNTIF(tbl_22_UVSsum[Naziv upravičenega variabilnega stroška],F70)=1)=FALSE,1,0) -> 0 | AV70: 0 | AW70: 0 | AX70: 0 | AY70: 0 | AZ70: 0 | BA70: 0 | BB70: 0 | BC70: 0 | BD70: 1 | BE70: 0 | BF70: 0 | BJ70: FALSE | BK70: FALSE | BL70: 0 | BM70: 0
D71: 0 | E71: =IFERROR(IF(F71="","",LOOKUP(MATCH(F71,'UVS_T-1'!$CG$726:$CG$757,0),'UVS_T-1'!$CD$726:$CD$757,'UVS_T-1'!$CF$726:$CF$757)),"AXX-XX") ->  | F71: =IF('UVS_T-1'!F71="","",'UVS_T-1'!F71) ->  | H71: =IFERROR(IF(E71="","",VLOOKUP((MATCH(E71,tblS_VarStroški_SD[ID_STRO_SD],0)-1),tblS_VarStroški_SD[],5)),"") ->  | I71: =IF(E71="","",SUM(tbl_20_UVS_01[[#This Row],[Poraba SPTE Proizvodnja EE '[enot']]],'UVS_T-1'!I126,'UVS_T-1'!I181,'UVS_T-1'!I236,'UVS_T-1'!I291,'UVS_T-1'!I346,'UVS_T-1'!I401,'UVS_T-1'!I456,'UVS_T-1'!I511,'UVS_T-1'!I566,'UVS_T-1'!I621,'UVS_T-1'!I676)) ->  | J71: =IF(F71="","",SUM(tbl_20_UVS_01[[#This Row],[Poraba SPTE Proizvodnja TE '[enot']]],'UVS_T-1'!J126,'UVS_T-1'!J181,'UVS_T-1'!J236,'UVS_T-1'!J291,'UVS_T-1'!J346,'UVS_T-1'!J401,'UVS_T-1'!J456,'UVS_T-1'!J511,'UVS_T-1'!J566,'UVS_T-1'!J621,'UVS_T-1'!J676)) ->  | K71: =IF(E71="","",SUM(tbl_20_UVS_01[[#This Row],[Poraba Kotli/Ostalo Proizvodnja TE '[enot']]],'UVS_T-1'!K126,'UVS_T-1'!K181,'UVS_T-1'!K236,'UVS_T-1'!K291,'UVS_T-1'!K346,'UVS_T-1'!K401,'UVS_T-1'!K456,'UVS_T-1'!K511,'UVS_T-1'!K566,'UVS_T-1'!K621,'UVS_T-1'!K676)) ->  | L71: =IF(E71="","",SUM(tbl_20_UVS_01[[#This Row],[SPTE Proizvedena EE '[MWh']]],'UVS_T-1'!L126,'UVS_T-1'!L181,'UVS_T-1'!L236,'UVS_T-1'!L291,'UVS_T-1'!L346,'UVS_T-1'!L401,'UVS_T-1'!L456,'UVS_T-1'!L511,'UVS_T-1'!L566,'UVS_T-1'!L621,'UVS_T-1'!L676)) ->  | M71: =IF(E71="","",SUM(tbl_20_UVS_01[[#This Row],[SPTE Proizvedena TE '[MWh']]],'UVS_T-1'!M126,'UVS_T-1'!M181,'UVS_T-1'!M236,'UVS_T-1'!M291,'UVS_T-1'!M346,'UVS_T-1'!M401,'UVS_T-1'!M456,'UVS_T-1'!M511,'UVS_T-1'!M566,'UVS_T-1'!M621,'UVS_T-1'!M676)) ->  | N71: =IF(E71="","",SUM(tbl_20_UVS_01[[#This Row],[Kotli/Ostalo Proizvedena TE '[MWh']]],'UVS_T-1'!N126,'UVS_T-1'!N181,'UVS_T-1'!N236,'UVS_T-1'!N291,'UVS_T-1'!N346,'UVS_T-1'!N401,'UVS_T-1'!N456,'UVS_T-1'!N511,'UVS_T-1'!N566,'UVS_T-1'!N621,'UVS_T-1'!N676)) ->  | O71: =IF(E71="","",SUM(tbl_20_UVS_01[[#This Row],[Lastna raba TE '[MWh']]],'UVS_T-1'!O126,'UVS_T-1'!O181,'UVS_T-1'!O236,'UVS_T-1'!O291,'UVS_T-1'!O346,'UVS_T-1'!O401,'UVS_T-1'!O456,'UVS_T-1'!O511,'UVS_T-1'!O566,'UVS_T-1'!O621,'UVS_T-1'!O676)) ->  | P71: =IF(E71="","",SUM(tbl_20_UVS_01[[#This Row],[Znesek omrežnine, dajatev, prispevkov in dodatkov '[EUR']]],'UVS_T-1'!P126,'UVS_T-1'!P181,'UVS_T-1'!P236,'UVS_T-1'!P291,'UVS_T-1'!P346,'UVS_T-1'!P401,'UVS_T-1'!P456,'UVS_T-1'!P511,'UVS_T-1'!P566,'UVS_T-1'!P621,'UVS_T-1'!P676)) ->  | R71: =IFERROR(IF(E71="","",VLOOKUP((MATCH(E71,tblS_VarStroški_SD[ID_STRO_SD],0)-1),tblS_VarStroški_SD[],6)),"") ->  | S71: =IF(E71="","",SUM(tbl_20_UVS_01[[#This Row],[Znesek upravičenega stroška '[EUR']]],'UVS_T-1'!S126,'UVS_T-1'!S181,'UVS_T-1'!S236,'UVS_T-1'!S291,'UVS_T-1'!S346,'UVS_T-1'!S401,'UVS_T-1'!S456,'UVS_T-1'!S511,'UVS_T-1'!S566,'UVS_T-1'!S621,'UVS_T-1'!S676)) ->  | AQ71: a29 | AR71: 1 | AT71: 0 | AU71: =IF(IF(F71="",TRUE,COUNTIF(tbl_22_UVSsum[Naziv upravičenega variabilnega stroška],F71)=1)=FALSE,1,0) -> 0 | AV71: 0 | AW71: 0 | AX71: 0 | AY71: 0 | AZ71: 0 | BA71: 0 | BB71: 0 | BC71: 0 | BD71: 1 | BE71: 0 | BF71: 0 | BJ71: FALSE | BK71: FALSE | BL71: 0 | BM71: 0
C72: =$D$40 -> 0 | D72: 0 | E72: =IFERROR(IF(F72="","",LOOKUP(MATCH(F72,'UVS_T-1'!$CG$763:$CG$778,0),'UVS_T-1'!$CD$763:$CD$778,'UVS_T-1'!$CF$763:$CF$778)),"AXX-XX") ->  | F72: =IF(UVS_T!F72="","",'UVS_T-1'!F72) ->  | G72: =IF(E72="","",SUM(tbl_20_UVS_01[[#This Row],[Skupna poraba '[enot']]],'UVS_T-1'!G127,'UVS_T-1'!G182,'UVS_T-1'!G237,'UVS_T-1'!G292,'UVS_T-1'!G347,'UVS_T-1'!G402,'UVS_T-1'!G457,'UVS_T-1'!G512,'UVS_T-1'!G567,'UVS_T-1'!G622,'UVS_T-1'!G677)) ->  | H72: MWh | R72: EUR/MWh | S72: =IF(E72="","",SUM(tbl_20_UVS_01[[#This Row],[Znesek upravičenega stroška '[EUR']]],'UVS_T-1'!S127,'UVS_T-1'!S182,'UVS_T-1'!S237,'UVS_T-1'!S292,'UVS_T-1'!S347,'UVS_T-1'!S402,'UVS_T-1'!S457,'UVS_T-1'!S512,'UVS_T-1'!S567,'UVS_T-1'!S622,'UVS_T-1'!S677)) ->  | U72: =IF(UVS_T!U72="","",'UVS_T-1'!U72) ->  | AB72: GO | AC72: =IFERROR(G72/SUM(G72:G74),0) -> 0 | AQ72: ="a"&(COUNTA($F$43:$F72)) -> a30 | AR72: =IF(SUM(AT72:BD72)>0,1,0) -> 1 | AT72: 0 | AV72: =IF(E72="",IF((COUNTA(G72,Q72)>0),1,0),0) -> 1 | BD72: =IF(E72="","",IF(OR(COUNTA(G72,Q72)=0,COUNTA(G72,Q72)<2),1,0)) -> 
C73: 0 | D73: 0 | E73: =IFERROR(IF(F73="","",LOOKUP(MATCH(F73,$CG$230:$CG$245,0),$CD$230:$CD$245,$CF$230:$CF$245)),"AXX-XX") ->  | F73: =IF(G28="","",CG232) ->  | H73: MWh | R73: EUR/MWh | S73: =IF(OR(G73="",Q73=""),"",ROUND((G73*Q73+P73),2)) ->  | U73: =IF(V28="","",CV232) ->  | V73: =IFERROR(T73,"") ->  | AB73: ZNGO | AC73: =IFERROR(G73/SUM(G72:G74),0) -> 0 | AQ73: ="a"&(COUNTA($F$43:$F73)) -> a31 | AR73: 0 | AT73: 0 | AV73: 0
C74: 0 | D74: 0 | F74: =IF(G28="","",CG233) ->  | H74: MWh | R74: EUR/MWh | U74: =IF(V28="","",CV233) ->  | V74: =IFERROR(T74,"") ->  | AB74: NNGO | AC74: =1-(SUM(AC72:AC73)) -> 1 | AQ74: ="a"&(COUNTA($F$43:$F74)) -> a32 | AR74: 0 | AT74: 0 | AV74: 0
C75: 0 | D75: 0 | E75: =IFERROR(IF(F75="","",LOOKUP(MATCH(F75,'UVS_T-1'!$CG$763:$CG$778,0),'UVS_T-1'!$CD$763:$CD$778,'UVS_T-1'!$CF$763:$CF$778)),"AXX-XX") ->  | F75: =IF('UVS_T-1'!F75="","",'UVS_T-1'!F75) ->  | G75: =IF(E75="","",IFERROR(AVERAGE(tbl_20_UVS_01[[#This Row],[Skupna poraba '[enot']]],'UVS_T-1'!G130,'UVS_T-1'!G185,'UVS_T-1'!G240,'UVS_T-1'!G295,'UVS_T-1'!G350,'UVS_T-1'!G405,'UVS_T-1'!G460,'UVS_T-1'!G515,'UVS_T-1'!G570,'UVS_T-1'!G625,'UVS_T-1'!G680),"")) ->  | H75: MW/leto | R75: EUR/MW/leto | S75: =IF(E75="","",SUM(tbl_20_UVS_01[[#This Row],[Znesek upravičenega stroška '[EUR']]],'UVS_T-1'!S130,'UVS_T-1'!S185,'UVS_T-1'!S240,'UVS_T-1'!S295,'UVS_T-1'!S350,'UVS_T-1'!S405,'UVS_T-1'!S460,'UVS_T-1'!S515,'UVS_T-1'!S570,'UVS_T-1'!S625,'UVS_T-1'!S680)) ->  | U75: =IF('UVS_T-1'!U75="","",'UVS_T-1'!U75) ->  | AQ75: ="a"&(COUNTA($F$43:$F75)) -> a33 | AR75: 1 | AT75: 0 | AV75: 1
C76: 0 | D76: 0 | E76: =IFERROR(IF(F76="","",LOOKUP(MATCH(F76,'UVS_T-1'!$CG$763:$CG$778,0),'UVS_T-1'!$CD$763:$CD$778,'UVS_T-1'!$CF$763:$CF$778)),"AXX-XX") ->  | F76: =IF('UVS_T-1'!F76="","",'UVS_T-1'!F76) ->  | G76: =IF(E76="","",SUM(tbl_20_UVS_01[[#This Row],[Skupna poraba '[enot']]],'UVS_T-1'!G131,'UVS_T-1'!G186,'UVS_T-1'!G241,'UVS_T-1'!G296,'UVS_T-1'!G351,'UVS_T-1'!G406,'UVS_T-1'!G461,'UVS_T-1'!G516,'UVS_T-1'!G571,'UVS_T-1'!G626,'UVS_T-1'!G681)) ->  | H76: MWh | R76: EUR/MWh | S76: =IF(E76="","",SUM(tbl_20_UVS_01[[#This Row],[Znesek upravičenega stroška '[EUR']]],'UVS_T-1'!S131,'UVS_T-1'!S186,'UVS_T-1'!S241,'UVS_T-1'!S296,'UVS_T-1'!S351,'UVS_T-1'!S406,'UVS_T-1'!S461,'UVS_T-1'!S516,'UVS_T-1'!S571,'UVS_T-1'!S626,'UVS_T-1'!S681)) ->  | U76: =IF('UVS_T-1'!U76="","",'UVS_T-1'!U76) ->  | V76: =IFERROR(T76,"") ->  | AB76: GO | AC76: =IFERROR(G76/SUM(G76:G78),0) -> 0 | AQ76: ="a"&(COUNTA($F$43:$F76)) -> a34 | AR76: 1 | AT76: 0 | AV76: 1
C77: 0 | D77: 0 | F77: =IF(G29="","",CG236) ->  | H77: MWh | R77: EUR/MWh | U77: =IF(V29="","",CV236) ->  | V77: =IFERROR(T77,"") ->  | AB77: ZNGO | AC77: =IFERROR(G77/SUM(G76:G78),0) -> 0 | AQ77: ="a"&(COUNTA($F$43:$F77)) -> a35 | AR77: 0 | AT77: 0 | AV77: 0
C78: 0 | D78: 0 | F78: =IF(G29="","",CG237) ->  | H78: MWh | R78: EUR/MWh | U78: =IF(V29="","",CV237) ->  | AB78: NNGO | AC78: =1-(SUM(AC76:AC77)) -> 1 | AQ78: ="a"&(COUNTA($F$43:$F78)) -> a36 | AR78: 0 | AT78: 0 | AV78: 0
C79: 0 | D79: 0 | E79: =IFERROR(IF(F79="","",LOOKUP(MATCH(F79,'UVS_T-1'!$CG$763:$CG$778,0),'UVS_T-1'!$CD$763:$CD$778,'UVS_T-1'!$CF$763:$CF$778)),"AXX-XX") ->  | F79: =IF('UVS_T-1'!F79="","",'UVS_T-1'!F79) ->  | G79: =IF(E79="","",IFERROR(AVERAGE(tbl_20_UVS_01[[#This Row],[Skupna poraba '[enot']]],'UVS_T-1'!G134,'UVS_T-1'!G189,'UVS_T-1'!G244,'UVS_T-1'!G299,'UVS_T-1'!G354,'UVS_T-1'!G409,'UVS_T-1'!G464,'UVS_T-1'!G519,'UVS_T-1'!G574,'UVS_T-1'!G629,'UVS_T-1'!G684),"")) ->  | H79: MW/leto | R79: EUR/MW/leto | S79: =IF(E79="","",SUM(tbl_20_UVS_01[[#This Row],[Znesek upravičenega stroška '[EUR']]],'UVS_T-1'!S134,'UVS_T-1'!S189,'UVS_T-1'!S244,'UVS_T-1'!S299,'UVS_T-1'!S354,'UVS_T-1'!S409,'UVS_T-1'!S464,'UVS_T-1'!S519,'UVS_T-1'!S574,'UVS_T-1'!S629,'UVS_T-1'!S684)) ->  | U79: =IF('UVS_T-1'!U79="","",'UVS_T-1'!U79) ->  | AQ79: ="a"&(COUNTA($F$43:$F79)) -> a37 | AR79: 1 | AT79: 0 | AV79: 1
C80: 0 | D80: 0 | E80: =IFERROR(IF(F80="","",LOOKUP(MATCH(F80,'UVS_T-1'!$CG$763:$CG$778,0),'UVS_T-1'!$CD$763:$CD$778,'UVS_T-1'!$CF$763:$CF$778)),"AXX-XX") ->  | F80: =IF('UVS_T-1'!F80="","",'UVS_T-1'!F80) ->  | G80: =IF(E80="","",SUM(tbl_20_UVS_01[[#This Row],[Skupna poraba '[enot']]],'UVS_T-1'!G135,'UVS_T-1'!G190,'UVS_T-1'!G245,'UVS_T-1'!G300,'UVS_T-1'!G355,'UVS_T-1'!G410,'UVS_T-1'!G465,'UVS_T-1'!G520,'UVS_T-1'!G575,'UVS_T-1'!G630,'UVS_T-1'!G685)) ->  | H80: MWh | R80: EUR/MWh | S80: =IF(E80="","",SUM(tbl_20_UVS_01[[#This Row],[Znesek upravičenega stroška '[EUR']]],'UVS_T-1'!S135,'UVS_T-1'!S190,'UVS_T-1'!S245,'UVS_T-1'!S300,'UVS_T-1'!S355,'UVS_T-1'!S410,'UVS_T-1'!S465,'UVS_T-1'!S520,'UVS_T-1'!S575,'UVS_T-1'!S630,'UVS_T-1'!S685)) ->  | U80: =IF('UVS_T-1'!U80="","",'UVS_T-1'!U80) ->  | V80: =IFERROR(T80,"") ->  | AB80: GO | AC80: =IFERROR(G80/SUM(G80:G82),0) -> 0 | AQ80: ="a"&(COUNTA($F$43:$F80)) -> a38 | AR80: 1 | AT80: 0 | AV80: 1
C81: 0 | D81: 0 | F81: =IF(G30="","",CG240) ->  | H81: MWh | R81: EUR/MWh | U81: =IF(V30="","",CV240) ->  | V81: =IFERROR(T81,"") ->  | AB81: ZNGO | AC81: =IFERROR(G81/SUM(G80:G82),0) -> 0 | AQ81: ="a"&(COUNTA($F$43:$F81)) -> a39 | AR81: 0 | AT81: 0 | AV81: 0
C82: 0 | D82: 0 | F82: =IF(G30="","",CG241) ->  | H82: MWh | R82: EUR/MWh | U82: =IF(V30="","",CV241) ->  | AB82: NNGO | AC82: =1-(SUM(AC80:AC81)) -> 1 | AQ82: ="a"&(COUNTA($F$43:$F82)) -> a40 | AR82: 0 | AT82: 0 | AV82: 0
C83: 0 | D83: 0 | E83: =IFERROR(IF(F83="","",LOOKUP(MATCH(F83,'UVS_T-1'!$CG$763:$CG$778,0),'UVS_T-1'!$CD$763:$CD$778,'UVS_T-1'!$CF$763:$CF$778)),"AXX-XX") ->  | F83: =IF('UVS_T-1'!F83="","",'UVS_T-1'!F83) ->  | G83: =IF(E83="","",IFERROR(AVERAGE(tbl_20_UVS_01[[#This Row],[Skupna poraba '[enot']]],'UVS_T-1'!G138,'UVS_T-1'!G193,'UVS_T-1'!G248,'UVS_T-1'!G303,'UVS_T-1'!G358,'UVS_T-1'!G413,'UVS_T-1'!G468,'UVS_T-1'!G523,'UVS_T-1'!G578,'UVS_T-1'!G633,'UVS_T-1'!G688),"")) ->  | H83: MW/leto | R83: EUR/MW/leto | S83: =IF(E83="","",SUM(tbl_20_UVS_01[[#This Row],[Znesek upravičenega stroška '[EUR']]],'UVS_T-1'!S138,'UVS_T-1'!S193,'UVS_T-1'!S248,'UVS_T-1'!S303,'UVS_T-1'!S358,'UVS_T-1'!S413,'UVS_T-1'!S468,'UVS_T-1'!S523,'UVS_T-1'!S578,'UVS_T-1'!S633,'UVS_T-1'!S688)) ->  | U83: =IF('UVS_T-1'!U83="","",'UVS_T-1'!U83) ->  | AQ83: ="a"&(COUNTA($F$43:$F83)) -> a41 | AR83: 1 | AT83: 0 | AV83: 1
C84: 0 | D84: 0 | E84: =IFERROR(IF(F84="","",LOOKUP(MATCH(F84,'UVS_T-1'!$CG$763:$CG$778,0),'UVS_T-1'!$CD$763:$CD$778,'UVS_T-1'!$CF$763:$CF$778)),"AXX-XX") ->  | F84: =IF('UVS_T-1'!F84="","",'UVS_T-1'!F84) ->  | G84: =IF(E84="","",SUM(tbl_20_UVS_01[[#This Row],[Skupna poraba '[enot']]],'UVS_T-1'!G139,'UVS_T-1'!G194,'UVS_T-1'!G249,'UVS_T-1'!G304,'UVS_T-1'!G359,'UVS_T-1'!G414,'UVS_T-1'!G469,'UVS_T-1'!G524,'UVS_T-1'!G579,'UVS_T-1'!G634,'UVS_T-1'!G689)) ->  | H84: MWh | R84: EUR/MWh | S84: =IF(E84="","",SUM(tbl_20_UVS_01[[#This Row],[Znesek upravičenega stroška '[EUR']]],'UVS_T-1'!S139,'UVS_T-1'!S194,'UVS_T-1'!S249,'UVS_T-1'!S304,'UVS_T-1'!S359,'UVS_T-1'!S414,'UVS_T-1'!S469,'UVS_T-1'!S524,'UVS_T-1'!S579,'UVS_T-1'!S634,'UVS_T-1'!S689)) ->  | U84: =IF('UVS_T-1'!U84="","",'UVS_T-1'!U84) ->  | V84: =IFERROR(T84,"") ->  | AB84: GO | AC84: =IFERROR(G84/SUM(G84:G86),0) -> 0 | AQ84: ="a"&(COUNTA($F$43:$F84)) -> a42 | AR84: 1 | AT84: 0 | AV84: 1
C85: 0 | D85: 0 | F85: =IF(G31="","",CG244) ->  | H85: MWh | R85: EUR/MWh | U85: =IF(V31="","",CV244) ->  | V85: =IFERROR(T85,"") ->  | AB85: ZNGO | AC85: =IFERROR(G85/SUM(G84:G86),0) -> 0 | AQ85: ="a"&(COUNTA($F$43:$F85)) -> a43 | AR85: 0 | AT85: 0 | AV85: 0
C86: 0 | D86: 0 | F86: =IF(G31="","",CG245) ->  | H86: MWh | R86: EUR/MWh | U86: =IF(V31="","",CV245) ->  | AB86: NNGO | AC86: =1-(SUM(AC84:AC85)) -> 1 | AQ86: ="a"&(COUNTA($F$43:$F86)) -> a44 | AR86: 0 | AT86: 0 | AV86: 0
C87: 0 | D87: 0 | E87: =IFERROR(IF(F87="","",LOOKUP(MATCH(F87,'UVS_T-1'!$CG$763:$CG$778,0),'UVS_T-1'!$CD$763:$CD$778,'UVS_T-1'!$CF$763:$CF$778)),"AXX-XX") ->  | F87: =IF('UVS_T-1'!F87="","",'UVS_T-1'!F87) ->  | G87: =IF(E87="","",IFERROR(AVERAGE(tbl_20_UVS_01[[#This Row],[Skupna poraba '[enot']]],'UVS_T-1'!G142,'UVS_T-1'!G197,'UVS_T-1'!G252,'UVS_T-1'!G307,'UVS_T-1'!G362,'UVS_T-1'!G417,'UVS_T-1'!G472,'UVS_T-1'!G527,'UVS_T-1'!G582,'UVS_T-1'!G637,'UVS_T-1'!G692),"")) ->  | H87: MW/leto | R87: EUR/MW/leto | S87: =IF(E87="","",SUM(tbl_20_UVS_01[[#This Row],[Znesek upravičenega stroška '[EUR']]],'UVS_T-1'!S142,'UVS_T-1'!S197,'UVS_T-1'!S252,'UVS_T-1'!S307,'UVS_T-1'!S362,'UVS_T-1'!S417,'UVS_T-1'!S472,'UVS_T-1'!S527,'UVS_T-1'!S582,'UVS_T-1'!S637,'UVS_T-1'!S692)) ->  | U87: =IF('UVS_T-1'!U87="","",'UVS_T-1'!U87) ->  | AQ87: ="a"&(COUNTA($F$43:$F87)) -> a45 | AR87: 1 | AT87: 0 | AV87: 1
G88: =SUBTOTAL(109,tbl_22_UVSsum[Skupna poraba '[enot']]) -> 0 | P88: =SUBTOTAL(109,tbl_22_UVSsum[Znesek omrežnine, dajatev, prispevkov in dodatkov '[EUR']]) -> 0 | S88: =SUBTOTAL(109,tbl_22_UVSsum[Znesek upravičenega stroška '[EUR']]) -> 0 | T88: =SUBTOTAL(109,tbl_22_UVSsum[Strukturni delež upravičenega stroška '[%']]) -> 0 | V88: =SUBTOTAL(109,tbl_22_UVSsum[Ponder ai oz. bi ]) -> 0
E89: Opomba: | F89: Oznaka MSDT je okrajšava za "Matična številka dobavitelja toplote", tej sledi matična številka dobavitelja toplote, prenesena iz Tabele 20: Količina lastne proizvedene toplote [0] in nabava toplote od dobaviteljev toplote [1-4] v letu (t)
E94: Tabela 23: | F94: ="Zneski variabilnih stroškov (po kategorijah) v letu "&""&BAZA_Sifranti!AL6 -> Zneski variabilnih stroškov (po kategorijah) v letu t-1 (2024)
E96: 01 | F96: 02 | G96: 03
E97: ID | F97: Naziv upravičenega variabilnega stroška | G97: [EUR]
E98: 01 | F98: Stroški energentov | G98: =SUMIF($AL$43:$AL$87,"A01",tbl_22_UVSsum[Znesek upravičenega stroška '[EUR']]) -> 0
E99: 02 | F99: Stroški energije za proizvodnjo toplote | G99: =SUMIF($AL$43:$AL$87,"A02",tbl_22_UVSsum[Znesek upravičenega stroška '[EUR']]) -> 0
E100: 03 | F100: Stroški energije za obratovanje naprav | G100: =SUMIF($AL$43:$AL$87,"A03",tbl_22_UVSsum[Znesek upravičenega stroška '[EUR']]) -> 0
E101: 04 | F101: Stroški medija za prenos toplote | G101: =SUMIF($AL$43:$AL$87,"A04",tbl_22_UVSsum[Znesek upravičenega stroška '[EUR']]) -> 0
E102: 05 | F102: Stroški emisijskih kuponov | G102: =SUMIF($AL$43:$AL$87,"A05",tbl_22_UVSsum[Znesek upravičenega stroška '[EUR']]) -> 0
E103: 06 | F103: Stroški nabavljene toplote | G103: =SUMIF($AL$43:$AL$87,"A06",tbl_22_UVSsum[Znesek upravičenega stroška '[EUR']]) -> 0
E107: Tabela 24: | F107: ="Izračun variabilnega dela izhodiščne cene toplote v letu "&""&BAZA_Sifranti!AL6 -> Izračun variabilnega dela izhodiščne cene toplote v letu t-1 (2024)
S111: Upravičeni variabilni stroški (VSTRt) [EUR]: | T111: =S88 -> 0
F112: ="Izračun variabilnega dela izhodiščne cene za distribucijski sistem -"&" "&POVZETEK!$E$20&" "&"za leto"&" " & BAZA_Sifranti!$AL$6 -> Izračun variabilnega dela izhodiščne cene za distribucijski sistem - za leto t-1 (2024) | S112: Celotna dobavljena toplota (Qt oz. Ki) [MWh]: | T112: =PRIHODKI!D215 -> 0
S113: Variabilni del izhodiščne cene toplote (VCi) [EUR/MWh]: | T113: =IFERROR(ROUND(T111/T112,5),0) -> 0

Sheet UVS_T
AK2: 2024
F5: =POVZETEK!C4 -> ZAHTEVA ZA IZDAJO SOGLASJA K IZHODIŠČNI CENI TOPLOTE ZA DALJINSKO OGREVANJE
F6: Struktura in cene upravičenih variabilnih stroškov
F7: Akta o metodologiji za oblikovanje cene toplote za daljinsko ogrevanje", Uradni list št. RS 103/23
M10: Številka zadeve AE:
F12: =IF(COUNTA(F43:F71,G72:G87,I43:Q71)+AM136=0,"PRISOTNE SO NAPAKE VNOSA ALI PA DELOVNI LIST OBRAZCA NI IZPOLNJEN !",IF(AR37=0,"","PRISOTNE SO NAPAKE VNOSA - PREVERITE VNOS IN NAVODILA ZA IZPOLNJEVANJE OBRAZCA !")) -> PRISOTNE SO NAPAKE VNOSA ALI PA DELOVNI LIST OBRAZCA NI IZPOLNJEN ! | M12: Matična številka družbe: | N12: =IF(POVZETEK!$J$11="","",POVZETEK!$J$11) ->  | AL12: =SUM(AR43:AR71)+SUM(AR98:AR126) -> 0 | AQ12: Tip vlagatelja | AR12: 0
E14: Naziv : | F14: =POVZETEK!D13 ->  | AQ14: Število napak delovnega lista: | AR14: =AK37+AR37 -> 1
E16: Tip izvajalca: | F16: =UPPER(POVZETEK!E17) ->  | M16: ID distribucijskega sistema: | N16: =POVZETEK!$E$24 ->  | AR16: Načrtovana struktura in cene upravičenih variabilnih stroškov za koledarski mesec -
AR17: Realizirana struktura in cene upravičenih variabilnih stroškov za koledarski mesec -
F18: =IF(COUNTA(F43:K71,I72:K87,P43:P87)=0,"PRISOTNE SO NAPAKE VNOSA ALI PA OBRAZEC NI IZPOLNJEN !",IF(AL12=0,"","PRISOTNE SO NAPAKE VNOSA - PREVERITE VNOS IN NAVODILA ZA IZPOLNJEVANJE OBRAZCA !")) ->  | BN18: =IFERROR((SUM(L43:M43)+(O43*(M43/(M43+O43))))/SUM(I43:J43)>#REF!,0) -> 0 | BP18: =IFERROR((SUM(L45:M45)+(O45*(M45/(M45+O45))))/SUM(I45:J45)<#REF!,0) -> 0
BN19: =IFERROR((SUM(L44:M44)+(O44*(M44/(M44+O44))))/SUM(I44:J44)>#REF!,0) -> 0 | BP19: =IFERROR((SUM(L46:M46)+(O46*(M46/(M46+O46))))/SUM(I46:J46)<#REF!,0) -> 0
AR21: Načrtovana struktura in cene upravičenih variabilnih stroškov za koledarski mesec -
AR22: Realizirana struktura in cene upravičenih variabilnih stroškov za koledarski mesec -
E24: Tabela 25: | F24: ="Podatki o vlagatelju in o dobavitelju toplote - izpolniti v primeru nabave toplote od dobaviteljev toplote v letu "&""&BAZA_Sifranti!AL5 -> Podatki o vlagatelju in o dobavitelju toplote - izpolniti v primeru nabave toplote od dobaviteljev toplote v letu t (2025)
E25: 01 | F25: 02 | G25: 03
E26: ID | F26: Naziv podjetja | G26: Matična številka dobavitelja toplote
E27: 0 | F27: =F14 ->  | G27: =IF(N12=0,"",N12) -> 
E28: 1 | F28: =IF(G28="","",IFERROR(VLOOKUP(MATCH(G28,tblQ_PSubjekt[Maticna],0),tblQ_PSubjekt[],3),"Proizvajalec toplote ni registriran oz. je matična številka proizvajalca toplote napačna")) ->  | L28: Komentar:
E29: 2 | F29: =IF(G29="","",IFERROR(VLOOKUP(MATCH(G29,tblQ_PSubjekt[Maticna],0),tblQ_PSubjekt[],3),"Proizvajalec toplote ni registriran oz. je matična številka proizvajalca toplote napačna")) -> 
E30: 3 | F30: =IF(G30="","",IFERROR(VLOOKUP(MATCH(G30,tblQ_PSubjekt[Maticna],0),tblQ_PSubjekt[],3),"Proizvajalec toplote ni registriran oz. je matična številka proizvajalca toplote napačna")) -> 
E31: 4 | F31: =IF(G31="","",IFERROR(VLOOKUP(MATCH(G31,tblQ_PSubjekt[Maticna],0),tblQ_PSubjekt[],3),"Proizvajalec toplote ni registriran oz. je matična številka proizvajalca toplote napačna")) -> 
E37: Tabela 26.1 | F37: =IF(BAZA_Sifranti!$AK$9<=2, "Načrtovana struktura in cene upravičenih variabilnih stroškov za koledarski mesec - ",IF(BAZA_Sifranti!$AK$9>=3,"Realizirana struktura in cene upravičenih variabilnih stroškov za koledarski mesec - ","")) -> Načrtovana struktura in cene upravičenih variabilnih stroškov za koledarski mesec - | H37: ="JANUAR "&""&BAZA_Sifranti!$AK$5 -> JANUAR 2025 | AK37: =IF(COUNTA(F43:F71,G72:G87,I43:Q71)=0,1,0) -> 1 | AQ37: Število napak izpolnjevanja: | AR37: =AR40+AR95+AR150+AR205+AR260+AR315+AR370+AR425+AR480+AR535+AR590+AR645 -> 0 | BJ37: Tip proizvodne naprave in njeni mesečni izkoristki
D38: 1
F39: Priznani upravičeni variabilni stroški (UVS) | G39: Količinska poraba upravičenih variabilnih stroškov [enot] | L39: Proizvedena koristna energija [MWh] | P39: Cene in dodatni zneski UVS | S39: Zneski in strukturni deleži UVS (brez DDV) | AB39: Opomba: | BN39: Opomba:
I40: EE | J40: TE | L40: EE Bruto | M40: TE predana v distribucijski sistem | O40: TE lastne rabe | AB40: Pripomoček za izračun deleža UVS med posameznimi skupinami odjemalcev | AR40: =SUM(AR43:AR87) -> 0 | AT40: Kontrola napak vnosa in vnesenih vrednosti | BN40: Uporabljen tip proizvodnih naprav in doseženi mesečni parametri
E41: 01 | F41: 02 | G41: 03 | H41: 04 | I41: 05 | J41: 06 | K41: 07 | L41: 08 | M41: 09 | N41: 10 | O41: 11 | P41: 12 | Q41: 13 | R41: 14 | S41: 15 | T41: 16 | U41: 17 | V41: 18 | BG41: A01-7-1 | BH41: A01-7-2
C42: ID_PP | D42: ID_PR | E42: ID | F42: Naziv upravičenega variabilnega stroška | G42: Skupna poraba [enot] | H42: Enota | I42: Poraba SPTE Proizvodnja EE [enot] | J42: Poraba SPTE Proizvodnja TE [enot] | K42: Poraba Kotli/Ostalo Proizvodnja TE [enot] | L42: SPTE Proizvedena EE [MWh] | M42: SPTE Proizvedena TE [MWh] | N42: Kotli/Ostalo Proizvedena TE [MWh] | O42: Lastna raba TE [MWh] | P42: Znesek omrežnine, dajatev, prispevkov in dodatkov [EUR] | Q42: Pogodbena cena UVS (brez omrežnine, dajatev in prispevkov) [enoto UVS] | R42: Enota UVS | S42: Znesek upravičenega stroška [EUR] | T42: Strukturni delež upravičenega stroška [%] | U42: Ponder | V42: Ponder ai oz. bi | Y42: Kontrola napak vnosa | AB42: Skupina odjemalcev | AC42: Razmerje odjemov TE med skupinami zaščitenih in nezaščitenih odjemalcev [%) | AD42: Načrtovana oz. realizirana poraba količin UVS [enota] | AE42: Delež porabe UVS po skupinah odjemalcev [enota] | AQ42: Ponder | AR42: Sumarna kontrola | AT42: Kontrola prazen prostor | AU42: Kontrola podvajanja | AV42: Kontrola povezana z osnovnim šifrantom | AW42: Kontrola izpolnjenosti SPTE | AX42: Kontrola izpolnjenosti KOTLI | AY42: Omejitev SPTE | AZ42: Omejitev KOTLI | BA42: Omejitev SPTE&KOTLI | BB42: Omejitev TOPČRP | BC42: Kontrola izpolnjenosti I | BD42: Kontrola izpolnjenosti II | BE42: Kontrola regulirana cena A01-7-1 | BF42: Kontrola regulirana cena A01-7-2 | BG42: Regulirana cena A01-7-1 | BH42: Regulirana cena A01-7-2 | BJ42: SPTE + Kotli | BK42: TOPČRP | BL42: SPTE | BM42: Vrsta naprave | BN42: Izkoristek naprave | BO42: Toplotni izkoristek | BP42: Električni izkoristek | BQ42: Razmernik C = EE/TE | BR42: Tip proizvodnih naprav | BT42: Kriteriji izkoristkov proizvodnih naprav in razmernika C za SPTE
C43: =$D$40 -> 0 | D43: =$D$39 -> 0 | E43: =IFERROR(IF(F43="","",LOOKUP(MATCH(F43,$CG$726:$CG$757,0),$CD$726:$CD$757,$CF$726:$CF$757)),"AXX-XX") ->  | G43: =IF(E43="","",ROUND(IF(OR(O43=0,O43=""),SUM(J43:K43),(SUM(M43:N43))/(SUM(M43:N43)+O43)*SUM(J43:K43)),3)) ->  | H43: =IFERROR(IF(E43="","",VLOOKUP((MATCH(E43,tblS_VarStroški_SD[ID_STRO_SD],0)-1),tblS_VarStroški_SD[],5)),"") ->  | R43: =IFERROR(IF(E43="","",VLOOKUP((MATCH(E43,tblS_VarStroški_SD[ID_STRO_SD],0)-1),tblS_VarStroški_SD[],6)),"") ->  | S43: =IF(OR(G43="",Q43=""),"",ROUND((G43*Q43+P43),2)) ->  | T43: =IFERROR(S43/$S$88,"") ->  | U43: =IF(F43="","",AQ43) ->  | V43: =IFERROR(T43,"") ->  | Y43: =IF(AND(E43="",AT43=0,COUNTA(F43,I43:K43,P43:Q43)=0),"",IF(AR43=1,"û","ü")) ->  | AB43: GO | AC43: 0.6328645909 | AD43: 0 | AE43: =ROUND(AD43*AC43,3) -> 0 | AQ43: a1 | AR43: =IF(SUM(AS43:BF43)>0,1,0) -> 0 | AT43: =IF(AND(F43="",F44<>""),1,0) -> 0 | AU43: =IF(IF(F43="",TRUE,COUNTIF(tbl_26_UVS_01[Naziv upravičenega variabilnega stroška],F43)=1)=FALSE,1,0) -> 0 | AV43: =IF(E43="",0,IFERROR(IF(MATCH(E43,$CF$726:$CF$759,0)>0,0,1),1)) -> 0 | AW43: =IF(SUM(I43:O43)=0,0,IF(LEFT(E43,3)="A01",IF(SUM(I43:J43,L43:M43)=0,0,IF(AND(SUM(I43:J43)>0,SUM(L43:M43)>0),0,1)),0)) -> 0 | AX43: =IF(SUM(I43:O43)=0,0,IF(LEFT(E43,3)="A01",IF(SUM(I43:O43)=0,0,IF(OR(AND(K43=0,N43=0),AND(K43>0,N43>=0))=TRUE,0,1)),0)) -> 0 | AY43: =IFERROR(IF(BM43=1,IF(AND(BN43<=$BZ$44,BN43>=$CA$44,BO43<=$BV$44,BO43>=$BW$44,BP43<=$BX$44,BP43>=$BY$44,BQ43>=$CB$44,BQ43<=$CC$44),0,1),0),0) -> 0 | AZ43: =IFERROR(IF(BM43=2,IF(AND(BN43<=$BZ$45,BN43>=$CA$45,BO43<=$BV$45,BO43>=$BW$45),0,1),0),0) -> 0 | BA43: =IFERROR(IF(BM43=3,IF(AND(BN43<=$BZ$46,BN43>=$CA$46,BO43<=$BV$46,BO43>=$BW$46,BP43<=$BX$46,BP43>=$BY$46,BQ43>=$CB$46,BQ43<=$CC$46),0,1),0),0) -> 0 | BB43: =IFERROR(IF(BM43=4,IF(AND(BN43<=$BZ$47,BN43>=$CA$47,BO43<=$BV$47,BO43>=$BW$47),0,1),0),0) -> 0 | BC43: =IF(E43="",0,IF(AND(OR(AND(I43=0,L43=0),AND(I43>0,L43>0),AND(SUM(I43:J43)>0,SUM(L43:M43)>0)),OR(AND(I43>0,J43>0,L43>0),AND(SUM(I43:J43)=0,SUM(L43:M43)=0)))=TRUE,0,1)) -> 0 | BD43: =IF(OR(COUNTA(F43,I43:Q43)>9,COUNTA(F43,I43:Q43)=0)=TRUE,0,1) -> 0 | BE43: =IF(AND($BG$41=E43,$BG$43<>""),IF(Q43>$BG$43,1,0),0) -> 0 | BF43: =IF(AND($BH$41=E43,$BH$43<>""),IF(Q43>$BH$43,1,0),0) -> 0 | BJ43: =AND(LEFT(E43,3)="A01",SUM(L43:N43)>0,E43<>"A01-13",E43<>"A01-14",E43<>"A01-15") -> FALSE | BK43: =AND(LEFT(E43,3)="A01",SUM(N43:O43)>0,E43="A01-15") -> FALSE | BL43: =IF(BJ43=TRUE,IF(AND(K43=0,BJ43=TRUE),1,IF(SUM(I43:J43)=0,2,3)),0) -> 0 | BM43: =IF(BL43<>0,BL43,IF(BK43=TRUE,4,0)) -> 0 | BN43: =IFERROR(IF($BM43=0,"",ROUND(SUM(L43:O43)/SUM(I43:K43),3)),"") ->  | BO43: =IFERROR(IF($BM43=0,"",ROUND(SUM(M43:O43)/SUM(J43:K43),3)),"") ->  | BP43: =IFERROR(IF($BM43=0,"",ROUND(SUM(L43)/SUM(I43),3)),"") ->  | BQ43: =IFERROR(IF(OR($BM43=1,$BM43=3),ROUND(IF(O43=0,L43/M43,IF((N43+O43)<=(K43*0.85),L43/(M43+O43),L43/(SUM(N43:O43)-K43*0.85+M43))),3),""),"") ->  | BR43: =IF(BM43=0,"",VLOOKUP(BM43,$BT$44:$BU$47,2)) ->  | BT43: ID | BU43: Naprava_TIP | BV43: Izkoristek TE max | BW43: Izkoristek TE min | BX43: Izkoristek EE max | BY43: Izkoristek EE min | BZ43: Izkoristek PN max | CA43: Izkoristek PN min | CB43: Cmin | CC43: Cmax
C44: 0 | D44: 0 | E44: =IFERROR(IF(F44="","",LOOKUP(MATCH(F44,$CG$726:$CG$757,0),$CD$726:$CD$757,$CF$726:$CF$757)),"AXX-XX") ->  | G44: =IF(E44="","",ROUND(IF(OR(O44=0,O44=""),SUM(J44:K44),(SUM(M44:N44))/(SUM(M44:N44)+O44)*SUM(J44:K44)),3)) ->  | H44: =IFERROR(IF(E44="","",VLOOKUP((MATCH(E44,tblS_VarStroški_SD[ID_STRO_SD],0)-1),tblS_VarStroški_SD[],5)),"") ->  | R44: =IFERROR(IF(E44="","",VLOOKUP((MATCH(E44,tblS_VarStroški_SD[ID_STRO_SD],0)-1),tblS_VarStroški_SD[],6)),"") ->  | S44: =IF(OR(G44="",Q44=""),"",ROUND((G44*Q44+P44),2)) ->  | AB44: ZNGO | AC44: 0.1470905493 | AE44: =ROUND(AD43*AC44,3) -> 0 | AQ44: a2 | AR44: =IF(SUM(AS44:BF44)>0,1,0) -> 0 | AT44: 0 | AU44: =IF(IF(F44="",TRUE,COUNTIF(tbl_26_UVS_01[Naziv upravičenega variabilnega stroška],F44)=1)=FALSE,1,0) -> 0 | AV44: 0 | AW44: 0 | AX44: 0 | AY44: =IFERROR(IF(BM44=1,IF(AND(BN44<=$BZ$44,BN44>=$CA$44,BO44<=$BV$44,BO44>=$BW$44,BP44<=$BX$44,BP44>=$BY$44,BQ44>=$CB$44,BQ44<=$CC$44),0,1),0),0) -> 0 | AZ44: =IFERROR(IF(BM44=2,IF(AND(BN44<=$BZ$45,BN44>=$CA$45,BO44<=$BV$45,BO44>=$BW$45),0,1),0),0) -> 0 | BA44: =IFERROR(IF(BM44=3,IF(AND(BN44<=$BZ$46,BN44>=$CA$46,BO44<=$BV$46,BO44>=$BW$46,BP44<=$BX$46,BP44>=$BY$46,BQ44>=$CB$46,BQ44<=$CC$46),0,1),0),0) -> 0 | BB44: 0 | BC44: 0 | BD44: 0 | BE44: =IF(AND($BG$41=E44,$BG$43<>""),IF(Q44>$BG$43,1,0),0) -> 0 | BF44: 0 | BJ44: =AND(LEFT(E44,3)="A01",SUM(L44:N44)>0,E44<>"A01-13",E44<>"A01-14",E44<>"A01-15") -> FALSE | BK44: =AND(LEFT(E44,3)="A01",SUM(N44:O44)>0,E44="A01-15") -> FALSE | BL44: =IF(BJ44=TRUE,IF(AND(K44=0,BJ44=TRUE),1,IF(SUM(I44:J44)=0,2,3)),0) -> 0 | BM44: =IF(BL44<>0,BL44,IF(BK44=TRUE,4,0)) -> 0 | BN44: =IFERROR(IF($BM44=0,"",ROUND(SUM(L44:O44)/SUM(I44:K44),3)),"") ->  | BO44: =IFERROR(IF($BM44=0,"",ROUND(SUM(M44:O44)/SUM(J44:K44),3)),"") ->  | BP44: =IFERROR(IF($BM44=0,"",ROUND(SUM(L44)/SUM(I44),3)),"") ->  | BQ44: =IFERROR(IF(OR($BM44=1,$BM44=3),ROUND(IF(O44=0,L44/M44,IF((N44+O44)<=(K44*0.95),L44/(M44+O44),L44/(SUM(N44:O44)-K44*0.95+M44))),3),""),"") ->  | BR44: =IF(BM44=0,"",VLOOKUP(BM44,$BT$44:$BU$47,2)) ->  | BT44: 1 | BU44: SPTE | BV44: 1.25 | BW44: 0.45 | BX44: 0.85 | BY44: 0.25 | BZ44: 1.25 | CA44: 0.45 | CB44: 0.2 | CC44: 1.2
C45: 0 | D45: 0 | H45: =IFERROR(IF(E45="","",VLOOKUP((MATCH(E45,tblS_VarStroški_SD[ID_STRO_SD],0)-1),tblS_VarStroški_SD[],5)),"") ->  | R45: =IFERROR(IF(E45="","",VLOOKUP((MATCH(E45,tblS_VarStroški_SD[ID_STRO_SD],0)-1),tblS_VarStroški_SD[],6)),"") ->  | AB45: NNGO | AC45: =IFERROR(1-SUM(AC43:AC44),0) -> 0.2200448598 | AE45: =ROUND(AD43*AC45,3) -> 0 | AQ45: a3 | AR45: 0 | AT45: 0 | AU45: =IF(IF(F45="",TRUE,COUNTIF(tbl_26_UVS_01[Naziv upravičenega variabilnega stroška],F45)=1)=FALSE,1,0) -> 0 | AV45: 0 | AW45: 0 | AX45: 0 | AY45: 0 | AZ45: =IFERROR(IF(BM45=2,IF(AND(BN45<=$BZ$45,BN45>=$CA$45,BO45<=$BV$45,BO45>=$BW$45),0,1),0),0) -> 0 | BA45: 0 | BB45: 0 | BC45: 0 | BD45: 0 | BE45: 0 | BF45: 0 | BJ45: FALSE | BK45: FALSE | BL45: 0 | BM45: 0 | BT45: 2 | BU45: KOTLI | BV45: 1 | BW45: 0.65 | BX45: 0 | BY45: 0 | BZ45: 1 | CA45: 0.65 | CB45: 0 | CC45: 0
C46: 0 | D46: 0 | H46: =IFERROR(IF(E46="","",VLOOKUP((MATCH(E46,tblS_VarStroški_SD[ID_STRO_SD],0)-1),tblS_VarStroški_SD[],5)),"") ->  | R46: =IFERROR(IF(E46="","",VLOOKUP((MATCH(E46,tblS_VarStroški_SD[ID_STRO_SD],0)-1),tblS_VarStroški_SD[],6)),"") ->  | AQ46: a4 | AR46: 0 | AT46: 0 | AU46: =IF(IF(F46="",TRUE,COUNTIF(tbl_26_UVS_01[Naziv upravičenega variabilnega stroška],F46)=1)=FALSE,1,0) -> 0 | AV46: 0 | AW46: 0 | AX46: 0 | AY46: 0 | AZ46: =IFERROR(IF(BM46=2,IF(AND(BN46<=$BZ$45,BN46>=$CA$45,BO46<=$BV$45,BO46>=$BW$45),0,1),0),0) -> 0 | BA46: 0 | BB46: 0 | BC46: 0 | BD46: 0 | BE46: 0 | BF46: 0 | BJ46: FALSE | BK46: FALSE | BL46: 0 | BM46: 0 | BT46: 3 | BU46: SPTE&KOTLI | BV46: 1 | BW46: 0.45 | BX46: 0.85 | BY46: 0.25 | BZ46: 1 | CA46: 0.45 | CB46: 0.2 | CC46: 1.5
C47: 0 | D47: 0 | H47: =IFERROR(IF(E47="","",VLOOKUP((MATCH(E47,tblS_VarStroški_SD[ID_STRO_SD],0)-1),tblS_VarStroški_SD[],5)),"") ->  | R47: =IFERROR(IF(E47="","",VLOOKUP((MATCH(E47,tblS_VarStroški_SD[ID_STRO_SD],0)-1),tblS_VarStroški_SD[],6)),"") ->  | S47: =IF(OR(G47="",Q47=""),"",ROUND((G47*Q47+P47),2)) ->  | AQ47: a5 | AR47: 0 | AT47: 0 | AU47: =IF(IF(F47="",TRUE,COUNTIF(tbl_26_UVS_01[Naziv upravičenega variabilnega stroška],F47)=1)=FALSE,1,0) -> 0 | AV47: 0 | AW47: 0 | AX47: 0 | AY47: 0 | AZ47: 0 | BA47: 0 | BB47: 0 | BC47: 0 | BD47: 0 | BE47: 0 | BF47: 0 | BJ47: FALSE | BK47: FALSE | BL47: 0 | BM47: 0 | BT47: 4 | BU47: TOPČRP | BV47: 3.5 | BW47: 1.2 | BX47: 0 | BY47: 0 | BZ47: 3.5 | CA47: 1.2 | CB47: 0 | CC47: 0
C48: 0 | D48: 0 | H48: =IFERROR(IF(E48="","",VLOOKUP((MATCH(E48,tblS_VarStroški_SD[ID_STRO_SD],0)-1),tblS_VarStroški_SD[],5)),"") ->  | R48: =IFERROR(IF(E48="","",VLOOKUP((MATCH(E48,tblS_VarStroški_SD[ID_STRO_SD],0)-1),tblS_VarStroški_SD[],6)),"") ->  | AQ48: a6 | AR48: 0 | AT48: 0 | AU48: =IF(IF(F48="",TRUE,COUNTIF(tbl_26_UVS_01[Naziv upravičenega variabilnega stroška],F48)=1)=FALSE,1,0) -> 0 | AV48: 0 | AW48: 0 | AX48: 0 | AY48: 0 | AZ48: 0 | BA48: 0 | BB48: 0 | BC48: 0 | BD48: 0 | BE48: 0 | BF48: 0 | BJ48: FALSE | BK48: FALSE | BL48: 0 | BM48: 0
C49: 0 | D49: 0 | H49: =IFERROR(IF(E49="","",VLOOKUP((MATCH(E49,tblS_VarStroški_SD[ID_STRO_SD],0)-1),tblS_VarStroški_SD[],5)),"") ->  | R49: =IFERROR(IF(E49="","",VLOOKUP((MATCH(E49,tblS_VarStroški_SD[ID_STRO_SD],0)-1),tblS_VarStroški_SD[],6)),"") ->  | AQ49: a7 | AR49: 0 | AT49: 0 | AU49: =IF(IF(F49="",TRUE,COUNTIF(tbl_26_UVS_01[Naziv upravičenega variabilnega stroška],F49)=1)=FALSE,1,0) -> 0 | AV49: 0 | AW49: 0 | AX49: 0 | AY49: 0 | AZ49: 0 | BA49: 0 | BB49: 0 | BC49: 0 | BD49: 0 | BE49: 0 | BF49: 0 | BJ49: FALSE | BK49: FALSE | BL49: 0 | BM49: 0
C50: 0 | D50: 0 | H50: =IFERROR(IF(E50="","",VLOOKUP((MATCH(E50,tblS_VarStroški_SD[ID_STRO_SD],0)-1),tblS_VarStroški_SD[],5)),"") ->  | R50: =IFERROR(IF(E50="","",VLOOKUP((MATCH(E50,tblS_VarStroški_SD[ID_STRO_SD],0)-1),tblS_VarStroški_SD[],6)),"") ->  | AQ50: a8 | AR50: 0 | AT50: 0 | AU50: =IF(IF(F50="",TRUE,COUNTIF(tbl_26_UVS_01[Naziv upravičenega variabilnega stroška],F50)=1)=FALSE,1,0) -> 0 | AV50: 0 | AW50: 0 | AX50: 0 | AY50: 0 | AZ50: 0 | BA50: 0 | BB50: 0 | BC50: 0 | BD50: 0 | BE50: 0 | BF50: 0 | BJ50: FALSE | BK50: FALSE | BL50: 0 | BM50: 0
C51: 0 | D51: 0 | H51: =IFERROR(IF(E51="","",VLOOKUP((MATCH(E51,tblS_VarStroški_SD[ID_STRO_SD],0)-1),tblS_VarStroški_SD[],5)),"") ->  | R51: =IFERROR(IF(E51="","",VLOOKUP((MATCH(E51,tblS_VarStroški_SD[ID_STRO_SD],0)-1),tblS_VarStroški_SD[],6)),"") ->  | AQ51: a9 | AR51: 0 | AT51: 0 | AU51: =IF(IF(F51="",TRUE,COUNTIF(tbl_26_UVS_01[Naziv upravičenega variabilnega stroška],F51)=1)=FALSE,1,0) -> 0 | AV51: 0 | AW51: 0 | AX51: 0 | AY51: 0 | AZ51: 0 | BA51: 0 | BB51: 0 | BC51: 0 | BD51: 0 | BE51: 0 | BF51: 0 | BJ51: FALSE | BK51: FALSE | BL51: 0 | BM51: 0
C52: 0 | D52: 0 | H52: =IFERROR(IF(E52="","",VLOOKUP((MATCH(E52,tblS_VarStroški_SD[ID_STRO_SD],0)-1),tblS_VarStroški_SD[],5)),"") ->  | R52: =IFERROR(IF(E52="","",VLOOKUP((MATCH(E52,tblS_VarStroški_SD[ID_STRO_SD],0)-1),tblS_VarStroški_SD[],6)),"") ->  | AQ52: a10 | AR52: 0 | AT52: 0 | AU52: =IF(IF(F52="",TRUE,COUNTIF(tbl_26_UVS_01[Naziv upravičenega variabilnega stroška],F52)=1)=FALSE,1,0) -> 0 | AV52: 0 | AW52: 0 | AX52: 0 | AY52: 0 | AZ52: 0 | BA52: 0 | BB52: 0 | BC52: 0 | BD52: 0 | BE52: 0 | BF52: 0 | BJ52: FALSE | BK52: FALSE | BL52: 0 | BM52: 0
C53: 0 | D53: 0 | H53: =IFERROR(IF(E53="","",VLOOKUP((MATCH(E53,tblS_VarStroški_SD[ID_STRO_SD],0)-1),tblS_VarStroški_SD[],5)),"") ->  | R53: =IFERROR(IF(E53="","",VLOOKUP((MATCH(E53,tblS_VarStroški_SD[ID_STRO_SD],0)-1),tblS_VarStroški_SD[],6)),"") ->  | AQ53: a11 | AR53: 0 | AT53: 0 | AU53: =IF(IF(F53="",TRUE,COUNTIF(tbl_26_UVS_01[Naziv upravičenega variabilnega stroška],F53)=1)=FALSE,1,0) -> 0 | AV53: 0 | AW53: 0 | AX53: 0 | AY53: 0 | AZ53: 0 | BA53: 0 | BB53: 0 | BC53: 0 | BD53: 0 | BE53: 0 | BF53: 0 | BJ53: FALSE | BK53: FALSE | BL53: 0 | BM53: 0
C54: 0 | D54: 0 | H54: =IFERROR(IF(E54="","",VLOOKUP((MATCH(E54,tblS_VarStroški_SD[ID_STRO_SD],0)-1),tblS_VarStroški_SD[],5)),"") ->  | R54: =IFERROR(IF(E54="","",VLOOKUP((MATCH(E54,tblS_VarStroški_SD[ID_STRO_SD],0)-1),tblS_VarStroški_SD[],6)),"") ->  | AQ54: a12 | AR54: 0 | AT54: 0 | AU54: =IF(IF(F54="",TRUE,COUNTIF(tbl_26_UVS_01[Naziv upravičenega variabilnega stroška],F54)=1)=FALSE,1,0) -> 0 | AV54: 0 | AW54: 0 | AX54: 0 | AY54: 0 | AZ54: 0 | BA54: 0 | BB54: 0 | BC54: 0 | BD54: 0 | BE54: 0 | BF54: 0 | BJ54: FALSE | BK54: FALSE | BL54: 0 | BM54: 0
C55: 0 | D55: 0 | H55: =IFERROR(IF(E55="","",VLOOKUP((MATCH(E55,tblS_VarStroški_SD[ID_STRO_SD],0)-1),tblS_VarStroški_SD[],5)),"") ->  | R55: =IFERROR(IF(E55="","",VLOOKUP((MATCH(E55,tblS_VarStroški_SD[ID_STRO_SD],0)-1),tblS_VarStroški_SD[],6)),"") ->  | AQ55: a13 | AR55: 0 | AT55: 0 | AU55: =IF(IF(F55="",TRUE,COUNTIF(tbl_26_UVS_01[Naziv upravičenega variabilnega stroška],F55)=1)=FALSE,1,0) -> 0 | AV55: 0 | AW55: 0 | AX55: 0 | AY55: 0 | AZ55: 0 | BA55: 0 | BB55: 0 | BC55: 0 | BD55: 0 | BE55: 0 | BF55: 0 | BJ55: FALSE | BK55: FALSE | BL55: 0 | BM55: 0
C56: 0 | D56: 0 | H56: =IFERROR(IF(E56="","",VLOOKUP((MATCH(E56,tblS_VarStroški_SD[ID_STRO_SD],0)-1),tblS_VarStroški_SD[],5)),"") ->  | R56: =IFERROR(IF(E56="","",VLOOKUP((MATCH(E56,tblS_VarStroški_SD[ID_STRO_SD],0)-1),tblS_VarStroški_SD[],6)),"") ->  | AQ56: a14 | AR56: 0 | AT56: 0 | AU56: =IF(IF(F56="",TRUE,COUNTIF(tbl_26_UVS_01[Naziv upravičenega variabilnega stroška],F56)=1)=FALSE,1,0) -> 0 | AV56: 0 | AW56: 0 | AX56: 0 | AY56: 0 | AZ56: 0 | BA56: 0 | BB56: 0 | BC56: 0 | BD56: 0 | BE56: 0 | BF56: 0 | BJ56: FALSE | BK56: FALSE | BL56: 0 | BM56: 0
C57: 0 | D57: 0 | H57: =IFERROR(IF(E57="","",VLOOKUP((MATCH(E57,tblS_VarStroški_SD[ID_STRO_SD],0)-1),tblS_VarStroški_SD[],5)),"") ->  | R57: =IFERROR(IF(E57="","",VLOOKUP((MATCH(E57,tblS_VarStroški_SD[ID_STRO_SD],0)-1),tblS_VarStroški_SD[],6)),"") ->  | AQ57: a15 | AR57: 0 | AT57: 0 | AU57: =IF(IF(F57="",TRUE,COUNTIF(tbl_26_UVS_01[Naziv upravičenega variabilnega stroška],F57)=1)=FALSE,1,0) -> 0 | AV57: 0 | AW57: 0 | AX57: 0 | AY57: 0 | AZ57: 0 | BA57: 0 | BB57: 0 | BC57: 0 | BD57: 0 | BE57: 0 | BF57: 0 | BJ57: FALSE | BK57: FALSE | BL57: 0 | BM57: 0
C58: 0 | D58: 0 | H58: =IFERROR(IF(E58="","",VLOOKUP((MATCH(E58,tblS_VarStroški_SD[ID_STRO_SD],0)-1),tblS_VarStroški_SD[],5)),"") ->  | R58: =IFERROR(IF(E58="","",VLOOKUP((MATCH(E58,tblS_VarStroški_SD[ID_STRO_SD],0)-1),tblS_VarStroški_SD[],6)),"") ->  | AQ58: a16 | AR58: 0 | AT58: 0 | AU58: =IF(IF(F58="",TRUE,COUNTIF(tbl_26_UVS_01[Naziv upravičenega variabilnega stroška],F58)=1)=FALSE,1,0) -> 0 | AV58: 0 | AW58: 0 | AX58: 0 | AY58: 0 | AZ58: 0 | BA58: 0 | BB58: 0 | BC58: 0 | BD58: 0 | BE58: 0 | BF58: 0 | BJ58: FALSE | BK58: FALSE | BL58: 0 | BM58: 0
C59: 0 | D59: 0 | H59: =IFERROR(IF(E59="","",VLOOKUP((MATCH(E59,tblS_VarStroški_SD[ID_STRO_SD],0)-1),tblS_VarStroški_SD[],5)),"") ->  | R59: =IFERROR(IF(E59="","",VLOOKUP((MATCH(E59,tblS_VarStroški_SD[ID_STRO_SD],0)-1),tblS_VarStroški_SD[],6)),"") ->  | AQ59: a17 | AR59: 0 | AT59: 0 | AU59: =IF(IF(F59="",TRUE,COUNTIF(tbl_26_UVS_01[Naziv upravičenega variabilnega stroška],F59)=1)=FALSE,1,0) -> 0 | AV59: 0 | AW59: 0 | AX59: 0 | AY59: 0 | AZ59: 0 | BA59: 0 | BB59: 0 | BC59: 0 | BD59: 0 | BE59: 0 | BF59: 0 | BJ59: FALSE | BK59: FALSE | BL59: 0 | BM59: 0
C60: 0 | D60: 0 | H60: =IFERROR(IF(E60="","",VLOOKUP((MATCH(E60,tblS_VarStroški_SD[ID_STRO_SD],0)-1),tblS_VarStroški_SD[],5)),"") ->  | R60: =IFERROR(IF(E60="","",VLOOKUP((MATCH(E60,tblS_VarStroški_SD[ID_STRO_SD],0)-1),tblS_VarStroški_SD[],6)),"") ->  | AQ60: a18 | AR60: 0 | AT60: 0 | AU60: =IF(IF(F60="",TRUE,COUNTIF(tbl_26_UVS_01[Naziv upravičenega variabilnega stroška],F60)=1)=FALSE,1,0) -> 0 | AV60: 0 | AW60: 0 | AX60: 0 | AY60: 0 | AZ60: 0 | BA60: 0 | BB60: 0 | BC60: 0 | BD60: 0 | BE60: 0 | BF60: 0 | BJ60: FALSE | BK60: FALSE | BL60: 0 | BM60: 0
C61: 0 | D61: 0 | H61: =IFERROR(IF(E61="","",VLOOKUP((MATCH(E61,tblS_VarStroški_SD[ID_STRO_SD],0)-1),tblS_VarStroški_SD[],5)),"") ->  | R61: =IFERROR(IF(E61="","",VLOOKUP((MATCH(E61,tblS_VarStroški_SD[ID_STRO_SD],0)-1),tblS_VarStroški_SD[],6)),"") ->  | AQ61: a19 | AR61: 0 | AT61: 0 | AU61: =IF(IF(F61="",TRUE,COUNTIF(tbl_26_UVS_01[Naziv upravičenega variabilnega stroška],F61)=1)=FALSE,1,0) -> 0 | AV61: 0 | AW61: 0 | AX61: 0 | AY61: 0 | AZ61: 0 | BA61: 0 | BB61: 0 | BC61: 0 | BD61: 0 | BE61: 0 | BF61: 0 | BJ61: FALSE | BK61: FALSE | BL61: 0 | BM61: 0
C62: 0 | D62: 0 | H62: =IFERROR(IF(E62="","",VLOOKUP((MATCH(E62,tblS_VarStroški_SD[ID_STRO_SD],0)-1),tblS_VarStroški_SD[],5)),"") ->  | R62: =IFERROR(IF(E62="","",VLOOKUP((MATCH(E62,tblS_VarStroški_SD[ID_STRO_SD],0)-1),tblS_VarStroški_SD[],6)),"") ->  | AQ62: a20 | AR62: 0 | AT62: 0 | AU62: =IF(IF(F62="",TRUE,COUNTIF(tbl_26_UVS_01[Naziv upravičenega variabilnega stroška],F62)=1)=FALSE,1,0) -> 0 | AV62: 0 | AW62: 0 | AX62: 0 | AY62: 0 | AZ62: 0 | BA62: 0 | BB62: 0 | BC62: 0 | BD62: 0 | BE62: 0 | BF62: 0 | BJ62: FALSE | BK62: FALSE | BL62: 0 | BM62: 0
C63: 0 | D63: 0 | H63: =IFERROR(IF(E63="","",VLOOKUP((MATCH(E63,tblS_VarStroški_SD[ID_STRO_SD],0)-1),tblS_VarStroški_SD[],5)),"") ->  | R63: =IFERROR(IF(E63="","",VLOOKUP((MATCH(E63,tblS_VarStroški_SD[ID_STRO_SD],0)-1),tblS_VarStroški_SD[],6)),"") ->  | AQ63: a21 | AR63: 0 | AT63: 0 | AU63: =IF(IF(F63="",TRUE,COUNTIF(tbl_26_UVS_01[Naziv upravičenega variabilnega stroška],F63)=1)=FALSE,1,0) -> 0 | AV63: 0 | AW63: 0 | AX63: 0 | AY63: 0 | AZ63: 0 | BA63: 0 | BB63: 0 | BC63: 0 | BD63: 0 | BE63: 0 | BF63: 0 | BJ63: FALSE | BK63: FALSE | BL63: 0 | BM63: 0
C64: 0 | D64: 0 | H64: =IFERROR(IF(E64="","",VLOOKUP((MATCH(E64,tblS_VarStroški_SD[ID_STRO_SD],0)-1),tblS_VarStroški_SD[],5)),"") ->  | R64: =IFERROR(IF(E64="","",VLOOKUP((MATCH(E64,tblS_VarStroški_SD[ID_STRO_SD],0)-1),tblS_VarStroški_SD[],6)),"") ->  | AQ64: a22 | AR64: 0 | AT64: 0 | AU64: =IF(IF(F64="",TRUE,COUNTIF(tbl_26_UVS_01[Naziv upravičenega variabilnega stroška],F64)=1)=FALSE,1,0) -> 0 | AV64: 0 | AW64: 0 | AX64: 0 | AY64: 0 | AZ64: 0 | BA64: 0 | BB64: 0 | BC64: 0 | BD64: 0 | BE64: 0 | BF64: 0 | BJ64: FALSE | BK64: FALSE | BL64: 0 | BM64: 0
C65: 0 | D65: 0 | H65: =IFERROR(IF(E65="","",VLOOKUP((MATCH(E65,tblS_VarStroški_SD[ID_STRO_SD],0)-1),tblS_VarStroški_SD[],5)),"") ->  | R65: =IFERROR(IF(E65="","",VLOOKUP((MATCH(E65,tblS_VarStroški_SD[ID_STRO_SD],0)-1),tblS_VarStroški_SD[],6)),"") ->  | AQ65: a23 | AR65: 0 | AT65: 0 | AU65: =IF(IF(F65="",TRUE,COUNTIF(tbl_26_UVS_01[Naziv upravičenega variabilnega stroška],F65)=1)=FALSE,1,0) -> 0 | AV65: 0 | AW65: 0 | AX65: 0 | AY65: 0 | AZ65: 0 | BA65: 0 | BB65: 0 | BC65: 0 | BD65: 0 | BE65: 0 | BF65: 0 | BJ65: FALSE | BK65: FALSE | BL65: 0 | BM65: 0
C66: 0 | D66: 0 | H66: =IFERROR(IF(E66="","",VLOOKUP((MATCH(E66,tblS_VarStroški_SD[ID_STRO_SD],0)-1),tblS_VarStroški_SD[],5)),"") ->  | R66: =IFERROR(IF(E66="","",VLOOKUP((MATCH(E66,tblS_VarStroški_SD[ID_STRO_SD],0)-1),tblS_VarStroški_SD[],6)),"") ->  | AQ66: a24 | AR66: 0 | AT66: 0 | AU66: =IF(IF(F66="",TRUE,COUNTIF(tbl_26_UVS_01[Naziv upravičenega variabilnega stroška],F66)=1)=FALSE,1,0) -> 0 | AV66: 0 | AW66: 0 | AX66: 0 | AY66: 0 | AZ66: 0 | BA66: 0 | BB66: 0 | BC66: 0 | BD66: 0 | BE66: 0 | BF66: 0 | BJ66: FALSE | BK66: FALSE | BL66: 0 | BM66: 0
C67: 0 | D67: 0 | H67: =IFERROR(IF(E67="","",VLOOKUP((MATCH(E67,tblS_VarStroški_SD[ID_STRO_SD],0)-1),tblS_VarStroški_SD[],5)),"") ->  | R67: =IFERROR(IF(E67="","",VLOOKUP((MATCH(E67,tblS_VarStroški_SD[ID_STRO_SD],0)-1),tblS_VarStroški_SD[],6)),"") ->  | AQ67: a25 | AR67: 0 | AT67: 0 | AU67: =IF(IF(F67="",TRUE,COUNTIF(tbl_26_UVS_01[Naziv upravičenega variabilnega stroška],F67)=1)=FALSE,1,0) -> 0 | AV67: 0 | AW67: 0 | AX67: 0 | AY67: 0 | AZ67: 0 | BA67: 0 | BB67: 0 | BC67: 0 | BD67: 0 | BE67: 0 | BF67: 0 | BJ67: FALSE | BK67: FALSE | BL67: 0 | BM67: 0
